Workbook

Sheet AST Change Log
A1: AST changes to the AER standardised SCS Capex model as used for EDPR
A3: # | B3: Sheet Name | C3: Comment
A4: 1 | B4: 'Input| Projects As Inc' | C4: In the EDPR model this sheet was called 'Input| Projects'
A5: =OFFSET(A5,-1,0)+1 -> 2 | B5: 'Input| Projects As Inc' | C5: '13. Level 3 Mapping' column has been included
A6: =OFFSET(A6,-1,0)+1 -> 3 | B6: 'Input| Projects As Inc' | C6: '14. RIN and optional DNSP mapping categories' was changed to '14. Driver mapping categories'
A7: 4 | B7: 'Input| Projects As Inc' | C7: '16. Type 1 capital contributions included in table 15 ($'000s 2023-24 June)' was removed
A8: 5 | B8: 'Input| Projects As Com' | C8: Newly created sheet for inputs for As Commissioned
A9: 6 | B9: 'Input| Type 2 capcons' | C9: Removed this sheet as not relevant
A10: 7 | B10: 'Input| Expensing' | C10: '29. Immediate expensing (% to be immediately expensed) - Distribution' section was removed
A11: 8 | B11: 'Calc| Overheads Allocation' | C11: New section included to split overheads between fixed & variable
A12: 9 | B12: 'Productivity adjustment' | C12: This approach was removed for the TRR
A13: 10 | B13: 'Calc| Project Costs As Inc' | C13: In the EDPR model this sheet was called 'Calc| Project Costs'
A14: 11 | B14: 'Calc| Project Costs As Inc' | C14: '49. Direct escalated type 1 (cash) capcons ($'000s June 2026)' section was removed
A15: 12 | B15: 'Calc| Project Costs As Inc' | C15: '53. Total overheads allocated to type 1 contributions ($'000s June 2026)' section was removed
A16: 13 | B16: 'Calc| Project Costs As Inc' | C16: '55. Allocation to distribution and transmission' section was removed
A17: 14 | B17: 'Calc| Project Costs As Com' | C17: Newly created sheet for calculations for As Commissioned
A18: 15 | B18: 'Output| PTRM As Inc' | C18: In the EDPR model this sheet was called 'Output| PTRM (D)'
A19: 16 | B19: 'Output| PTRM As Inc' | C19: '57. Forecast capital contributions – Type 1 – as incurred ($millions June 2026) (Distribution)' section was removed
A20: 17 | B20: 'Output| PTRM As Com' | C20: Newly created sheet for outputs for As Commissioned
A21: 18 | B21: 'Output| RIN' | C21: In the EDPR model this sheet was also called 'Output| RIN'. This sheet was extended to cater for Tx requirements.
A22: 19 | B22: 'Output| TRR Driver' | C22: In the EDPR model this sheet was called 'Output| AER'. This sheet was extended to cater for Tx requirements.
A23: 20 | B23: 'Model Validation' | C23: In the EDPR model this was sheet also called 'Model Validation'. This sheet was extended to cater for Tx requirements.

Sheet Index
A1: ='Input| Setup'!E5&" "&'Input| Escalations'!D8 -> AusNet Transmission 2027-28
B2: AER Capex Forecast Model
B3: =IFERROR(MID(CELL("filename",A2),FIND("]",CELL("filename",A2))+1,255),"") -> Index | C3: Overall Check: | D3: ='Model Validation'!$C$5 -> 1 | E3: NOTE: if there is an error code here you can unhide the Model Validation tab to help you identify the error source.
B5: A guide to the cell colours used in this workbook
B7: Input | C7: This is where you must enter data. Green cells are in all of the green worksheets, and not in any other worksheet.
B8: Input - optional | C8: Entering data into these cells is optional. Most relate to decisions you make about the forecasting and allocation of capitalised overheads.
B9: Do not edit cell | C9: =" These cells are found in table "&LEFT('Input| Escalations'!B21,2)&" only. They cover a dynamic that depends on your selection of base year for inputs. Please only enter data in the green cells." -> These cells are found in table 11 only. They cover a dynamic that depends on your selection of base year for inputs. Please only enter data in the green cells.
B10: Formula - do not edit | C10: These cells have formulas and validations in them, including when they appear blank. Please do not edit these cells. All cells in the blue and orange worksheets are this type.
B12: Worksheet summary
B14: Worksheet name (links) | C14: Check | E14: Input required? | G14: Description
B15: =IFERROR('Input| Setup'!B3,"") -> Input| Setup | C15: N/A | E15: Y | G15: Sets up the model with relevant years and output categories
B16: =IFERROR('Input| Escalations'!B3,"") -> Input| Escalations | C16: N/A | E16: Y | G16: Sets up the inflation and labour escalations
B17: =IFERROR('Input| Projects As Inc'!C3,"") -> Input| Projects As Inc | C17: ='Model Validation'!C9 -> 0 | E17: Y | G17: Forecast As Incurred direct costs and other relevant forecast parameters are entered here.
B18: =IFERROR('Input| Projects As Com'!C3,"") -> Input| Projects As Com | C18: ='Model Validation'!C11 -> 0 | E18: Y | G18: Forecast As Commissioned direct costs and other relevant forecast parameters are entered here.
B19: =IFERROR('Input| Disposals'!C3,"") -> Input| Disposals | C19: ='Model Validation'!C11 -> 0 | E19: Y | G19: Input for forecast disposals by PTRM category.
B20: =IFERROR('Input| Expensing'!B3,"") -> Input| Expensing | C20: ='Model Validation'!C12 -> 0 | E20: Y | G20: Input for forecast immediate expensing by PTRM category.
B21: =IFERROR('Input| Overheads'!B3,"") -> Input| Overheads | C21: ='Model Validation'!C13 -> 0 | E21: Y | G21: Input tables used to calculate forecast capitalised overheads.
B22: =IFERROR('Calc| Overheads Allocation'!B3,"") -> Calc| Overheads Allocation | C22: ='Model Validation'!C14 -> 0 | E22: N | G22: Calculation tables for forecast capitalised overheads and yearly allocation rates.
B23: =IFERROR('Calc| Project Costs As Inc'!C3,"") -> Calc| Project Costs As Inc | C23: ='Model Validation'!C15 -> 1 | E23: N | G23: Calculation tables for forecast capex outputs.
B24: =IFERROR('Calc| Project Costs As Com'!C3,"") -> Calc| Project Costs As Com | C24: ='Model Validation'!C17 -> 0 | E24: N | G24: Calculation tables for forecast capex outputs.
B25: Output| PTRM As Inc | C25: ='Model Validation'!C17 -> 0 | E25: N | G25: Produces forecast As Incurred capex in PTRM format.
B26: Output| PTRM As Com | C26: ='Model Validation'!C18 -> 0 | E26: N | G26: Produces forecast As Commissioned capex and immediate expensing in PTRM format.
B27: =IFERROR('Output| RIN'!B3,"") -> Output| RIN | C27: ='Model Validation'!C19 -> 0 | E27: N | G27: Produces forecast capex by capex drivers that align with AER's standard assessment approach.
B28: =IFERROR('Output| TRR Driver'!B3,"") -> Output| TRR Driver | C28: ='Model Validation'!C20 -> 0 | E28: N | G28: Produces forecast capex by capex drivers that align with AusNet's categories.
B29: =IFERROR('Model Validation'!B3,"") -> Model Validation | C29: ='Model Validation'!C5 -> 1 | E29: N | G29: Hidden tab. Compiles all validation cells in the model to facilitate troubleshooting.
B31: Table listing and description
B33: Table name | C33: Worksheet | E33: Input required? | G33: Description
B34: ='Input| Setup'!A5 -> 1. Business name | C34: =B15 -> Input| Setup | E34: Y | G34: Please enter your business name. This is shown in cell A1 in each worksheet in the model.
B35: ='Input| Setup'!B7 -> 2. Financial years | C35: =B15 -> Input| Setup | E35: N | G35: ="Provides reference range for FY drop-down boxes, based on your input in table "&LEFT(B42,2)&"." -> Provides reference range for FY drop-down boxes, based on your input in table 9..
B36: ='Input| Setup'!B17 -> 3. Driver categories | C36: =B15 -> Input| Setup | E36: N | G36: Aligns with Reset RIN table 2.1.1.
B37: ='Input| Setup'!B29 -> 4. Repex Categories | C37: =B15 -> Input| Setup | E37: N
B38: ='Input| Setup'!B40 -> 5. Months | C38: =B15 -> Input| Setup | E38: N | G38: Provides reference range for month drop-down boxes (i.e. June for end-year and December for mid-year).
B39: ='Input| Setup'!B45 -> 6. Overhead switch | C39: =B15 -> Input| Setup | E39: N | G39: ="Assigns yes or no response in table "&LEFT(B50,2)&" as to whether the project attracts capitalised overheads." -> Assigns yes or no response in table 17 as to whether the project attracts capitalised overheads.
B40: ='Input| Setup'!B49 -> 7. Overhead allocation method | C40: =B15 -> Input| Setup | E40: N | G40: ="Assigns the methodology for allocating overheads in table "&LEFT(B65,2)&"." -> Assigns the methodology for allocating overheads in table 32.
B41: ='Input| Setup'!E7 -> 8. PTRM asset classes | C41: =B15 -> Input| Setup | E41: Y | G41: Please enter your PTRM classes.
B42: ='Input| Escalations'!B5 -> 9. Inflation table setup | C42: =B16 -> Input| Escalations | E42: Y | G42: Please enter the first year of the forecast regulatory control period, and the real year basis for cost inputs. Please ensure it is in YYYY-YY format
B43: ='Input| Escalations'!B12 -> 10. Inflation | C43: =C42 -> Input| Escalations | E43: Y | G43: Calculates CPI escalators. Please enter CPI (year-on-year change, lagged 12-months).
B44: ='Input| Escalations'!B21 -> 11. Forecast real price escalation | C44: =C43 -> Input| Escalations | E44: N | G44: Calculates real price escalators. Please enter forecast yearly escalation for internal labour, contract labour and non-labour.
B45: ='Input| Projects As Inc'!C7 -> 12. Project Details | C45: =B17 -> Input| Projects As Inc | E45: Y | G45: Please enter full list of forecast projects and programs. The 'Unique ID' input refers to your own internal project code.
B46: ='Input| Projects As Inc'!F7 -> 13. Level 3 Mapping | C46: =B17 -> Input| Projects As Inc | E46: Y
B47: ='Input| Projects As Inc'!H7 -> 14. Driver mapping categories | C47: =B17 -> Input| Projects As Inc | E47: Y | G47: Please allocate project to a RIN category. You can also add a DNSP-defined category for your internal validation purposes (optional), but note this will not map to an output table.
B48: ='Input| Projects As Inc'!K7 -> 15. Unescalated direct costs ($'000s 2024-25 March) | C48: =B17 -> Input| Projects As Inc | E48: Y | G48: ="Please enter annual forecast direct capex for each project and in real dollars as set out in table "&LEFT(B42,2)&". Where applicable, rebates are to be included in gross connections capex. For clarity, 'direct costs' means all costs excluding capitalised overheads." -> Please enter annual forecast direct capex for each project and in real dollars as set out in table 9.. Where applicable, rebates are to be included in gross connections capex. For clarity, 'direct costs' means all costs excluding capitalised overheads.
B49: ='Input| Projects As Inc'!S7 -> 16. Cost components as % of direct costs | C49: =B17 -> Input| Projects As Inc | E49: Y | G49: Please enter the proportion of internal labour, contract labour and non-labour costs to total direct costs for each project (average over regulatory control period).
B50: ='Input| Projects As Inc'!W7 -> 17. Capitalised overheads allocation | C50: =B17 -> Input| Projects As Inc | E50: Y | G50: Please indicate whether each project attracts capitalised network and/or corporate overheads.
B51: ='Input| Projects As Inc'!Z7 -> 18. Allocation of capitalised overheads - DNSP defined | C51: =C50 -> Input| Projects As Inc | E51: optional | G51: The model allows for allocation of overheads by direct costs, internal labour or a custom allocation method. Please complete this table only if you wish to do a custom allocation method.
B52: ='Input| Projects As Inc'!AC7 -> 19. Driver categories as % of direct costs (i.e. total costs reported in table 15, excluding capitalised overheads) | C52: =B17 -> Input| Projects As Inc | E52: Y | G52: Please enter the proportion of directs costs for each project and program to be allocated to each AER category.
B53: ='Input| Projects As Inc'!AN7 -> 20. PTRM asset classes as % of direct costs (i.e. total costs reported in table 15, excluding capitalised overheads) | C53: =B17 -> Input| Projects As Inc | E53: Y | G53: Please enter the proportion of directs costs for each project and program to be allocated to each PTRM asset class.
B54: ='Input| Projects As Com'!C7 -> 21. Project Details | C54: =B18 -> Input| Projects As Com | E54: Y | G54: Please enter full list of forecast projects and programs. The 'Unique ID' input refers to your own internal project code.
B55: ='Input| Projects As Com'!H7 -> 22. AUC ($'000s 2024-25 March) | C55: =B18 -> Input| Projects As Com | E55: Y | G55: ="Please enter annual forecast direct capex for each project and in real dollars as set out in table "&LEFT(B51,2)&". Where applicable, rebates are to be included in gross connections capex. For clarity, 'direct costs' means all costs excluding capitalised overheads." -> Please enter annual forecast direct capex for each project and in real dollars as set out in table 18. Where applicable, rebates are to be included in gross connections capex. For clarity, 'direct costs' means all costs excluding capitalised overheads.
B56: ='Input| Projects As Com'!J7 -> 23. As Commissioned % | C56: =B18 -> Input| Projects As Com | E56: Y | G56: Please enter the proportion of internal labour, contract labour and non-labour costs to total direct costs for each project (average over regulatory control period).
B57: ='Input| Projects As Com'!T7 -> 24. RIN Repex Category % | C57: =B18 -> Input| Projects As Com | E57: Y | G57: Please enter the RIN Repex category allocations
B58: ='Input| Disposals'!D5 -> 25. Forecast asset disposals ($'000s 2024-25 March) | C58: =B19 -> Input| Disposals | E58: Y | G58: Please enter your forecast asset disposals by PTRM asset class.
B59: ='Input| Disposals'!N5 -> 26. Forecast asset disposals ($'000s March 2027) | C59: =B19 -> Input| Disposals | E59: N | G59: ="Converts table "&LEFT(B58,2)&" data to correct real year basis." -> Converts table 25 data to correct real year basis.
B60: ='Input| Expensing'!C5 -> 27. Immediate expensing (% to be immediately expensed) | C60: =B20 -> Input| Expensing | E60: Y | G60: Please enter forecast immediate expensing of capex as a percentage of total gross capex by PTRM asset class.
B61: ='Input| Overheads'!B5 -> 28. Forecast capitalised overheads for current period | C61: =B21 -> Input| Overheads | E61: Y | G61: ="Please enter forecast costs for the current period. If costs for year 4 are actuals, please enter them in table "&LEFT(B63,2)&" only." -> Please enter forecast costs for the current period. If costs for year 4 are actuals, please enter them in table 30 only.
B62: ='Input| Overheads'!B13 -> 29. Forecast capitalised overheads for forecast period - alternative method | C62: =B21 -> Input| Overheads | E62: optional | G62: OPTIONAL: please enter unescalated capitalised overheads in this table only if you wish to enter a substitute forecast for capitalised overheads instead of the default methodology (i.e. based on historicals).
B63: ='Input| Overheads'!B21 -> 30. Historical expenditure (nominal) | C63: =B21 -> Input| Overheads | E63: Y | G63: Please enter historical actual gross capex in nominal terms. Do not enter any forecast/estimated current period capex.
B64: ='Input| Overheads'!B33 -> 31. Forecast cost components of capitalised overheads | C64: =B21 -> Input| Overheads | E64: Y | G64: Please enter internal labour, contract labour and non-labour costs as a proportion of capitalised overheads.
B65: ='Input| Overheads'!B40 -> 32. Select an overheads allocation method | C65: =B21 -> Input| Overheads | E65: Y | G65: Please specify method to allocate capitalised overheads: allocation by direct costs, internal labour or own method (if you select own method, than instructions will appear below your selection).
B66: ='Calc| Overheads Allocation'!B5 -> 33. Overheads rate to be applied to forecast escalated direct costs (%) | C66: =$B$22 -> Calc| Overheads Allocation | E66: N | G66: Rate at which capitalised overheads are allocated to costs attracting overheads for each project.
B67: ='Calc| Overheads Allocation'!B14 -> 34. Capitalised overheads ($'000s March 2027) | C67: =$B$22 -> Calc| Overheads Allocation | E67: N | G67: Inflates historical actual capitalised overheads from nominal to real regulatory base dollars using CPI.
B68: ='Calc| Overheads Allocation'!B19 -> 35. Total costs that attract capitalised overheads ($'000s March 2027) | C68: Calc| Overheads Allocation | E68: N | G68: Inflates historical actual costs that attracts capitalised overheads from nominal to real regulatory base dollars using CPI.
B69: ='Calc| Overheads Allocation'!B26 -> 36. Escalated costs that attract overheads ($'000s March 2027) | C69: Calc| Overheads Allocation | E69: N | G69: Default method of forecasting capitalised overheads: compiles forecast direct capex that attracts capitalised overheads.
B70: ='Calc| Overheads Allocation'!B31 -> 37. Escalated capitalised internal labour costs that attract overheads ($'000s March 2027) | C70: Calc| Overheads Allocation | E70: N | G70: Default method of forecasting capitalised overheads: compiles forecast capitalised internal labour that attracts capitalised overheads.
B71: ='Calc| Overheads Allocation'!B35 -> 38. Change in costs attracting capitalised overheads | C71: Calc| Overheads Allocation | E71: N | G71: Default method of forecasting capitalised overheads: calculates the change in costs that attract capitalised overheads between current period actuals and forecast.
B72: ='Calc| Overheads Allocation'!B41 -> 39. Unescalated capitalised overheads ($'000s March 2027) | C72: Calc| Overheads Allocation | E72: N | G72: Default method of forecasting capitalised overheads: calculates forecast capitalised overheads based on the change in costs attracting overheads and assuming 25 per cent of capitalised overheads vary with changes in these costs.
B73: ='Calc| Overheads Allocation'!B47 -> 40. Annual unescalated capitalised overheads ($'000s March 2027) | C73: Calc| Overheads Allocation | E73: N | G73: ="Calculates annual forecast capitalised overheads either using data input by the distributor in table "&LEFT('Input| Overheads'!B21, 2)&" or based on the overhead rate calculated in table "&LEFT('Calc| Overheads Allocation'!B41,2)&"." -> Calculates annual forecast capitalised overheads either using data input by the distributor in table 30 or based on the overhead rate calculated in table 39.
B74: ='Calc| Overheads Allocation'!B53 -> 41. Real cost escalation - cumulative | C74: Calc| Overheads Allocation | E74: N | G74: Calculates real cost escalation applicable to forecast capitalised overheads.
B75: ='Calc| Overheads Allocation'!B58 -> 42. Forecast capitalised overheads | C75: Calc| Overheads Allocation | E75: N | G75: Output: total forecast capitalised overheads to be allocated to gross capex.
B76: ='Calc| Project Costs As Inc'!F7 -> 43. Direct unescalated costs, $000s ($2027 March) | C76: =$B$23 -> Calc| Project Costs As Inc | E76: N | G76: Inflates forecast direct costs from real base year for inputs to real regulatory base dollars using CPI.
B77: ='Calc| Project Costs As Inc'!N7 -> 44. Compound real cost escalation rates | C77: Calc| Project Costs As Inc | E77: N | G77: Calculates real price escalators for each project and program based on the proportion of internal labour, contract labour and non-labour costs to total gross direct capex.
B78: ='Calc| Project Costs As Inc'!V7 -> 45. Direct escalated costs ($'000s March 2027) | C78: Calc| Project Costs As Inc | E78: N | G78: Escalates direct costs using real price escalators.
B79: ='Calc| Project Costs As Inc'!AD7 -> 46. Network overheads ($'000s March 2027) | C79: Calc| Project Costs As Inc | E79: N | G79: ="Applies overhead rate based on selection in table "&LEFT(B65,2)&" to calculate allocation of capitalised network overheads." -> Applies overhead rate based on selection in table 32 to calculate allocation of capitalised network overheads.
B80: ='Calc| Project Costs As Inc'!AL7 -> 47. Corporate overheads ($'000s March 2027) | C80: Calc| Project Costs As Inc | E80: N | G80: ="Applies overhead rate based on selection in table "&LEFT(B65,2)&" to calculate allocation of capitalised corporate overheads." -> Applies overhead rate based on selection in table 32 to calculate allocation of capitalised corporate overheads.
B81: ='Calc| Project Costs As Inc'!AT7 -> 48. Total capitalised overheads ($'000s March 2027) | C81: Calc| Project Costs As Inc | E81: N | G81: Sums the total capitalised overheads.
B82: ='Calc| Project Costs As Inc'!BB7 -> 49. Total escalated costs ($'000s March 2027) | C82: Calc| Project Costs As Inc | E82: N | G82: Calculates escalated gross capex (excluding type 2 capital contributions) for input into PTRM table.
B83: ='Calc| Project Costs As Com'!I7 -> 50. Total As Incurred Capex, $000s ($2027 March) | C83: =$B$24 -> Calc| Project Costs As Com | E83: N | G83: Inflates forecast direct costs from real base year for inputs to real regulatory base dollars using CPI.
B84: ='Calc| Project Costs As Com'!Q7 -> 51. Total As Commissioned Capex, $000s ($2027 March) | C84: =$B$24 -> Calc| Project Costs As Com | E84: N | G84: Calculates real price escalators for each project and program based on the proportion of internal labour, contract labour and non-labour costs to total gross direct capex.
B85: ='Calc| Project Costs As Com'!Y7 -> 52. AUC, $000s ($2027 March) | C85: =$B$24 -> Calc| Project Costs As Com | E85: N | G85: Escalates direct costs using real price escalators.
B86: ='Output| PTRM As Inc'!C5 -> 53. Forecast gross capital expenditure – as incurred ($millions March 2027) | C86: =$B$25 -> Output| PTRM As Inc | E86: N | G86: Output - As Incurred gross forecast capex by PTRM asset class.
B87: ='Output| PTRM As Inc'!C40 -> 54. Forecast asset disposals – as incurred ($millions March 2027) | C87: =$B$25 -> Output| PTRM As Inc | E87: N | G87: Output - As Incurred forecast asset disposals by PTRM asset class.
B88: ='Output| PTRM As Inc'!C75 -> 55. Forecast net capital expenditure – as incurred ($millions March 2027) | C88: =$B$25 -> Output| PTRM As Inc | E88: N | G88: Output - As incurred net forecast capex by PTRM asset class.
B89: ='Output| PTRM As Inc'!L5 -> 56. Forecast immediate expensing of capital expenditure – as commissioned ($millions March 2027) | C89: =$B$25 -> Output| PTRM As Inc | E89: N | G89: Output - Immediate expensing of capital expenditure by PTRM asset class.
B90: ='Output| PTRM As Com'!C5 -> 57. Forecast gross capital expenditure – as commissioned ($millions March 2027) | C90: =$B$26 -> Output| PTRM As Com | E90: N | G90: Output - As Commissioned gross forecast capex by PTRM asset class.
B91: ='Output| PTRM As Com'!C40 -> 58. Forecast asset disposals – as commissioned ($millions March 2027) | C91: =$B$26 -> Output| PTRM As Com | E91: N | G91: Output - As Commissioned forecast asset disposals by PTRM asset class.
B92: ='Output| PTRM As Com'!C75 -> 59. Forecast net capital expenditure – as commissioned ($millions March 2027) | C92: =$B$26 -> Output| PTRM As Com | E92: N | G92: Output - As Commissioned net forecast capex by PTRM asset class.
B93: ='Output| RIN'!A7 -> 60. Forecast gross capital expenditure by Driver – As Incurred ($millions March 2027) | C93: =B27 -> Output| RIN | E93: N | G93: Output - As Commissioned immediate expensing of capex by PTRM asset class.
B94: ='Output| RIN'!A25 -> 61. Forecast Repex by Category – As Commissioned ($millions March 2027) | C94: =B27 -> Output| RIN | E94: N | G94: Output: forecast As Commissioned Repex capex by RIN category.
B95: ='Output| RIN'!A40 -> 62. Forecast Repex by Category (Direct Costs) – As Incurred ($millions March 2027) | C95: =B27 -> Output| RIN | E95: N | G95: Output: forecast As Incurred direct Repex capex by RIN category.
B96: ='Output| RIN'!A55 -> 63. Forecast Motor Vehicle Capex (Direct Costs) – As Incurred ($millions March 2027) | C96: =B27 -> Output| RIN | E96: N | G96: Output: forecast As Incurred direct Motor Vehicle capex by RIN category.
B97: ='Output| RIN'!A66 -> 64. Forecast IT Capex (Direct Costs) – As Incurred ($millions March 2027) | C97: =B27 -> Output| RIN | E97: N | G97: Output: forecast As Incurred direct IT capex by RIN category.
B98: ='Output| TRR Driver'!B5 -> 65. AusNet TRR Driver Level 3 Categories: forecast capex ($000s March 2027) | C98: =$B$28 -> Output| TRR Driver | E98: N | G98: Output: forecast capex by AusNet Driver category level 3.
B99: ='Output| TRR Driver'!B54 -> 66. AusNet TRR Driver Level 2 Categories: forecast capex ($000s March 2027) | C99: =$B$28 -> Output| TRR Driver | E99: N | G99: Output: forecast capex by AusNet Driver category level 2.
B100: ='Output| TRR Driver'!B76 -> 67. AusNet TRR Driver Level 1 Categories: forecast capex ($000s March 2027) | C100: =$B$28 -> Output| TRR Driver | E100: N | G100: Output: forecast capex by AusNet Driver category level 1.

Sheet Input| Setup
A1: ='Input| Setup'!E5&" "&'Input| Escalations'!D8 -> AusNet Transmission 2027-28
B2: =IFERROR(Index!B2,"") -> AER Capex Forecast Model | C2: Key: | E2: Input | F2: Formula - do not edit
B3: =IFERROR(MID(CELL("filename",A2),FIND("]",CELL("filename",A2))+1,255),"") -> Input| Setup
A5: 1. Business name | E5: AusNet Transmission
B7: =LEFT(A5,1)+1&". Financial years" -> 2. Financial years | E7: =LEFT(B49,1)+1&". PTRM asset classes" -> 8. PTRM asset classes | F7: Distribution or transmission
B8: =LEFT(B9,4)-1&"-"&RIGHT(B9,2)-1 -> 2020-21 | D8: 1 | E8: Secondary | F8: Tx
B9: 2021-22 | D9: =D8+1 -> 2 | E9: Switchgear | F9: Tx
B10: 2022-23 | D10: 3 | E10: Transformers | F10: Tx
B11: 2023-24 | D11: 4 | E11: Reactive | F11: Tx
B12: 2024-25 | D12: 5 | E12: Towers and Conductor | F12: Tx
B13: 2025-26 | D13: 6 | E13: Establishment | F13: Tx
B14: 2026-27 | D14: 7 | E14: Communications | F14: Tx
B15: ='Input| Escalations'!D8 -> 2027-28 | D15: 8 | E15: Inventory | F15: Tx
D16: 9 | E16: IT | F16: Tx
B17: =LEFT(B7,1)+1&". Driver categories" -> 3. Driver categories | D17: 10 | E17: Vehicles | F17: Tx
B18: Replacement - Major Stations | D18: 11 | E18: Other (Non-Network) | F18: Tx
B19: Replacement - Other | D19: 12 | E19: Premises | F19: Tx
B20: Compliance | D20: 13 | E20: Land | F20: Tx
B21: Resillience | D21: 14 | E21: Easements | F21: Tx
B22: ICT capex | D22: 15 | E22: Polymeric Insulators | F22: Tx
B23: Property capex | D23: 16 | E23: Leases L&B - Short Lives | F23: Tx
B24: Fleet capex | D24: 17 | E24: Head Office Leases | F24: Tx
B25: Other non-network capex | D25: 18 | E25: Buildings - Capital Works | F25: Tx
B26: Capitalised network overheads | D26: 19 | E26: In-House Software | F26: Tx
B27: Capitalised corporate overheads | D27: 20
D28: 21
B29: =LEFT(B17,1)+1&". Repex Categories" -> 4. Repex Categories | D29: 22
B30: Transmission Towers | D30: 23
B31: Transmission Tower Support Structures | D31: 24
B32: Conductors | D32: 25
B33: Transmission Cables | D33: 26
B34: Substation Switchbays | D34: 27
B35: Substation Power Transformers | D35: 28
B36: Substation Reactive Plant | D36: 29
B37: Scada, Network Control And Protection Systems | D37: 30
B38: Other
B40: =LEFT(B29,1)+1&". Months" -> 5. Months
B41: March
B42: September
B45: =LEFT(B40,1)+1&". Overhead switch" -> 6. Overhead switch
B46: Yes
B47: No
B49: =LEFT(B45,1)+1&". Overhead allocation method" -> 7. Overhead allocation method
B50: Direct costs
B51: Internal labour
B52: DNSP defined

Sheet Input| Escalations
A1: ='Input| Setup'!E5&" "&'Input| Escalations'!D8 -> AusNet Transmission 2027-28
B2: =IFERROR(Index!B2,"") -> AER Capex Forecast Model | D2: Key: | E2: Input | F2: Do not edit cell | I2: Formula - do not edit | L2: AER alternative
B3: =IFERROR(MID(CELL("filename",A2),FIND("]",CELL("filename",A2))+1,255),"") -> Input| Escalations
B5: =LEFT('Input| Setup'!E7,1)+1&". Inflation table setup" -> 9. Inflation table setup
D7: Year | E7: Month
B8: First year of forecast regulatory control period (YYYY-YY) | D8: 2027-28
B9: Base year for inputs | D9: 2024-25 | E9: March
B10: Base year for outputs | D10: =IFERROR(LEFT(D8,4),"") -> 2027 | E10: =E9 -> March
B12: =LEFT(B5,2)+1&". Inflation" -> 10. Inflation | D12: NOTE: please use a one year-lagged CPI series.
D14: =IFERROR((LEFT(E14,4)-1&IF(MID(E14,5,1)="","","-"&TEXT(MOD(MID(E14,6,2)-1,100),"00"))),"") -> 2021-22 | E14: 2022-23 | F14: 2023-24 | G14: 2024-25 | H14: 2025-26 | I14: 2026-27 | J14: =D8 -> 2027-28 | K14: =E10&" "&D10 -> March 2027
B15: CPI year on year change (%) - lagged one year (actual/estimate) | D15: 0.006932409012 | E15: 0.03012048193 | F15: 0.07268170426 | G15: 0.05373831776 | H15: 0.0280857354 | I15: 0.03235082674 | J15: 0.032
B16: =E10&" "&D10&" estimate" -> March 2027 estimate
B17: Cumulative Inflation Index | D17: =IFERROR(1+D15,"") -> 1.006932409 | E17: =IFERROR(D17*(1+E15),"") -> 1.037261698 | F17: =E17*(1+F15) -> 1.112651646 | G17: =F17*(1+G15) -> 1.172443674 | H17: =G17*(1+H15) -> 1.205372617 | I17: =H17*(1+I15) -> 1.244367418 | J17: =I17*(1+J15) -> 1.284187175
B18: =IFERROR("Index: Nominal "&E9&" to "& "Real "&D10 &" "&LEFT(E10,9),"") -> Index: Nominal March to Real 2027 March | D18: =INDEX($D$17:$J$17,MATCH($D$10- 1,_xlfn.NUMBERVALUE(LEFT($D$14:$J$14,4)),0))/D$17*(1+D$15)^IF($E$9='Input| Setup'!$B$42,0.5,0) -> 1.235800344 | E18: =INDEX($D$17:$J$17,MATCH($D$10- 1,_xlfn.NUMBERVALUE(LEFT($D$14:$J$14,4)),0))/E$17*(1+E$15)^IF($E$9='Input| Setup'!$B$42,0.5,0) -> 1.199665831 | F18: =INDEX($D$17:$J$17,MATCH($D$10- 1,_xlfn.NUMBERVALUE(LEFT($D$14:$J$14,4)),0))/F$17*(1+F$15)^IF($E$9='Input| Setup'!$B$42,0.5,0) -> 1.118380062 | G18: =INDEX($D$17:$J$17,MATCH($D$10- 1,_xlfn.NUMBERVALUE(LEFT($D$14:$J$14,4)),0))/G$17*(1+G$15)^IF($E$9='Input| Setup'!$B$42,0.5,0) -> 1.061345159 | H18: =INDEX($D$17:$J$17,MATCH($D$10- 1,_xlfn.NUMBERVALUE(LEFT($D$14:$J$14,4)),0))/H$17*(1+H$15)^IF($E$9='Input| Setup'!$B$42,0.5,0) -> 1.032350827 | I18: =INDEX($D$17:$J$17,MATCH($D$10- 1,_xlfn.NUMBERVALUE(LEFT($D$14:$J$14,4)),0))/I$17*(1+I$15)^IF($E$9='Input| Setup'!$B$42,0.5,0) -> 1 | J18: =INDEX($D$17:$J$17,MATCH($D$10- 1,_xlfn.NUMBERVALUE(LEFT($D$14:$J$14,4)),0))/J$17*(1+J$15)^IF($E$9='Input| Setup'!$B$42,0.5,0) -> 0.9689922481
B19: =IFERROR("Real "&D9 &" "&LEFT(E9,9)&" to "& "Real "&D10 &" "&LEFT(E10,9),"") -> Real 2024-25 March to Real 2027 March | K19: =INDEX(D14:J18,5,MATCH(D9,D14:J14)) -> 1.061345159
B21: =LEFT(B12,2)+1&". Forecast real price escalation" -> 11. Forecast real price escalation | D21: =IF(E9="June","NOTE: because you selected "&D9&" "&E9&" for inputs, please ensure you enter 6-month escalations for "&(LEFT(D9,4)+1&IF(MID(D9,5,1)="","","-"&TEXT(MOD(MID(D9,6,2)+1,100),"00"))),"") -> 
D23: =IF(C14<$D$9,"",D14) ->  | H23: 2025-26 | I23: 2026-27 | J23: =J14 -> 2027-28 | K23: =IFERROR((LEFT(J23,4)+1&IF(MID(J23,5,1)="","","-"&TEXT(MOD(MID(J23,6,2)+1,100),"00"))),"") -> 2028-29 | L23: =IFERROR((LEFT(K23,4)+1&IF(MID(K23,5,1)="","","-"&TEXT(MOD(MID(K23,6,2)+1,100),"00"))),"") -> 2029-30 | M23: =IFERROR((LEFT(L23,4)+1&IF(MID(L23,5,1)="","","-"&TEXT(MOD(MID(L23,6,2)+1,100),"00"))),"") -> 2030-31 | N23: =IFERROR((LEFT(M23,4)+1&IF(MID(M23,5,1)="","","-"&TEXT(MOD(MID(M23,6,2)+1,100),"00"))),"") -> 2031-32
B24: Annual escalation
B25: Internal labour | H25: 0.007323226381 | I25: 0.00641424477 | J25: 0.008573445371 | K25: 0.01002659803 | L25: 0.01129613151 | M25: 0.01148576616 | N25: 0.01034548527
B26: Contract labour | H26: 0 | I26: 0 | J26: 0 | K26: 0 | L26: 0 | M26: 0 | N26: 0
B27: Non-labour
B28: Index
B29: Internal labour | C29: 1 | D29: =IFERROR(C29*(1+D25),"") -> 1 | E29: 1 | F29: 1 | G29: 1 | H29: 1.007323226 | I29: 1.013784444 | J29: 1.02247607 | K29: 1.032728026 | L29: 1.044393858 | M29: 1.056389521 | N29: 1.067318384
B30: Contract labour | C30: 1 | D30: =IFERROR(C30*(1+D26),"") -> 1 | E30: 1 | F30: 1 | G30: 1 | H30: 1 | I30: =IFERROR(H30*(1+I26),"") -> 1 | J30: 1 | K30: 1 | L30: 1 | M30: 1 | N30: 1
B31: Non-labour | C31: 1 | D31: =IFERROR(C31*(1+D27),"") -> 1 | E31: 1 | F31: 1 | G31: 1 | H31: 1 | I31: 1 | J31: 1 | K31: 1 | L31: 1 | M31: 1 | N31: 1
B32: Cumulative
B33: Internal labour | D33: =IF(D29-1=0,0,D29-1) -> 0 | E33: 0 | F33: 0 | G33: =IF(G29-1=0,0,G29-1) -> 0 | H33: 0.007323226381 | I33: 0.01378444412 | J33: 0.02247606967 | K33: 0.03272802621 | L33: 0.04439385782 | M33: 0.05638952145 | N33: 0.06731838368
B34: Contract labour | D34: 0 | E34: 0 | F34: 0 | G34: 0 | H34: 0 | I34: 0 | J34: 0 | K34: 0 | L34: 0 | M34: 0 | N34: 0
B35: Non-labour | D35: 0 | E35: 0 | F35: 0 | G35: 0 | H35: 0 | I35: 0 | J35: 0 | K35: 0 | L35: 0 | M35: 0 | N35: 0
D37: ="Note: the grey cells below the enable conditional formatting in table "&LEFT(B21,2)&". Do not delete." -> Note: the grey cells below the enable conditional formatting in table 11. Do not delete.
D38: =IF(AND(D23="",E23=""),1,"") -> 1 | E38: 1 | F38: 1
D39: =IF(D23="",0,"") -> 0 | E39: 0 | F39: 0 | G39: 0

Sheet Input| Projects As Inc
A1: ='Input| Setup'!E5&" "&'Input| Escalations'!D8 -> AusNet Transmission 2027-28
C2: =IFERROR(Index!B2,"") -> AER Capex Forecast Model | D2: Sheet Validation | E2: ='Model Validation'!$C$9 -> 0 | K2: Key: | L2: Input | M2: Input - optional | N2: Formula - do not edit | O2: AER alternative
C3: =IFERROR(MID(CELL("filename",B2),FIND("]",CELL("filename",B2))+1,255),"") -> Input| Projects As Inc
K5: ="Total annual direct costs, unescalated" -> Total annual direct costs, unescalated | Z5: =IF(SUM(Z10:Z209)=0,0,IF(SUM(Z10:Z209)=1,0,1)) -> 0 | AA5: =IF(SUM(AA10:AA209)=0,0,IF(SUM(AA10:AA209)=1,0,1)) -> 0
K6: =SUM(K10:K209) -> 163405.5739 | L6: 280501.1144 | M6: 422974.0522 | N6: 389199.1361 | O6: 262403.0035 | P6: 244885.1956 | Q6: 224453.7763 | Z6: ="NOTE: fill in table only if you select 'DNSP defined' overhead allocation in table "&LEFT('Input| Overheads'!B40,2) -> NOTE: fill in table only if you select 'DNSP defined' overhead allocation in table 32 | AN6: 1 | AO6: =AN6+1 -> 2 | AP6: =AO6+1 -> 3 | AQ6: 4 | AR6: 5 | AS6: 6 | AT6: 7 | AU6: 8 | AV6: 9 | AW6: 10 | AX6: 11 | AY6: 12 | AZ6: 13 | BA6: 14 | BB6: 15 | BC6: 16 | BD6: 17 | BE6: 18 | BF6: 19 | BG6: 20 | BH6: 21 | BI6: 22 | BJ6: 23 | BK6: 24 | BL6: 25 | BM6: =BL6+1 -> 26 | BN6: 27 | BO6: 28 | BP6: 29 | BQ6: 30 | BR6: 31 | BS6: 32 | BT6: 33 | BU6: 34 | BV6: 35 | BW6: 36 | BX6: 37 | BY6: 38 | BZ6: 39 | CA6: 40 | CB6: 41 | CC6: 42 | CD6: 43 | CE6: 44 | CF6: 45 | CG6: 46 | CH6: 47 | CI6: 48 | CJ6: 49 | CK6: 50
C7: =LEFT('Input| Escalations'!B21,2)+1&". Project Details" -> 12. Project Details | F7: =LEFT(C7,2)+1&". Level 3 Mapping" -> 13. Level 3 Mapping | H7: =LEFT(F7,2)+1&". Driver mapping categories" -> 14. Driver mapping categories | K7: =IFERROR(LEFT(H7,2)+1&". Unescalated direct costs ($'000s "&'Input| Escalations'!$D$9&" "&'Input| Escalations'!$E$9&")","") -> 15. Unescalated direct costs ($'000s 2024-25 March) | S7: =LEFT(K7,2)+1&". Cost components as % of direct costs " -> 16. Cost components as % of direct costs | W7: =LEFT(S7,2)+1&". Capitalised overheads allocation" -> 17. Capitalised overheads allocation | Z7: =LEFT(W7,2)+1&". Allocation of capitalised overheads - DNSP defined" -> 18. Allocation of capitalised overheads - DNSP defined | AC7: =LEFT(Z7,2)+1&". Driver categories as % of direct costs (i.e. total costs reported in table "&LEFT(K7,2)& ", excluding capitalised overheads)" -> 19. Driver categories as % of direct costs (i.e. total costs reported in table 15, excluding capitalised overheads) | AN7: =LEFT(AC7,2)+1&". PTRM asset classes as % of direct costs (i.e. total costs reported in table "&LEFT(K7,2)& ", excluding capitalised overheads)" -> 20. PTRM asset classes as % of direct costs (i.e. total costs reported in table 15, excluding capitalised overheads)
V8: =IF(SUM(V10:V209)=0,0,1) -> 0 | Z8: % of total capitalised overheads allocated to project: | AM8: =IF(SUM(AM10:AM209)=0,0,1) -> 0 | CL8: =IF(SUM(CL10:CL209)=0,0,1) -> 0
C9: Project/Program Inputs | D9: Unique ID | H9: =MID('Input| Setup'!B17, 4, LEN('Input| Setup'!B17)) -> Driver categories | K9: =IFERROR('Input| Escalations'!H23,"") -> 2025-26 | L9: =IFERROR('Input| Escalations'!I23,"") -> 2026-27 | M9: =IFERROR('Input| Escalations'!J23,"") -> 2027-28 | N9: =IFERROR('Input| Escalations'!K23,"") -> 2028-29 | O9: =IFERROR('Input| Escalations'!L23,"") -> 2029-30 | P9: =IFERROR('Input| Escalations'!M23,"") -> 2030-31 | Q9: =IFERROR('Input| Escalations'!N23,"") -> 2031-32 | S9: Internal labour | T9: Contract labour | U9: Non-labour | W9: Network Overheads Applies | X9: Corporate Overheads Applies | Z9: % of total network overheads | AA9: % of total corporate overheads | AC9: =IF('Input| Setup'!B18="","!Check",'Input| Setup'!B18) -> Replacement - Major Stations | AD9: =IF('Input| Setup'!B19="","!Check",'Input| Setup'!B19) -> Replacement - Other | AE9: =IF('Input| Setup'!B20="","!Check",'Input| Setup'!B20) -> Compliance | AF9: =IF('Input| Setup'!B21="","!Check",'Input| Setup'!B21) -> Resillience | AG9: =IF('Input| Setup'!B22="","!Check",'Input| Setup'!B22) -> ICT capex | AH9: =IF('Input| Setup'!B23="","!Check",'Input| Setup'!B23) -> Property capex | AI9: =IF('Input| Setup'!B24="","!Check",'Input| Setup'!B24) -> Fleet capex | AJ9: =IF('Input| Setup'!B25="","!Check",'Input| Setup'!B25) -> Other non-network capex | AK9: =IF('Input| Setup'!B26="","!Check",'Input| Setup'!B26) -> Capitalised network overheads | AL9: =IF('Input| Setup'!B27="","!Check",'Input| Setup'!B27) -> Capitalised corporate overheads | AN9: =IFERROR(IF(VLOOKUP(AN$6,'Input| Setup'!$D$8:$E$37,2,0)=0,"",VLOOKUP(AN$6,'Input| Setup'!$D$8:$E$37,2,0)),"") -> Secondary | AO9: =IF(VLOOKUP(AO$6,'Input| Setup'!$D$8:$E$37,2,0)=0,"",VLOOKUP(AO$6,'Input| Setup'!$D$8:$E$37,2,0)) -> Switchgear | AP9: =IFERROR(IF(VLOOKUP(AP$6,'Input| Setup'!$D$8:$E$37,2,0)=0,"",VLOOKUP(AP$6,'Input| Setup'!$D$8:$E$37,2,0)),"") -> Transformers | AQ9: =IFERROR(IF(VLOOKUP(AQ$6,'Input| Setup'!$D$8:$E$37,2,0)=0,"",VLOOKUP(AQ$6,'Input| Setup'!$D$8:$E$37,2,0)),"") -> Reactive | AR9: =IFERROR(IF(VLOOKUP(AR$6,'Input| Setup'!$D$8:$E$37,2,0)=0,"",VLOOKUP(AR$6,'Input| Setup'!$D$8:$E$37,2,0)),"") -> Towers and Conductor | AS9: =IFERROR(IF(VLOOKUP(AS$6,'Input| Setup'!$D$8:$E$37,2,0)=0,"",VLOOKUP(AS$6,'Input| Setup'!$D$8:$E$37,2,0)),"") -> Establishment | AT9: =IFERROR(IF(VLOOKUP(AT$6,'Input| Setup'!$D$8:$E$37,2,0)=0,"",VLOOKUP(AT$6,'Input| Setup'!$D$8:$E$37,2,0)),"") -> Communications | AU9: =IFERROR(IF(VLOOKUP(AU$6,'Input| Setup'!$D$8:$E$37,2,0)=0,"",VLOOKUP(AU$6,'Input| Setup'!$D$8:$E$37,2,0)),"") -> Inventory | AV9: =IFERROR(IF(VLOOKUP(AV$6,'Input| Setup'!$D$8:$E$37,2,0)=0,"",VLOOKUP(AV$6,'Input| Setup'!$D$8:$E$37,2,0)),"") -> IT | AW9: =IFERROR(IF(VLOOKUP(AW$6,'Input| Setup'!$D$8:$E$37,2,0)=0,"",VLOOKUP(AW$6,'Input| Setup'!$D$8:$E$37,2,0)),"") -> Vehicles | AX9: =IFERROR(IF(VLOOKUP(AX$6,'Input| Setup'!$D$8:$E$37,2,0)=0,"",VLOOKUP(AX$6,'Input| Setup'!$D$8:$E$37,2,0)),"") -> Other (Non-Network) | AY9: =IFERROR(IF(VLOOKUP(AY$6,'Input| Setup'!$D$8:$E$37,2,0)=0,"",VLOOKUP(AY$6,'Input| Setup'!$D$8:$E$37,2,0)),"") -> Premises | AZ9: =IFERROR(IF(VLOOKUP(AZ$6,'Input| Setup'!$D$8:$E$37,2,0)=0,"",VLOOKUP(AZ$6,'Input| Setup'!$D$8:$E$37,2,0)),"") -> Land | BA9: =IFERROR(IF(VLOOKUP(BA$6,'Input| Setup'!$D$8:$E$37,2,0)=0,"",VLOOKUP(BA$6,'Input| Setup'!$D$8:$E$37,2,0)),"") -> Easements | BB9: =IFERROR(IF(VLOOKUP(BB$6,'Input| Setup'!$D$8:$E$37,2,0)=0,"",VLOOKUP(BB$6,'Input| Setup'!$D$8:$E$37,2,0)),"") -> Polymeric Insulators | BC9: =IFERROR(IF(VLOOKUP(BC$6,'Input| Setup'!$D$8:$E$37,2,0)=0,"",VLOOKUP(BC$6,'Input| Setup'!$D$8:$E$37,2,0)),"") -> Leases L&B - Short Lives | BD9: =IFERROR(IF(VLOOKUP(BD$6,'Input| Setup'!$D$8:$E$37,2,0)=0,"",VLOOKUP(BD$6,'Input| Setup'!$D$8:$E$37,2,0)),"") -> Head Office Leases | BE9: =IFERROR(IF(VLOOKUP(BE$6,'Input| Setup'!$D$8:$E$37,2,0)=0,"",VLOOKUP(BE$6,'Input| Setup'!$D$8:$E$37,2,0)),"") -> Buildings - Capital Works | BF9: =IFERROR(IF(VLOOKUP(BF$6,'Input| Setup'!$D$8:$E$37,2,0)=0,"",VLOOKUP(BF$6,'Input| Setup'!$D$8:$E$37,2,0)),"") -> In-House Software | BG9: =IFERROR(IF(VLOOKUP(BG$6,'Input| Setup'!$D$8:$E$37,2,0)=0,"",VLOOKUP(BG$6,'Input| Setup'!$D$8:$E$37,2,0)),"") ->  | BH9: =IFERROR(IF(VLOOKUP(BH$6,'Input| Setup'!$D$8:$E$37,2,0)=0,"",VLOOKUP(BH$6,'Input| Setup'!$D$8:$E$37,2,0)),"") ->  | BI9: =IFERROR(IF(VLOOKUP(BI$6,'Input| Setup'!$D$8:$E$37,2,0)=0,"",VLOOKUP(BI$6,'Input| Setup'!$D$8:$E$37,2,0)),"") ->  | BJ9: =IFERROR(IF(VLOOKUP(BJ$6,'Input| Setup'!$D$8:$E$37,2,0)=0,"",VLOOKUP(BJ$6,'Input| Setup'!$D$8:$E$37,2,0)),"") ->  | BK9: =IFERROR(IF(VLOOKUP(BK$6,'Input| Setup'!$D$8:$E$37,2,0)=0,"",VLOOKUP(BK$6,'Input| Setup'!$D$8:$E$37,2,0)),"") ->  | BL9: =IFERROR(IF(VLOOKUP(BL$6,'Input| Setup'!$D$8:$E$37,2,0)=0,"",VLOOKUP(BL$6,'Input| Setup'!$D$8:$E$37,2,0)),"") ->  | BM9: =IFERROR(IF(VLOOKUP(BM$6,'Input| Setup'!$D$8:$E$37,2,0)=0,"",VLOOKUP(BM$6,'Input| Setup'!$D$8:$E$37,2,0)),"") ->  | BN9: =IFERROR(IF(VLOOKUP(BN$6,'Input| Setup'!$D$8:$E$37,2,0)=0,"",VLOOKUP(BN$6,'Input| Setup'!$D$8:$E$37,2,0)),"") ->  | BO9: =IFERROR(IF(VLOOKUP(BO$6,'Input| Setup'!$D$8:$E$37,2,0)=0,"",VLOOKUP(BO$6,'Input| Setup'!$D$8:$E$37,2,0)),"") ->  | BP9: =IFERROR(IF(VLOOKUP(BP$6,'Input| Setup'!$D$8:$E$37,2,0)=0,"",VLOOKUP(BP$6,'Input| Setup'!$D$8:$E$37,2,0)),"") ->  | BQ9: =IFERROR(IF(VLOOKUP(BQ$6,'Input| Setup'!$D$8:$E$37,2,0)=0,"",VLOOKUP(BQ$6,'Input| Setup'!$D$8:$E$37,2,0)),"") ->  | BR9: =IFERROR(IF(VLOOKUP(BR$6,'Input| Setup'!$D$8:$E$37,2,0)=0,"",VLOOKUP(BR$6,'Input| Setup'!$D$8:$E$37,2,0)),"") ->  | BS9: =IFERROR(IF(VLOOKUP(BS$6,'Input| Setup'!$D$8:$E$37,2,0)=0,"",VLOOKUP(BS$6,'Input| Setup'!$D$8:$E$37,2,0)),"") ->  | BT9: =IFERROR(IF(VLOOKUP(BT$6,'Input| Setup'!$D$8:$E$37,2,0)=0,"",VLOOKUP(BT$6,'Input| Setup'!$D$8:$E$37,2,0)),"") ->  | BU9: =IFERROR(IF(VLOOKUP(BU$6,'Input| Setup'!$D$8:$E$37,2,0)=0,"",VLOOKUP(BU$6,'Input| Setup'!$D$8:$E$37,2,0)),"") ->  | BV9: =IFERROR(IF(VLOOKUP(BV$6,'Input| Setup'!$D$8:$E$37,2,0)=0,"",VLOOKUP(BV$6,'Input| Setup'!$D$8:$E$37,2,0)),"") ->  | BW9: =IFERROR(IF(VLOOKUP(BW$6,'Input| Setup'!$D$8:$E$37,2,0)=0,"",VLOOKUP(BW$6,'Input| Setup'!$D$8:$E$37,2,0)),"") ->  | BX9: =IFERROR(IF(VLOOKUP(BX$6,'Input| Setup'!$D$8:$E$37,2,0)=0,"",VLOOKUP(BX$6,'Input| Setup'!$D$8:$E$37,2,0)),"") ->  | BY9: =IFERROR(IF(VLOOKUP(BY$6,'Input| Setup'!$D$8:$E$37,2,0)=0,"",VLOOKUP(BY$6,'Input| Setup'!$D$8:$E$37,2,0)),"") ->  | BZ9: =IFERROR(IF(VLOOKUP(BZ$6,'Input| Setup'!$D$8:$E$37,2,0)=0,"",VLOOKUP(BZ$6,'Input| Setup'!$D$8:$E$37,2,0)),"") ->  | CA9: =IFERROR(IF(VLOOKUP(CA$6,'Input| Setup'!$D$8:$E$37,2,0)=0,"",VLOOKUP(CA$6,'Input| Setup'!$D$8:$E$37,2,0)),"") ->  | CB9: =IFERROR(IF(VLOOKUP(CB$6,'Input| Setup'!$D$8:$E$37,2,0)=0,"",VLOOKUP(CB$6,'Input| Setup'!$D$8:$E$37,2,0)),"") ->  | CC9: =IFERROR(IF(VLOOKUP(CC$6,'Input| Setup'!$D$8:$E$37,2,0)=0,"",VLOOKUP(CC$6,'Input| Setup'!$D$8:$E$37,2,0)),"") ->  | CD9: =IFERROR(IF(VLOOKUP(CD$6,'Input| Setup'!$D$8:$E$37,2,0)=0,"",VLOOKUP(CD$6,'Input| Setup'!$D$8:$E$37,2,0)),"") ->  | CE9: =IFERROR(IF(VLOOKUP(CE$6,'Input| Setup'!$D$8:$E$37,2,0)=0,"",VLOOKUP(CE$6,'Input| Setup'!$D$8:$E$37,2,0)),"") ->  | CF9: =IFERROR(IF(VLOOKUP(CF$6,'Input| Setup'!$D$8:$E$37,2,0)=0,"",VLOOKUP(CF$6,'Input| Setup'!$D$8:$E$37,2,0)),"") ->  | CG9: =IFERROR(IF(VLOOKUP(CG$6,'Input| Setup'!$D$8:$E$37,2,0)=0,"",VLOOKUP(CG$6,'Input| Setup'!$D$8:$E$37,2,0)),"") ->  | CH9: =IFERROR(IF(VLOOKUP(CH$6,'Input| Setup'!$D$8:$E$37,2,0)=0,"",VLOOKUP(CH$6,'Input| Setup'!$D$8:$E$37,2,0)),"") ->  | CI9: =IFERROR(IF(VLOOKUP(CI$6,'Input| Setup'!$D$8:$E$37,2,0)=0,"",VLOOKUP(CI$6,'Input| Setup'!$D$8:$E$37,2,0)),"") ->  | CJ9: =IFERROR(IF(VLOOKUP(CJ$6,'Input| Setup'!$D$8:$E$37,2,0)=0,"",VLOOKUP(CJ$6,'Input| Setup'!$D$8:$E$37,2,0)),"") ->  | CK9: =IFERROR(IF(VLOOKUP(CK$6,'Input| Setup'!$D$8:$E$37,2,0)=0,"",VLOOKUP(CK$6,'Input| Setup'!$D$8:$E$37,2,0)),"") -> 
B10: 1 | C10: MLTS CB Replacement | D10: TD-0006168 | F10: Major Station | H10: Replacement - Major Stations | I10: Replacement | K10: 15858.93856 | L10: 18024.42022 | M10: 9967.947013 | N10: 355.3609658 | O10: 0 | P10: 0 | Q10: 0 | S10: 0.1 | T10: 0.5 | U10: 0.4 | V10: =IF(SUM(S10:U10,K10:Q10)=0,"",IF(SUM(S10:U10)=1,"",1)) ->  | W10: =IF(IFERROR(INDEX('Output| TRR Driver'!$L$8:$L$49,MATCH($F10,'Output| TRR Driver'!$B$8:$B$49,0)),"")="Network","Yes","No") -> Yes | X10: =IF(IFERROR(INDEX('Output| TRR Driver'!$L$8:$L$49,MATCH($F10,'Output| TRR Driver'!$B$8:$B$49,0)),"")="Corporate","Yes","No") -> No | AC10: 1 | AD10: 0 | AE10: 0 | AF10: 0 | AG10: 0 | AH10: 0 | AI10: 0 | AJ10: 0 | AK10: 0 | AL10: 0 | AM10: =IF(OR(SUM($K10:$Q10)=0,SUM(AC10:AL10)=100%),"",1) ->  | AN10: 0.02582974817 | AO10: 0.7720258455 | AP10: 0 | AQ10: 0 | AR10: 0.03024450539 | AS10: 0.1689647986 | AT10: 0.002935102322 | AU10: 0 | AV10: 0 | AW10: 0 | AX10: 0 | AY10: 0 | AZ10: 0 | BA10: 0 | BB10: 0 | BC10: 0 | BD10: 0 | BE10: 0 | BF10: 0 | CL10: =IF(OR(SUM($K10:$Q10)=0,SUM(AN10:CK10)=100%),"",1) -> 
B11: =IFERROR(B10+1,"") -> 2 | C11: TSTS - Tx and Switchgear Replacement | D11: TD-0007772 | F11: Major Station | H11: Replacement - Major Stations | I11: Replacement | K11: 13386.95662 | L11: 8266.692373 | M11: 0 | N11: 0 | O11: 0 | P11: 0 | Q11: 0 | S11: 0.1 | T11: 0.5 | U11: 0.4 | W11: =IF(IFERROR(INDEX('Output| TRR Driver'!$L$8:$L$49,MATCH($F11,'Output| TRR Driver'!$B$8:$B$49,0)),"")="Network","Yes","No") -> Yes | X11: =IF(IFERROR(INDEX('Output| TRR Driver'!$L$8:$L$49,MATCH($F11,'Output| TRR Driver'!$B$8:$B$49,0)),"")="Corporate","Yes","No") -> No | AC11: 1 | AD11: 0 | AE11: 0 | AF11: 0 | AG11: 0 | AH11: 0 | AI11: 0 | AJ11: 0 | AK11: 0 | AL11: 0 | AM11: =IF(OR(SUM($K11:$Q11)=0,SUM(AC11:AL11)=100%),"",1) ->  | AN11: 0.1429402026 | AO11: 0.3920976525 | AP11: 0.3801325547 | AQ11: 0 | AR11: 0 | AS11: 0.08482959018 | AT11: 0 | AU11: 0 | AV11: 0 | AW11: 0 | AX11: 0 | AY11: 0 | AZ11: 0 | BA11: 0 | BB11: 0 | BC11: 0 | BD11: 0 | BE11: 0 | BF11: 0 | CL11: =IF(OR(SUM($K11:$Q11)=0,SUM(AN11:CK11)=100%),"",1) -> 
B12: =IFERROR(B11+1,"") -> 3 | C12: SHTS Transformer and CB Replacement | D12: TD-0007996 | F12: Major Station | H12: Replacement - Major Stations | I12: Replacement | K12: 12911.97954 | L12: 9520.141417 | M12: 0 | N12: 0 | O12: 0 | P12: 0 | Q12: 0 | S12: 0.1 | T12: 0.5 | U12: 0.4 | W12: =IF(IFERROR(INDEX('Output| TRR Driver'!$L$8:$L$49,MATCH($F12,'Output| TRR Driver'!$B$8:$B$49,0)),"")="Network","Yes","No") -> Yes | X12: =IF(IFERROR(INDEX('Output| TRR Driver'!$L$8:$L$49,MATCH($F12,'Output| TRR Driver'!$B$8:$B$49,0)),"")="Corporate","Yes","No") -> No | AC12: 1 | AD12: 0 | AE12: 0 | AF12: 0 | AG12: 0 | AH12: 0 | AI12: 0 | AJ12: 0 | AK12: 0 | AL12: 0 | AN12: 0.1429402026 | AO12: 0.3920976525 | AP12: 0.3801325547 | AQ12: 0 | AR12: 0 | AS12: 0.08482959018 | AT12: 0 | AU12: 0 | AV12: 0 | AW12: 0 | AX12: 0 | AY12: 0 | AZ12: 0 | BA12: 0 | BB12: 0 | BC12: 0 | BD12: 0 | BE12: 0 | BF12: 0
B13: 4 | C13: RCTS Transformer & SwitchgearReplacement | D13: TD-0008004 | F13: Major Station | H13: Replacement - Major Stations | I13: Replacement | K13: 6449.26338 | L13: 22907.75141 | M13: 16785.90969 | N13: 3434.179212 | O13: 0 | P13: 0 | Q13: 0 | S13: 0.1 | T13: 0.5 | U13: 0.4 | W13: =IF(IFERROR(INDEX('Output| TRR Driver'!$L$8:$L$49,MATCH($F13,'Output| TRR Driver'!$B$8:$B$49,0)),"")="Network","Yes","No") -> Yes | X13: =IF(IFERROR(INDEX('Output| TRR Driver'!$L$8:$L$49,MATCH($F13,'Output| TRR Driver'!$B$8:$B$49,0)),"")="Corporate","Yes","No") -> No | AC13: 1 | AD13: 0 | AE13: 0 | AF13: 0 | AG13: 0 | AH13: 0 | AI13: 0 | AJ13: 0 | AK13: 0 | AL13: 0 | AN13: 0.04484095017 | AO13: 0.08371378898 | AP13: 0.6629848233 | AQ13: 0 | AR13: 0.0506414847 | AS13: 0.1499665784 | AT13: 0.007852374415 | AU13: 0 | AV13: 0 | AW13: 0 | AX13: 0 | AY13: 0 | AZ13: 0 | BA13: 0 | BB13: 0 | BC13: 0 | BD13: 0 | BE13: 0 | BF13: 0
B14: 5 | C14: SYTS 500kV GIS Replacement | D14: TD-0008033 | F14: Major Station | H14: Replacement - Major Stations | I14: Replacement | K14: 30909.31746 | L14: 14861.56188 | M14: 25472.6127 | N14: 4266.577141 | O14: 0 | P14: 0 | Q14: 0 | S14: 0.1 | T14: 0.5 | U14: 0.4 | W14: =IF(IFERROR(INDEX('Output| TRR Driver'!$L$8:$L$49,MATCH($F14,'Output| TRR Driver'!$B$8:$B$49,0)),"")="Network","Yes","No") -> Yes | X14: =IF(IFERROR(INDEX('Output| TRR Driver'!$L$8:$L$49,MATCH($F14,'Output| TRR Driver'!$B$8:$B$49,0)),"")="Corporate","Yes","No") -> No | AC14: 1 | AD14: 0 | AE14: 0 | AF14: 0 | AG14: 0 | AH14: 0 | AI14: 0 | AJ14: 0 | AK14: 0 | AL14: 0 | AN14: 0.09141756174 | AO14: 0.3306974085 | AP14: 0 | AQ14: 0 | AR14: 0.2736387586 | AS14: 0.2304234998 | AT14: 0.07382277132 | AU14: 0 | AV14: 0 | AW14: 0 | AX14: 0 | AY14: 0 | AZ14: 0 | BA14: 0 | BB14: 0 | BC14: 0 | BD14: 0 | BE14: 0 | BF14: 0
B15: 6 | K15: 0 | L15: 0 | M15: 0 | N15: 0 | O15: 0 | P15: 0 | Q15: 0 | S15: 0 | T15: 0 | U15: 0 | W15: =IF(IFERROR(INDEX('Output| TRR Driver'!$L$8:$L$49,MATCH($F15,'Output| TRR Driver'!$B$8:$B$49,0)),"")="Network","Yes","No") -> No | X15: =IF(IFERROR(INDEX('Output| TRR Driver'!$L$8:$L$49,MATCH($F15,'Output| TRR Driver'!$B$8:$B$49,0)),"")="Corporate","Yes","No") -> No | AC15: 0 | AD15: 0 | AE15: 0 | AF15: 0 | AG15: 0 | AH15: 0 | AI15: 0 | AJ15: 0 | AK15: 0 | AL15: 0 | AN15: 0 | AO15: 0 | AP15: 0 | AQ15: 0 | AR15: 0 | AS15: 0 | AT15: 0 | AU15: 0 | AV15: 0 | AW15: 0 | AX15: 0 | AY15: 0 | AZ15: 0 | BA15: 0 | BB15: 0 | BC15: 0 | BD15: 0 | BE15: 0 | BF15: 0
B16: 7 | K16: 0 | L16: 0 | M16: 0 | N16: 0 | O16: 0 | P16: 0 | Q16: 0 | S16: 0 | T16: 0 | U16: 0 | W16: =IF(IFERROR(INDEX('Output| TRR Driver'!$L$8:$L$49,MATCH($F16,'Output| TRR Driver'!$B$8:$B$49,0)),"")="Network","Yes","No") -> No | X16: =IF(IFERROR(INDEX('Output| TRR Driver'!$L$8:$L$49,MATCH($F16,'Output| TRR Driver'!$B$8:$B$49,0)),"")="Corporate","Yes","No") -> No | AC16: 0 | AD16: 0 | AE16: 0 | AF16: 0 | AG16: 0 | AH16: 0 | AI16: 0 | AJ16: 0 | AK16: 0 | AL16: 0 | AN16: 0 | AO16: 0 | AP16: 0 | AQ16: 0 | AR16: 0 | AS16: 0 | AT16: 0 | AU16: 0 | AV16: 0 | AW16: 0 | AX16: 0 | AY16: 0 | AZ16: 0 | BA16: 0 | BB16: 0 | BC16: 0 | BD16: 0 | BE16: 0 | BF16: 0
B17: 8 | C17: KTS 500/220kV Transformer Replacement | D17: TD-0003454 | F17: Major Station | H17: Replacement - Major Stations | I17: Replacement | K17: 12569.0291 | L17: 26000.26933 | M17: 58955.78814 | N17: 58955.78814 | O17: 48467.44656 | P17: 16187.19017 | Q17: 8908.987745 | S17: 0.1 | T17: 0.5 | U17: 0.4 | W17: =IF(IFERROR(INDEX('Output| TRR Driver'!$L$8:$L$49,MATCH($F17,'Output| TRR Driver'!$B$8:$B$49,0)),"")="Network","Yes","No") -> Yes | X17: =IF(IFERROR(INDEX('Output| TRR Driver'!$L$8:$L$49,MATCH($F17,'Output| TRR Driver'!$B$8:$B$49,0)),"")="Corporate","Yes","No") -> No | AC17: 1 | AD17: 0 | AE17: 0 | AF17: 0 | AG17: 0 | AH17: 0 | AI17: 0 | AJ17: 0 | AK17: 0 | AL17: 0 | AN17: 0.04746845636 | AO17: 0.1117996296 | AP17: 0.7380019726 | AQ17: 0 | AR17: 0.01540587377 | AS17: 0.08500193505 | AT17: 0.002322132625 | AU17: 0 | AV17: 0 | AW17: 0 | AX17: 0 | AY17: 0 | AZ17: 0 | BA17: 0 | BB17: 0 | BC17: 0 | BD17: 0 | BE17: 0 | BF17: 0
B18: 9 | C18: SMTS 500kV GIS and F2 Transformer Replacement | D18: TD-0008025 | F18: Major Station | H18: Replacement - Major Stations | I18: Replacement | K18: 3465.34171 | L18: 20963.61397 | M18: 20290.12018 | N18: 56125.25718 | O18: 57219.30233 | P18: 50586.97897 | Q18: 35476.61351 | S18: 0.1 | T18: 0.5 | U18: 0.4 | W18: =IF(IFERROR(INDEX('Output| TRR Driver'!$L$8:$L$49,MATCH($F18,'Output| TRR Driver'!$B$8:$B$49,0)),"")="Network","Yes","No") -> Yes | X18: =IF(IFERROR(INDEX('Output| TRR Driver'!$L$8:$L$49,MATCH($F18,'Output| TRR Driver'!$B$8:$B$49,0)),"")="Corporate","Yes","No") -> No | AC18: 1 | AD18: 0 | AE18: 0 | AF18: 0 | AG18: 0 | AH18: 0 | AI18: 0 | AJ18: 0 | AK18: 0 | AL18: 0 | AN18: 0.1068671825 | AO18: 0.338315536 | AP18: 0.2188228918 | AQ18: 0 | AR18: 0.1010973247 | AS18: 0.2255145016 | AT18: 0.009382563397 | AU18: 0 | AV18: 0 | AW18: 0 | AX18: 0 | AY18: 0 | AZ18: 0 | BA18: 0 | BB18: 0 | BC18: 0 | BD18: 0 | BE18: 0 | BF18: 0
B19: 10 | C19: SMTS 330/220kV Transformer Replacement | D19: TD-0014633 | F19: Major Station | H19: Replacement - Major Stations | I19: Replacement | K19: 10178.87616 | L19: 27550.23 | M19: 47092.72557 | N19: 41455.14006 | O19: 0 | P19: 0 | Q19: 0 | S19: 0.1 | T19: 0.5 | U19: 0.4 | W19: =IF(IFERROR(INDEX('Output| TRR Driver'!$L$8:$L$49,MATCH($F19,'Output| TRR Driver'!$B$8:$B$49,0)),"")="Network","Yes","No") -> Yes | X19: =IF(IFERROR(INDEX('Output| TRR Driver'!$L$8:$L$49,MATCH($F19,'Output| TRR Driver'!$B$8:$B$49,0)),"")="Corporate","Yes","No") -> No | AC19: 1 | AD19: 0 | AE19: 0 | AF19: 0 | AG19: 0 | AH19: 0 | AI19: 0 | AJ19: 0 | AK19: 0 | AL19: 0 | AN19: 0.02243167044 | AO19: 0.06402484468 | AP19: 0.8685691991 | AQ19: 0 | AR19: 0.0144203101 | AS19: 0.02902474444 | AT19: 0.001529231228 | AU19: 0 | AV19: 0 | AW19: 0 | AX19: 0 | AY19: 0 | AZ19: 0 | BA19: 0 | BB19: 0 | BC19: 0 | BD19: 0 | BE19: 0 | BF19: 0
B20: 11 | C20: NPSD 220kV GIS | D20: TD-0013613 | F20: Major Station | H20: Replacement - Major Stations | I20: Replacement | K20: 0 | L20: 0 | M20: 0 | N20: 0 | O20: 2464.495431 | P20: 15089.67404 | Q20: 38129.8226 | S20: 0.1 | T20: 0.5 | U20: 0.4 | W20: =IF(IFERROR(INDEX('Output| TRR Driver'!$L$8:$L$49,MATCH($F20,'Output| TRR Driver'!$B$8:$B$49,0)),"")="Network","Yes","No") -> Yes | X20: =IF(IFERROR(INDEX('Output| TRR Driver'!$L$8:$L$49,MATCH($F20,'Output| TRR Driver'!$B$8:$B$49,0)),"")="Corporate","Yes","No") -> No | AC20: 1 | AD20: 0 | AE20: 0 | AF20: 0 | AG20: 0 | AH20: 0 | AI20: 0 | AJ20: 0 | AK20: 0 | AL20: 0 | AN20: 0.09014734214 | AO20: 0.4810704359 | AP20: 0 | AQ20: 0 | AR20: 0.05483988482 | AS20: 0.3639572354 | AT20: 0.009985101707 | AU20: 0 | AV20: 0 | AW20: 0 | AX20: 0 | AY20: 0 | AZ20: 0 | BA20: 0 | BB20: 0 | BC20: 0 | BD20: 0 | BE20: 0 | BF20: 0
B21: 12 | C21: DDTS H3 330/220kV Transformer and Circuit Breaker Replacement | D21: TD-0008026 | F21: Major Station | H21: Replacement - Major Stations | I21: Replacement | K21: 0 | L21: 0 | M21: 0 | N21: 0 | O21: 0 | P21: 0 | Q21: 0 | S21: 0.1 | T21: 0.5 | U21: 0.4 | W21: =IF(IFERROR(INDEX('Output| TRR Driver'!$L$8:$L$49,MATCH($F21,'Output| TRR Driver'!$B$8:$B$49,0)),"")="Network","Yes","No") -> Yes | X21: =IF(IFERROR(INDEX('Output| TRR Driver'!$L$8:$L$49,MATCH($F21,'Output| TRR Driver'!$B$8:$B$49,0)),"")="Corporate","Yes","No") -> No | AC21: 1 | AD21: 0 | AE21: 0 | AF21: 0 | AG21: 0 | AH21: 0 | AI21: 0 | AJ21: 0 | AK21: 0 | AL21: 0 | AN21: 0.1520004143 | AO21: 0.2279179133 | AP21: 0.5824403709 | AQ21: 0 | AR21: 0 | AS21: 0.03181836118 | AT21: 0.005822940275 | AU21: 0 | AV21: 0 | AW21: 0 | AX21: 0 | AY21: 0 | AZ21: 0 | BA21: 0 | BB21: 0 | BC21: 0 | BD21: 0 | BE21: 0 | BF21: 0
B22: 13 | C22: WOTS Spare 330/66/22kV Transformer Procurement | D22: TD-0016808 | F22: Major Station | H22: Replacement - Major Stations | I22: Replacement | K22: 0 | L22: 0 | M22: 0 | N22: 0 | O22: 0 | P22: 0 | Q22: 0 | S22: 0.1 | T22: 0.5 | U22: 0.4 | W22: =IF(IFERROR(INDEX('Output| TRR Driver'!$L$8:$L$49,MATCH($F22,'Output| TRR Driver'!$B$8:$B$49,0)),"")="Network","Yes","No") -> Yes | X22: =IF(IFERROR(INDEX('Output| TRR Driver'!$L$8:$L$49,MATCH($F22,'Output| TRR Driver'!$B$8:$B$49,0)),"")="Corporate","Yes","No") -> No | AC22: 1 | AD22: 0 | AE22: 0 | AF22: 0 | AG22: 0 | AH22: 0 | AI22: 0 | AJ22: 0 | AK22: 0 | AL22: 0 | AN22: 0 | AO22: 0 | AP22: 1 | AQ22: 0 | AR22: 0 | AS22: 0 | AT22: 0 | AU22: 0 | AV22: 0 | AW22: 0 | AX22: 0 | AY22: 0 | AZ22: 0 | BA22: 0 | BB22: 0 | BC22: 0 | BD22: 0 | BE22: 0 | BF22: 0
B23: 14 | K23: 0 | L23: 0 | M23: 0 | N23: 0 | O23: 0 | P23: 0 | Q23: 0 | S23: 0 | T23: 0 | U23: 0 | W23: =IF(IFERROR(INDEX('Output| TRR Driver'!$L$8:$L$49,MATCH($F23,'Output| TRR Driver'!$B$8:$B$49,0)),"")="Network","Yes","No") -> No | X23: =IF(IFERROR(INDEX('Output| TRR Driver'!$L$8:$L$49,MATCH($F23,'Output| TRR Driver'!$B$8:$B$49,0)),"")="Corporate","Yes","No") -> No | AC23: 0 | AD23: 0 | AE23: 0 | AF23: 0 | AG23: 0 | AH23: 0 | AI23: 0 | AJ23: 0 | AK23: 0 | AL23: 0 | AN23: 0 | AO23: 0 | AP23: 0 | AQ23: 0 | AR23: 0 | AS23: 0 | AT23: 0 | AU23: 0 | AV23: 0 | AW23: 0 | AX23: 0 | AY23: 0 | AZ23: 0 | BA23: 0 | BB23: 0 | BC23: 0 | BD23: 0 | BE23: 0 | BF23: 0
B24: 15 | K24: 0 | L24: 0 | M24: 0 | N24: 0 | O24: 0 | P24: 0 | Q24: 0 | S24: 0 | T24: 0 | U24: 0 | W24: =IF(IFERROR(INDEX('Output| TRR Driver'!$L$8:$L$49,MATCH($F24,'Output| TRR Driver'!$B$8:$B$49,0)),"")="Network","Yes","No") -> No | X24: =IF(IFERROR(INDEX('Output| TRR Driver'!$L$8:$L$49,MATCH($F24,'Output| TRR Driver'!$B$8:$B$49,0)),"")="Corporate","Yes","No") -> No | AC24: 0 | AD24: 0 | AE24: 0 | AF24: 0 | AG24: 0 | AH24: 0 | AI24: 0 | AJ24: 0 | AK24: 0 | AL24: 0 | AN24: 0 | AO24: 0 | AP24: 0 | AQ24: 0 | AR24: 0 | AS24: 0 | AT24: 0 | AU24: 0 | AV24: 0 | AW24: 0 | AX24: 0 | AY24: 0 | AZ24: 0 | BA24: 0 | BB24: 0 | BC24: 0 | BD24: 0 | BE24: 0 | BF24: 0
B25: 16 | C25: ROTS 500 kV GIL Replacement | D25: TD-0013738 | F25: Power Cables (Major Projects) | H25: Replacement - Major Stations | I25: Replacement | K25: 0 | L25: 432.68125 | M25: 6416.716651 | N25: 20484.72676 | O25: 16715.08424 | P25: 7313.02582 | Q25: 0 | S25: 0.1 | T25: 0.5 | U25: 0.4 | W25: =IF(IFERROR(INDEX('Output| TRR Driver'!$L$8:$L$49,MATCH($F25,'Output| TRR Driver'!$B$8:$B$49,0)),"")="Network","Yes","No") -> Yes | X25: =IF(IFERROR(INDEX('Output| TRR Driver'!$L$8:$L$49,MATCH($F25,'Output| TRR Driver'!$B$8:$B$49,0)),"")="Corporate","Yes","No") -> No | AC25: 1 | AD25: 0 | AE25: 0 | AF25: 0 | AG25: 0 | AH25: 0 | AI25: 0 | AJ25: 0 | AK25: 0 | AL25: 0 | AN25: 0 | AO25: 1 | AP25: 0 | AQ25: 0 | AR25: 0 | AS25: 0 | AT25: 0 | AU25: 0 | AV25: 0 | AW25: 0 | AX25: 0 | AY25: 0 | AZ25: 0 | BA25: 0 | BB25: 0 | BC25: 0 | BD25: 0 | BE25: 0 | BF25: 0
B26: 17 | C26: TTS Circuit Breaker Replacement ​ | D26: TD-0003597 | F26: Circuit Breakers (Major Projects) | H26: Replacement - Major Stations | I26: Replacement | K26: 475.33257 | L26: 8329.24164 | M26: 0 | N26: 0 | O26: 0 | P26: 0 | Q26: 0 | S26: 0.1 | T26: 0.5 | U26: 0.4 | W26: =IF(IFERROR(INDEX('Output| TRR Driver'!$L$8:$L$49,MATCH($F26,'Output| TRR Driver'!$B$8:$B$49,0)),"")="Network","Yes","No") -> Yes | X26: =IF(IFERROR(INDEX('Output| TRR Driver'!$L$8:$L$49,MATCH($F26,'Output| TRR Driver'!$B$8:$B$49,0)),"")="Corporate","Yes","No") -> No | AC26: 1 | AD26: 0 | AE26: 0 | AF26: 0 | AG26: 0 | AH26: 0 | AI26: 0 | AJ26: 0 | AK26: 0 | AL26: 0 | AN26: 0.34 | AO26: 0.33 | AP26: 0 | AQ26: 0 | AR26: 0 | AS26: 0.33 | AT26: 0 | AU26: 0 | AV26: 0 | AW26: 0 | AX26: 0 | AY26: 0 | AZ26: 0 | BA26: 0 | BB26: 0 | BC26: 0 | BD26: 0 | BE26: 0 | BF26: 0
B27: 18 | C27: LYPS and HWTS 500kV Circuit Breaker Replacement Stage 2​ | D27: TD-0008023 | F27: Circuit Breakers (Major Projects) | H27: Replacement - Major Stations | I27: Replacement | K27: 0 | L27: 689.31435 | M27: 0 | N27: 0 | O27: 3526.164961 | P27: 6928.18042 | Q27: 9114.639791 | S27: 0.1 | T27: 0.5 | U27: 0.4 | W27: =IF(IFERROR(INDEX('Output| TRR Driver'!$L$8:$L$49,MATCH($F27,'Output| TRR Driver'!$B$8:$B$49,0)),"")="Network","Yes","No") -> Yes | X27: =IF(IFERROR(INDEX('Output| TRR Driver'!$L$8:$L$49,MATCH($F27,'Output| TRR Driver'!$B$8:$B$49,0)),"")="Corporate","Yes","No") -> No | AC27: 1 | AD27: 0 | AE27: 0 | AF27: 0 | AG27: 0 | AH27: 0 | AI27: 0 | AJ27: 0 | AK27: 0 | AL27: 0 | AN27: 0.16 | AO27: 0.68 | AP27: 0 | AQ27: 0 | AR27: 0 | AS27: 0.16 | AT27: 0 | AU27: 0 | AV27: 0 | AW27: 0 | AX27: 0 | AY27: 0 | AZ27: 0 | BA27: 0 | BB27: 0 | BC27: 0 | BD27: 0 | BE27: 0 | BF27: 0
B28: 19 | C28: MLTS Reactor Replacement​ | D28: TD-0015755​ | F28: Power Transformers and Oil Filled Reactors (Major Projects) | H28: Replacement - Major Stations | I28: Replacement | K28: 0 | L28: 0 | M28: 0 | N28: 0 | O28: 51.97365675 | P28: 3309.882442 | Q28: 7522.080179 | S28: 0.1 | T28: 0.5 | U28: 0.4 | W28: =IF(IFERROR(INDEX('Output| TRR Driver'!$L$8:$L$49,MATCH($F28,'Output| TRR Driver'!$B$8:$B$49,0)),"")="Network","Yes","No") -> Yes | X28: =IF(IFERROR(INDEX('Output| TRR Driver'!$L$8:$L$49,MATCH($F28,'Output| TRR Driver'!$B$8:$B$49,0)),"")="Corporate","Yes","No") -> No | AC28: 1 | AD28: 0 | AE28: 0 | AF28: 0 | AG28: 0 | AH28: 0 | AI28: 0 | AJ28: 0 | AK28: 0 | AL28: 0 | AN28: 0.29 | AO28: 0.19 | AP28: 0.35 | AQ28: 0 | AR28: 0 | AS28: 0.17 | AT28: 0 | AU28: 0 | AV28: 0 | AW28: 0 | AX28: 0 | AY28: 0 | AZ28: 0 | BA28: 0 | BB28: 0 | BC28: 0 | BD28: 0 | BE28: 0 | BF28: 0
B29: 20 | C29: BATS B2 Transformer Replacement | D29: TD-0015756​ | F29: Power Transformers and Oil Filled Reactors (Major Projects) | H29: Replacement - Major Stations | I29: Replacement | K29: 0 | L29: 0 | M29: 0 | N29: 4037.518586 | O29: 15612.46157 | P29: 12157.48615 | Q29: 4973.30795 | S29: 0.1 | T29: 0.5 | U29: 0.4 | W29: =IF(IFERROR(INDEX('Output| TRR Driver'!$L$8:$L$49,MATCH($F29,'Output| TRR Driver'!$B$8:$B$49,0)),"")="Network","Yes","No") -> Yes | X29: =IF(IFERROR(INDEX('Output| TRR Driver'!$L$8:$L$49,MATCH($F29,'Output| TRR Driver'!$B$8:$B$49,0)),"")="Corporate","Yes","No") -> No | AC29: 1 | AD29: 0 | AE29: 0 | AF29: 0 | AG29: 0 | AH29: 0 | AI29: 0 | AJ29: 0 | AK29: 0 | AL29: 0 | AN29: 0 | AO29: 0 | AP29: 0 | AQ29: 1 | AR29: 0 | AS29: 0 | AT29: 0 | AU29: 0 | AV29: 0 | AW29: 0 | AX29: 0 | AY29: 0 | AZ29: 0 | BA29: 0 | BB29: 0 | BC29: 0 | BD29: 0 | BE29: 0 | BF29: 0
B30: 21 | C30: MWTS 66kV Circuit Breaker Replacement​ | D30: TD-0008003​ | F30: Circuit Breakers (Major Projects) | H30: Replacement - Major Stations | I30: Replacement | K30: 0 | L30: 0 | M30: 0 | N30: 916.6050326 | O30: 2817.412291 | P30: 4548.724432 | Q30: 9487.934482 | S30: 0.1 | T30: 0.5 | U30: 0.4 | W30: =IF(IFERROR(INDEX('Output| TRR Driver'!$L$8:$L$49,MATCH($F30,'Output| TRR Driver'!$B$8:$B$49,0)),"")="Network","Yes","No") -> Yes | X30: =IF(IFERROR(INDEX('Output| TRR Driver'!$L$8:$L$49,MATCH($F30,'Output| TRR Driver'!$B$8:$B$49,0)),"")="Corporate","Yes","No") -> No | AC30: 1 | AD30: 0 | AE30: 0 | AF30: 0 | AG30: 0 | AH30: 0 | AI30: 0 | AJ30: 0 | AK30: 0 | AL30: 0 | AN30: 0.35 | AO30: 0.42 | AP30: 0 | AQ30: 0 | AR30: 0 | AS30: 0.23 | AT30: 0 | AU30: 0 | AV30: 0 | AW30: 0 | AX30: 0 | AY30: 0 | AZ30: 0 | BA30: 0 | BB30: 0 | BC30: 0 | BD30: 0 | BE30: 0 | BF30: 0
B31: 22 | C31: TTS B4 Transformer Replacement | D31: TD-0016676 | F31: Power Transformers and Oil Filled Reactors (Major Projects) | H31: Replacement - Major Stations | I31: Replacement | K31: 0 | L31: 0 | M31: 0 | N31: 1171.084896 | O31: 6306.467111 | P31: 7307.39604 | Q31: 3076.654219 | S31: 0.1 | T31: 0.5 | U31: 0.4 | W31: =IF(IFERROR(INDEX('Output| TRR Driver'!$L$8:$L$49,MATCH($F31,'Output| TRR Driver'!$B$8:$B$49,0)),"")="Network","Yes","No") -> Yes | X31: =IF(IFERROR(INDEX('Output| TRR Driver'!$L$8:$L$49,MATCH($F31,'Output| TRR Driver'!$B$8:$B$49,0)),"")="Corporate","Yes","No") -> No | AC31: 1 | AD31: 0 | AE31: 0 | AF31: 0 | AG31: 0 | AH31: 0 | AI31: 0 | AJ31: 0 | AK31: 0 | AL31: 0 | AN31: 0 | AO31: 0 | AP31: 1 | AQ31: 0 | AR31: 0 | AS31: 0 | AT31: 0 | AU31: 0 | AV31: 0 | AW31: 0 | AX31: 0 | AY31: 0 | AZ31: 0 | BA31: 0 | BB31: 0 | BC31: 0 | BD31: 0 | BE31: 0 | BF31: 0
B32: 23 | K32: 0 | L32: 0 | M32: 0 | N32: 0 | O32: 0 | P32: 0 | Q32: 0 | S32: 0 | T32: 0 | U32: 0 | W32: =IF(IFERROR(INDEX('Output| TRR Driver'!$L$8:$L$49,MATCH($F32,'Output| TRR Driver'!$B$8:$B$49,0)),"")="Network","Yes","No") -> No | X32: =IF(IFERROR(INDEX('Output| TRR Driver'!$L$8:$L$49,MATCH($F32,'Output| TRR Driver'!$B$8:$B$49,0)),"")="Corporate","Yes","No") -> No | AC32: 0 | AD32: 0 | AE32: 0 | AF32: 0 | AG32: 0 | AH32: 0 | AI32: 0 | AJ32: 0 | AK32: 0 | AL32: 0 | AN32: 0 | AO32: 0 | AP32: 0 | AQ32: 0 | AR32: 0 | AS32: 0 | AT32: 0 | AU32: 0 | AV32: 0 | AW32: 0 | AX32: 0 | AY32: 0 | AZ32: 0 | BA32: 0 | BB32: 0 | BC32: 0 | BD32: 0 | BE32: 0 | BF32: 0
B33: 24 | K33: 0 | L33: 0 | M33: 0 | N33: 0 | O33: 0 | P33: 0 | Q33: 0 | S33: 0 | T33: 0 | U33: 0 | W33: =IF(IFERROR(INDEX('Output| TRR Driver'!$L$8:$L$49,MATCH($F33,'Output| TRR Driver'!$B$8:$B$49,0)),"")="Network","Yes","No") -> No | X33: =IF(IFERROR(INDEX('Output| TRR Driver'!$L$8:$L$49,MATCH($F33,'Output| TRR Driver'!$B$8:$B$49,0)),"")="Corporate","Yes","No") -> No | AC33: 0 | AD33: 0 | AE33: 0 | AF33: 0 | AG33: 0 | AH33: 0 | AI33: 0 | AJ33: 0 | AK33: 0 | AL33: 0 | AN33: 0 | AO33: 0 | AP33: 0 | AQ33: 0 | AR33: 0 | AS33: 0 | AT33: 0 | AU33: 0 | AV33: 0 | AW33: 0 | AX33: 0 | AY33: 0 | AZ33: 0 | BA33: 0 | BB33: 0 | BC33: 0 | BD33: 0 | BE33: 0 | BF33: 0
B34: 25 | C34: MPLS-TP Metro East Pilot Comms Replace | D34: TD-0010115 | F34: Communication Systems | H34: Replacement - Other | I34: Replacement | K34: 865.96515 | L34: 110.645 | M34: 8 | N34: 0 | O34: 0 | P34: 0 | Q34: 0 | S34: 0.1 | T34: 0.5 | U34: 0.4 | W34: =IF(IFERROR(INDEX('Output| TRR Driver'!$L$8:$L$49,MATCH($F34,'Output| TRR Driver'!$B$8:$B$49,0)),"")="Network","Yes","No") -> Yes | X34: =IF(IFERROR(INDEX('Output| TRR Driver'!$L$8:$L$49,MATCH($F34,'Output| TRR Driver'!$B$8:$B$49,0)),"")="Corporate","Yes","No") -> No | AC34: 0 | AD34: 1 | AE34: 0 | AF34: 0 | AG34: 0 | AH34: 0 | AI34: 0 | AJ34: 0 | AK34: 0 | AL34: 0 | AN34: 0 | AO34: 0 | AP34: 0 | AQ34: 0 | AR34: 0 | AS34: 0 | AT34: 1 | AU34: 0 | AV34: 0 | AW34: 0 | AX34: 0 | AY34: 0 | AZ34: 0 | BA34: 0 | BB34: 0 | BC34: 0 | BD34: 0 | BE34: 0 | BF34: 0
B35: 26 | C35: North East Network Comms Replacement | D35: TD-0009897 | F35: Communication Systems | H35: Replacement - Other | I35: Replacement | K35: 3075.55446 | L35: 5553.01794 | M35: 4637.67035 | N35: 0 | O35: 0 | P35: 0 | Q35: 0 | S35: 0.1 | T35: 0.5 | U35: 0.4 | W35: =IF(IFERROR(INDEX('Output| TRR Driver'!$L$8:$L$49,MATCH($F35,'Output| TRR Driver'!$B$8:$B$49,0)),"")="Network","Yes","No") -> Yes | X35: =IF(IFERROR(INDEX('Output| TRR Driver'!$L$8:$L$49,MATCH($F35,'Output| TRR Driver'!$B$8:$B$49,0)),"")="Corporate","Yes","No") -> No | AC35: 0 | AD35: 1 | AE35: 0 | AF35: 0 | AG35: 0 | AH35: 0 | AI35: 0 | AJ35: 0 | AK35: 0 | AL35: 0 | AN35: 0 | AO35: 0 | AP35: 0 | AQ35: 0 | AR35: 0 | AS35: 0 | AT35: 1 | AU35: 0 | AV35: 0 | AW35: 0 | AX35: 0 | AY35: 0 | AZ35: 0 | BA35: 0 | BB35: 0 | BC35: 0 | BD35: 0 | BE35: 0 | BF35: 0
B36: 27 | C36: North West SDH Comms Replacement | D36: TD-0013861 | F36: Communication Systems | H36: Replacement - Other | I36: Replacement | K36: 865.37617 | L36: 2562.38825 | M36: 0 | N36: 0 | O36: 0 | P36: 0 | Q36: 0 | S36: 0.1 | T36: 0.5 | U36: 0.4 | W36: =IF(IFERROR(INDEX('Output| TRR Driver'!$L$8:$L$49,MATCH($F36,'Output| TRR Driver'!$B$8:$B$49,0)),"")="Network","Yes","No") -> Yes | X36: =IF(IFERROR(INDEX('Output| TRR Driver'!$L$8:$L$49,MATCH($F36,'Output| TRR Driver'!$B$8:$B$49,0)),"")="Corporate","Yes","No") -> No | AC36: 0 | AD36: 1 | AE36: 0 | AF36: 0 | AG36: 0 | AH36: 0 | AI36: 0 | AJ36: 0 | AK36: 0 | AL36: 0 | AN36: 0 | AO36: 0 | AP36: 0 | AQ36: 0 | AR36: 0 | AS36: 0 | AT36: 1 | AU36: 0 | AV36: 0 | AW36: 0 | AX36: 0 | AY36: 0 | AZ36: 0 | BA36: 0 | BB36: 0 | BC36: 0 | BD36: 0 | BE36: 0 | BF36: 0
B37: 28 | C37: Phasor Measurement Units Project 2024 | D37: TD-0014486 | F37: PMU Installation | H37: Replacement - Other | I37: Replacement | K37: 2421.7836 | L37: 4923.92489 | M37: 0 | N37: 0 | O37: 0 | P37: 0 | Q37: 0 | S37: 0.1 | T37: 0.5 | U37: 0.4 | W37: =IF(IFERROR(INDEX('Output| TRR Driver'!$L$8:$L$49,MATCH($F37,'Output| TRR Driver'!$B$8:$B$49,0)),"")="Network","Yes","No") -> Yes | X37: =IF(IFERROR(INDEX('Output| TRR Driver'!$L$8:$L$49,MATCH($F37,'Output| TRR Driver'!$B$8:$B$49,0)),"")="Corporate","Yes","No") -> No | AC37: 0 | AD37: 1 | AE37: 0 | AF37: 0 | AG37: 0 | AH37: 0 | AI37: 0 | AJ37: 0 | AK37: 0 | AL37: 0 | AN37: 1 | AO37: 0 | AP37: 0 | AQ37: 0 | AR37: 0 | AS37: 0 | AT37: 0 | AU37: 0 | AV37: 0 | AW37: 0 | AX37: 0 | AY37: 0 | AZ37: 0 | BA37: 0 | BB37: 0 | BC37: 0 | BD37: 0 | BE37: 0 | BF37: 0
B38: 29 | C38: South West Network Comms Replacement | D38: TD-0010117 | F38: Communication Systems | H38: Replacement - Other | I38: Replacement | K38: 2878.814136 | L38: 6365.147 | M38: 11310.44093 | N38: 1036.14475 | O38: 0 | P38: 0 | Q38: 0 | S38: 0.1 | T38: 0.5 | U38: 0.4 | W38: =IF(IFERROR(INDEX('Output| TRR Driver'!$L$8:$L$49,MATCH($F38,'Output| TRR Driver'!$B$8:$B$49,0)),"")="Network","Yes","No") -> Yes | X38: =IF(IFERROR(INDEX('Output| TRR Driver'!$L$8:$L$49,MATCH($F38,'Output| TRR Driver'!$B$8:$B$49,0)),"")="Corporate","Yes","No") -> No | AC38: 0 | AD38: 1 | AE38: 0 | AF38: 0 | AG38: 0 | AH38: 0 | AI38: 0 | AJ38: 0 | AK38: 0 | AL38: 0 | AN38: 0 | AO38: 0 | AP38: 0 | AQ38: 0 | AR38: 0 | AS38: 0 | AT38: 1 | AU38: 0 | AV38: 0 | AW38: 0 | AX38: 0 | AY38: 0 | AZ38: 0 | BA38: 0 | BB38: 0 | BC38: 0 | BD38: 0 | BE38: 0 | BF38: 0
B39: 30 | C39: Transmission Insulator Replacement | D39: TD-0014597 | F39: Transmission Line Insulators | H39: Replacement - Other | I39: Replacement | K39: 11577.94507 | L39: 18612.54067 | M39: 20 | N39: 0 | O39: 0 | P39: 0 | Q39: 0 | S39: 0.1 | T39: 0.5 | U39: 0.4 | W39: =IF(IFERROR(INDEX('Output| TRR Driver'!$L$8:$L$49,MATCH($F39,'Output| TRR Driver'!$B$8:$B$49,0)),"")="Network","Yes","No") -> Yes | X39: =IF(IFERROR(INDEX('Output| TRR Driver'!$L$8:$L$49,MATCH($F39,'Output| TRR Driver'!$B$8:$B$49,0)),"")="Corporate","Yes","No") -> No | AC39: 0 | AD39: 1 | AE39: 0 | AF39: 0 | AG39: 0 | AH39: 0 | AI39: 0 | AJ39: 0 | AK39: 0 | AL39: 0 | AN39: 0 | AO39: 0 | AP39: 0 | AQ39: 0 | AR39: 0 | AS39: 0 | AT39: 0 | AU39: 0 | AV39: 0 | AW39: 0 | AX39: 0 | AY39: 0 | AZ39: 0 | BA39: 0 | BB39: 1 | BC39: 0 | BD39: 0 | BE39: 0 | BF39: 0
B40: 31 | C40: T624 to T628B HYTS-APD tower replacement | D40: TD-0012063 | F40: Transmission Line Structures | H40: Replacement - Other | I40: Replacement | K40: 24954.57248 | L40: 29410.699 | M40: 405.693 | N40: 0 | O40: 0 | P40: 0 | Q40: 0 | S40: 0.1 | T40: 0.5 | U40: 0.4 | W40: =IF(IFERROR(INDEX('Output| TRR Driver'!$L$8:$L$49,MATCH($F40,'Output| TRR Driver'!$B$8:$B$49,0)),"")="Network","Yes","No") -> Yes | X40: =IF(IFERROR(INDEX('Output| TRR Driver'!$L$8:$L$49,MATCH($F40,'Output| TRR Driver'!$B$8:$B$49,0)),"")="Corporate","Yes","No") -> No | AC40: 0 | AD40: 1 | AE40: 0 | AF40: 0 | AG40: 0 | AH40: 0 | AI40: 0 | AJ40: 0 | AK40: 0 | AL40: 0 | AN40: 0 | AO40: 0 | AP40: 0 | AQ40: 0 | AR40: 1 | AS40: 0 | AT40: 0 | AU40: 0 | AV40: 0 | AW40: 0 | AX40: 0 | AY40: 0 | AZ40: 0 | BA40: 0 | BB40: 0 | BC40: 0 | BD40: 0 | BE40: 0 | BF40: 0
B41: 32 | C41: Portland tower replacement - Stage 2 | D41: TD-0014579 | F41: Transmission Line Structures | H41: Replacement - Other | I41: Replacement | K41: 1728.2088 | L41: 18032.648 | M41: 74418.60465 | N41: 79069.76744 | O41: 0 | P41: 0 | Q41: 0 | S41: 0.1 | T41: 0.5 | U41: 0.4 | W41: =IF(IFERROR(INDEX('Output| TRR Driver'!$L$8:$L$49,MATCH($F41,'Output| TRR Driver'!$B$8:$B$49,0)),"")="Network","Yes","No") -> Yes | X41: =IF(IFERROR(INDEX('Output| TRR Driver'!$L$8:$L$49,MATCH($F41,'Output| TRR Driver'!$B$8:$B$49,0)),"")="Corporate","Yes","No") -> No | AC41: 0 | AD41: 1 | AE41: 0 | AF41: 0 | AG41: 0 | AH41: 0 | AI41: 0 | AJ41: 0 | AK41: 0 | AL41: 0 | AN41: 0 | AO41: 0 | AP41: 0 | AQ41: 0 | AR41: 1 | AS41: 0 | AT41: 0 | AU41: 0 | AV41: 0 | AW41: 0 | AX41: 0 | AY41: 0 | AZ41: 0 | BA41: 0 | BB41: 0 | BC41: 0 | BD41: 0 | BE41: 0 | BF41: 0
B42: 33 | C42: VNSC & Comms Sites Battery Replacement | D42: TD-0013827 | F42: Communication Systems | H42: Replacement - Other | I42: Replacement | K42: 1389.46414 | L42: 9810.45353 | M42: 5190.35045 | N42: 0 | O42: 0 | P42: 0 | Q42: 0 | S42: 0.1 | T42: 0.5 | U42: 0.4 | V42: =IF(SUM(S42:U42,K42:Q42)=0,"",IF(SUM(S42:U42)=1,"",1)) ->  | W42: =IF(IFERROR(INDEX('Output| TRR Driver'!$L$8:$L$49,MATCH($F42,'Output| TRR Driver'!$B$8:$B$49,0)),"")="Network","Yes","No") -> Yes | X42: =IF(IFERROR(INDEX('Output| TRR Driver'!$L$8:$L$49,MATCH($F42,'Output| TRR Driver'!$B$8:$B$49,0)),"")="Corporate","Yes","No") -> No | AC42: 0 | AD42: 1 | AE42: 0 | AF42: 0 | AG42: 0 | AH42: 0 | AI42: 0 | AJ42: 0 | AK42: 0 | AL42: 0 | AN42: 0 | AO42: 0 | AP42: 0 | AQ42: 0 | AR42: 0 | AS42: 0 | AT42: 1 | AU42: 0 | AV42: 0 | AW42: 0 | AX42: 0 | AY42: 0 | AZ42: 0 | BA42: 0 | BB42: 0 | BC42: 0 | BD42: 0 | BE42: 0 | BF42: 0
B43: 34 | C43: Tranche1 Rectification Low Spans, TL | D43: TD-0014572 | F43: Management of Transmission Line Ground Clearances | H43: Replacement - Other | I43: Replacement | K43: 4262.35975 | L43: 10988.79075 | M43: 6919.690764 | N43: 5189.264869 | O43: 612.783367 | P43: 0 | Q43: 0 | S43: 0.1 | T43: 0.5 | U43: 0.4 | W43: =IF(IFERROR(INDEX('Output| TRR Driver'!$L$8:$L$49,MATCH($F43,'Output| TRR Driver'!$B$8:$B$49,0)),"")="Network","Yes","No") -> Yes | X43: =IF(IFERROR(INDEX('Output| TRR Driver'!$L$8:$L$49,MATCH($F43,'Output| TRR Driver'!$B$8:$B$49,0)),"")="Corporate","Yes","No") -> No | AC43: 0 | AD43: 1 | AE43: 0 | AF43: 0 | AG43: 0 | AH43: 0 | AI43: 0 | AJ43: 0 | AK43: 0 | AL43: 0 | AN43: 0 | AO43: 0 | AP43: 0 | AQ43: 0 | AR43: 1 | AS43: 0 | AT43: 0 | AU43: 0 | AV43: 0 | AW43: 0 | AX43: 0 | AY43: 0 | AZ43: 0 | BA43: 0 | BB43: 0 | BC43: 0 | BD43: 0 | BE43: 0 | BF43: 0
B44: 35 | K44: 0 | L44: 0 | M44: 0 | N44: 0 | O44: 0 | P44: 0 | Q44: 0 | S44: 0 | T44: 0 | U44: 0 | W44: =IF(IFERROR(INDEX('Output| TRR Driver'!$L$8:$L$49,MATCH($F44,'Output| TRR Driver'!$B$8:$B$49,0)),"")="Network","Yes","No") -> No | X44: =IF(IFERROR(INDEX('Output| TRR Driver'!$L$8:$L$49,MATCH($F44,'Output| TRR Driver'!$B$8:$B$49,0)),"")="Corporate","Yes","No") -> No | AC44: 0 | AD44: 0 | AE44: 0 | AF44: 0 | AG44: 0 | AH44: 0 | AI44: 0 | AJ44: 0 | AK44: 0 | AL44: 0 | AN44: 0 | AO44: 0 | AP44: 0 | AQ44: 0 | AR44: 0 | AS44: 0 | AT44: 0 | AU44: 0 | AV44: 0 | AW44: 0 | AX44: 0 | AY44: 0 | AZ44: 0 | BA44: 0 | BB44: 0 | BC44: 0 | BD44: 0 | BE44: 0 | BF44: 0
B45: 36 | K45: 0 | L45: 0 | M45: 0 | N45: 0 | O45: 0 | P45: 0 | Q45: 0 | S45: 0 | T45: 0 | U45: 0 | W45: =IF(IFERROR(INDEX('Output| TRR Driver'!$L$8:$L$49,MATCH($F45,'Output| TRR Driver'!$B$8:$B$49,0)),"")="Network","Yes","No") -> No | X45: =IF(IFERROR(INDEX('Output| TRR Driver'!$L$8:$L$49,MATCH($F45,'Output| TRR Driver'!$B$8:$B$49,0)),"")="Corporate","Yes","No") -> No | AC45: 0 | AD45: 0 | AE45: 0 | AF45: 0 | AG45: 0 | AH45: 0 | AI45: 0 | AJ45: 0 | AK45: 0 | AL45: 0 | AN45: 0 | AO45: 0 | AP45: 0 | AQ45: 0 | AR45: 0 | AS45: 0 | AT45: 0 | AU45: 0 | AV45: 0 | AW45: 0 | AX45: 0 | AY45: 0 | AZ45: 0 | BA45: 0 | BB45: 0 | BC45: 0 | BD45: 0 | BE45: 0 | BF45: 0
B46: 37 | C46: Auxiliary Power Supplies | D46: Program | F46: Auxiliary Power Supplies | H46: Replacement - Other | I46: Replacement | K46: 0 | L46: 0 | M46: 3214.883721 | N46: 3214.883721 | O46: 3214.883721 | P46: 3214.883721 | Q46: 3214.883721 | S46: 0.1 | T46: 0.5 | U46: 0.4 | W46: =IF(IFERROR(INDEX('Output| TRR Driver'!$L$8:$L$49,MATCH($F46,'Output| TRR Driver'!$B$8:$B$49,0)),"")="Network","Yes","No") -> Yes | X46: =IF(IFERROR(INDEX('Output| TRR Driver'!$L$8:$L$49,MATCH($F46,'Output| TRR Driver'!$B$8:$B$49,0)),"")="Corporate","Yes","No") -> No | AC46: 0 | AD46: 1 | AE46: 0 | AF46: 0 | AG46: 0 | AH46: 0 | AI46: 0 | AJ46: 0 | AK46: 0 | AL46: 0 | AN46: 1 | AO46: 0 | AP46: 0 | AQ46: 0 | AR46: 0 | AS46: 0 | AT46: 0 | AU46: 0 | AV46: 0 | AW46: 0 | AX46: 0 | AY46: 0 | AZ46: 0 | BA46: 0 | BB46: 0 | BC46: 0 | BD46: 0 | BE46: 0 | BF46: 0
B47: 38 | C47: Circuit Breakers | D47: Program | F47: Circuit Breakers | H47: Replacement - Other | I47: Replacement | K47: 0 | L47: 0 | M47: 2084.906791 | N47: 2084.906791 | O47: 2084.906791 | P47: 2084.906791 | Q47: 2084.906791 | S47: 0.1 | T47: 0.5 | U47: 0.4 | W47: =IF(IFERROR(INDEX('Output| TRR Driver'!$L$8:$L$49,MATCH($F47,'Output| TRR Driver'!$B$8:$B$49,0)),"")="Network","Yes","No") -> Yes | X47: =IF(IFERROR(INDEX('Output| TRR Driver'!$L$8:$L$49,MATCH($F47,'Output| TRR Driver'!$B$8:$B$49,0)),"")="Corporate","Yes","No") -> No | AC47: 0 | AD47: 1 | AE47: 0 | AF47: 0 | AG47: 0 | AH47: 0 | AI47: 0 | AJ47: 0 | AK47: 0 | AL47: 0 | AN47: 0 | AO47: 1 | AP47: 0 | AQ47: 0 | AR47: 0 | AS47: 0 | AT47: 0 | AU47: 0 | AV47: 0 | AW47: 0 | AX47: 0 | AY47: 0 | AZ47: 0 | BA47: 0 | BB47: 0 | BC47: 0 | BD47: 0 | BE47: 0 | BF47: 0
B48: 39 | C48: Civil Infrastructure | D48: Program | F48: Civil Infrastructure | H48: Replacement - Other | I48: Replacement | K48: 0 | L48: 0 | M48: 1748.837209 | N48: 1748.837209 | O48: 1748.837209 | P48: 1748.837209 | Q48: 1748.837209 | S48: 0.1 | T48: 0.5 | U48: 0.4 | W48: =IF(IFERROR(INDEX('Output| TRR Driver'!$L$8:$L$49,MATCH($F48,'Output| TRR Driver'!$B$8:$B$49,0)),"")="Network","Yes","No") -> Yes | X48: =IF(IFERROR(INDEX('Output| TRR Driver'!$L$8:$L$49,MATCH($F48,'Output| TRR Driver'!$B$8:$B$49,0)),"")="Corporate","Yes","No") -> No | AC48: 0 | AD48: 1 | AE48: 0 | AF48: 0 | AG48: 0 | AH48: 0 | AI48: 0 | AJ48: 0 | AK48: 0 | AL48: 0 | AN48: 0 | AO48: 0 | AP48: 0 | AQ48: 0 | AR48: 0 | AS48: 1 | AT48: 0 | AU48: 0 | AV48: 0 | AW48: 0 | AX48: 0 | AY48: 0 | AZ48: 0 | BA48: 0 | BB48: 0 | BC48: 0 | BD48: 0 | BE48: 0 | BF48: 0
B49: 40 | C49: Communication Systems | D49: Program | F49: Communication Systems | H49: Replacement - Other | I49: Replacement | K49: 0 | L49: 0 | M49: 10717.28077 | N49: 10717.28077 | O49: 10717.28077 | P49: 10717.28077 | Q49: 10717.28077 | S49: 0.1 | T49: 0.5 | U49: 0.4 | W49: =IF(IFERROR(INDEX('Output| TRR Driver'!$L$8:$L$49,MATCH($F49,'Output| TRR Driver'!$B$8:$B$49,0)),"")="Network","Yes","No") -> Yes | X49: =IF(IFERROR(INDEX('Output| TRR Driver'!$L$8:$L$49,MATCH($F49,'Output| TRR Driver'!$B$8:$B$49,0)),"")="Corporate","Yes","No") -> No | AC49: 0 | AD49: 1 | AE49: 0 | AF49: 0 | AG49: 0 | AH49: 0 | AI49: 0 | AJ49: 0 | AK49: 0 | AL49: 0 | AN49: 0 | AO49: 0 | AP49: 0 | AQ49: 0 | AR49: 0 | AS49: 0 | AT49: 1 | AU49: 0 | AV49: 0 | AW49: 0 | AX49: 0 | AY49: 0 | AZ49: 0 | BA49: 0 | BB49: 0 | BC49: 0 | BD49: 0 | BE49: 0 | BF49: 0
B50: 41 | C50: Disconnectors and Earth Switches | D50: Program | F50: Disconnectors and Earth Switches | H50: Replacement - Other | I50: Replacement | K50: 0 | L50: 0 | M50: 1371.162791 | N50: 1371.162791 | O50: 1371.162791 | P50: 1371.162791 | Q50: 1371.162791 | S50: 0.1 | T50: 0.5 | U50: 0.4 | W50: =IF(IFERROR(INDEX('Output| TRR Driver'!$L$8:$L$49,MATCH($F50,'Output| TRR Driver'!$B$8:$B$49,0)),"")="Network","Yes","No") -> Yes | X50: =IF(IFERROR(INDEX('Output| TRR Driver'!$L$8:$L$49,MATCH($F50,'Output| TRR Driver'!$B$8:$B$49,0)),"")="Corporate","Yes","No") -> No | AC50: 0 | AD50: 1 | AE50: 0 | AF50: 0 | AG50: 0 | AH50: 0 | AI50: 0 | AJ50: 0 | AK50: 0 | AL50: 0 | AN50: 0 | AO50: 1 | AP50: 0 | AQ50: 0 | AR50: 0 | AS50: 0 | AT50: 0 | AU50: 0 | AV50: 0 | AW50: 0 | AX50: 0 | AY50: 0 | AZ50: 0 | BA50: 0 | BB50: 0 | BC50: 0 | BD50: 0 | BE50: 0 | BF50: 0
B51: 42 | C51: Fire Detection and Suppression | D51: Program | F51: Fire Detection and Suppression | H51: Compliance | I51: Replacement | K51: 0 | L51: 0 | M51: 560 | N51: 560 | O51: 560 | P51: 560 | Q51: 560 | S51: 0.1 | T51: 0.5 | U51: 0.4 | W51: =IF(IFERROR(INDEX('Output| TRR Driver'!$L$8:$L$49,MATCH($F51,'Output| TRR Driver'!$B$8:$B$49,0)),"")="Network","Yes","No") -> Yes | X51: =IF(IFERROR(INDEX('Output| TRR Driver'!$L$8:$L$49,MATCH($F51,'Output| TRR Driver'!$B$8:$B$49,0)),"")="Corporate","Yes","No") -> No | AC51: 0 | AD51: 0 | AE51: 1 | AF51: 0 | AG51: 0 | AH51: 0 | AI51: 0 | AJ51: 0 | AK51: 0 | AL51: 0 | AN51: 0 | AO51: 0 | AP51: 0 | AQ51: 0 | AR51: 0 | AS51: 1 | AT51: 0 | AU51: 0 | AV51: 0 | AW51: 0 | AX51: 0 | AY51: 0 | AZ51: 0 | BA51: 0 | BB51: 0 | BC51: 0 | BD51: 0 | BE51: 0 | BF51: 0
B52: 43 | C52: Instrument Transformers | D52: Program | F52: Instrument Transformers | H52: Replacement - Other | I52: Replacement | K52: 0 | L52: 0 | M52: 483.7209302 | N52: 483.7209302 | O52: 483.7209302 | P52: 483.7209302 | Q52: 483.7209302 | S52: 0.1 | T52: 0.5 | U52: 0.4 | W52: =IF(IFERROR(INDEX('Output| TRR Driver'!$L$8:$L$49,MATCH($F52,'Output| TRR Driver'!$B$8:$B$49,0)),"")="Network","Yes","No") -> Yes | X52: =IF(IFERROR(INDEX('Output| TRR Driver'!$L$8:$L$49,MATCH($F52,'Output| TRR Driver'!$B$8:$B$49,0)),"")="Corporate","Yes","No") -> No | AC52: 0 | AD52: 1 | AE52: 0 | AF52: 0 | AG52: 0 | AH52: 0 | AI52: 0 | AJ52: 0 | AK52: 0 | AL52: 0 | AN52: 0 | AO52: 0 | AP52: 0 | AQ52: 0 | AR52: 1 | AS52: 0 | AT52: 0 | AU52: 0 | AV52: 0 | AW52: 0 | AX52: 0 | AY52: 0 | AZ52: 0 | BA52: 0 | BB52: 0 | BC52: 0 | BD52: 0 | BE52: 0 | BF52: 0
B53: 44 | C53: Power Transformers and Oil Filled Reactors | D53: Program | F53: Power Transformers and Oil Filled Reactors | H53: Replacement - Other | I53: Replacement | K53: 0 | L53: 0 | M53: 2428.483129 | N53: 2428.483129 | O53: 2428.483129 | P53: 2428.483129 | Q53: 2428.483129 | S53: 0.1 | T53: 0.5 | U53: 0.4 | W53: =IF(IFERROR(INDEX('Output| TRR Driver'!$L$8:$L$49,MATCH($F53,'Output| TRR Driver'!$B$8:$B$49,0)),"")="Network","Yes","No") -> Yes | X53: =IF(IFERROR(INDEX('Output| TRR Driver'!$L$8:$L$49,MATCH($F53,'Output| TRR Driver'!$B$8:$B$49,0)),"")="Corporate","Yes","No") -> No | AC53: 0 | AD53: 1 | AE53: 0 | AF53: 0 | AG53: 0 | AH53: 0 | AI53: 0 | AJ53: 0 | AK53: 0 | AL53: 0 | AN53: 0 | AO53: 1 | AP53: 0 | AQ53: 0 | AR53: 0 | AS53: 0 | AT53: 0 | AU53: 0 | AV53: 0 | AW53: 0 | AX53: 0 | AY53: 0 | AZ53: 0 | BA53: 0 | BB53: 0 | BC53: 0 | BD53: 0 | BE53: 0 | BF53: 0
B54: 45 | C54: Secondary Systems | D54: Program | F54: Secondary Systems | H54: Replacement - Other | I54: Replacement | K54: 0 | L54: 0 | M54: 5685.054233 | N54: 5685.054233 | O54: 5685.054233 | P54: 5685.054233 | Q54: 5685.054233 | S54: 0.1 | T54: 0.5 | U54: 0.4 | W54: =IF(IFERROR(INDEX('Output| TRR Driver'!$L$8:$L$49,MATCH($F54,'Output| TRR Driver'!$B$8:$B$49,0)),"")="Network","Yes","No") -> Yes | X54: =IF(IFERROR(INDEX('Output| TRR Driver'!$L$8:$L$49,MATCH($F54,'Output| TRR Driver'!$B$8:$B$49,0)),"")="Corporate","Yes","No") -> No | AC54: 0 | AD54: 1 | AE54: 0 | AF54: 0 | AG54: 0 | AH54: 0 | AI54: 0 | AJ54: 0 | AK54: 0 | AL54: 0 | AN54: 1 | AO54: 0 | AP54: 0 | AQ54: 0 | AR54: 0 | AS54: 0 | AT54: 0 | AU54: 0 | AV54: 0 | AW54: 0 | AX54: 0 | AY54: 0 | AZ54: 0 | BA54: 0 | BB54: 0 | BC54: 0 | BD54: 0 | BE54: 0 | BF54: 0
B55: 46 | C55: Surge Diverters | D55: Program | F55: Surge Diverters | H55: Replacement - Other | I55: Replacement | K55: 0 | L55: 0 | M55: 366.5116279 | N55: 366.5116279 | O55: 366.5116279 | P55: 366.5116279 | Q55: 366.5116279 | S55: 0.1 | T55: 0.5 | U55: 0.4 | W55: =IF(IFERROR(INDEX('Output| TRR Driver'!$L$8:$L$49,MATCH($F55,'Output| TRR Driver'!$B$8:$B$49,0)),"")="Network","Yes","No") -> Yes | X55: =IF(IFERROR(INDEX('Output| TRR Driver'!$L$8:$L$49,MATCH($F55,'Output| TRR Driver'!$B$8:$B$49,0)),"")="Corporate","Yes","No") -> No | AC55: 0 | AD55: 1 | AE55: 0 | AF55: 0 | AG55: 0 | AH55: 0 | AI55: 0 | AJ55: 0 | AK55: 0 | AL55: 0 | AN55: 0 | AO55: 1 | AP55: 0 | AQ55: 0 | AR55: 0 | AS55: 0 | AT55: 0 | AU55: 0 | AV55: 0 | AW55: 0 | AX55: 0 | AY55: 0 | AZ55: 0 | BA55: 0 | BB55: 0 | BC55: 0 | BD55: 0 | BE55: 0 | BF55: 0
B56: 47 | C56: Transmission Line Insulators | D56: Program | F56: Transmission Line Insulators | H56: Replacement - Other | I56: Replacement | K56: 0 | L56: 0 | M56: 14657.85581 | N56: 14657.85581 | O56: 14657.85581 | P56: 14657.85581 | Q56: 14657.85581 | S56: 0.1 | T56: 0.5 | U56: 0.4 | W56: =IF(IFERROR(INDEX('Output| TRR Driver'!$L$8:$L$49,MATCH($F56,'Output| TRR Driver'!$B$8:$B$49,0)),"")="Network","Yes","No") -> Yes | X56: =IF(IFERROR(INDEX('Output| TRR Driver'!$L$8:$L$49,MATCH($F56,'Output| TRR Driver'!$B$8:$B$49,0)),"")="Corporate","Yes","No") -> No | AC56: 0 | AD56: 1 | AE56: 0 | AF56: 0 | AG56: 0 | AH56: 0 | AI56: 0 | AJ56: 0 | AK56: 0 | AL56: 0 | AN56: 0 | AO56: 0 | AP56: 0 | AQ56: 0 | AR56: 0 | AS56: 0 | AT56: 0 | AU56: 0 | AV56: 0 | AW56: 0 | AX56: 0 | AY56: 0 | AZ56: 0 | BA56: 0 | BB56: 1 | BC56: 0 | BD56: 0 | BE56: 0 | BF56: 0
B57: 48 | C57: Management of Transmission Line Ground Clearances | D57: Program | F57: Management of Transmission Line Ground Clearances | H57: Compliance | I57: Replacement | K57: 0 | L57: 0 | M57: 1825.756093 | N57: 1825.756093 | O57: 1825.756093 | P57: 1825.756093 | Q57: 1825.756093 | S57: 0.1 | T57: 0.5 | U57: 0.4 | W57: =IF(IFERROR(INDEX('Output| TRR Driver'!$L$8:$L$49,MATCH($F57,'Output| TRR Driver'!$B$8:$B$49,0)),"")="Network","Yes","No") -> Yes | X57: =IF(IFERROR(INDEX('Output| TRR Driver'!$L$8:$L$49,MATCH($F57,'Output| TRR Driver'!$B$8:$B$49,0)),"")="Corporate","Yes","No") -> No | AC57: 0 | AD57: 0 | AE57: 1 | AF57: 0 | AG57: 0 | AH57: 0 | AI57: 0 | AJ57: 0 | AK57: 0 | AL57: 0 | AN57: 0 | AO57: 0 | AP57: 0 | AQ57: 0 | AR57: 1 | AS57: 0 | AT57: 0 | AU57: 0 | AV57: 0 | AW57: 0 | AX57: 0 | AY57: 0 | AZ57: 0 | BA57: 0 | BB57: 0 | BC57: 0 | BD57: 0 | BE57: 0 | BF57: 0
B58: 49 | C58: Transmission Line Structures | D58: Program | F58: Transmission Line Structures | H58: Replacement - Other | I58: Replacement | K58: 0 | L58: 0 | M58: 2069.356556 | N58: 2069.356556 | O58: 2069.356556 | P58: 2069.356556 | Q58: 2069.356556 | S58: 0.1 | T58: 0.5 | U58: 0.4 | W58: =IF(IFERROR(INDEX('Output| TRR Driver'!$L$8:$L$49,MATCH($F58,'Output| TRR Driver'!$B$8:$B$49,0)),"")="Network","Yes","No") -> Yes | X58: =IF(IFERROR(INDEX('Output| TRR Driver'!$L$8:$L$49,MATCH($F58,'Output| TRR Driver'!$B$8:$B$49,0)),"")="Corporate","Yes","No") -> No | AC58: 0 | AD58: 1 | AE58: 0 | AF58: 0 | AG58: 0 | AH58: 0 | AI58: 0 | AJ58: 0 | AK58: 0 | AL58: 0 | AN58: 0 | AO58: 0 | AP58: 0 | AQ58: 0 | AR58: 1 | AS58: 0 | AT58: 0 | AU58: 0 | AV58: 0 | AW58: 0 | AX58: 0 | AY58: 0 | AZ58: 0 | BA58: 0 | BB58: 0 | BC58: 0 | BD58: 0 | BE58: 0 | BF58: 0
B59: 50 | C59: Transmission Line Fall Arrest Towers | D59: Program | F59: Transmission Line Structures (Compliance) | H59: Compliance | I59: Replacement | K59: 0 | L59: 0 | M59: 1040 | N59: 1040 | O59: 1040 | P59: 1040 | Q59: 1040 | S59: 0.1 | T59: 0.5 | U59: 0.4 | W59: =IF(IFERROR(INDEX('Output| TRR Driver'!$L$8:$L$49,MATCH($F59,'Output| TRR Driver'!$B$8:$B$49,0)),"")="Network","Yes","No") -> Yes | X59: =IF(IFERROR(INDEX('Output| TRR Driver'!$L$8:$L$49,MATCH($F59,'Output| TRR Driver'!$B$8:$B$49,0)),"")="Corporate","Yes","No") -> No | AC59: 0 | AD59: 0 | AE59: 1 | AF59: 0 | AG59: 0 | AH59: 0 | AI59: 0 | AJ59: 0 | AK59: 0 | AL59: 0 | AN59: 0 | AO59: 0 | AP59: 0 | AQ59: 0 | AR59: 1 | AS59: 0 | AT59: 0 | AU59: 0 | AV59: 0 | AW59: 0 | AX59: 0 | AY59: 0 | AZ59: 0 | BA59: 0 | BB59: 0 | BC59: 0 | BD59: 0 | BE59: 0 | BF59: 0
B60: 51 | C60: Transmission Lines Fall Arrest System (FAS) Racks | D60: Program | F60: Transmission Line Structures (Compliance) | H60: Compliance | I60: Replacement | K60: 0 | L60: 0 | M60: 300 | N60: 300 | O60: 300 | P60: 300 | Q60: 300 | S60: 0.1 | T60: 0.5 | U60: 0.4 | W60: =IF(IFERROR(INDEX('Output| TRR Driver'!$L$8:$L$49,MATCH($F60,'Output| TRR Driver'!$B$8:$B$49,0)),"")="Network","Yes","No") -> Yes | X60: =IF(IFERROR(INDEX('Output| TRR Driver'!$L$8:$L$49,MATCH($F60,'Output| TRR Driver'!$B$8:$B$49,0)),"")="Corporate","Yes","No") -> No | AC60: 0 | AD60: 0 | AE60: 1 | AF60: 0 | AG60: 0 | AH60: 0 | AI60: 0 | AJ60: 0 | AK60: 0 | AL60: 0 | AN60: 0 | AO60: 0 | AP60: 0 | AQ60: 0 | AR60: 1 | AS60: 0 | AT60: 0 | AU60: 0 | AV60: 0 | AW60: 0 | AX60: 0 | AY60: 0 | AZ60: 0 | BA60: 0 | BB60: 0 | BC60: 0 | BD60: 0 | BE60: 0 | BF60: 0
B61: 52 | C61: Transmission Tower Resilience Program | D61: Program | F61: Transmission Line Structures (Resilience) | H61: Resillience | I61: Replacement | K61: 0 | L61: 0 | M61: 2432.76759 | N61: 2432.76759 | O61: 2432.76759 | P61: 2432.76759 | Q61: 2432.76759 | S61: 0.1 | T61: 0.5 | U61: 0.4 | W61: =IF(IFERROR(INDEX('Output| TRR Driver'!$L$8:$L$49,MATCH($F61,'Output| TRR Driver'!$B$8:$B$49,0)),"")="Network","Yes","No") -> Yes | X61: =IF(IFERROR(INDEX('Output| TRR Driver'!$L$8:$L$49,MATCH($F61,'Output| TRR Driver'!$B$8:$B$49,0)),"")="Corporate","Yes","No") -> No | AC61: 0 | AD61: 0 | AE61: 0 | AF61: 1 | AG61: 0 | AH61: 0 | AI61: 0 | AJ61: 0 | AK61: 0 | AL61: 0 | AN61: 0 | AO61: 0 | AP61: 0 | AQ61: 0 | AR61: 1 | AS61: 0 | AT61: 0 | AU61: 0 | AV61: 0 | AW61: 0 | AX61: 0 | AY61: 0 | AZ61: 0 | BA61: 0 | BB61: 0 | BC61: 0 | BD61: 0 | BE61: 0 | BF61: 0
B62: 53 | C62: Transmission Lines Conductors (GW & Ph Cond) | D62: Program | F62: Transmission Lines Conductors (GW & Ph Cond) | H62: Replacement - Other | I62: Replacement | K62: 0 | L62: 0 | M62: 1742.945104 | N62: 1742.945104 | O62: 1742.945104 | P62: 1742.945104 | Q62: 1742.945104 | S62: 0.1 | T62: 0.5 | U62: 0.4 | W62: =IF(IFERROR(INDEX('Output| TRR Driver'!$L$8:$L$49,MATCH($F62,'Output| TRR Driver'!$B$8:$B$49,0)),"")="Network","Yes","No") -> Yes | X62: =IF(IFERROR(INDEX('Output| TRR Driver'!$L$8:$L$49,MATCH($F62,'Output| TRR Driver'!$B$8:$B$49,0)),"")="Corporate","Yes","No") -> No | AC62: 0 | AD62: 1 | AE62: 0 | AF62: 0 | AG62: 0 | AH62: 0 | AI62: 0 | AJ62: 0 | AK62: 0 | AL62: 0 | AN62: 0 | AO62: 0 | AP62: 0 | AQ62: 0 | AR62: 1 | AS62: 0 | AT62: 0 | AU62: 0 | AV62: 0 | AW62: 0 | AX62: 0 | AY62: 0 | AZ62: 0 | BA62: 0 | BB62: 0 | BC62: 0 | BD62: 0 | BE62: 0 | BF62: 0
B63: 54 | C63: Transmission Lines Conductors (GW & Ph Cond) | D63: Program | F63: Transmission Lines Conductors (Compliance) | H63: Compliance | I63: Replacement | K63: 0 | L63: 0 | M63: 2489.311687 | N63: 2489.311687 | O63: 2489.311687 | P63: 2489.311687 | Q63: 2489.311687 | S63: 0.1 | T63: 0.5 | U63: 0.4 | W63: =IF(IFERROR(INDEX('Output| TRR Driver'!$L$8:$L$49,MATCH($F63,'Output| TRR Driver'!$B$8:$B$49,0)),"")="Network","Yes","No") -> Yes | X63: =IF(IFERROR(INDEX('Output| TRR Driver'!$L$8:$L$49,MATCH($F63,'Output| TRR Driver'!$B$8:$B$49,0)),"")="Corporate","Yes","No") -> No | AC63: 0 | AD63: 0 | AE63: 1 | AF63: 0 | AG63: 0 | AH63: 0 | AI63: 0 | AJ63: 0 | AK63: 0 | AL63: 0 | AN63: 0 | AO63: 0 | AP63: 0 | AQ63: 0 | AR63: 1 | AS63: 0 | AT63: 0 | AU63: 0 | AV63: 0 | AW63: 0 | AX63: 0 | AY63: 0 | AZ63: 0 | BA63: 0 | BB63: 0 | BC63: 0 | BD63: 0 | BE63: 0 | BF63: 0
B64: 55 | K64: 0 | L64: 0 | M64: 0 | N64: 0 | O64: 0 | P64: 0 | Q64: 0 | S64: 0 | T64: 0 | U64: 0 | W64: =IF(IFERROR(INDEX('Output| TRR Driver'!$L$8:$L$49,MATCH($F64,'Output| TRR Driver'!$B$8:$B$49,0)),"")="Network","Yes","No") -> No | X64: =IF(IFERROR(INDEX('Output| TRR Driver'!$L$8:$L$49,MATCH($F64,'Output| TRR Driver'!$B$8:$B$49,0)),"")="Corporate","Yes","No") -> No | AC64: 0 | AD64: 0 | AE64: 0 | AF64: 0 | AG64: 0 | AH64: 0 | AI64: 0 | AJ64: 0 | AK64: 0 | AL64: 0 | AN64: 0 | AO64: 0 | AP64: 0 | AQ64: 0 | AR64: 0 | AS64: 0 | AT64: 0 | AU64: 0 | AV64: 0 | AW64: 0 | AX64: 0 | AY64: 0 | AZ64: 0 | BA64: 0 | BB64: 0 | BC64: 0 | BD64: 0 | BE64: 0 | BF64: 0
B65: 56 | K65: 0 | L65: 0 | M65: 0 | N65: 0 | O65: 0 | P65: 0 | Q65: 0 | S65: 0 | T65: 0 | U65: 0 | W65: =IF(IFERROR(INDEX('Output| TRR Driver'!$L$8:$L$49,MATCH($F65,'Output| TRR Driver'!$B$8:$B$49,0)),"")="Network","Yes","No") -> No | X65: =IF(IFERROR(INDEX('Output| TRR Driver'!$L$8:$L$49,MATCH($F65,'Output| TRR Driver'!$B$8:$B$49,0)),"")="Corporate","Yes","No") -> No | AC65: 0 | AD65: 0 | AE65: 0 | AF65: 0 | AG65: 0 | AH65: 0 | AI65: 0 | AJ65: 0 | AK65: 0 | AL65: 0 | AN65: 0 | AO65: 0 | AP65: 0 | AQ65: 0 | AR65: 0 | AS65: 0 | AT65: 0 | AU65: 0 | AV65: 0 | AW65: 0 | AX65: 0 | AY65: 0 | AZ65: 0 | BA65: 0 | BB65: 0 | BC65: 0 | BD65: 0 | BE65: 0 | BF65: 0
B66: 57 | C66: Environmental | D66: Program | F66: Environmental | H66: Compliance | I66: Replacement | K66: 0 | L66: 0 | M66: 1024.535895 | N66: 1024.535895 | O66: 1024.535895 | P66: 1024.535895 | Q66: 1024.535895 | S66: 0.1 | T66: 0.5 | U66: 0.4 | W66: =IF(IFERROR(INDEX('Output| TRR Driver'!$L$8:$L$49,MATCH($F66,'Output| TRR Driver'!$B$8:$B$49,0)),"")="Network","Yes","No") -> Yes | X66: =IF(IFERROR(INDEX('Output| TRR Driver'!$L$8:$L$49,MATCH($F66,'Output| TRR Driver'!$B$8:$B$49,0)),"")="Corporate","Yes","No") -> No | AC66: 0 | AD66: 0 | AE66: 1 | AF66: 0 | AG66: 0 | AH66: 0 | AI66: 0 | AJ66: 0 | AK66: 0 | AL66: 0 | AN66: 0 | AO66: 0 | AP66: 0 | AQ66: 0 | AR66: 0 | AS66: 1 | AT66: 0 | AU66: 0 | AV66: 0 | AW66: 0 | AX66: 0 | AY66: 0 | AZ66: 0 | BA66: 0 | BB66: 0 | BC66: 0 | BD66: 0 | BE66: 0 | BF66: 0
B67: 58 | C67: Rework | D67: Program | F67: Environmental | H67: Compliance | I67: Replacement | K67: 0 | L67: 0 | M67: 0 | N67: 0 | O67: 0 | P67: 0 | Q67: 0 | S67: 0.1 | T67: 0.5 | U67: 0.4 | W67: =IF(IFERROR(INDEX('Output| TRR Driver'!$L$8:$L$49,MATCH($F67,'Output| TRR Driver'!$B$8:$B$49,0)),"")="Network","Yes","No") -> Yes | X67: =IF(IFERROR(INDEX('Output| TRR Driver'!$L$8:$L$49,MATCH($F67,'Output| TRR Driver'!$B$8:$B$49,0)),"")="Corporate","Yes","No") -> No | AC67: 0 | AD67: 0 | AE67: 1 | AF67: 0 | AG67: 0 | AH67: 0 | AI67: 0 | AJ67: 0 | AK67: 0 | AL67: 0 | AN67: 0 | AO67: 0 | AP67: 0 | AQ67: 0 | AR67: 0 | AS67: 1 | AT67: 0 | AU67: 0 | AV67: 0 | AW67: 0 | AX67: 0 | AY67: 0 | AZ67: 0 | BA67: 0 | BB67: 0 | BC67: 0 | BD67: 0 | BE67: 0 | BF67: 0
B68: 59 | C68: Consultant | D68: Program | F68: Environmental | H68: Compliance | I68: Replacement | K68: 0 | L68: 0 | M68: 0 | N68: 0 | O68: 0 | P68: 0 | Q68: 0 | S68: 0.1 | T68: 0.5 | U68: 0.4 | W68: =IF(IFERROR(INDEX('Output| TRR Driver'!$L$8:$L$49,MATCH($F68,'Output| TRR Driver'!$B$8:$B$49,0)),"")="Network","Yes","No") -> Yes | X68: =IF(IFERROR(INDEX('Output| TRR Driver'!$L$8:$L$49,MATCH($F68,'Output| TRR Driver'!$B$8:$B$49,0)),"")="Corporate","Yes","No") -> No | AC68: 0 | AD68: 0 | AE68: 1 | AF68: 0 | AG68: 0 | AH68: 0 | AI68: 0 | AJ68: 0 | AK68: 0 | AL68: 0 | AN68: 0 | AO68: 0 | AP68: 0 | AQ68: 0 | AR68: 0 | AS68: 1 | AT68: 0 | AU68: 0 | AV68: 0 | AW68: 0 | AX68: 0 | AY68: 0 | AZ68: 0 | BA68: 0 | BB68: 0 | BC68: 0 | BD68: 0 | BE68: 0 | BF68: 0
B69: 60 | K69: 0 | L69: 0 | M69: 0 | N69: 0 | O69: 0 | P69: 0 | Q69: 0 | S69: 0 | T69: 0 | U69: 0 | W69: =IF(IFERROR(INDEX('Output| TRR Driver'!$L$8:$L$49,MATCH($F69,'Output| TRR Driver'!$B$8:$B$49,0)),"")="Network","Yes","No") -> No | X69: =IF(IFERROR(INDEX('Output| TRR Driver'!$L$8:$L$49,MATCH($F69,'Output| TRR Driver'!$B$8:$B$49,0)),"")="Corporate","Yes","No") -> No | AC69: 0 | AD69: 0 | AE69: 0 | AF69: 0 | AG69: 0 | AH69: 0 | AI69: 0 | AJ69: 0 | AK69: 0 | AL69: 0 | AN69: 0 | AO69: 0 | AP69: 0 | AQ69: 0 | AR69: 0 | AS69: 0 | AT69: 0 | AU69: 0 | AV69: 0 | AW69: 0 | AX69: 0 | AY69: 0 | AZ69: 0 | BA69: 0 | BB69: 0 | BC69: 0 | BD69: 0 | BE69: 0 | BF69: 0
B70: 61 | K70: 0 | L70: 0 | M70: 0 | N70: 0 | O70: 0 | P70: 0 | Q70: 0 | S70: 0 | T70: 0 | U70: 0 | W70: =IF(IFERROR(INDEX('Output| TRR Driver'!$L$8:$L$49,MATCH($F70,'Output| TRR Driver'!$B$8:$B$49,0)),"")="Network","Yes","No") -> No | X70: =IF(IFERROR(INDEX('Output| TRR Driver'!$L$8:$L$49,MATCH($F70,'Output| TRR Driver'!$B$8:$B$49,0)),"")="Corporate","Yes","No") -> No | AC70: 0 | AD70: 0 | AE70: 0 | AF70: 0 | AG70: 0 | AH70: 0 | AI70: 0 | AJ70: 0 | AK70: 0 | AL70: 0 | AN70: 0 | AO70: 0 | AP70: 0 | AQ70: 0 | AR70: 0 | AS70: 0 | AT70: 0 | AU70: 0 | AV70: 0 | AW70: 0 | AX70: 0 | AY70: 0 | AZ70: 0 | BA70: 0 | BB70: 0 | BC70: 0 | BD70: 0 | BE70: 0 | BF70: 0
B71: 62 | C71: Metering | D71: Program | F71: Metering | H71: Replacement - Other | I71: Replacement | K71: 0 | L71: 0 | M71: 2095.547886 | N71: 2095.547886 | O71: 2095.547886 | P71: 2095.547886 | Q71: 2095.547886 | S71: 0.1 | T71: 0.5 | U71: 0.4 | W71: =IF(IFERROR(INDEX('Output| TRR Driver'!$L$8:$L$49,MATCH($F71,'Output| TRR Driver'!$B$8:$B$49,0)),"")="Network","Yes","No") -> Yes | X71: =IF(IFERROR(INDEX('Output| TRR Driver'!$L$8:$L$49,MATCH($F71,'Output| TRR Driver'!$B$8:$B$49,0)),"")="Corporate","Yes","No") -> No | AC71: 0 | AD71: 1 | AE71: 0 | AF71: 0 | AG71: 0 | AH71: 0 | AI71: 0 | AJ71: 0 | AK71: 0 | AL71: 0 | AN71: 0 | AO71: 0 | AP71: 0 | AQ71: 0 | AR71: 0 | AS71: 0 | AT71: 1 | AU71: 0 | AV71: 0 | AW71: 0 | AX71: 0 | AY71: 0 | AZ71: 0 | BA71: 0 | BB71: 0 | BC71: 0 | BD71: 0 | BE71: 0 | BF71: 0
B72: 63 | K72: 0 | L72: 0 | M72: 0 | N72: 0 | O72: 0 | P72: 0 | Q72: 0 | S72: 0 | T72: 0 | U72: 0 | W72: =IF(IFERROR(INDEX('Output| TRR Driver'!$L$8:$L$49,MATCH($F72,'Output| TRR Driver'!$B$8:$B$49,0)),"")="Network","Yes","No") -> No | X72: =IF(IFERROR(INDEX('Output| TRR Driver'!$L$8:$L$49,MATCH($F72,'Output| TRR Driver'!$B$8:$B$49,0)),"")="Corporate","Yes","No") -> No | AC72: 0 | AD72: 0 | AE72: 0 | AF72: 0 | AG72: 0 | AH72: 0 | AI72: 0 | AJ72: 0 | AK72: 0 | AL72: 0 | AN72: 0 | AO72: 0 | AP72: 0 | AQ72: 0 | AR72: 0 | AS72: 0 | AT72: 0 | AU72: 0 | AV72: 0 | AW72: 0 | AX72: 0 | AY72: 0 | AZ72: 0 | BA72: 0 | BB72: 0 | BC72: 0 | BD72: 0 | BE72: 0 | BF72: 0
B73: 64 | K73: 0 | L73: 0 | M73: 0 | N73: 0 | O73: 0 | P73: 0 | Q73: 0 | S73: 0 | T73: 0 | U73: 0 | W73: =IF(IFERROR(INDEX('Output| TRR Driver'!$L$8:$L$49,MATCH($F73,'Output| TRR Driver'!$B$8:$B$49,0)),"")="Network","Yes","No") -> No | X73: =IF(IFERROR(INDEX('Output| TRR Driver'!$L$8:$L$49,MATCH($F73,'Output| TRR Driver'!$B$8:$B$49,0)),"")="Corporate","Yes","No") -> No | AC73: 0 | AD73: 0 | AE73: 0 | AF73: 0 | AG73: 0 | AH73: 0 | AI73: 0 | AJ73: 0 | AK73: 0 | AL73: 0 | AN73: 0 | AO73: 0 | AP73: 0 | AQ73: 0 | AR73: 0 | AS73: 0 | AT73: 0 | AU73: 0 | AV73: 0 | AW73: 0 | AX73: 0 | AY73: 0 | AZ73: 0 | BA73: 0 | BB73: 0 | BC73: 0 | BD73: 0 | BE73: 0 | BF73: 0
B74: 65 | C74: Testing Equipment | D74: Program | F74: Other (Non-Network) | H74: Other non-network capex | I74: Non-network capex | K74: 0 | L74: 0 | M74: 3654.10701 | N74: 4542.93463 | O74: 4613.97915 | P74: 1304.61375 | Q74: 0 | S74: 0.1 | T74: 0 | U74: 0.9 | V74: =IF(SUM(S74:U74,K74:Q74)=0,"",IF(SUM(S74:U74)=1,"",1)) ->  | W74: =IF(IFERROR(INDEX('Output| TRR Driver'!$L$8:$L$49,MATCH($F74,'Output| TRR Driver'!$B$8:$B$49,0)),"")="Network","Yes","No") -> No | X74: =IF(IFERROR(INDEX('Output| TRR Driver'!$L$8:$L$49,MATCH($F74,'Output| TRR Driver'!$B$8:$B$49,0)),"")="Corporate","Yes","No") -> No | AC74: 0 | AD74: 0 | AE74: 0 | AF74: 0 | AG74: 0 | AH74: 0 | AI74: 0 | AJ74: 1 | AK74: 0 | AL74: 0 | AN74: 0 | AO74: 0 | AP74: 1 | AQ74: 0 | AR74: 0 | AS74: 0 | AT74: 0 | AU74: 0 | AV74: 0 | AW74: 0 | AX74: 0 | AY74: 0 | AZ74: 0 | BA74: 0 | BB74: 0 | BC74: 0 | BD74: 0 | BE74: 0 | BF74: 0
B75: 66 | C75: Vehicles - Replacement - Car | D75: Program | F75: Vehicles | H75: Fleet capex | I75: Non-network capex | K75: 0 | L75: 0 | M75: 174.9380328 | N75: 0 | O75: 0 | P75: 427.6263025 | Q75: 476.2202005 | S75: 0.1 | T75: 0 | U75: 0.9 | W75: =IF(IFERROR(INDEX('Output| TRR Driver'!$L$8:$L$49,MATCH($F75,'Output| TRR Driver'!$B$8:$B$49,0)),"")="Network","Yes","No") -> No | X75: =IF(IFERROR(INDEX('Output| TRR Driver'!$L$8:$L$49,MATCH($F75,'Output| TRR Driver'!$B$8:$B$49,0)),"")="Corporate","Yes","No") -> No | AC75: 0 | AD75: 0 | AE75: 0 | AF75: 0 | AG75: 0 | AH75: 0 | AI75: 1 | AJ75: 0 | AK75: 0 | AL75: 0 | AM75: =IF(OR(SUM($K75:$Q75)=0,SUM(AC75:AL75)=100%),"",1) ->  | AN75: 0 | AO75: 0 | AP75: 0 | AQ75: 0 | AR75: 0 | AS75: 0 | AT75: 0 | AU75: 0 | AV75: 0 | AW75: 1 | AX75: 0 | AY75: 0 | AZ75: 0 | BA75: 0 | BB75: 0 | BC75: 0 | BD75: 0 | BE75: 0 | BF75: 0 | CL75: =IF(OR(SUM($K75:$Q75)=0,SUM(AN75:CK75)=100%),"",1) -> 
B76: =IFERROR(B75+1,"") -> 67 | C76: Vehicles - Replacement - LCV | D76: Program | F76: Vehicles | H76: Fleet capex | I76: Non-network capex | K76: 0 | L76: 0 | M76: 624.9794424 | N76: 236.7346373 | O76: 1391.999667 | P76: 549.2243585 | Q76: 236.7346373 | S76: 0.1 | T76: 0 | U76: 0.9 | W76: =IF(IFERROR(INDEX('Output| TRR Driver'!$L$8:$L$49,MATCH($F76,'Output| TRR Driver'!$B$8:$B$49,0)),"")="Network","Yes","No") -> No | X76: =IF(IFERROR(INDEX('Output| TRR Driver'!$L$8:$L$49,MATCH($F76,'Output| TRR Driver'!$B$8:$B$49,0)),"")="Corporate","Yes","No") -> No | AC76: 0 | AD76: 0 | AE76: 0 | AF76: 0 | AG76: 0 | AH76: 0 | AI76: 1 | AJ76: 0 | AK76: 0 | AL76: 0 | AN76: 0 | AO76: 0 | AP76: 0 | AQ76: 0 | AR76: 0 | AS76: 0 | AT76: 0 | AU76: 0 | AV76: 0 | AW76: 1 | AX76: 0 | AY76: 0 | AZ76: 0 | BA76: 0 | BB76: 0 | BC76: 0 | BD76: 0 | BE76: 0 | BF76: 0
B77: 68 | C77: Vehicles - Replacement - HCV | D77: Program | F77: Vehicles | H77: Fleet capex | I77: Non-network capex | K77: 0 | L77: 0 | M77: 0 | N77: 367.3958976 | O77: 0 | P77: 0 | Q77: 0 | S77: 0.1 | T77: 0 | U77: 0.9 | W77: =IF(IFERROR(INDEX('Output| TRR Driver'!$L$8:$L$49,MATCH($F77,'Output| TRR Driver'!$B$8:$B$49,0)),"")="Network","Yes","No") -> No | X77: =IF(IFERROR(INDEX('Output| TRR Driver'!$L$8:$L$49,MATCH($F77,'Output| TRR Driver'!$B$8:$B$49,0)),"")="Corporate","Yes","No") -> No | AC77: 0 | AD77: 0 | AE77: 0 | AF77: 0 | AG77: 0 | AH77: 0 | AI77: 1 | AJ77: 0 | AK77: 0 | AL77: 0 | AN77: 0 | AO77: 0 | AP77: 0 | AQ77: 0 | AR77: 0 | AS77: 0 | AT77: 0 | AU77: 0 | AV77: 0 | AW77: 1 | AX77: 0 | AY77: 0 | AZ77: 0 | BA77: 0 | BB77: 0 | BC77: 0 | BD77: 0 | BE77: 0 | BF77: 0
B78: 69 | C78: Vehicles - Replacement - Other (trailer and plant) | D78: Program | F78: Vehicles | H78: Fleet capex | I78: Non-network capex | K78: 0 | L78: 0 | M78: 91.84897441 | N78: 91.84897441 | O78: 91.84897441 | P78: 91.84897441 | Q78: 91.84897441 | S78: 0.1 | T78: 0 | U78: 0.9 | W78: =IF(IFERROR(INDEX('Output| TRR Driver'!$L$8:$L$49,MATCH($F78,'Output| TRR Driver'!$B$8:$B$49,0)),"")="Network","Yes","No") -> No | X78: =IF(IFERROR(INDEX('Output| TRR Driver'!$L$8:$L$49,MATCH($F78,'Output| TRR Driver'!$B$8:$B$49,0)),"")="Corporate","Yes","No") -> No | AC78: 0 | AD78: 0 | AE78: 0 | AF78: 0 | AG78: 0 | AH78: 0 | AI78: 1 | AJ78: 0 | AK78: 0 | AL78: 0 | AN78: 0 | AO78: 0 | AP78: 0 | AQ78: 0 | AR78: 0 | AS78: 0 | AT78: 0 | AU78: 0 | AV78: 0 | AW78: 1 | AX78: 0 | AY78: 0 | AZ78: 0 | BA78: 0 | BB78: 0 | BC78: 0 | BD78: 0 | BE78: 0 | BF78: 0
B79: 70 | C79: Vehicles - TOMSA - LCV | D79: Program | F79: Vehicles | H79: Fleet capex | I79: Non-network capex | K79: 0 | L79: 0 | M79: 0 | N79: 1653.281539 | O79: 1653.281539 | P79: 1653.281539 | Q79: 0 | S79: 0.1 | T79: 0 | U79: 0.9 | W79: =IF(IFERROR(INDEX('Output| TRR Driver'!$L$8:$L$49,MATCH($F79,'Output| TRR Driver'!$B$8:$B$49,0)),"")="Network","Yes","No") -> No | X79: =IF(IFERROR(INDEX('Output| TRR Driver'!$L$8:$L$49,MATCH($F79,'Output| TRR Driver'!$B$8:$B$49,0)),"")="Corporate","Yes","No") -> No | AC79: 0 | AD79: 0 | AE79: 0 | AF79: 0 | AG79: 0 | AH79: 0 | AI79: 1 | AJ79: 0 | AK79: 0 | AL79: 0 | AN79: 0 | AO79: 0 | AP79: 0 | AQ79: 0 | AR79: 0 | AS79: 0 | AT79: 0 | AU79: 0 | AV79: 0 | AW79: 1 | AX79: 0 | AY79: 0 | AZ79: 0 | BA79: 0 | BB79: 0 | BC79: 0 | BD79: 0 | BE79: 0 | BF79: 0
B80: 71 | C80: Vehicles - Growth - Car | D80: Program | F80: Vehicles | H80: Fleet capex | I80: Non-network capex | K80: 0 | L80: 0 | M80: 119.4036667 | N80: 119.4036667 | O80: 119.4036667 | P80: 119.4036667 | Q80: 119.4036667 | S80: 0.1 | T80: 0 | U80: 0.9 | W80: =IF(IFERROR(INDEX('Output| TRR Driver'!$L$8:$L$49,MATCH($F80,'Output| TRR Driver'!$B$8:$B$49,0)),"")="Network","Yes","No") -> No | X80: =IF(IFERROR(INDEX('Output| TRR Driver'!$L$8:$L$49,MATCH($F80,'Output| TRR Driver'!$B$8:$B$49,0)),"")="Corporate","Yes","No") -> No | AC80: 0 | AD80: 0 | AE80: 0 | AF80: 0 | AG80: 0 | AH80: 0 | AI80: 1 | AJ80: 0 | AK80: 0 | AL80: 0 | AN80: 0 | AO80: 0 | AP80: 0 | AQ80: 0 | AR80: 0 | AS80: 0 | AT80: 0 | AU80: 0 | AV80: 0 | AW80: 1 | AX80: 0 | AY80: 0 | AZ80: 0 | BA80: 0 | BB80: 0 | BC80: 0 | BD80: 0 | BE80: 0 | BF80: 0
B81: 72 | C81: Vehicles - Growth - LCV | D81: Program | F81: Vehicles | H81: Fleet capex | I81: Non-network capex | K81: 0 | L81: 0 | M81: 183.6979488 | N81: 183.6979488 | O81: 183.6979488 | P81: 183.6979488 | Q81: 183.6979488 | S81: 0.1 | T81: 0 | U81: 0.9 | W81: =IF(IFERROR(INDEX('Output| TRR Driver'!$L$8:$L$49,MATCH($F81,'Output| TRR Driver'!$B$8:$B$49,0)),"")="Network","Yes","No") -> No | X81: =IF(IFERROR(INDEX('Output| TRR Driver'!$L$8:$L$49,MATCH($F81,'Output| TRR Driver'!$B$8:$B$49,0)),"")="Corporate","Yes","No") -> No | AC81: 0 | AD81: 0 | AE81: 0 | AF81: 0 | AG81: 0 | AH81: 0 | AI81: 1 | AJ81: 0 | AK81: 0 | AL81: 0 | AN81: 0 | AO81: 0 | AP81: 0 | AQ81: 0 | AR81: 0 | AS81: 0 | AT81: 0 | AU81: 0 | AV81: 0 | AW81: 1 | AX81: 0 | AY81: 0 | AZ81: 0 | BA81: 0 | BB81: 0 | BC81: 0 | BD81: 0 | BE81: 0 | BF81: 0
B82: 73 | K82: 0 | L82: 0 | M82: 0 | N82: 0 | O82: 0 | P82: 0 | Q82: 0 | S82: 0 | T82: 0 | U82: 0 | W82: =IF(IFERROR(INDEX('Output| TRR Driver'!$L$8:$L$49,MATCH($F82,'Output| TRR Driver'!$B$8:$B$49,0)),"")="Network","Yes","No") -> No | X82: =IF(IFERROR(INDEX('Output| TRR Driver'!$L$8:$L$49,MATCH($F82,'Output| TRR Driver'!$B$8:$B$49,0)),"")="Corporate","Yes","No") -> No | AC82: 0 | AD82: 0 | AE82: 0 | AF82: 0 | AG82: 0 | AH82: 0 | AI82: 0 | AJ82: 0 | AK82: 0 | AL82: 0 | AN82: 0 | AO82: 0 | AP82: 0 | AQ82: 0 | AR82: 0 | AS82: 0 | AT82: 0 | AU82: 0 | AV82: 0 | AW82: 0 | AX82: 0 | AY82: 0 | AZ82: 0 | BA82: 0 | BB82: 0 | BC82: 0 | BD82: 0 | BE82: 0 | BF82: 0
B83: 74 | K83: 0 | L83: 0 | M83: 0 | N83: 0 | O83: 0 | P83: 0 | Q83: 0 | S83: 0 | T83: 0 | U83: 0 | W83: =IF(IFERROR(INDEX('Output| TRR Driver'!$L$8:$L$49,MATCH($F83,'Output| TRR Driver'!$B$8:$B$49,0)),"")="Network","Yes","No") -> No | X83: =IF(IFERROR(INDEX('Output| TRR Driver'!$L$8:$L$49,MATCH($F83,'Output| TRR Driver'!$B$8:$B$49,0)),"")="Corporate","Yes","No") -> No | AC83: 0 | AD83: 0 | AE83: 0 | AF83: 0 | AG83: 0 | AH83: 0 | AI83: 0 | AJ83: 0 | AK83: 0 | AL83: 0 | AN83: 0 | AO83: 0 | AP83: 0 | AQ83: 0 | AR83: 0 | AS83: 0 | AT83: 0 | AU83: 0 | AV83: 0 | AW83: 0 | AX83: 0 | AY83: 0 | AZ83: 0 | BA83: 0 | BB83: 0 | BC83: 0 | BD83: 0 | BE83: 0 | BF83: 0
B84: 75 | C84: Building Services | D84: Program | F84: Premises | H84: Property capex | I84: Non-network capex | K84: 0 | L84: 0 | M84: 490 | N84: 595 | O84: 325 | P84: 300 | Q84: 300 | S84: 0.1 | T84: 0.5 | U84: 0.4 | W84: =IF(IFERROR(INDEX('Output| TRR Driver'!$L$8:$L$49,MATCH($F84,'Output| TRR Driver'!$B$8:$B$49,0)),"")="Network","Yes","No") -> No | X84: =IF(IFERROR(INDEX('Output| TRR Driver'!$L$8:$L$49,MATCH($F84,'Output| TRR Driver'!$B$8:$B$49,0)),"")="Corporate","Yes","No") -> No | AC84: 0 | AD84: 0 | AE84: 0 | AF84: 0 | AG84: 0 | AH84: 1 | AI84: 0 | AJ84: 0 | AK84: 0 | AL84: 0 | AN84: 0 | AO84: 0 | AP84: 0 | AQ84: 0 | AR84: 0 | AS84: 0 | AT84: 0 | AU84: 0 | AV84: 0 | AW84: 0 | AX84: 0 | AY84: 0 | AZ84: 0 | BA84: 0 | BB84: 0 | BC84: 0 | BD84: 0 | BE84: 1 | BF84: 0
B85: 76 | C85: Fitout Capex | D85: Program | F85: Premises | H85: Property capex | I85: Non-network capex | K85: 0 | L85: 0 | M85: 4402.650555 | N85: 0 | O85: 0 | P85: 2150.929961 | Q85: 0 | S85: 0.1 | T85: 0.5 | U85: 0.4 | W85: =IF(IFERROR(INDEX('Output| TRR Driver'!$L$8:$L$49,MATCH($F85,'Output| TRR Driver'!$B$8:$B$49,0)),"")="Network","Yes","No") -> No | X85: =IF(IFERROR(INDEX('Output| TRR Driver'!$L$8:$L$49,MATCH($F85,'Output| TRR Driver'!$B$8:$B$49,0)),"")="Corporate","Yes","No") -> No | AC85: 0 | AD85: 0 | AE85: 0 | AF85: 0 | AG85: 0 | AH85: 1 | AI85: 0 | AJ85: 0 | AK85: 0 | AL85: 0 | AN85: 0 | AO85: 0 | AP85: 0 | AQ85: 0 | AR85: 0 | AS85: 0 | AT85: 0 | AU85: 0 | AV85: 0 | AW85: 0 | AX85: 0 | AY85: 0 | AZ85: 0 | BA85: 0 | BB85: 0 | BC85: 0 | BD85: 0 | BE85: 1 | BF85: 0
B86: 77 | C86: South Morang Training Centre | D86: Program | F86: Premises | H86: Property capex | I86: Non-network capex | K86: 0 | L86: 0 | M86: 6130 | N86: 6130 | O86: 0 | P86: 0 | Q86: 0 | S86: 0.1 | T86: 0.5 | U86: 0.4 | W86: =IF(IFERROR(INDEX('Output| TRR Driver'!$L$8:$L$49,MATCH($F86,'Output| TRR Driver'!$B$8:$B$49,0)),"")="Network","Yes","No") -> No | X86: =IF(IFERROR(INDEX('Output| TRR Driver'!$L$8:$L$49,MATCH($F86,'Output| TRR Driver'!$B$8:$B$49,0)),"")="Corporate","Yes","No") -> No | AC86: 0 | AD86: 0 | AE86: 0 | AF86: 0 | AG86: 0 | AH86: 1 | AI86: 0 | AJ86: 0 | AK86: 0 | AL86: 0 | AN86: 0 | AO86: 0 | AP86: 0 | AQ86: 0 | AR86: 0 | AS86: 0 | AT86: 0 | AU86: 0 | AV86: 0 | AW86: 0 | AX86: 0 | AY86: 0 | AZ86: 0 | BA86: 0 | BB86: 0 | BC86: 0 | BD86: 0 | BE86: 1 | BF86: 0
B87: 78 | C87: Head Office Leases | D87: Program | F87: Capitalised Leases | H87: Property capex | I87: Non-network capex | K87: 0 | L87: 0 | M87: 8596.733535 | N87: 0 | O87: 0 | P87: 10214.22969 | Q87: 0 | S87: 0 | T87: 0 | U87: 1 | W87: =IF(IFERROR(INDEX('Output| TRR Driver'!$L$8:$L$49,MATCH($F87,'Output| TRR Driver'!$B$8:$B$49,0)),"")="Network","Yes","No") -> No | X87: =IF(IFERROR(INDEX('Output| TRR Driver'!$L$8:$L$49,MATCH($F87,'Output| TRR Driver'!$B$8:$B$49,0)),"")="Corporate","Yes","No") -> No | AC87: 0 | AD87: 0 | AE87: 0 | AF87: 0 | AG87: 0 | AH87: 1 | AI87: 0 | AJ87: 0 | AK87: 0 | AL87: 0 | AN87: 0 | AO87: 0 | AP87: 0 | AQ87: 0 | AR87: 0 | AS87: 0 | AT87: 0 | AU87: 0 | AV87: 0 | AW87: 0 | AX87: 0 | AY87: 0 | AZ87: 0 | BA87: 0 | BB87: 0 | BC87: 0 | BD87: 1 | BE87: 0 | BF87: 0
B88: 79 | C88: Leases L&B - Short Lives | D88: Program | F88: Capitalised Leases | H88: Property capex | I88: Non-network capex | K88: 0 | L88: 0 | M88: 230.9953207 | N88: 109.9729235 | O88: 313.5744977 | P88: 141.5836179 | Q88: 245.9952517 | S88: 0 | T88: 0 | U88: 1 | W88: =IF(IFERROR(INDEX('Output| TRR Driver'!$L$8:$L$49,MATCH($F88,'Output| TRR Driver'!$B$8:$B$49,0)),"")="Network","Yes","No") -> No | X88: =IF(IFERROR(INDEX('Output| TRR Driver'!$L$8:$L$49,MATCH($F88,'Output| TRR Driver'!$B$8:$B$49,0)),"")="Corporate","Yes","No") -> No | AC88: 0 | AD88: 0 | AE88: 0 | AF88: 0 | AG88: 0 | AH88: 1 | AI88: 0 | AJ88: 0 | AK88: 0 | AL88: 0 | AN88: 0 | AO88: 0 | AP88: 0 | AQ88: 0 | AR88: 0 | AS88: 0 | AT88: 0 | AU88: 0 | AV88: 0 | AW88: 0 | AX88: 0 | AY88: 0 | AZ88: 0 | BA88: 0 | BB88: 0 | BC88: 1 | BD88: 0 | BE88: 0 | BF88: 0
B89: 80 | K89: 0 | L89: 0 | M89: 0 | N89: 0 | O89: 0 | P89: 0 | Q89: 0 | S89: 0 | T89: 0 | U89: 0 | W89: =IF(IFERROR(INDEX('Output| TRR Driver'!$L$8:$L$49,MATCH($F89,'Output| TRR Driver'!$B$8:$B$49,0)),"")="Network","Yes","No") -> No | X89: =IF(IFERROR(INDEX('Output| TRR Driver'!$L$8:$L$49,MATCH($F89,'Output| TRR Driver'!$B$8:$B$49,0)),"")="Corporate","Yes","No") -> No | AC89: 0 | AD89: 0 | AE89: 0 | AF89: 0 | AG89: 0 | AH89: 0 | AI89: 0 | AJ89: 0 | AK89: 0 | AL89: 0 | AN89: 0 | AO89: 0 | AP89: 0 | AQ89: 0 | AR89: 0 | AS89: 0 | AT89: 0 | AU89: 0 | AV89: 0 | AW89: 0 | AX89: 0 | AY89: 0 | AZ89: 0 | BA89: 0 | BB89: 0 | BC89: 0 | BD89: 0 | BE89: 0 | BF89: 0
B90: 81 | K90: 0 | L90: 0 | M90: 0 | N90: 0 | O90: 0 | P90: 0 | Q90: 0 | S90: 0 | T90: 0 | U90: 0 | W90: =IF(IFERROR(INDEX('Output| TRR Driver'!$L$8:$L$49,MATCH($F90,'Output| TRR Driver'!$B$8:$B$49,0)),"")="Network","Yes","No") -> No | X90: =IF(IFERROR(INDEX('Output| TRR Driver'!$L$8:$L$49,MATCH($F90,'Output| TRR Driver'!$B$8:$B$49,0)),"")="Corporate","Yes","No") -> No | AC90: 0 | AD90: 0 | AE90: 0 | AF90: 0 | AG90: 0 | AH90: 0 | AI90: 0 | AJ90: 0 | AK90: 0 | AL90: 0 | AN90: 0 | AO90: 0 | AP90: 0 | AQ90: 0 | AR90: 0 | AS90: 0 | AT90: 0 | AU90: 0 | AV90: 0 | AW90: 0 | AX90: 0 | AY90: 0 | AZ90: 0 | BA90: 0 | BB90: 0 | BC90: 0 | BD90: 0 | BE90: 0 | BF90: 0
B91: 82 | C91: Advanced Energy Management System - Connection asset demand management | D91: Advanced Energy Management System - Non-recurrent | F91: IT | H91: ICT capex | I91: Non-network capex | K91: 0 | L91: 0 | M91: 0 | N91: 0 | O91: 0 | P91: 0 | Q91: 10000 | S91: 0 | T91: 0.95 | U91: 0.05 | W91: =IF(IFERROR(INDEX('Output| TRR Driver'!$L$8:$L$49,MATCH($F91,'Output| TRR Driver'!$B$8:$B$49,0)),"")="Network","Yes","No") -> No | X91: =IF(IFERROR(INDEX('Output| TRR Driver'!$L$8:$L$49,MATCH($F91,'Output| TRR Driver'!$B$8:$B$49,0)),"")="Corporate","Yes","No") -> Yes | AC91: 0 | AD91: 0 | AE91: 0 | AF91: 0 | AG91: 1 | AH91: 0 | AI91: 0 | AJ91: 0 | AK91: 0 | AL91: 0 | AN91: 0 | AO91: 0 | AP91: 0 | AQ91: 0 | AR91: 0 | AS91: 0 | AT91: 0 | AU91: 0 | AV91: 0.1 | AW91: 0 | AX91: 0 | AY91: 0 | AZ91: 0 | BA91: 0 | BB91: 0 | BC91: 0 | BD91: 0 | BE91: 0 | BF91: 0.9
B92: 83 | C92: Advanced Energy Management System - Demand Management Phase 2 | D92: Advanced Energy Management System - Non-recurrent | F92: IT | H92: ICT capex | I92: Non-network capex | K92: 0 | L92: 0 | M92: 0 | N92: 0 | O92: 5000 | P92: 0 | Q92: 0 | S92: 0 | T92: 0.95 | U92: 0.05 | W92: =IF(IFERROR(INDEX('Output| TRR Driver'!$L$8:$L$49,MATCH($F92,'Output| TRR Driver'!$B$8:$B$49,0)),"")="Network","Yes","No") -> No | X92: =IF(IFERROR(INDEX('Output| TRR Driver'!$L$8:$L$49,MATCH($F92,'Output| TRR Driver'!$B$8:$B$49,0)),"")="Corporate","Yes","No") -> Yes | AC92: 0 | AD92: 0 | AE92: 0 | AF92: 0 | AG92: 1 | AH92: 0 | AI92: 0 | AJ92: 0 | AK92: 0 | AL92: 0 | AN92: 0 | AO92: 0 | AP92: 0 | AQ92: 0 | AR92: 0 | AS92: 0 | AT92: 0 | AU92: 0 | AV92: 0.1 | AW92: 0 | AX92: 0 | AY92: 0 | AZ92: 0 | BA92: 0 | BB92: 0 | BC92: 0 | BD92: 0 | BE92: 0 | BF92: 0.9
B93: 84 | C93: Advanced Energy Management System - Distributed Photovolataics (DPV) forecasts for modelling | D93: Advanced Energy Management System - Non-recurrent | F93: IT | H93: ICT capex | I93: Non-network capex | K93: 0 | L93: 0 | M93: 0 | N93: 0 | O93: 0 | P93: 0 | Q93: 0 | S93: 0 | T93: 0.75 | U93: 0.25 | W93: =IF(IFERROR(INDEX('Output| TRR Driver'!$L$8:$L$49,MATCH($F93,'Output| TRR Driver'!$B$8:$B$49,0)),"")="Network","Yes","No") -> No | X93: =IF(IFERROR(INDEX('Output| TRR Driver'!$L$8:$L$49,MATCH($F93,'Output| TRR Driver'!$B$8:$B$49,0)),"")="Corporate","Yes","No") -> Yes | AC93: 0 | AD93: 0 | AE93: 0 | AF93: 0 | AG93: 1 | AH93: 0 | AI93: 0 | AJ93: 0 | AK93: 0 | AL93: 0 | AN93: 0 | AO93: 0 | AP93: 0 | AQ93: 0 | AR93: 0 | AS93: 0 | AT93: 0 | AU93: 0 | AV93: 0.1 | AW93: 0 | AX93: 0 | AY93: 0 | AZ93: 0 | BA93: 0 | BB93: 0 | BC93: 0 | BD93: 0 | BE93: 0 | BF93: 0.9
B94: 85 | C94: Advanced Energy Management System - Dynamic control room displays | D94: Advanced Energy Management System - Non-recurrent | F94: IT | H94: ICT capex | I94: Non-network capex | K94: 0 | L94: 0 | M94: 0 | N94: 0 | O94: 0 | P94: 0 | Q94: 1500 | S94: 0 | T94: 0.95 | U94: 0.05 | W94: =IF(IFERROR(INDEX('Output| TRR Driver'!$L$8:$L$49,MATCH($F94,'Output| TRR Driver'!$B$8:$B$49,0)),"")="Network","Yes","No") -> No | X94: =IF(IFERROR(INDEX('Output| TRR Driver'!$L$8:$L$49,MATCH($F94,'Output| TRR Driver'!$B$8:$B$49,0)),"")="Corporate","Yes","No") -> Yes | AC94: 0 | AD94: 0 | AE94: 0 | AF94: 0 | AG94: 1 | AH94: 0 | AI94: 0 | AJ94: 0 | AK94: 0 | AL94: 0 | AN94: 0 | AO94: 0 | AP94: 0 | AQ94: 0 | AR94: 0 | AS94: 0 | AT94: 0 | AU94: 0 | AV94: 0.1 | AW94: 0 | AX94: 0 | AY94: 0 | AZ94: 0 | BA94: 0 | BB94: 0 | BC94: 0 | BD94: 0 | BE94: 0 | BF94: 0.9
B95: 86 | C95: Advanced Energy Management System - Dynamic Ratings (SOCS & OSSCA) upgrade | D95: Advanced Energy Management System - Non-recurrent | F95: IT | H95: ICT capex | I95: Non-network capex | K95: 0 | L95: 0 | M95: 0 | N95: 0 | O95: 0 | P95: 3000 | Q95: 0 | S95: 0 | T95: 0.7 | U95: 0.3 | W95: =IF(IFERROR(INDEX('Output| TRR Driver'!$L$8:$L$49,MATCH($F95,'Output| TRR Driver'!$B$8:$B$49,0)),"")="Network","Yes","No") -> No | X95: =IF(IFERROR(INDEX('Output| TRR Driver'!$L$8:$L$49,MATCH($F95,'Output| TRR Driver'!$B$8:$B$49,0)),"")="Corporate","Yes","No") -> Yes | AC95: 0 | AD95: 0 | AE95: 0 | AF95: 0 | AG95: 1 | AH95: 0 | AI95: 0 | AJ95: 0 | AK95: 0 | AL95: 0 | AN95: 0 | AO95: 0 | AP95: 0 | AQ95: 0 | AR95: 0 | AS95: 0 | AT95: 0 | AU95: 0 | AV95: 0.2 | AW95: 0 | AX95: 0 | AY95: 0 | AZ95: 0 | BA95: 0 | BB95: 0 | BC95: 0 | BD95: 0 | BE95: 0 | BF95: 0.8
B96: 87 | C96: Advanced Energy Management System - Geospatial threat monitoring and forecast | D96: Advanced Energy Management System - Non-recurrent | F96: IT | H96: ICT capex | I96: Non-network capex | K96: 0 | L96: 0 | M96: 0 | N96: 0 | O96: 0 | P96: 0 | Q96: 0 | S96: 0 | T96: 0.75 | U96: 0.25 | W96: =IF(IFERROR(INDEX('Output| TRR Driver'!$L$8:$L$49,MATCH($F96,'Output| TRR Driver'!$B$8:$B$49,0)),"")="Network","Yes","No") -> No | X96: =IF(IFERROR(INDEX('Output| TRR Driver'!$L$8:$L$49,MATCH($F96,'Output| TRR Driver'!$B$8:$B$49,0)),"")="Corporate","Yes","No") -> Yes | AC96: 0 | AD96: 0 | AE96: 0 | AF96: 0 | AG96: 1 | AH96: 0 | AI96: 0 | AJ96: 0 | AK96: 0 | AL96: 0 | AN96: 0 | AO96: 0 | AP96: 0 | AQ96: 0 | AR96: 0 | AS96: 0 | AT96: 0 | AU96: 0 | AV96: 0.1 | AW96: 0 | AX96: 0 | AY96: 0 | AZ96: 0 | BA96: 0 | BB96: 0 | BC96: 0 | BD96: 0 | BE96: 0 | BF96: 0.9
B97: 88 | C97: Advanced Energy Management System - HMI upgrades for TOC | D97: Advanced Energy Management System - Non-recurrent | F97: IT | H97: ICT capex | I97: Non-network capex | K97: 0 | L97: 0 | M97: 5000 | N97: 0 | O97: 0 | P97: 0 | Q97: 0 | S97: 0 | T97: 1 | U97: 0 | W97: =IF(IFERROR(INDEX('Output| TRR Driver'!$L$8:$L$49,MATCH($F97,'Output| TRR Driver'!$B$8:$B$49,0)),"")="Network","Yes","No") -> No | X97: =IF(IFERROR(INDEX('Output| TRR Driver'!$L$8:$L$49,MATCH($F97,'Output| TRR Driver'!$B$8:$B$49,0)),"")="Corporate","Yes","No") -> Yes | AC97: 0 | AD97: 0 | AE97: 0 | AF97: 0 | AG97: 1 | AH97: 0 | AI97: 0 | AJ97: 0 | AK97: 0 | AL97: 0 | AN97: 0 | AO97: 0 | AP97: 0 | AQ97: 0 | AR97: 0 | AS97: 0 | AT97: 0 | AU97: 0 | AV97: 0 | AW97: 0 | AX97: 0 | AY97: 0 | AZ97: 0 | BA97: 0 | BB97: 0 | BC97: 0 | BD97: 0 | BE97: 0 | BF97: 1
B98: 89 | C98: Advanced Energy Management System - Load forecasting by feeder | D98: Advanced Energy Management System - Non-recurrent | F98: IT | H98: ICT capex | I98: Non-network capex | K98: 0 | L98: 0 | M98: 0 | N98: 0 | O98: 0 | P98: 0 | Q98: 0 | S98: 0 | T98: 0.7 | U98: 0.3 | W98: =IF(IFERROR(INDEX('Output| TRR Driver'!$L$8:$L$49,MATCH($F98,'Output| TRR Driver'!$B$8:$B$49,0)),"")="Network","Yes","No") -> No | X98: =IF(IFERROR(INDEX('Output| TRR Driver'!$L$8:$L$49,MATCH($F98,'Output| TRR Driver'!$B$8:$B$49,0)),"")="Corporate","Yes","No") -> Yes | AC98: 0 | AD98: 0 | AE98: 0 | AF98: 0 | AG98: 1 | AH98: 0 | AI98: 0 | AJ98: 0 | AK98: 0 | AL98: 0 | AN98: 0 | AO98: 0 | AP98: 0 | AQ98: 0 | AR98: 0 | AS98: 0 | AT98: 0 | AU98: 0 | AV98: 0.2 | AW98: 0 | AX98: 0 | AY98: 0 | AZ98: 0 | BA98: 0 | BB98: 0 | BC98: 0 | BD98: 0 | BE98: 0 | BF98: 0.8
B99: 90 | C99: Advanced Energy Management System - Network operations scenario simulator uplift | D99: Advanced Energy Management System - Non-recurrent | F99: IT | H99: ICT capex | I99: Non-network capex | K99: 0 | L99: 0 | M99: 0 | N99: 0 | O99: 2000 | P99: 0 | Q99: 0 | S99: 0 | T99: 0.75 | U99: 0.25 | W99: =IF(IFERROR(INDEX('Output| TRR Driver'!$L$8:$L$49,MATCH($F99,'Output| TRR Driver'!$B$8:$B$49,0)),"")="Network","Yes","No") -> No | X99: =IF(IFERROR(INDEX('Output| TRR Driver'!$L$8:$L$49,MATCH($F99,'Output| TRR Driver'!$B$8:$B$49,0)),"")="Corporate","Yes","No") -> Yes | AC99: 0 | AD99: 0 | AE99: 0 | AF99: 0 | AG99: 1 | AH99: 0 | AI99: 0 | AJ99: 0 | AK99: 0 | AL99: 0 | AN99: 0 | AO99: 0 | AP99: 0 | AQ99: 0 | AR99: 0 | AS99: 0 | AT99: 0 | AU99: 0 | AV99: 0.1 | AW99: 0 | AX99: 0 | AY99: 0 | AZ99: 0 | BA99: 0 | BB99: 0 | BC99: 0 | BD99: 0 | BE99: 0 | BF99: 0.9
B100: 91 | C100: Advanced Energy Management System - Passive knowledge management | D100: Advanced Energy Management System - Non-recurrent | F100: IT | H100: ICT capex | I100: Non-network capex | K100: 0 | L100: 0 | M100: 0 | N100: 0 | O100: 0 | P100: 0 | Q100: 0 | S100: 0 | T100: 0.75 | U100: 0.25 | W100: =IF(IFERROR(INDEX('Output| TRR Driver'!$L$8:$L$49,MATCH($F100,'Output| TRR Driver'!$B$8:$B$49,0)),"")="Network","Yes","No") -> No | X100: =IF(IFERROR(INDEX('Output| TRR Driver'!$L$8:$L$49,MATCH($F100,'Output| TRR Driver'!$B$8:$B$49,0)),"")="Corporate","Yes","No") -> Yes | AC100: 0 | AD100: 0 | AE100: 0 | AF100: 0 | AG100: 1 | AH100: 0 | AI100: 0 | AJ100: 0 | AK100: 0 | AL100: 0 | AN100: 0 | AO100: 0 | AP100: 0 | AQ100: 0 | AR100: 0 | AS100: 0 | AT100: 0 | AU100: 0 | AV100: 0.1 | AW100: 0 | AX100: 0 | AY100: 0 | AZ100: 0 | BA100: 0 | BB100: 0 | BC100: 0 | BD100: 0 | BE100: 0 | BF100: 0.9
B101: 92 | C101: Advanced Energy Management System - Ratings management Phase 1 | D101: Advanced Energy Management System - Non-recurrent | F101: IT | H101: ICT capex | I101: Non-network capex | K101: 0 | L101: 0 | M101: 500 | N101: 0 | O101: 0 | P101: 0 | Q101: 0 | S101: 0 | T101: 0.7 | U101: 0.3 | W101: =IF(IFERROR(INDEX('Output| TRR Driver'!$L$8:$L$49,MATCH($F101,'Output| TRR Driver'!$B$8:$B$49,0)),"")="Network","Yes","No") -> No | X101: =IF(IFERROR(INDEX('Output| TRR Driver'!$L$8:$L$49,MATCH($F101,'Output| TRR Driver'!$B$8:$B$49,0)),"")="Corporate","Yes","No") -> Yes | AC101: 0 | AD101: 0 | AE101: 0 | AF101: 0 | AG101: 1 | AH101: 0 | AI101: 0 | AJ101: 0 | AK101: 0 | AL101: 0 | AN101: 0 | AO101: 0 | AP101: 0 | AQ101: 0 | AR101: 0 | AS101: 0 | AT101: 0 | AU101: 0 | AV101: 0.2 | AW101: 0 | AX101: 0 | AY101: 0 | AZ101: 0 | BA101: 0 | BB101: 0 | BC101: 0 | BD101: 0 | BE101: 0 | BF101: 0.8
B102: 93 | C102: Advanced Energy Management System - Ratings management Phase 2 | D102: Advanced Energy Management System - Non-recurrent | F102: IT | H102: ICT capex | I102: Non-network capex | K102: 0 | L102: 0 | M102: 0 | N102: 0 | O102: 2750 | P102: 0 | Q102: 0 | S102: 0 | T102: 0.7 | U102: 0.3 | W102: =IF(IFERROR(INDEX('Output| TRR Driver'!$L$8:$L$49,MATCH($F102,'Output| TRR Driver'!$B$8:$B$49,0)),"")="Network","Yes","No") -> No | X102: =IF(IFERROR(INDEX('Output| TRR Driver'!$L$8:$L$49,MATCH($F102,'Output| TRR Driver'!$B$8:$B$49,0)),"")="Corporate","Yes","No") -> Yes | AC102: 0 | AD102: 0 | AE102: 0 | AF102: 0 | AG102: 1 | AH102: 0 | AI102: 0 | AJ102: 0 | AK102: 0 | AL102: 0 | AN102: 0 | AO102: 0 | AP102: 0 | AQ102: 0 | AR102: 0 | AS102: 0 | AT102: 0 | AU102: 0 | AV102: 0.2 | AW102: 0 | AX102: 0 | AY102: 0 | AZ102: 0 | BA102: 0 | BB102: 0 | BC102: 0 | BD102: 0 | BE102: 0 | BF102: 0.8
B103: 94 | C103: Advanced Energy Management System - Security cameras for network purposes | D103: Advanced Energy Management System - Non-recurrent | F103: IT | H103: ICT capex | I103: Non-network capex | K103: 0 | L103: 0 | M103: 0 | N103: 0 | O103: 0 | P103: 0 | Q103: 0 | S103: 0 | T103: 0.75 | U103: 0.25 | W103: =IF(IFERROR(INDEX('Output| TRR Driver'!$L$8:$L$49,MATCH($F103,'Output| TRR Driver'!$B$8:$B$49,0)),"")="Network","Yes","No") -> No | X103: =IF(IFERROR(INDEX('Output| TRR Driver'!$L$8:$L$49,MATCH($F103,'Output| TRR Driver'!$B$8:$B$49,0)),"")="Corporate","Yes","No") -> Yes | AC103: 0 | AD103: 0 | AE103: 0 | AF103: 0 | AG103: 1 | AH103: 0 | AI103: 0 | AJ103: 0 | AK103: 0 | AL103: 0 | AN103: 0 | AO103: 0 | AP103: 0 | AQ103: 0 | AR103: 0 | AS103: 0 | AT103: 0 | AU103: 0 | AV103: 0.1 | AW103: 0 | AX103: 0 | AY103: 0 | AZ103: 0 | BA103: 0 | BB103: 0 | BC103: 0 | BD103: 0 | BE103: 0 | BF103: 0.9
B104: 95 | C104: Advanced Energy Management System - System restart uplift | D104: Advanced Energy Management System - Non-recurrent | F104: IT | H104: ICT capex | I104: Non-network capex | K104: 0 | L104: 0 | M104: 0 | N104: 0 | O104: 0 | P104: 3000 | Q104: 0 | S104: 0 | T104: 0.95 | U104: 0.05 | W104: =IF(IFERROR(INDEX('Output| TRR Driver'!$L$8:$L$49,MATCH($F104,'Output| TRR Driver'!$B$8:$B$49,0)),"")="Network","Yes","No") -> No | X104: =IF(IFERROR(INDEX('Output| TRR Driver'!$L$8:$L$49,MATCH($F104,'Output| TRR Driver'!$B$8:$B$49,0)),"")="Corporate","Yes","No") -> Yes | AC104: 0 | AD104: 0 | AE104: 0 | AF104: 0 | AG104: 1 | AH104: 0 | AI104: 0 | AJ104: 0 | AK104: 0 | AL104: 0 | AN104: 0 | AO104: 0 | AP104: 0 | AQ104: 0 | AR104: 0 | AS104: 0 | AT104: 0 | AU104: 0 | AV104: 0.1 | AW104: 0 | AX104: 0 | AY104: 0 | AZ104: 0 | BA104: 0 | BB104: 0 | BC104: 0 | BD104: 0 | BE104: 0 | BF104: 0.9
B105: 96 | C105: Advanced Energy Management System - TASM opex (TBC opex baseline year) | D105: Advanced Energy Management System - Opex | F105: IT | H105: ICT capex | I105: Non-network capex | K105: 0 | L105: 0 | M105: 0 | N105: 0 | O105: 0 | P105: 0 | Q105: 0 | S105: 0 | T105: 0 | U105: 0 | W105: =IF(IFERROR(INDEX('Output| TRR Driver'!$L$8:$L$49,MATCH($F105,'Output| TRR Driver'!$B$8:$B$49,0)),"")="Network","Yes","No") -> No | X105: =IF(IFERROR(INDEX('Output| TRR Driver'!$L$8:$L$49,MATCH($F105,'Output| TRR Driver'!$B$8:$B$49,0)),"")="Corporate","Yes","No") -> Yes | AC105: 0 | AD105: 0 | AE105: 0 | AF105: 0 | AG105: 1 | AH105: 0 | AI105: 0 | AJ105: 0 | AK105: 0 | AL105: 0 | AN105: 0 | AO105: 0 | AP105: 0 | AQ105: 0 | AR105: 0 | AS105: 0 | AT105: 0 | AU105: 0 | AV105: 0 | AW105: 0 | AX105: 0 | AY105: 0 | AZ105: 0 | BA105: 0 | BB105: 0 | BC105: 0 | BD105: 0 | BE105: 0 | BF105: 0
B106: 97 | C106: Advanced Energy Management System - TASM Phase 2: SAP automation, automated conditions & constraints analysis | D106: Advanced Energy Management System - Non-recurrent | F106: IT | H106: ICT capex | I106: Non-network capex | K106: 0 | L106: 0 | M106: 0 | N106: 5000 | O106: 0 | P106: 0 | Q106: 0 | S106: 0 | T106: 0.95 | U106: 0.05 | V106: =IF(SUM(S106:U106,K106:Q106)=0,"",IF(SUM(S106:U106)=1,"",1)) ->  | W106: =IF(IFERROR(INDEX('Output| TRR Driver'!$L$8:$L$49,MATCH($F106,'Output| TRR Driver'!$B$8:$B$49,0)),"")="Network","Yes","No") -> No | X106: =IF(IFERROR(INDEX('Output| TRR Driver'!$L$8:$L$49,MATCH($F106,'Output| TRR Driver'!$B$8:$B$49,0)),"")="Corporate","Yes","No") -> Yes | AC106: 0 | AD106: 0 | AE106: 0 | AF106: 0 | AG106: 1 | AH106: 0 | AI106: 0 | AJ106: 0 | AK106: 0 | AL106: 0 | AN106: 0 | AO106: 0 | AP106: 0 | AQ106: 0 | AR106: 0 | AS106: 0 | AT106: 0 | AU106: 0 | AV106: 0.1 | AW106: 0 | AX106: 0 | AY106: 0 | AZ106: 0 | BA106: 0 | BB106: 0 | BC106: 0 | BD106: 0 | BE106: 0 | BF106: 0.9
B107: 98 | C107: Advanced Energy Management System - TASM Phase 3: Integrating new adjacent capabilities | D107: Advanced Energy Management System - Non-recurrent | F107: IT | H107: ICT capex | I107: Non-network capex | K107: 0 | L107: 0 | M107: 0 | N107: 0 | O107: 0 | P107: 0 | Q107: 0 | S107: 0 | T107: 0.95 | U107: 0.05 | W107: =IF(IFERROR(INDEX('Output| TRR Driver'!$L$8:$L$49,MATCH($F107,'Output| TRR Driver'!$B$8:$B$49,0)),"")="Network","Yes","No") -> No | X107: =IF(IFERROR(INDEX('Output| TRR Driver'!$L$8:$L$49,MATCH($F107,'Output| TRR Driver'!$B$8:$B$49,0)),"")="Corporate","Yes","No") -> Yes | AC107: 0 | AD107: 0 | AE107: 0 | AF107: 0 | AG107: 1 | AH107: 0 | AI107: 0 | AJ107: 0 | AK107: 0 | AL107: 0 | AN107: 0 | AO107: 0 | AP107: 0 | AQ107: 0 | AR107: 0 | AS107: 0 | AT107: 0 | AU107: 0 | AV107: 0.1 | AW107: 0 | AX107: 0 | AY107: 0 | AZ107: 0 | BA107: 0 | BB107: 0 | BC107: 0 | BD107: 0 | BE107: 0 | BF107: 0.9
B108: 99 | C108: Advanced Energy Management System - Tx alarm management Phase 2 | D108: Advanced Energy Management System - Non-recurrent | F108: IT | H108: ICT capex | I108: Non-network capex | K108: 0 | L108: 0 | M108: 0 | N108: 0 | O108: 0 | P108: 3000 | Q108: 0 | S108: 0 | T108: 0.95 | U108: 0.05 | W108: =IF(IFERROR(INDEX('Output| TRR Driver'!$L$8:$L$49,MATCH($F108,'Output| TRR Driver'!$B$8:$B$49,0)),"")="Network","Yes","No") -> No | X108: =IF(IFERROR(INDEX('Output| TRR Driver'!$L$8:$L$49,MATCH($F108,'Output| TRR Driver'!$B$8:$B$49,0)),"")="Corporate","Yes","No") -> Yes | AC108: 0 | AD108: 0 | AE108: 0 | AF108: 0 | AG108: 1 | AH108: 0 | AI108: 0 | AJ108: 0 | AK108: 0 | AL108: 0 | AN108: 0 | AO108: 0 | AP108: 0 | AQ108: 0 | AR108: 0 | AS108: 0 | AT108: 0 | AU108: 0 | AV108: 0.1 | AW108: 0 | AX108: 0 | AY108: 0 | AZ108: 0 | BA108: 0 | BB108: 0 | BC108: 0 | BD108: 0 | BE108: 0 | BF108: 0.9
B109: 100 | C109: Advanced Energy Management System - VicTNSP capability | D109: Advanced Energy Management System - Non-recurrent | F109: IT | H109: ICT capex | I109: Non-network capex | K109: 0 | L109: 0 | M109: 2520 | N109: 0 | O109: 0 | P109: 0 | Q109: 0 | S109: 0 | T109: 0.7 | U109: 0.3 | W109: =IF(IFERROR(INDEX('Output| TRR Driver'!$L$8:$L$49,MATCH($F109,'Output| TRR Driver'!$B$8:$B$49,0)),"")="Network","Yes","No") -> No | X109: =IF(IFERROR(INDEX('Output| TRR Driver'!$L$8:$L$49,MATCH($F109,'Output| TRR Driver'!$B$8:$B$49,0)),"")="Corporate","Yes","No") -> Yes | AC109: 0 | AD109: 0 | AE109: 0 | AF109: 0 | AG109: 1 | AH109: 0 | AI109: 0 | AJ109: 0 | AK109: 0 | AL109: 0 | AN109: 0 | AO109: 0 | AP109: 0 | AQ109: 0 | AR109: 0 | AS109: 0 | AT109: 0 | AU109: 0 | AV109: 0.2 | AW109: 0 | AX109: 0 | AY109: 0 | AZ109: 0 | BA109: 0 | BB109: 0 | BC109: 0 | BD109: 0 | BE109: 0 | BF109: 0.8
B110: 101 | C110: Advanced Energy Management System - Wide Area Monitoring System (Oscillation detection & Monitoring) | D110: Advanced Energy Management System - Non-recurrent | F110: IT | H110: ICT capex | I110: Non-network capex | K110: 0 | L110: 0 | M110: 0 | N110: 0 | O110: 0 | P110: 5000 | Q110: 5000 | S110: 0 | T110: 0.95 | U110: 0.05 | W110: =IF(IFERROR(INDEX('Output| TRR Driver'!$L$8:$L$49,MATCH($F110,'Output| TRR Driver'!$B$8:$B$49,0)),"")="Network","Yes","No") -> No | X110: =IF(IFERROR(INDEX('Output| TRR Driver'!$L$8:$L$49,MATCH($F110,'Output| TRR Driver'!$B$8:$B$49,0)),"")="Corporate","Yes","No") -> Yes | AC110: 0 | AD110: 0 | AE110: 0 | AF110: 0 | AG110: 1 | AH110: 0 | AI110: 0 | AJ110: 0 | AK110: 0 | AL110: 0 | AN110: 0 | AO110: 0 | AP110: 0 | AQ110: 0 | AR110: 0 | AS110: 0 | AT110: 0 | AU110: 0 | AV110: 0.1 | AW110: 0 | AX110: 0 | AY110: 0 | AZ110: 0 | BA110: 0 | BB110: 0 | BC110: 0 | BD110: 0 | BE110: 0 | BF110: 0.9
B111: 102 | C111: Advanced Energy Management System - PMU data for incident response and investigation | D111: Advanced Energy Management System - Non-recurrent | F111: IT | H111: ICT capex | I111: Non-network capex | K111: 0 | L111: 0 | M111: 0 | N111: 0 | O111: 0 | P111: 0 | Q111: 0 | S111: 0 | T111: 0.95 | U111: 0.05 | W111: =IF(IFERROR(INDEX('Output| TRR Driver'!$L$8:$L$49,MATCH($F111,'Output| TRR Driver'!$B$8:$B$49,0)),"")="Network","Yes","No") -> No | X111: =IF(IFERROR(INDEX('Output| TRR Driver'!$L$8:$L$49,MATCH($F111,'Output| TRR Driver'!$B$8:$B$49,0)),"")="Corporate","Yes","No") -> Yes | AC111: 0 | AD111: 0 | AE111: 0 | AF111: 0 | AG111: 1 | AH111: 0 | AI111: 0 | AJ111: 0 | AK111: 0 | AL111: 0 | AN111: 0 | AO111: 0 | AP111: 0 | AQ111: 0 | AR111: 0 | AS111: 0 | AT111: 0 | AU111: 0 | AV111: 0.1 | AW111: 0 | AX111: 0 | AY111: 0 | AZ111: 0 | BA111: 0 | BB111: 0 | BC111: 0 | BD111: 0 | BE111: 0 | BF111: 0.9
B112: 103 | C112: Advanced Energy Management System - UAV/Drone Inspection | D112: Advanced Energy Management System - Non-recurrent | F112: IT | H112: ICT capex | I112: Non-network capex | K112: 0 | L112: 0 | M112: 0 | N112: 0 | O112: 0 | P112: 0 | Q112: 0 | S112: 0 | T112: 0.95 | U112: 0.05 | W112: =IF(IFERROR(INDEX('Output| TRR Driver'!$L$8:$L$49,MATCH($F112,'Output| TRR Driver'!$B$8:$B$49,0)),"")="Network","Yes","No") -> No | X112: =IF(IFERROR(INDEX('Output| TRR Driver'!$L$8:$L$49,MATCH($F112,'Output| TRR Driver'!$B$8:$B$49,0)),"")="Corporate","Yes","No") -> Yes | AC112: 0 | AD112: 0 | AE112: 0 | AF112: 0 | AG112: 1 | AH112: 0 | AI112: 0 | AJ112: 0 | AK112: 0 | AL112: 0 | AN112: 0 | AO112: 0 | AP112: 0 | AQ112: 0 | AR112: 0 | AS112: 0 | AT112: 0 | AU112: 0 | AV112: 0.1 | AW112: 0 | AX112: 0 | AY112: 0 | AZ112: 0 | BA112: 0 | BB112: 0 | BC112: 0 | BD112: 0 | BE112: 0 | BF112: 0.9
B113: 104 | C113: Asset Management & Field Enablement - Centralised data storage (e.g. videos, photos, others) | D113: Asset Management & Field Enablement - Non-recurrent | F113: IT | H113: ICT capex | I113: Non-network capex | K113: 0 | L113: 0 | M113: 1625 | N113: 1625 | O113: 0 | P113: 0 | Q113: 0 | S113: 0 | T113: 0.95 | U113: 0.05 | W113: =IF(IFERROR(INDEX('Output| TRR Driver'!$L$8:$L$49,MATCH($F113,'Output| TRR Driver'!$B$8:$B$49,0)),"")="Network","Yes","No") -> No | X113: =IF(IFERROR(INDEX('Output| TRR Driver'!$L$8:$L$49,MATCH($F113,'Output| TRR Driver'!$B$8:$B$49,0)),"")="Corporate","Yes","No") -> Yes | AC113: 0 | AD113: 0 | AE113: 0 | AF113: 0 | AG113: 1 | AH113: 0 | AI113: 0 | AJ113: 0 | AK113: 0 | AL113: 0 | AN113: 0 | AO113: 0 | AP113: 0 | AQ113: 0 | AR113: 0 | AS113: 0 | AT113: 0 | AU113: 0 | AV113: 0.1 | AW113: 0 | AX113: 0 | AY113: 0 | AZ113: 0 | BA113: 0 | BB113: 0 | BC113: 0 | BD113: 0 | BE113: 0 | BF113: 0.9
B114: 105 | C114: Asset Management & Field Enablement - Knowledge management for various documents | D114: Asset Management & Field Enablement - Non-recurrent | F114: IT | H114: ICT capex | I114: Non-network capex | K114: 0 | L114: 0 | M114: 1125 | N114: 1125 | O114: 0 | P114: 0 | Q114: 0 | S114: 0 | T114: 0.95 | U114: 0.05 | W114: =IF(IFERROR(INDEX('Output| TRR Driver'!$L$8:$L$49,MATCH($F114,'Output| TRR Driver'!$B$8:$B$49,0)),"")="Network","Yes","No") -> No | X114: =IF(IFERROR(INDEX('Output| TRR Driver'!$L$8:$L$49,MATCH($F114,'Output| TRR Driver'!$B$8:$B$49,0)),"")="Corporate","Yes","No") -> Yes | AC114: 0 | AD114: 0 | AE114: 0 | AF114: 0 | AG114: 1 | AH114: 0 | AI114: 0 | AJ114: 0 | AK114: 0 | AL114: 0 | AN114: 0 | AO114: 0 | AP114: 0 | AQ114: 0 | AR114: 0 | AS114: 0 | AT114: 0 | AU114: 0 | AV114: 0.1 | AW114: 0 | AX114: 0 | AY114: 0 | AZ114: 0 | BA114: 0 | BB114: 0 | BC114: 0 | BD114: 0 | BE114: 0 | BF114: 0.9
B115: 106 | C115: Asset Management & Field Enablement - Asset condition desktop monitoring & more frequent ARM for network capex planning | D115: Asset Management & Field Enablement - Non-recurrent | F115: IT | H115: ICT capex | I115: Non-network capex | K115: 0 | L115: 0 | M115: 0 | N115: 2565 | O115: 2565 | P115: 0 | Q115: 0 | S115: 0 | T115: 0.75 | U115: 0.25 | W115: =IF(IFERROR(INDEX('Output| TRR Driver'!$L$8:$L$49,MATCH($F115,'Output| TRR Driver'!$B$8:$B$49,0)),"")="Network","Yes","No") -> No | X115: =IF(IFERROR(INDEX('Output| TRR Driver'!$L$8:$L$49,MATCH($F115,'Output| TRR Driver'!$B$8:$B$49,0)),"")="Corporate","Yes","No") -> Yes | AC115: 0 | AD115: 0 | AE115: 0 | AF115: 0 | AG115: 1 | AH115: 0 | AI115: 0 | AJ115: 0 | AK115: 0 | AL115: 0 | AN115: 0 | AO115: 0 | AP115: 0 | AQ115: 0 | AR115: 0 | AS115: 0 | AT115: 0 | AU115: 0 | AV115: 0.1 | AW115: 0 | AX115: 0 | AY115: 0 | AZ115: 0 | BA115: 0 | BB115: 0 | BC115: 0 | BD115: 0 | BE115: 0 | BF115: 0.9
B116: 107 | C116: Asset Management & Field Enablement - Asset Performance Management (APM) System for maintenance opex optimisation | D116: Asset Management & Field Enablement - Non-recurrent | F116: IT | H116: ICT capex | I116: Non-network capex | K116: 0 | L116: 0 | M116: 0 | N116: 0 | O116: 0 | P116: 3825 | Q116: 3825 | S116: 0 | T116: 0.75 | U116: 0.25 | W116: =IF(IFERROR(INDEX('Output| TRR Driver'!$L$8:$L$49,MATCH($F116,'Output| TRR Driver'!$B$8:$B$49,0)),"")="Network","Yes","No") -> No | X116: =IF(IFERROR(INDEX('Output| TRR Driver'!$L$8:$L$49,MATCH($F116,'Output| TRR Driver'!$B$8:$B$49,0)),"")="Corporate","Yes","No") -> Yes | AC116: 0 | AD116: 0 | AE116: 0 | AF116: 0 | AG116: 1 | AH116: 0 | AI116: 0 | AJ116: 0 | AK116: 0 | AL116: 0 | AN116: 0 | AO116: 0 | AP116: 0 | AQ116: 0 | AR116: 0 | AS116: 0 | AT116: 0 | AU116: 0 | AV116: 0.1 | AW116: 0 | AX116: 0 | AY116: 0 | AZ116: 0 | BA116: 0 | BB116: 0 | BC116: 0 | BD116: 0 | BE116: 0 | BF116: 0.9
B117: 108 | C117: Asset Management & Field Enablement - Asset performance analytics using SCADA data | D117: Asset Management & Field Enablement - Non-recurrent | F117: IT | H117: ICT capex | I117: Non-network capex | K117: 0 | L117: 0 | M117: 1000 | N117: 0 | O117: 0 | P117: 0 | Q117: 0 | S117: 0 | T117: 0.95 | U117: 0.05 | W117: =IF(IFERROR(INDEX('Output| TRR Driver'!$L$8:$L$49,MATCH($F117,'Output| TRR Driver'!$B$8:$B$49,0)),"")="Network","Yes","No") -> No | X117: =IF(IFERROR(INDEX('Output| TRR Driver'!$L$8:$L$49,MATCH($F117,'Output| TRR Driver'!$B$8:$B$49,0)),"")="Corporate","Yes","No") -> Yes | AC117: 0 | AD117: 0 | AE117: 0 | AF117: 0 | AG117: 1 | AH117: 0 | AI117: 0 | AJ117: 0 | AK117: 0 | AL117: 0 | AN117: 0 | AO117: 0 | AP117: 0 | AQ117: 0 | AR117: 0 | AS117: 0 | AT117: 0 | AU117: 0 | AV117: 0.1 | AW117: 0 | AX117: 0 | AY117: 0 | AZ117: 0 | BA117: 0 | BB117: 0 | BC117: 0 | BD117: 0 | BE117: 0 | BF117: 0.9
B118: 109 | C118: Asset Management & Field Enablement - Automating transformer rating calculations​ | D118: Asset Management & Field Enablement - Non-recurrent | F118: IT | H118: ICT capex | I118: Non-network capex | K118: 0 | L118: 0 | M118: 0 | N118: 1000 | O118: 0 | P118: 0 | Q118: 0 | S118: 0 | T118: 0.95 | U118: 0.05 | W118: =IF(IFERROR(INDEX('Output| TRR Driver'!$L$8:$L$49,MATCH($F118,'Output| TRR Driver'!$B$8:$B$49,0)),"")="Network","Yes","No") -> No | X118: =IF(IFERROR(INDEX('Output| TRR Driver'!$L$8:$L$49,MATCH($F118,'Output| TRR Driver'!$B$8:$B$49,0)),"")="Corporate","Yes","No") -> Yes | AC118: 0 | AD118: 0 | AE118: 0 | AF118: 0 | AG118: 1 | AH118: 0 | AI118: 0 | AJ118: 0 | AK118: 0 | AL118: 0 | AN118: 0 | AO118: 0 | AP118: 0 | AQ118: 0 | AR118: 0 | AS118: 0 | AT118: 0 | AU118: 0 | AV118: 0.1 | AW118: 0 | AX118: 0 | AY118: 0 | AZ118: 0 | BA118: 0 | BB118: 0 | BC118: 0 | BD118: 0 | BE118: 0 | BF118: 0.9
B119: 110 | C119: Asset Management & Field Enablement - Consolidate Geospatial Capability | D119: Asset Management & Field Enablement - Non-recurrent | F119: IT | H119: ICT capex | I119: Non-network capex | K119: 0 | L119: 0 | M119: 0 | N119: 0 | O119: 1050 | P119: 350 | Q119: 0 | S119: 0 | T119: 0.75 | U119: 0.25 | W119: =IF(IFERROR(INDEX('Output| TRR Driver'!$L$8:$L$49,MATCH($F119,'Output| TRR Driver'!$B$8:$B$49,0)),"")="Network","Yes","No") -> No | X119: =IF(IFERROR(INDEX('Output| TRR Driver'!$L$8:$L$49,MATCH($F119,'Output| TRR Driver'!$B$8:$B$49,0)),"")="Corporate","Yes","No") -> Yes | AC119: 0 | AD119: 0 | AE119: 0 | AF119: 0 | AG119: 1 | AH119: 0 | AI119: 0 | AJ119: 0 | AK119: 0 | AL119: 0 | AN119: 0 | AO119: 0 | AP119: 0 | AQ119: 0 | AR119: 0 | AS119: 0 | AT119: 0 | AU119: 0 | AV119: 0.1 | AW119: 0 | AX119: 0 | AY119: 0 | AZ119: 0 | BA119: 0 | BB119: 0 | BC119: 0 | BD119: 0 | BE119: 0 | BF119: 0.9
B120: 111 | C120: Asset Management & Field Enablement - Tx field mobility | D120: Asset Management & Field Enablement - Non-recurrent | F120: IT | H120: ICT capex | I120: Non-network capex | K120: 0 | L120: 0 | M120: 0 | N120: 1000 | O120: 0 | P120: 0 | Q120: 0 | S120: 0 | T120: 0.55 | U120: 0.45 | W120: =IF(IFERROR(INDEX('Output| TRR Driver'!$L$8:$L$49,MATCH($F120,'Output| TRR Driver'!$B$8:$B$49,0)),"")="Network","Yes","No") -> No | X120: =IF(IFERROR(INDEX('Output| TRR Driver'!$L$8:$L$49,MATCH($F120,'Output| TRR Driver'!$B$8:$B$49,0)),"")="Corporate","Yes","No") -> Yes | AC120: 0 | AD120: 0 | AE120: 0 | AF120: 0 | AG120: 1 | AH120: 0 | AI120: 0 | AJ120: 0 | AK120: 0 | AL120: 0 | AN120: 0 | AO120: 0 | AP120: 0 | AQ120: 0 | AR120: 0 | AS120: 0 | AT120: 0 | AU120: 0 | AV120: 0 | AW120: 0 | AX120: 0 | AY120: 0 | AZ120: 0 | BA120: 0 | BB120: 0 | BC120: 0 | BD120: 0 | BE120: 0 | BF120: 1
B121: 112 | C121: Asset Management & Field Enablement - Tx Asset Data Enhancement Program | D121: Asset Management & Field Enablement - Non-recurrent | F121: IT | H121: ICT capex | I121: Non-network capex | K121: 0 | L121: 0 | M121: 4275 | N121: 0 | O121: 0 | P121: 0 | Q121: 0 | S121: 0 | T121: 0.95 | U121: 0.05 | W121: =IF(IFERROR(INDEX('Output| TRR Driver'!$L$8:$L$49,MATCH($F121,'Output| TRR Driver'!$B$8:$B$49,0)),"")="Network","Yes","No") -> No | X121: =IF(IFERROR(INDEX('Output| TRR Driver'!$L$8:$L$49,MATCH($F121,'Output| TRR Driver'!$B$8:$B$49,0)),"")="Corporate","Yes","No") -> Yes | AC121: 0 | AD121: 0 | AE121: 0 | AF121: 0 | AG121: 1 | AH121: 0 | AI121: 0 | AJ121: 0 | AK121: 0 | AL121: 0 | AN121: 0 | AO121: 0 | AP121: 0 | AQ121: 0 | AR121: 0 | AS121: 0 | AT121: 0 | AU121: 0 | AV121: 0.1 | AW121: 0 | AX121: 0 | AY121: 0 | AZ121: 0 | BA121: 0 | BB121: 0 | BC121: 0 | BD121: 0 | BE121: 0 | BF121: 0.9
B122: 113 | C122: Customer Engagement - Transmission landholder access | D122: Customer Engagement - Non-recurrent | F122: IT | H122: ICT capex | I122: Non-network capex | K122: 0 | L122: 0 | M122: 3600 | N122: 0 | O122: 0 | P122: 0 | Q122: 0 | S122: 0 | T122: 0.55 | U122: 0.45 | W122: =IF(IFERROR(INDEX('Output| TRR Driver'!$L$8:$L$49,MATCH($F122,'Output| TRR Driver'!$B$8:$B$49,0)),"")="Network","Yes","No") -> No | X122: =IF(IFERROR(INDEX('Output| TRR Driver'!$L$8:$L$49,MATCH($F122,'Output| TRR Driver'!$B$8:$B$49,0)),"")="Corporate","Yes","No") -> Yes | AC122: 0 | AD122: 0 | AE122: 0 | AF122: 0 | AG122: 1 | AH122: 0 | AI122: 0 | AJ122: 0 | AK122: 0 | AL122: 0 | AN122: 0 | AO122: 0 | AP122: 0 | AQ122: 0 | AR122: 0 | AS122: 0 | AT122: 0 | AU122: 0 | AV122: 0 | AW122: 0 | AX122: 0 | AY122: 0 | AZ122: 0 | BA122: 0 | BB122: 0 | BC122: 0 | BD122: 0 | BE122: 0 | BF122: 1
B123: 114 | C123: Metering Systems - Capability for latest meter technology (e.g. meter reading software & meter management solution) | D123: Metering Systems - Non-recurrent | F123: IT | H123: ICT capex | I123: Non-network capex | K123: 0 | L123: 0 | M123: 0 | N123: 0 | O123: 0 | P123: 0 | Q123: 0 | S123: 0 | T123: 0.7 | U123: 0.3 | W123: =IF(IFERROR(INDEX('Output| TRR Driver'!$L$8:$L$49,MATCH($F123,'Output| TRR Driver'!$B$8:$B$49,0)),"")="Network","Yes","No") -> No | X123: =IF(IFERROR(INDEX('Output| TRR Driver'!$L$8:$L$49,MATCH($F123,'Output| TRR Driver'!$B$8:$B$49,0)),"")="Corporate","Yes","No") -> Yes | AC123: 0 | AD123: 0 | AE123: 0 | AF123: 0 | AG123: 1 | AH123: 0 | AI123: 0 | AJ123: 0 | AK123: 0 | AL123: 0 | AN123: 0 | AO123: 0 | AP123: 0 | AQ123: 0 | AR123: 0 | AS123: 0 | AT123: 0 | AU123: 0 | AV123: 0.2 | AW123: 0 | AX123: 0 | AY123: 0 | AZ123: 0 | BA123: 0 | BB123: 0 | BC123: 0 | BD123: 0 | BE123: 0 | BF123: 0.8
B124: 115 | C124: Metering Systems - Enhance meter data integrity & analytics | D124: Metering Systems - Non-recurrent | F124: IT | H124: ICT capex | I124: Non-network capex | K124: 0 | L124: 0 | M124: 0 | N124: 0 | O124: 0 | P124: 0 | Q124: 0 | S124: 0 | T124: 1 | U124: 0 | W124: =IF(IFERROR(INDEX('Output| TRR Driver'!$L$8:$L$49,MATCH($F124,'Output| TRR Driver'!$B$8:$B$49,0)),"")="Network","Yes","No") -> No | X124: =IF(IFERROR(INDEX('Output| TRR Driver'!$L$8:$L$49,MATCH($F124,'Output| TRR Driver'!$B$8:$B$49,0)),"")="Corporate","Yes","No") -> Yes | AC124: 0 | AD124: 0 | AE124: 0 | AF124: 0 | AG124: 1 | AH124: 0 | AI124: 0 | AJ124: 0 | AK124: 0 | AL124: 0 | AN124: 0 | AO124: 0 | AP124: 0 | AQ124: 0 | AR124: 0 | AS124: 0 | AT124: 0 | AU124: 0 | AV124: 0.1 | AW124: 0 | AX124: 0 | AY124: 0 | AZ124: 0 | BA124: 0 | BB124: 0 | BC124: 0 | BD124: 0 | BE124: 0 | BF124: 0.9
B125: 116 | C125: Metering Systems - Meter data storage system | D125: Metering Systems - Non-recurrent | F125: IT | H125: ICT capex | I125: Non-network capex | K125: 0 | L125: 0 | M125: 0 | N125: 0 | O125: 0 | P125: 0 | Q125: 0 | S125: 0 | T125: 0.75 | U125: 0.25 | W125: =IF(IFERROR(INDEX('Output| TRR Driver'!$L$8:$L$49,MATCH($F125,'Output| TRR Driver'!$B$8:$B$49,0)),"")="Network","Yes","No") -> No | X125: =IF(IFERROR(INDEX('Output| TRR Driver'!$L$8:$L$49,MATCH($F125,'Output| TRR Driver'!$B$8:$B$49,0)),"")="Corporate","Yes","No") -> Yes | AC125: 0 | AD125: 0 | AE125: 0 | AF125: 0 | AG125: 1 | AH125: 0 | AI125: 0 | AJ125: 0 | AK125: 0 | AL125: 0 | AN125: 0 | AO125: 0 | AP125: 0 | AQ125: 0 | AR125: 0 | AS125: 0 | AT125: 0 | AU125: 0 | AV125: 0.1 | AW125: 0 | AX125: 0 | AY125: 0 | AZ125: 0 | BA125: 0 | BB125: 0 | BC125: 0 | BD125: 0 | BE125: 0 | BF125: 0.9
B126: 117 | C126: Metering Systems - Metering asset register | D126: Metering Systems - Non-recurrent | F126: IT | H126: ICT capex | I126: Non-network capex | K126: 0 | L126: 0 | M126: 0 | N126: 0 | O126: 0 | P126: 0 | Q126: 0 | S126: 0 | T126: 0.95 | U126: 0.05 | W126: =IF(IFERROR(INDEX('Output| TRR Driver'!$L$8:$L$49,MATCH($F126,'Output| TRR Driver'!$B$8:$B$49,0)),"")="Network","Yes","No") -> No | X126: =IF(IFERROR(INDEX('Output| TRR Driver'!$L$8:$L$49,MATCH($F126,'Output| TRR Driver'!$B$8:$B$49,0)),"")="Corporate","Yes","No") -> Yes | AC126: 0 | AD126: 0 | AE126: 0 | AF126: 0 | AG126: 1 | AH126: 0 | AI126: 0 | AJ126: 0 | AK126: 0 | AL126: 0 | AN126: 0 | AO126: 0 | AP126: 0 | AQ126: 0 | AR126: 0 | AS126: 0 | AT126: 0 | AU126: 0 | AV126: 0.1 | AW126: 0 | AX126: 0 | AY126: 0 | AZ126: 0 | BA126: 0 | BB126: 0 | BC126: 0 | BD126: 0 | BE126: 0 | BF126: 0.9
B127: 118 | C127: Metering Systems - Stream meter data vs polling | D127: Metering Systems - Non-recurrent | F127: IT | H127: ICT capex | I127: Non-network capex | K127: 0 | L127: 0 | M127: 0 | N127: 0 | O127: 0 | P127: 0 | Q127: 0 | S127: 0 | T127: 0.95 | U127: 0.05 | W127: =IF(IFERROR(INDEX('Output| TRR Driver'!$L$8:$L$49,MATCH($F127,'Output| TRR Driver'!$B$8:$B$49,0)),"")="Network","Yes","No") -> No | X127: =IF(IFERROR(INDEX('Output| TRR Driver'!$L$8:$L$49,MATCH($F127,'Output| TRR Driver'!$B$8:$B$49,0)),"")="Corporate","Yes","No") -> Yes | AC127: 0 | AD127: 0 | AE127: 0 | AF127: 0 | AG127: 1 | AH127: 0 | AI127: 0 | AJ127: 0 | AK127: 0 | AL127: 0 | AN127: 0 | AO127: 0 | AP127: 0 | AQ127: 0 | AR127: 0 | AS127: 0 | AT127: 0 | AU127: 0 | AV127: 0.1 | AW127: 0 | AX127: 0 | AY127: 0 | AZ127: 0 | BA127: 0 | BB127: 0 | BC127: 0 | BD127: 0 | BE127: 0 | BF127: 0.9
B128: 119 | C128: Digital resilience – applications - Data and Analytics Tx Systems (cloud) | D128: Digital resilience – applications - Recurrent | F128: IT | H128: ICT capex | I128: Non-network capex | K128: 0 | L128: 0 | M128: 55.1755102 | N128: 55.1755102 | O128: 55.1755102 | P128: 55.1755102 | Q128: 55.1755102 | S128: 0 | T128: 1 | U128: 0 | W128: =IF(IFERROR(INDEX('Output| TRR Driver'!$L$8:$L$49,MATCH($F128,'Output| TRR Driver'!$B$8:$B$49,0)),"")="Network","Yes","No") -> No | X128: =IF(IFERROR(INDEX('Output| TRR Driver'!$L$8:$L$49,MATCH($F128,'Output| TRR Driver'!$B$8:$B$49,0)),"")="Corporate","Yes","No") -> Yes | AC128: 0 | AD128: 0 | AE128: 0 | AF128: 0 | AG128: 1 | AH128: 0 | AI128: 0 | AJ128: 0 | AK128: 0 | AL128: 0 | AN128: 0 | AO128: 0 | AP128: 0 | AQ128: 0 | AR128: 0 | AS128: 0 | AT128: 0 | AU128: 0 | AV128: 0 | AW128: 0 | AX128: 0 | AY128: 0 | AZ128: 0 | BA128: 0 | BB128: 0 | BC128: 0 | BD128: 0 | BE128: 0 | BF128: 1
B129: 120 | C129: Digital resilience – applications - Enterprise Resource Planning (ERP) | D129: Digital resilience – applications - Recurrent | F129: IT | H129: ICT capex | I129: Non-network capex | K129: 0 | L129: 0 | M129: 300 | N129: 2495.918367 | O129: 265.3061224 | P129: 0 | Q129: 0 | S129: 0 | T129: 1 | U129: 0 | W129: =IF(IFERROR(INDEX('Output| TRR Driver'!$L$8:$L$49,MATCH($F129,'Output| TRR Driver'!$B$8:$B$49,0)),"")="Network","Yes","No") -> No | X129: =IF(IFERROR(INDEX('Output| TRR Driver'!$L$8:$L$49,MATCH($F129,'Output| TRR Driver'!$B$8:$B$49,0)),"")="Corporate","Yes","No") -> Yes | AC129: 0 | AD129: 0 | AE129: 0 | AF129: 0 | AG129: 1 | AH129: 0 | AI129: 0 | AJ129: 0 | AK129: 0 | AL129: 0 | AN129: 0 | AO129: 0 | AP129: 0 | AQ129: 0 | AR129: 0 | AS129: 0 | AT129: 0 | AU129: 0 | AV129: 0 | AW129: 0 | AX129: 0 | AY129: 0 | AZ129: 0 | BA129: 0 | BB129: 0 | BC129: 0 | BD129: 0 | BE129: 0 | BF129: 1
B130: 121 | C130: Digital resilience – applications - eTerra Upgrade | D130: Digital resilience – applications - Recurrent | F130: IT | H130: ICT capex | I130: Non-network capex | K130: 0 | L130: 0 | M130: 1000 | N130: 1500 | O130: 0 | P130: 2500 | Q130: 7500 | S130: 0 | T130: 1 | U130: 0 | W130: =IF(IFERROR(INDEX('Output| TRR Driver'!$L$8:$L$49,MATCH($F130,'Output| TRR Driver'!$B$8:$B$49,0)),"")="Network","Yes","No") -> No | X130: =IF(IFERROR(INDEX('Output| TRR Driver'!$L$8:$L$49,MATCH($F130,'Output| TRR Driver'!$B$8:$B$49,0)),"")="Corporate","Yes","No") -> Yes | AC130: 0 | AD130: 0 | AE130: 0 | AF130: 0 | AG130: 1 | AH130: 0 | AI130: 0 | AJ130: 0 | AK130: 0 | AL130: 0 | AN130: 0 | AO130: 0 | AP130: 0 | AQ130: 0 | AR130: 0 | AS130: 0 | AT130: 0 | AU130: 0 | AV130: 0 | AW130: 0 | AX130: 0 | AY130: 0 | AZ130: 0 | BA130: 0 | BB130: 0 | BC130: 0 | BD130: 0 | BE130: 0 | BF130: 1
B131: 122 | C131: Digital resilience – applications - Geospatial Systems | D131: Digital resilience – applications - Recurrent | F131: IT | H131: ICT capex | I131: Non-network capex | K131: 0 | L131: 0 | M131: 0 | N131: 1520 | O131: 0 | P131: 0 | Q131: 0 | S131: 0 | T131: 1 | U131: 0 | W131: =IF(IFERROR(INDEX('Output| TRR Driver'!$L$8:$L$49,MATCH($F131,'Output| TRR Driver'!$B$8:$B$49,0)),"")="Network","Yes","No") -> No | X131: =IF(IFERROR(INDEX('Output| TRR Driver'!$L$8:$L$49,MATCH($F131,'Output| TRR Driver'!$B$8:$B$49,0)),"")="Corporate","Yes","No") -> Yes | AC131: 0 | AD131: 0 | AE131: 0 | AF131: 0 | AG131: 1 | AH131: 0 | AI131: 0 | AJ131: 0 | AK131: 0 | AL131: 0 | AN131: 0 | AO131: 0 | AP131: 0 | AQ131: 0 | AR131: 0 | AS131: 0 | AT131: 0 | AU131: 0 | AV131: 0 | AW131: 0 | AX131: 0 | AY131: 0 | AZ131: 0 | BA131: 0 | BB131: 0 | BC131: 0 | BD131: 0 | BE131: 0 | BF131: 1
B132: 123 | C132: Digital resilience – applications - HSEQ | D132: Digital resilience – applications - Recurrent | F132: IT | H132: ICT capex | I132: Non-network capex | K132: 0 | L132: 0 | M132: 91.83673469 | N132: 30.6122449 | O132: 0 | P132: 0 | Q132: 0 | S132: 0 | T132: 1 | U132: 0 | W132: =IF(IFERROR(INDEX('Output| TRR Driver'!$L$8:$L$49,MATCH($F132,'Output| TRR Driver'!$B$8:$B$49,0)),"")="Network","Yes","No") -> No | X132: =IF(IFERROR(INDEX('Output| TRR Driver'!$L$8:$L$49,MATCH($F132,'Output| TRR Driver'!$B$8:$B$49,0)),"")="Corporate","Yes","No") -> Yes | AC132: 0 | AD132: 0 | AE132: 0 | AF132: 0 | AG132: 1 | AH132: 0 | AI132: 0 | AJ132: 0 | AK132: 0 | AL132: 0 | AN132: 0 | AO132: 0 | AP132: 0 | AQ132: 0 | AR132: 0 | AS132: 0 | AT132: 0 | AU132: 0 | AV132: 0 | AW132: 0 | AX132: 0 | AY132: 0 | AZ132: 0 | BA132: 0 | BB132: 0 | BC132: 0 | BD132: 0 | BE132: 0 | BF132: 1
B133: 124 | C133: Digital resilience – applications - Identity Management | D133: Digital resilience – applications - Recurrent | F133: IT | H133: ICT capex | I133: Non-network capex | K133: 0 | L133: 0 | M133: 0 | N133: 609.1836735 | O133: 3.06122449 | P133: 0 | Q133: 0 | S133: 0 | T133: 1 | U133: 0 | W133: =IF(IFERROR(INDEX('Output| TRR Driver'!$L$8:$L$49,MATCH($F133,'Output| TRR Driver'!$B$8:$B$49,0)),"")="Network","Yes","No") -> No | X133: =IF(IFERROR(INDEX('Output| TRR Driver'!$L$8:$L$49,MATCH($F133,'Output| TRR Driver'!$B$8:$B$49,0)),"")="Corporate","Yes","No") -> Yes | AC133: 0 | AD133: 0 | AE133: 0 | AF133: 0 | AG133: 1 | AH133: 0 | AI133: 0 | AJ133: 0 | AK133: 0 | AL133: 0 | AN133: 0 | AO133: 0 | AP133: 0 | AQ133: 0 | AR133: 0 | AS133: 0 | AT133: 0 | AU133: 0 | AV133: 0 | AW133: 0 | AX133: 0 | AY133: 0 | AZ133: 0 | BA133: 0 | BB133: 0 | BC133: 0 | BD133: 0 | BE133: 0 | BF133: 1
B134: 125 | C134: Digital resilience – applications - OPEX - SaaS/PaaS cloud service growth | D134: Digital resilience – applications - Opex | F134: IT | H134: ICT capex | I134: Non-network capex | K134: 0 | L134: 0 | M134: 0 | N134: 0 | O134: 0 | P134: 0 | Q134: 0 | S134: 0 | T134: 1 | U134: 0 | W134: =IF(IFERROR(INDEX('Output| TRR Driver'!$L$8:$L$49,MATCH($F134,'Output| TRR Driver'!$B$8:$B$49,0)),"")="Network","Yes","No") -> No | X134: =IF(IFERROR(INDEX('Output| TRR Driver'!$L$8:$L$49,MATCH($F134,'Output| TRR Driver'!$B$8:$B$49,0)),"")="Corporate","Yes","No") -> Yes | AC134: 0 | AD134: 0 | AE134: 0 | AF134: 0 | AG134: 1 | AH134: 0 | AI134: 0 | AJ134: 0 | AK134: 0 | AL134: 0 | AN134: 0 | AO134: 0 | AP134: 0 | AQ134: 0 | AR134: 0 | AS134: 0 | AT134: 0 | AU134: 0 | AV134: 0 | AW134: 0 | AX134: 0 | AY134: 0 | AZ134: 0 | BA134: 0 | BB134: 0 | BC134: 0 | BD134: 0 | BE134: 0 | BF134: 1
B135: 126 | C135: Digital resilience – applications - Other Business Systems | D135: Digital resilience – applications - Recurrent | F135: IT | H135: ICT capex | I135: Non-network capex | K135: 0 | L135: 0 | M135: 235.1020408 | N135: 235.1020408 | O135: 235.1020408 | P135: 235.1020408 | Q135: 235.1020408 | S135: 0 | T135: 1 | U135: 0 | W135: =IF(IFERROR(INDEX('Output| TRR Driver'!$L$8:$L$49,MATCH($F135,'Output| TRR Driver'!$B$8:$B$49,0)),"")="Network","Yes","No") -> No | X135: =IF(IFERROR(INDEX('Output| TRR Driver'!$L$8:$L$49,MATCH($F135,'Output| TRR Driver'!$B$8:$B$49,0)),"")="Corporate","Yes","No") -> Yes | AC135: 0 | AD135: 0 | AE135: 0 | AF135: 0 | AG135: 1 | AH135: 0 | AI135: 0 | AJ135: 0 | AK135: 0 | AL135: 0 | AN135: 0 | AO135: 0 | AP135: 0 | AQ135: 0 | AR135: 0 | AS135: 0 | AT135: 0 | AU135: 0 | AV135: 0 | AW135: 0 | AX135: 0 | AY135: 0 | AZ135: 0 | BA135: 0 | BB135: 0 | BC135: 0 | BD135: 0 | BE135: 0 | BF135: 1
B136: 127 | C136: Digital resilience – applications - Protection and Control Settings | D136: Digital resilience – applications - Recurrent | F136: IT | H136: ICT capex | I136: Non-network capex | K136: 0 | L136: 0 | M136: 0 | N136: 0 | O136: 0 | P136: 45.96774194 | Q136: 61.29032258 | S136: 0 | T136: 1 | U136: 0 | W136: =IF(IFERROR(INDEX('Output| TRR Driver'!$L$8:$L$49,MATCH($F136,'Output| TRR Driver'!$B$8:$B$49,0)),"")="Network","Yes","No") -> No | X136: =IF(IFERROR(INDEX('Output| TRR Driver'!$L$8:$L$49,MATCH($F136,'Output| TRR Driver'!$B$8:$B$49,0)),"")="Corporate","Yes","No") -> Yes | AC136: 0 | AD136: 0 | AE136: 0 | AF136: 0 | AG136: 1 | AH136: 0 | AI136: 0 | AJ136: 0 | AK136: 0 | AL136: 0 | AN136: 0 | AO136: 0 | AP136: 0 | AQ136: 0 | AR136: 0 | AS136: 0 | AT136: 0 | AU136: 0 | AV136: 0 | AW136: 0 | AX136: 0 | AY136: 0 | AZ136: 0 | BA136: 0 | BB136: 0 | BC136: 0 | BD136: 0 | BE136: 0 | BF136: 1
B137: 128 | C137: Digital resilience – applications - Other TX applications | D137: Digital resilience – applications - Recurrent | F137: IT | H137: ICT capex | I137: Non-network capex | K137: 0 | L137: 0 | M137: 700 | N137: 700 | O137: 700 | P137: 700 | Q137: 700 | S137: 0 | T137: 1 | U137: 0 | W137: =IF(IFERROR(INDEX('Output| TRR Driver'!$L$8:$L$49,MATCH($F137,'Output| TRR Driver'!$B$8:$B$49,0)),"")="Network","Yes","No") -> No | X137: =IF(IFERROR(INDEX('Output| TRR Driver'!$L$8:$L$49,MATCH($F137,'Output| TRR Driver'!$B$8:$B$49,0)),"")="Corporate","Yes","No") -> Yes | AC137: 0 | AD137: 0 | AE137: 0 | AF137: 0 | AG137: 1 | AH137: 0 | AI137: 0 | AJ137: 0 | AK137: 0 | AL137: 0 | AN137: 0 | AO137: 0 | AP137: 0 | AQ137: 0 | AR137: 0 | AS137: 0 | AT137: 0 | AU137: 0 | AV137: 0 | AW137: 0 | AX137: 0 | AY137: 0 | AZ137: 0 | BA137: 0 | BB137: 0 | BC137: 0 | BD137: 0 | BE137: 0 | BF137: 1
B138: 129 | C138: Digital resilience – applications - System Integration Platforms | D138: Digital resilience – applications - Recurrent | F138: IT | H138: ICT capex | I138: Non-network capex | K138: 0 | L138: 0 | M138: 918.3673469 | N138: 306.122449 | O138: 0 | P138: 0 | Q138: 0 | S138: 0 | T138: 1 | U138: 0 | V138: =IF(SUM(S138:U138,K138:Q138)=0,"",IF(SUM(S138:U138)=1,"",1)) ->  | W138: =IF(IFERROR(INDEX('Output| TRR Driver'!$L$8:$L$49,MATCH($F138,'Output| TRR Driver'!$B$8:$B$49,0)),"")="Network","Yes","No") -> No | X138: =IF(IFERROR(INDEX('Output| TRR Driver'!$L$8:$L$49,MATCH($F138,'Output| TRR Driver'!$B$8:$B$49,0)),"")="Corporate","Yes","No") -> Yes | AC138: 0 | AD138: 0 | AE138: 0 | AF138: 0 | AG138: 1 | AH138: 0 | AI138: 0 | AJ138: 0 | AK138: 0 | AL138: 0 | AN138: 0 | AO138: 0 | AP138: 0 | AQ138: 0 | AR138: 0 | AS138: 0 | AT138: 0 | AU138: 0 | AV138: 0 | AW138: 0 | AX138: 0 | AY138: 0 | AZ138: 0 | BA138: 0 | BB138: 0 | BC138: 0 | BD138: 0 | BE138: 0 | BF138: 1
B139: 130 | C139: Digital resilience – applications - Telecommunications Systems (SDMT, CNMS) | D139: Digital resilience – applications - Recurrent | F139: IT | H139: ICT capex | I139: Non-network capex | K139: 0 | L139: 0 | M139: 2000 | N139: 1000 | O139: 3000 | P139: 2000 | Q139: 0 | S139: 0 | T139: 1 | U139: 0 | W139: =IF(IFERROR(INDEX('Output| TRR Driver'!$L$8:$L$49,MATCH($F139,'Output| TRR Driver'!$B$8:$B$49,0)),"")="Network","Yes","No") -> No | X139: =IF(IFERROR(INDEX('Output| TRR Driver'!$L$8:$L$49,MATCH($F139,'Output| TRR Driver'!$B$8:$B$49,0)),"")="Corporate","Yes","No") -> Yes | AC139: 0 | AD139: 0 | AE139: 0 | AF139: 0 | AG139: 1 | AH139: 0 | AI139: 0 | AJ139: 0 | AK139: 0 | AL139: 0 | AM139: =IF(OR(SUM($K139:$Q139)=0,SUM(AC139:AL139)=100%),"",1) ->  | AN139: 0 | AO139: 0 | AP139: 0 | AQ139: 0 | AR139: 0 | AS139: 0 | AT139: 0 | AU139: 0 | AV139: 0 | AW139: 0 | AX139: 0 | AY139: 0 | AZ139: 0 | BA139: 0 | BB139: 0 | BC139: 0 | BD139: 0 | BE139: 0 | BF139: 1 | CL139: =IF(OR(SUM($K139:$Q139)=0,SUM(AN139:CK139)=100%),"",1) -> 
B140: =IFERROR(B139+1,"") -> 131 | C140: Digital resilience – applications - Weather and Solar Services | D140: Digital resilience – applications - Recurrent | F140: IT | H140: ICT capex | I140: Non-network capex | K140: 0 | L140: 0 | M140: 0 | N140: 0 | O140: 0 | P140: 137.9032258 | Q140: 183.8709677 | S140: 0 | T140: 1 | U140: 0 | W140: =IF(IFERROR(INDEX('Output| TRR Driver'!$L$8:$L$49,MATCH($F140,'Output| TRR Driver'!$B$8:$B$49,0)),"")="Network","Yes","No") -> No | X140: =IF(IFERROR(INDEX('Output| TRR Driver'!$L$8:$L$49,MATCH($F140,'Output| TRR Driver'!$B$8:$B$49,0)),"")="Corporate","Yes","No") -> Yes | AC140: 0 | AD140: 0 | AE140: 0 | AF140: 0 | AG140: 1 | AH140: 0 | AI140: 0 | AJ140: 0 | AK140: 0 | AL140: 0 | AN140: 0 | AO140: 0 | AP140: 0 | AQ140: 0 | AR140: 0 | AS140: 0 | AT140: 0 | AU140: 0 | AV140: 0 | AW140: 0 | AX140: 0 | AY140: 0 | AZ140: 0 | BA140: 0 | BB140: 0 | BC140: 0 | BD140: 0 | BE140: 0 | BF140: 1
B141: 132 | C141: Digital resilience – applications - SCADA Data Historian | D141: Digital resilience – applications - Recurrent | F141: IT | H141: ICT capex | I141: Non-network capex | K141: 0 | L141: 0 | M141: 0 | N141: 0 | O141: 1140 | P141: 0 | Q141: 0 | S141: 0 | T141: 1 | U141: 0 | W141: =IF(IFERROR(INDEX('Output| TRR Driver'!$L$8:$L$49,MATCH($F141,'Output| TRR Driver'!$B$8:$B$49,0)),"")="Network","Yes","No") -> No | X141: =IF(IFERROR(INDEX('Output| TRR Driver'!$L$8:$L$49,MATCH($F141,'Output| TRR Driver'!$B$8:$B$49,0)),"")="Corporate","Yes","No") -> Yes | AC141: 0 | AD141: 0 | AE141: 0 | AF141: 0 | AG141: 1 | AH141: 0 | AI141: 0 | AJ141: 0 | AK141: 0 | AL141: 0 | AN141: 0 | AO141: 0 | AP141: 0 | AQ141: 0 | AR141: 0 | AS141: 0 | AT141: 0 | AU141: 0 | AV141: 0 | AW141: 0 | AX141: 0 | AY141: 0 | AZ141: 0 | BA141: 0 | BB141: 0 | BC141: 0 | BD141: 0 | BE141: 0 | BF141: 1
B142: 133 | C142: Digital resilience – infrastructure - Data Centre Facilities | D142: Digital resilience – infrastructure - Recurrent | F142: IT | H142: ICT capex | I142: Non-network capex | K142: 0 | L142: 0 | M142: 228.5714286 | N142: 228.5714286 | O142: 228.5714286 | P142: 228.5714286 | Q142: 228.5714286 | S142: 0 | T142: 0.3 | U142: 0.7 | W142: =IF(IFERROR(INDEX('Output| TRR Driver'!$L$8:$L$49,MATCH($F142,'Output| TRR Driver'!$B$8:$B$49,0)),"")="Network","Yes","No") -> No | X142: =IF(IFERROR(INDEX('Output| TRR Driver'!$L$8:$L$49,MATCH($F142,'Output| TRR Driver'!$B$8:$B$49,0)),"")="Corporate","Yes","No") -> Yes | AC142: 0 | AD142: 0 | AE142: 0 | AF142: 0 | AG142: 1 | AH142: 0 | AI142: 0 | AJ142: 0 | AK142: 0 | AL142: 0 | AN142: 0 | AO142: 0 | AP142: 0 | AQ142: 0 | AR142: 0 | AS142: 0 | AT142: 0 | AU142: 0 | AV142: 1 | AW142: 0 | AX142: 0 | AY142: 0 | AZ142: 0 | BA142: 0 | BB142: 0 | BC142: 0 | BD142: 0 | BE142: 0 | BF142: 0
B143: 134 | C143: Digital resilience – infrastructure - Fire Supression (DC) | D143: Digital resilience – infrastructure - Recurrent | F143: IT | H143: ICT capex | I143: Non-network capex | K143: 0 | L143: 0 | M143: 240 | N143: 240 | O143: 240 | P143: 240 | Q143: 240 | S143: 0 | T143: 0.3 | U143: 0.7 | W143: =IF(IFERROR(INDEX('Output| TRR Driver'!$L$8:$L$49,MATCH($F143,'Output| TRR Driver'!$B$8:$B$49,0)),"")="Network","Yes","No") -> No | X143: =IF(IFERROR(INDEX('Output| TRR Driver'!$L$8:$L$49,MATCH($F143,'Output| TRR Driver'!$B$8:$B$49,0)),"")="Corporate","Yes","No") -> Yes | AC143: 0 | AD143: 0 | AE143: 0 | AF143: 0 | AG143: 1 | AH143: 0 | AI143: 0 | AJ143: 0 | AK143: 0 | AL143: 0 | AN143: 0 | AO143: 0 | AP143: 0 | AQ143: 0 | AR143: 0 | AS143: 0 | AT143: 0 | AU143: 0 | AV143: 1 | AW143: 0 | AX143: 0 | AY143: 0 | AZ143: 0 | BA143: 0 | BB143: 0 | BC143: 0 | BD143: 0 | BE143: 0 | BF143: 0
B144: 135 | C144: Digital resilience – infrastructure - HiSec Network | D144: Digital resilience – infrastructure - Recurrent | F144: IT | H144: ICT capex | I144: Non-network capex | K144: 0 | L144: 0 | M144: 1400 | N144: 1400 | O144: 1400 | P144: 1400 | Q144: 1400 | S144: 0 | T144: 0.3 | U144: 0.7 | W144: =IF(IFERROR(INDEX('Output| TRR Driver'!$L$8:$L$49,MATCH($F144,'Output| TRR Driver'!$B$8:$B$49,0)),"")="Network","Yes","No") -> No | X144: =IF(IFERROR(INDEX('Output| TRR Driver'!$L$8:$L$49,MATCH($F144,'Output| TRR Driver'!$B$8:$B$49,0)),"")="Corporate","Yes","No") -> Yes | AC144: 0 | AD144: 0 | AE144: 0 | AF144: 0 | AG144: 1 | AH144: 0 | AI144: 0 | AJ144: 0 | AK144: 0 | AL144: 0 | AN144: 0 | AO144: 0 | AP144: 0 | AQ144: 0 | AR144: 0 | AS144: 0 | AT144: 0 | AU144: 0 | AV144: 1 | AW144: 0 | AX144: 0 | AY144: 0 | AZ144: 0 | BA144: 0 | BB144: 0 | BC144: 0 | BD144: 0 | BE144: 0 | BF144: 0
B145: 136 | C145: Digital resilience – infrastructure - Physical security digital infrastructure (servers, storage, network bandwidth) | D145: Digital resilience – infrastructure - Recurrent | F145: IT | H145: ICT capex | I145: Non-network capex | K145: 0 | L145: 0 | M145: 230 | N145: 230 | O145: 220 | P145: 220 | Q145: 100 | S145: 0 | T145: 0.3 | U145: 0.7 | W145: =IF(IFERROR(INDEX('Output| TRR Driver'!$L$8:$L$49,MATCH($F145,'Output| TRR Driver'!$B$8:$B$49,0)),"")="Network","Yes","No") -> No | X145: =IF(IFERROR(INDEX('Output| TRR Driver'!$L$8:$L$49,MATCH($F145,'Output| TRR Driver'!$B$8:$B$49,0)),"")="Corporate","Yes","No") -> Yes | AC145: 0 | AD145: 0 | AE145: 0 | AF145: 0 | AG145: 1 | AH145: 0 | AI145: 0 | AJ145: 0 | AK145: 0 | AL145: 0 | AN145: 0 | AO145: 0 | AP145: 0 | AQ145: 0 | AR145: 0 | AS145: 0 | AT145: 0 | AU145: 0 | AV145: 1 | AW145: 0 | AX145: 0 | AY145: 0 | AZ145: 0 | BA145: 0 | BB145: 0 | BC145: 0 | BD145: 0 | BE145: 0 | BF145: 0
B146: 137 | C146: Digital resilience – infrastructure - Shared Data Centre Infrastructure | D146: Digital resilience – infrastructure - Recurrent | F146: IT | H146: ICT capex | I146: Non-network capex | K146: 0 | L146: 0 | M146: 582.6 | N146: 582.6 | O146: 582.6 | P146: 582.6 | Q146: 582.6 | S146: 0 | T146: 0.3 | U146: 0.7 | W146: =IF(IFERROR(INDEX('Output| TRR Driver'!$L$8:$L$49,MATCH($F146,'Output| TRR Driver'!$B$8:$B$49,0)),"")="Network","Yes","No") -> No | X146: =IF(IFERROR(INDEX('Output| TRR Driver'!$L$8:$L$49,MATCH($F146,'Output| TRR Driver'!$B$8:$B$49,0)),"")="Corporate","Yes","No") -> Yes | AC146: 0 | AD146: 0 | AE146: 0 | AF146: 0 | AG146: 1 | AH146: 0 | AI146: 0 | AJ146: 0 | AK146: 0 | AL146: 0 | AN146: 0 | AO146: 0 | AP146: 0 | AQ146: 0 | AR146: 0 | AS146: 0 | AT146: 0 | AU146: 0 | AV146: 1 | AW146: 0 | AX146: 0 | AY146: 0 | AZ146: 0 | BA146: 0 | BB146: 0 | BC146: 0 | BD146: 0 | BE146: 0 | BF146: 0
B147: 138 | C147: Digital resilience – infrastructure - Other infrastructure upgrades (e.g. Zetron, RADAR, Pegasus, Pacsis - does the settings of the ratings) | D147: Digital resilience – infrastructure - Recurrent | F147: IT | H147: ICT capex | I147: Non-network capex | K147: 0 | L147: 0 | M147: 1000 | N147: 1000 | O147: 1000 | P147: 1500 | Q147: 1000 | S147: 0 | T147: 0.3 | U147: 0.7 | W147: =IF(IFERROR(INDEX('Output| TRR Driver'!$L$8:$L$49,MATCH($F147,'Output| TRR Driver'!$B$8:$B$49,0)),"")="Network","Yes","No") -> No | X147: =IF(IFERROR(INDEX('Output| TRR Driver'!$L$8:$L$49,MATCH($F147,'Output| TRR Driver'!$B$8:$B$49,0)),"")="Corporate","Yes","No") -> Yes | AC147: 0 | AD147: 0 | AE147: 0 | AF147: 0 | AG147: 1 | AH147: 0 | AI147: 0 | AJ147: 0 | AK147: 0 | AL147: 0 | AN147: 0 | AO147: 0 | AP147: 0 | AQ147: 0 | AR147: 0 | AS147: 0 | AT147: 0 | AU147: 0 | AV147: 1 | AW147: 0 | AX147: 0 | AY147: 0 | AZ147: 0 | BA147: 0 | BB147: 0 | BC147: 0 | BD147: 0 | BE147: 0 | BF147: 0
B148: 139 | C148: Digital resilience – infrastructure - System Integration Platforms - HW | D148: Digital resilience – infrastructure - Recurrent | F148: IT | H148: ICT capex | I148: Non-network capex | K148: 0 | L148: 0 | M148: 582.9 | N148: 0 | O148: 0 | P148: 0 | Q148: 0 | S148: 0 | T148: 0.3 | U148: 0.7 | W148: =IF(IFERROR(INDEX('Output| TRR Driver'!$L$8:$L$49,MATCH($F148,'Output| TRR Driver'!$B$8:$B$49,0)),"")="Network","Yes","No") -> No | X148: =IF(IFERROR(INDEX('Output| TRR Driver'!$L$8:$L$49,MATCH($F148,'Output| TRR Driver'!$B$8:$B$49,0)),"")="Corporate","Yes","No") -> Yes | AC148: 0 | AD148: 0 | AE148: 0 | AF148: 0 | AG148: 1 | AH148: 0 | AI148: 0 | AJ148: 0 | AK148: 0 | AL148: 0 | AN148: 0 | AO148: 0 | AP148: 0 | AQ148: 0 | AR148: 0 | AS148: 0 | AT148: 0 | AU148: 0 | AV148: 1 | AW148: 0 | AX148: 0 | AY148: 0 | AZ148: 0 | BA148: 0 | BB148: 0 | BC148: 0 | BD148: 0 | BE148: 0 | BF148: 0
B149: 140 | C149: Digital resilience – infrastructure - Telecommunications Systems (HW) | D149: Digital resilience – infrastructure - Recurrent | F149: IT | H149: ICT capex | I149: Non-network capex | K149: 0 | L149: 0 | M149: 0 | N149: 0 | O149: 2000 | P149: 1000 | Q149: 0 | S149: 0 | T149: 0.3 | U149: 0.7 | W149: =IF(IFERROR(INDEX('Output| TRR Driver'!$L$8:$L$49,MATCH($F149,'Output| TRR Driver'!$B$8:$B$49,0)),"")="Network","Yes","No") -> No | X149: =IF(IFERROR(INDEX('Output| TRR Driver'!$L$8:$L$49,MATCH($F149,'Output| TRR Driver'!$B$8:$B$49,0)),"")="Corporate","Yes","No") -> Yes | AC149: 0 | AD149: 0 | AE149: 0 | AF149: 0 | AG149: 1 | AH149: 0 | AI149: 0 | AJ149: 0 | AK149: 0 | AL149: 0 | AN149: 0 | AO149: 0 | AP149: 0 | AQ149: 0 | AR149: 0 | AS149: 0 | AT149: 0 | AU149: 0 | AV149: 1 | AW149: 0 | AX149: 0 | AY149: 0 | AZ149: 0 | BA149: 0 | BB149: 0 | BC149: 0 | BD149: 0 | BE149: 0 | BF149: 0
B150: 141 | C150: Digital resilience – infrastructure - User Devices (laptops, mobile, peripherals) | D150: Digital resilience – infrastructure - Recurrent | F150: IT | H150: ICT capex | I150: Non-network capex | K150: 0 | L150: 0 | M150: 48.97959184 | N150: 48.97959184 | O150: 48.97959184 | P150: 48.97959184 | Q150: 48.97959184 | S150: 0 | T150: 0.3 | U150: 0.7 | W150: =IF(IFERROR(INDEX('Output| TRR Driver'!$L$8:$L$49,MATCH($F150,'Output| TRR Driver'!$B$8:$B$49,0)),"")="Network","Yes","No") -> No | X150: =IF(IFERROR(INDEX('Output| TRR Driver'!$L$8:$L$49,MATCH($F150,'Output| TRR Driver'!$B$8:$B$49,0)),"")="Corporate","Yes","No") -> Yes | AC150: 0 | AD150: 0 | AE150: 0 | AF150: 0 | AG150: 1 | AH150: 0 | AI150: 0 | AJ150: 0 | AK150: 0 | AL150: 0 | AN150: 0 | AO150: 0 | AP150: 0 | AQ150: 0 | AR150: 0 | AS150: 0 | AT150: 0 | AU150: 0 | AV150: 1 | AW150: 0 | AX150: 0 | AY150: 0 | AZ150: 0 | BA150: 0 | BB150: 0 | BC150: 0 | BD150: 0 | BE150: 0 | BF150: 0
B151: 142 | C151: Digital Resilience – infrastructure - SCADA Data Historian - Infra | D151: Digital Resilience – infrastructure - Recurrent | F151: IT | H151: ICT capex | I151: Non-network capex | K151: 0 | L151: 0 | M151: 0 | N151: 0 | O151: 0 | P151: 1900 | Q151: 0 | S151: 0 | T151: 0.3 | U151: 0.7 | W151: =IF(IFERROR(INDEX('Output| TRR Driver'!$L$8:$L$49,MATCH($F151,'Output| TRR Driver'!$B$8:$B$49,0)),"")="Network","Yes","No") -> No | X151: =IF(IFERROR(INDEX('Output| TRR Driver'!$L$8:$L$49,MATCH($F151,'Output| TRR Driver'!$B$8:$B$49,0)),"")="Corporate","Yes","No") -> Yes | AC151: 0 | AD151: 0 | AE151: 0 | AF151: 0 | AG151: 1 | AH151: 0 | AI151: 0 | AJ151: 0 | AK151: 0 | AL151: 0 | AN151: 0 | AO151: 0 | AP151: 0 | AQ151: 0 | AR151: 0 | AS151: 0 | AT151: 0 | AU151: 0 | AV151: 1 | AW151: 0 | AX151: 0 | AY151: 0 | AZ151: 0 | BA151: 0 | BB151: 0 | BC151: 0 | BD151: 0 | BE151: 0 | BF151: 0
B152: 143 | C152: Digital Resilience – infrastructure - OT Comms Equipment firmware updates | D152: Digital Resilience – infrastructure - Recurrent | F152: IT | H152: ICT capex | I152: Non-network capex | K152: 0 | L152: 0 | M152: 0 | N152: 0 | O152: 600 | P152: 0 | Q152: 0 | S152: 0 | T152: 0.3 | U152: 0.7 | W152: =IF(IFERROR(INDEX('Output| TRR Driver'!$L$8:$L$49,MATCH($F152,'Output| TRR Driver'!$B$8:$B$49,0)),"")="Network","Yes","No") -> No | X152: =IF(IFERROR(INDEX('Output| TRR Driver'!$L$8:$L$49,MATCH($F152,'Output| TRR Driver'!$B$8:$B$49,0)),"")="Corporate","Yes","No") -> Yes | AC152: 0 | AD152: 0 | AE152: 0 | AF152: 0 | AG152: 1 | AH152: 0 | AI152: 0 | AJ152: 0 | AK152: 0 | AL152: 0 | AN152: 0 | AO152: 0 | AP152: 0 | AQ152: 0 | AR152: 0 | AS152: 0 | AT152: 0 | AU152: 0 | AV152: 1 | AW152: 0 | AX152: 0 | AY152: 0 | AZ152: 0 | BA152: 0 | BB152: 0 | BC152: 0 | BD152: 0 | BE152: 0 | BF152: 0
B153: 144 | C153: Cyber security - Cyber Security Systems Refresh | D153: Cyber security - Recurrent | F153: IT | H153: ICT capex | I153: Non-network capex | K153: 0 | L153: 0 | M153: 4080 | N153: 4080 | O153: 4080 | P153: 4080 | Q153: 4080 | S153: 0 | T153: 0.75 | U153: 0.25 | W153: =IF(IFERROR(INDEX('Output| TRR Driver'!$L$8:$L$49,MATCH($F153,'Output| TRR Driver'!$B$8:$B$49,0)),"")="Network","Yes","No") -> No | X153: =IF(IFERROR(INDEX('Output| TRR Driver'!$L$8:$L$49,MATCH($F153,'Output| TRR Driver'!$B$8:$B$49,0)),"")="Corporate","Yes","No") -> Yes | AC153: 0 | AD153: 0 | AE153: 0 | AF153: 0 | AG153: 1 | AH153: 0 | AI153: 0 | AJ153: 0 | AK153: 0 | AL153: 0 | AN153: 0 | AO153: 0 | AP153: 0 | AQ153: 0 | AR153: 0 | AS153: 0 | AT153: 0 | AU153: 0 | AV153: 0.1 | AW153: 0 | AX153: 0 | AY153: 0 | AZ153: 0 | BA153: 0 | BB153: 0 | BC153: 0 | BD153: 0 | BE153: 0 | BF153: 0.9
B154: 145 | C154: Cyber security - Cyber New Threat/Capability uplift (PWC Cyber Security Program) | D154: Cyber security - Non-recurrent | F154: IT | H154: ICT capex | I154: Non-network capex | K154: 0 | L154: 0 | M154: 5401.399981 | N154: 5401.399981 | O154: 5401.399981 | P154: 5401.399981 | Q154: 5401.399981 | S154: 0 | T154: 1 | U154: 0 | W154: =IF(IFERROR(INDEX('Output| TRR Driver'!$L$8:$L$49,MATCH($F154,'Output| TRR Driver'!$B$8:$B$49,0)),"")="Network","Yes","No") -> No | X154: =IF(IFERROR(INDEX('Output| TRR Driver'!$L$8:$L$49,MATCH($F154,'Output| TRR Driver'!$B$8:$B$49,0)),"")="Corporate","Yes","No") -> Yes | AC154: 0 | AD154: 0 | AE154: 0 | AF154: 0 | AG154: 1 | AH154: 0 | AI154: 0 | AJ154: 0 | AK154: 0 | AL154: 0 | AN154: 0 | AO154: 0 | AP154: 0 | AQ154: 0 | AR154: 0 | AS154: 0 | AT154: 0 | AU154: 0 | AV154: 0 | AW154: 0 | AX154: 0 | AY154: 0 | AZ154: 0 | BA154: 0 | BB154: 0 | BC154: 0 | BD154: 0 | BE154: 0 | BF154: 1
B155: 146 | K155: 0 | L155: 0 | M155: 0 | N155: 0 | O155: 0 | P155: 0 | Q155: 0 | S155: 0 | T155: 0 | U155: 0 | W155: =IF(IFERROR(INDEX('Output| TRR Driver'!$L$8:$L$49,MATCH($F155,'Output| TRR Driver'!$B$8:$B$49,0)),"")="Network","Yes","No") -> No | X155: =IF(IFERROR(INDEX('Output| TRR Driver'!$L$8:$L$49,MATCH($F155,'Output| TRR Driver'!$B$8:$B$49,0)),"")="Corporate","Yes","No") -> No | AC155: 0 | AD155: 0 | AE155: 0 | AF155: 0 | AG155: 0 | AH155: 0 | AI155: 0 | AJ155: 0 | AK155: 0 | AL155: 0 | AN155: 0 | AO155: 0 | AP155: 0 | AQ155: 0 | AR155: 0 | AS155: 0 | AT155: 0 | AU155: 0 | AV155: 0 | AW155: 0 | AX155: 0 | AY155: 0 | AZ155: 0 | BA155: 0 | BB155: 0 | BC155: 0 | BD155: 0 | BE155: 0 | BF155: 0
B156: 147 | K156: 0 | L156: 0 | M156: 0 | N156: 0 | O156: 0 | P156: 0 | Q156: 0 | S156: 0 | T156: 0 | U156: 0 | W156: =IF(IFERROR(INDEX('Output| TRR Driver'!$L$8:$L$49,MATCH($F156,'Output| TRR Driver'!$B$8:$B$49,0)),"")="Network","Yes","No") -> No | X156: =IF(IFERROR(INDEX('Output| TRR Driver'!$L$8:$L$49,MATCH($F156,'Output| TRR Driver'!$B$8:$B$49,0)),"")="Corporate","Yes","No") -> No | AC156: 0 | AD156: 0 | AE156: 0 | AF156: 0 | AG156: 0 | AH156: 0 | AI156: 0 | AJ156: 0 | AK156: 0 | AL156: 0 | AN156: 0 | AO156: 0 | AP156: 0 | AQ156: 0 | AR156: 0 | AS156: 0 | AT156: 0 | AU156: 0 | AV156: 0 | AW156: 0 | AX156: 0 | AY156: 0 | AZ156: 0 | BA156: 0 | BB156: 0 | BC156: 0 | BD156: 0 | BE156: 0 | BF156: 0
B157: 148 | C157: SOCI - CCTV (Building and Poles) | D157: Program | F157: SOCI | H157: Compliance | I157: Replacement | K157: 767.75 | L157: 3374.32775 | M157: 1690.29105 | N157: 1107.236865 | O157: 331.76283 | P157: 306.6 | Q157: 229.95 | S157: 0.1 | T157: 0.5 | U157: 0.4 | W157: =IF(IFERROR(INDEX('Output| TRR Driver'!$L$8:$L$49,MATCH($F157,'Output| TRR Driver'!$B$8:$B$49,0)),"")="Network","Yes","No") -> Yes | X157: =IF(IFERROR(INDEX('Output| TRR Driver'!$L$8:$L$49,MATCH($F157,'Output| TRR Driver'!$B$8:$B$49,0)),"")="Corporate","Yes","No") -> No | AC157: 0 | AD157: 0 | AE157: 1 | AF157: 0 | AG157: 0 | AH157: 0 | AI157: 0 | AJ157: 0 | AK157: 0 | AL157: 0 | AN157: 0 | AO157: 0 | AP157: 0 | AQ157: 0 | AR157: 0 | AS157: 0 | AT157: 1 | AU157: 0 | AV157: 0 | AW157: 0 | AX157: 0 | AY157: 0 | AZ157: 0 | BA157: 0 | BB157: 0 | BC157: 0 | BD157: 0 | BE157: 0 | BF157: 0
B158: 149 | C158: SOCI - Lighting | D158: Program | F158: SOCI | H158: Compliance | I158: Replacement | K158: 24.92 | L158: 142.26 | M158: 269.49 | N158: 200.97 | O158: 0 | P158: 0 | Q158: 0 | S158: 0.1 | T158: 0.5 | U158: 0.4 | W158: =IF(IFERROR(INDEX('Output| TRR Driver'!$L$8:$L$49,MATCH($F158,'Output| TRR Driver'!$B$8:$B$49,0)),"")="Network","Yes","No") -> Yes | X158: =IF(IFERROR(INDEX('Output| TRR Driver'!$L$8:$L$49,MATCH($F158,'Output| TRR Driver'!$B$8:$B$49,0)),"")="Corporate","Yes","No") -> No | AC158: 0 | AD158: 0 | AE158: 1 | AF158: 0 | AG158: 0 | AH158: 0 | AI158: 0 | AJ158: 0 | AK158: 0 | AL158: 0 | AN158: 0 | AO158: 0 | AP158: 0 | AQ158: 0 | AR158: 0 | AS158: 1 | AT158: 0 | AU158: 0 | AV158: 0 | AW158: 0 | AX158: 0 | AY158: 0 | AZ158: 0 | BA158: 0 | BB158: 0 | BC158: 0 | BD158: 0 | BE158: 0 | BF158: 0
B159: 150 | C159: SOCI - Sub-component Protection | D159: Program | F159: SOCI | H159: Compliance | I159: Replacement | K159: 66.875 | L159: 317.65625 | M159: 417.96875 | N159: 200.625 | O159: 0 | P159: 0 | Q159: 0 | S159: 0.1 | T159: 0.5 | U159: 0.4 | W159: =IF(IFERROR(INDEX('Output| TRR Driver'!$L$8:$L$49,MATCH($F159,'Output| TRR Driver'!$B$8:$B$49,0)),"")="Network","Yes","No") -> Yes | X159: =IF(IFERROR(INDEX('Output| TRR Driver'!$L$8:$L$49,MATCH($F159,'Output| TRR Driver'!$B$8:$B$49,0)),"")="Corporate","Yes","No") -> No | AC159: 0 | AD159: 0 | AE159: 1 | AF159: 0 | AG159: 0 | AH159: 0 | AI159: 0 | AJ159: 0 | AK159: 0 | AL159: 0 | AN159: 0 | AO159: 0 | AP159: 0 | AQ159: 0 | AR159: 0 | AS159: 1 | AT159: 0 | AU159: 0 | AV159: 0 | AW159: 0 | AX159: 0 | AY159: 0 | AZ159: 0 | BA159: 0 | BB159: 0 | BC159: 0 | BD159: 0 | BE159: 0 | BF159: 0
B160: 151 | C160: SOCI - Signage | D160: Program | F160: SOCI | H160: Compliance | I160: Replacement | K160: 25.25 | L160: 101 | M160: 120.125 | N160: 164.6875 | O160: 126.25 | P160: 126.25 | Q160: 94.6875 | S160: 0.1 | T160: 0.5 | U160: 0.4 | W160: =IF(IFERROR(INDEX('Output| TRR Driver'!$L$8:$L$49,MATCH($F160,'Output| TRR Driver'!$B$8:$B$49,0)),"")="Network","Yes","No") -> Yes | X160: =IF(IFERROR(INDEX('Output| TRR Driver'!$L$8:$L$49,MATCH($F160,'Output| TRR Driver'!$B$8:$B$49,0)),"")="Corporate","Yes","No") -> No | AC160: 0 | AD160: 0 | AE160: 1 | AF160: 0 | AG160: 0 | AH160: 0 | AI160: 0 | AJ160: 0 | AK160: 0 | AL160: 0 | AN160: 0 | AO160: 0 | AP160: 0 | AQ160: 0 | AR160: 0 | AS160: 1 | AT160: 0 | AU160: 0 | AV160: 0 | AW160: 0 | AX160: 0 | AY160: 0 | AZ160: 0 | BA160: 0 | BB160: 0 | BC160: 0 | BD160: 0 | BE160: 0 | BF160: 0
B161: 152 | C161: SOCI - Window Protection | D161: Program | F161: SOCI | H161: Compliance | I161: Replacement | K161: 15.2 | L161: 69.85 | M161: 84.3 | N161: 34.65 | O161: 0 | P161: 0 | Q161: 0 | S161: 0.1 | T161: 0.5 | U161: 0.4 | W161: =IF(IFERROR(INDEX('Output| TRR Driver'!$L$8:$L$49,MATCH($F161,'Output| TRR Driver'!$B$8:$B$49,0)),"")="Network","Yes","No") -> Yes | X161: =IF(IFERROR(INDEX('Output| TRR Driver'!$L$8:$L$49,MATCH($F161,'Output| TRR Driver'!$B$8:$B$49,0)),"")="Corporate","Yes","No") -> No | AC161: 0 | AD161: 0 | AE161: 1 | AF161: 0 | AG161: 0 | AH161: 0 | AI161: 0 | AJ161: 0 | AK161: 0 | AL161: 0 | AN161: 0 | AO161: 0 | AP161: 0 | AQ161: 0 | AR161: 0 | AS161: 1 | AT161: 0 | AU161: 0 | AV161: 0 | AW161: 0 | AX161: 0 | AY161: 0 | AZ161: 0 | BA161: 0 | BB161: 0 | BC161: 0 | BD161: 0 | BE161: 0 | BF161: 0
B162: 153 | C162: SOCI - Security Fencing | D162: Program | F162: SOCI | H162: Compliance | I162: Replacement | K162: 2109.25 | L162: 11327.8875 | M162: 8040.778625 | N162: 3374.217125 | O162: 6417.5 | P162: 4640 | Q162: 3480 | S162: 0.1 | T162: 0.5 | U162: 0.4 | W162: =IF(IFERROR(INDEX('Output| TRR Driver'!$L$8:$L$49,MATCH($F162,'Output| TRR Driver'!$B$8:$B$49,0)),"")="Network","Yes","No") -> Yes | X162: =IF(IFERROR(INDEX('Output| TRR Driver'!$L$8:$L$49,MATCH($F162,'Output| TRR Driver'!$B$8:$B$49,0)),"")="Corporate","Yes","No") -> No | AC162: 0 | AD162: 0 | AE162: 1 | AF162: 0 | AG162: 0 | AH162: 0 | AI162: 0 | AJ162: 0 | AK162: 0 | AL162: 0 | AN162: 0 | AO162: 0 | AP162: 0 | AQ162: 0 | AR162: 0 | AS162: 1 | AT162: 0 | AU162: 0 | AV162: 0 | AW162: 0 | AX162: 0 | AY162: 0 | AZ162: 0 | BA162: 0 | BB162: 0 | BC162: 0 | BD162: 0 | BE162: 0 | BF162: 0
B163: 154 | C163: SOCI - Gate Installation and Paving Works (exclusive of Gate Motors) | D163: Program | F163: SOCI | H163: Compliance | I163: Replacement | K163: 146.25 | L163: 764.46 | M163: 1130.63 | N163: 460.5 | O163: 0 | P163: 0 | Q163: 0 | S163: 0.1 | T163: 0.5 | U163: 0.4 | W163: =IF(IFERROR(INDEX('Output| TRR Driver'!$L$8:$L$49,MATCH($F163,'Output| TRR Driver'!$B$8:$B$49,0)),"")="Network","Yes","No") -> Yes | X163: =IF(IFERROR(INDEX('Output| TRR Driver'!$L$8:$L$49,MATCH($F163,'Output| TRR Driver'!$B$8:$B$49,0)),"")="Corporate","Yes","No") -> No | AC163: 0 | AD163: 0 | AE163: 1 | AF163: 0 | AG163: 0 | AH163: 0 | AI163: 0 | AJ163: 0 | AK163: 0 | AL163: 0 | AN163: 0 | AO163: 0 | AP163: 0 | AQ163: 0 | AR163: 0 | AS163: 1 | AT163: 0 | AU163: 0 | AV163: 0 | AW163: 0 | AX163: 0 | AY163: 0 | AZ163: 0 | BA163: 0 | BB163: 0 | BC163: 0 | BD163: 0 | BE163: 0 | BF163: 0
B164: 155 | C164: SOCI - Access Control | D164: Program | F164: SOCI | H164: Compliance | I164: Replacement | K164: 0 | L164: 0 | M164: 72 | N164: 72 | O164: 72 | P164: 72 | Q164: 0 | S164: 0.1 | T164: 0.5 | U164: 0.4 | W164: =IF(IFERROR(INDEX('Output| TRR Driver'!$L$8:$L$49,MATCH($F164,'Output| TRR Driver'!$B$8:$B$49,0)),"")="Network","Yes","No") -> Yes | X164: =IF(IFERROR(INDEX('Output| TRR Driver'!$L$8:$L$49,MATCH($F164,'Output| TRR Driver'!$B$8:$B$49,0)),"")="Corporate","Yes","No") -> No | AC164: 0 | AD164: 0 | AE164: 1 | AF164: 0 | AG164: 0 | AH164: 0 | AI164: 0 | AJ164: 0 | AK164: 0 | AL164: 0 | AN164: 0 | AO164: 0 | AP164: 0 | AQ164: 0 | AR164: 0 | AS164: 0 | AT164: 1 | AU164: 0 | AV164: 0 | AW164: 0 | AX164: 0 | AY164: 0 | AZ164: 0 | BA164: 0 | BB164: 0 | BC164: 0 | BD164: 0 | BE164: 0 | BF164: 0
B165: 156 | C165: Non-SOCI Security - Fault Finding - Replacement of Broken Assets | D165: Program | F165: Non-SOCI Security | H165: Compliance | I165: Replacement | K165: 25 | L165: 100 | M165: 100 | N165: 92.5 | O165: 65 | P165: 50 | Q165: 50 | S165: 0.1 | T165: 0.5 | U165: 0.4 | W165: =IF(IFERROR(INDEX('Output| TRR Driver'!$L$8:$L$49,MATCH($F165,'Output| TRR Driver'!$B$8:$B$49,0)),"")="Network","Yes","No") -> Yes | X165: =IF(IFERROR(INDEX('Output| TRR Driver'!$L$8:$L$49,MATCH($F165,'Output| TRR Driver'!$B$8:$B$49,0)),"")="Corporate","Yes","No") -> No | AC165: 0 | AD165: 0 | AE165: 1 | AF165: 0 | AG165: 0 | AH165: 0 | AI165: 0 | AJ165: 0 | AK165: 0 | AL165: 0 | AN165: 0 | AO165: 0 | AP165: 0 | AQ165: 0 | AR165: 0 | AS165: 1 | AT165: 0 | AU165: 0 | AV165: 0 | AW165: 0 | AX165: 0 | AY165: 0 | AZ165: 0 | BA165: 0 | BB165: 0 | BC165: 0 | BD165: 0 | BE165: 0 | BF165: 0
B166: 157 | C166: Non-SOCI Security - Replacement Gate Motors | D166: Program | F166: Non-SOCI Security | H166: Compliance | I166: Replacement | K166: 0 | L166: 0 | M166: 140.4 | N166: 421.2 | O166: 0 | P166: 0 | Q166: 0 | S166: 0.1 | T166: 0.5 | U166: 0.4 | W166: =IF(IFERROR(INDEX('Output| TRR Driver'!$L$8:$L$49,MATCH($F166,'Output| TRR Driver'!$B$8:$B$49,0)),"")="Network","Yes","No") -> Yes | X166: =IF(IFERROR(INDEX('Output| TRR Driver'!$L$8:$L$49,MATCH($F166,'Output| TRR Driver'!$B$8:$B$49,0)),"")="Corporate","Yes","No") -> No | AC166: 0 | AD166: 0 | AE166: 1 | AF166: 0 | AG166: 0 | AH166: 0 | AI166: 0 | AJ166: 0 | AK166: 0 | AL166: 0 | AN166: 0 | AO166: 0 | AP166: 0 | AQ166: 0 | AR166: 0 | AS166: 1 | AT166: 0 | AU166: 0 | AV166: 0 | AW166: 0 | AX166: 0 | AY166: 0 | AZ166: 0 | BA166: 0 | BB166: 0 | BC166: 0 | BD166: 0 | BE166: 0 | BF166: 0
B167: 158 | C167: Non-SOCI Security - Padlock Protection | D167: Program | F167: Non-SOCI Security | H167: Compliance | I167: Replacement | K167: 0 | L167: 0 | M167: 75.09375 | N167: 225.28125 | O167: 0 | P167: 0 | Q167: 0 | S167: 0.1 | T167: 0.5 | U167: 0.4 | W167: =IF(IFERROR(INDEX('Output| TRR Driver'!$L$8:$L$49,MATCH($F167,'Output| TRR Driver'!$B$8:$B$49,0)),"")="Network","Yes","No") -> Yes | X167: =IF(IFERROR(INDEX('Output| TRR Driver'!$L$8:$L$49,MATCH($F167,'Output| TRR Driver'!$B$8:$B$49,0)),"")="Corporate","Yes","No") -> No | AC167: 0 | AD167: 0 | AE167: 1 | AF167: 0 | AG167: 0 | AH167: 0 | AI167: 0 | AJ167: 0 | AK167: 0 | AL167: 0 | AN167: 0 | AO167: 0 | AP167: 0 | AQ167: 0 | AR167: 0 | AS167: 1 | AT167: 0 | AU167: 0 | AV167: 0 | AW167: 0 | AX167: 0 | AY167: 0 | AZ167: 0 | BA167: 0 | BB167: 0 | BC167: 0 | BD167: 0 | BE167: 0 | BF167: 0
B168: 159 | C168: Non-SOCI Security - CCTV End of Life replacement (Tier 1 and Tier 2) | D168: Program | F168: Non-SOCI Security | H168: Compliance | I168: Replacement | K168: 0 | L168: 0 | M168: 0 | N168: 0 | O168: 0 | P168: 0 | Q168: 767.04 | S168: 0.1 | T168: 0.5 | U168: 0.4 | W168: =IF(IFERROR(INDEX('Output| TRR Driver'!$L$8:$L$49,MATCH($F168,'Output| TRR Driver'!$B$8:$B$49,0)),"")="Network","Yes","No") -> Yes | X168: =IF(IFERROR(INDEX('Output| TRR Driver'!$L$8:$L$49,MATCH($F168,'Output| TRR Driver'!$B$8:$B$49,0)),"")="Corporate","Yes","No") -> No | AC168: 0 | AD168: 0 | AE168: 1 | AF168: 0 | AG168: 0 | AH168: 0 | AI168: 0 | AJ168: 0 | AK168: 0 | AL168: 0 | AN168: 0 | AO168: 0 | AP168: 0 | AQ168: 0 | AR168: 0 | AS168: 0 | AT168: 1 | AU168: 0 | AV168: 0 | AW168: 0 | AX168: 0 | AY168: 0 | AZ168: 0 | BA168: 0 | BB168: 0 | BC168: 0 | BD168: 0 | BE168: 0 | BF168: 0
B169: 160 | C169: Non-SOCI Security - Trailer technology replacement | D169: Program | F169: Non-SOCI Security | H169: Compliance | I169: Replacement | K169: 0 | L169: 0 | M169: 0 | N169: 0 | O169: 0 | P169: 80 | Q169: 240 | S169: 0.1 | T169: 0.5 | U169: 0.4 | W169: =IF(IFERROR(INDEX('Output| TRR Driver'!$L$8:$L$49,MATCH($F169,'Output| TRR Driver'!$B$8:$B$49,0)),"")="Network","Yes","No") -> Yes | X169: =IF(IFERROR(INDEX('Output| TRR Driver'!$L$8:$L$49,MATCH($F169,'Output| TRR Driver'!$B$8:$B$49,0)),"")="Corporate","Yes","No") -> No | AC169: 0 | AD169: 0 | AE169: 1 | AF169: 0 | AG169: 0 | AH169: 0 | AI169: 0 | AJ169: 0 | AK169: 0 | AL169: 0 | AN169: 0 | AO169: 0 | AP169: 0 | AQ169: 0 | AR169: 0 | AS169: 0 | AT169: 1 | AU169: 0 | AV169: 0 | AW169: 0 | AX169: 0 | AY169: 0 | AZ169: 0 | BA169: 0 | BB169: 0 | BC169: 0 | BD169: 0 | BE169: 0 | BF169: 0
B170: 161 | C170: Non-SOCI Security - CCTV Server Replacement | D170: Program | F170: Non-SOCI Security | H170: Compliance | I170: Replacement | K170: 0 | L170: 0 | M170: 0 | N170: 0 | O170: 0 | P170: 255.75 | Q170: 767.25 | S170: 0.1 | T170: 0.5 | U170: 0.4 | V170: =IF(SUM(S170:U170,K170:Q170)=0,"",IF(SUM(S170:U170)=1,"",1)) ->  | W170: =IF(IFERROR(INDEX('Output| TRR Driver'!$L$8:$L$49,MATCH($F170,'Output| TRR Driver'!$B$8:$B$49,0)),"")="Network","Yes","No") -> Yes | X170: =IF(IFERROR(INDEX('Output| TRR Driver'!$L$8:$L$49,MATCH($F170,'Output| TRR Driver'!$B$8:$B$49,0)),"")="Corporate","Yes","No") -> No | AC170: 0 | AD170: 0 | AE170: 1 | AF170: 0 | AG170: 0 | AH170: 0 | AI170: 0 | AJ170: 0 | AK170: 0 | AL170: 0 | AN170: 0 | AO170: 0 | AP170: 0 | AQ170: 0 | AR170: 0 | AS170: 0 | AT170: 1 | AU170: 0 | AV170: 0 | AW170: 0 | AX170: 0 | AY170: 0 | AZ170: 0 | BA170: 0 | BB170: 0 | BC170: 0 | BD170: 0 | BE170: 0 | BF170: 0
B171: 162 | C171: Non-SOCI Security - Rapid Deployment camera | D171: Program | F171: Non-SOCI Security | H171: Compliance | I171: Replacement | K171: 0 | L171: 75 | M171: 225 | N171: 0 | O171: 0 | P171: 0 | Q171: 0 | S171: 0.1 | T171: 0.5 | U171: 0.4 | W171: =IF(IFERROR(INDEX('Output| TRR Driver'!$L$8:$L$49,MATCH($F171,'Output| TRR Driver'!$B$8:$B$49,0)),"")="Network","Yes","No") -> Yes | X171: =IF(IFERROR(INDEX('Output| TRR Driver'!$L$8:$L$49,MATCH($F171,'Output| TRR Driver'!$B$8:$B$49,0)),"")="Corporate","Yes","No") -> No | AC171: 0 | AD171: 0 | AE171: 1 | AF171: 0 | AG171: 0 | AH171: 0 | AI171: 0 | AJ171: 0 | AK171: 0 | AL171: 0 | AN171: 0 | AO171: 0 | AP171: 0 | AQ171: 0 | AR171: 0 | AS171: 0 | AT171: 1 | AU171: 0 | AV171: 0 | AW171: 0 | AX171: 0 | AY171: 0 | AZ171: 0 | BA171: 0 | BB171: 0 | BC171: 0 | BD171: 0 | BE171: 0 | BF171: 0
B172: 163 | C172: Non-SOCI Security - Security Control Room Upgrade | D172: Program | F172: Non-SOCI Security | H172: Compliance | I172: Replacement | K172: 0 | L172: 312.5 | M172: 937.5 | N172: 0 | O172: 0 | P172: 0 | Q172: 0 | S172: 0.1 | T172: 0.5 | U172: 0.4 | W172: =IF(IFERROR(INDEX('Output| TRR Driver'!$L$8:$L$49,MATCH($F172,'Output| TRR Driver'!$B$8:$B$49,0)),"")="Network","Yes","No") -> Yes | X172: =IF(IFERROR(INDEX('Output| TRR Driver'!$L$8:$L$49,MATCH($F172,'Output| TRR Driver'!$B$8:$B$49,0)),"")="Corporate","Yes","No") -> No | AC172: 0 | AD172: 0 | AE172: 1 | AF172: 0 | AG172: 0 | AH172: 0 | AI172: 0 | AJ172: 0 | AK172: 0 | AL172: 0 | AN172: 0 | AO172: 0 | AP172: 0 | AQ172: 0 | AR172: 0 | AS172: 0 | AT172: 1 | AU172: 0 | AV172: 0 | AW172: 0 | AX172: 0 | AY172: 0 | AZ172: 0 | BA172: 0 | BB172: 0 | BC172: 0 | BD172: 0 | BE172: 0 | BF172: 0
B173: 164 | C173: Non-SOCI Security - Future Technology | D173: Program | F173: Non-SOCI Security | H173: Compliance | I173: Replacement | K173: 0 | L173: 0 | M173: 0 | N173: 0 | O173: 0 | P173: 0 | Q173: 0 | S173: 0.1 | T173: 0.5 | U173: 0.4 | W173: =IF(IFERROR(INDEX('Output| TRR Driver'!$L$8:$L$49,MATCH($F173,'Output| TRR Driver'!$B$8:$B$49,0)),"")="Network","Yes","No") -> Yes | X173: =IF(IFERROR(INDEX('Output| TRR Driver'!$L$8:$L$49,MATCH($F173,'Output| TRR Driver'!$B$8:$B$49,0)),"")="Corporate","Yes","No") -> No | AC173: 0 | AD173: 0 | AE173: 1 | AF173: 0 | AG173: 0 | AH173: 0 | AI173: 0 | AJ173: 0 | AK173: 0 | AL173: 0 | AN173: 0 | AO173: 0 | AP173: 0 | AQ173: 0 | AR173: 0 | AS173: 0 | AT173: 1 | AU173: 0 | AV173: 0 | AW173: 0 | AX173: 0 | AY173: 0 | AZ173: 0 | BA173: 0 | BB173: 0 | BC173: 0 | BD173: 0 | BE173: 0 | BF173: 0
B174: 165 | K174: 0 | L174: 0 | M174: 0 | N174: 0 | O174: 0 | P174: 0 | Q174: 0 | S174: 0 | T174: 0 | U174: 0 | AC174: 0 | AD174: 0 | AE174: 0 | AF174: 0 | AG174: 0 | AH174: 0 | AI174: 0 | AJ174: 0 | AK174: 0 | AL174: 0 | AN174: 0 | AO174: 0 | AP174: 0 | AQ174: 0 | AR174: 0 | AS174: 0 | AT174: 0 | AU174: 0 | AV174: 0 | AW174: 0 | AX174: 0 | AY174: 0 | AZ174: 0 | BA174: 0 | BB174: 0 | BC174: 0 | BD174: 0 | BE174: 0 | BF174: 0
B175: 166 | K175: 0 | L175: 0 | M175: 0 | N175: 0 | O175: 0 | P175: 0 | Q175: 0 | S175: 0 | T175: 0 | U175: 0 | AC175: 0 | AD175: 0 | AE175: 0 | AF175: 0 | AG175: 0 | AH175: 0 | AI175: 0 | AJ175: 0 | AK175: 0 | AL175: 0 | AN175: 0 | AO175: 0 | AP175: 0 | AQ175: 0 | AR175: 0 | AS175: 0 | AT175: 0 | AU175: 0 | AV175: 0 | AW175: 0 | AX175: 0 | AY175: 0 | AZ175: 0 | BA175: 0 | BB175: 0 | BC175: 0 | BD175: 0 | BE175: 0 | BF175: 0
B176: 167 | M176: 0 | N176: 0 | O176: 0 | P176: 0 | Q176: 0 | S176: 0 | T176: 0 | U176: 0 | AC176: 0 | AD176: 0 | AE176: 0 | AF176: 0 | AG176: 0 | AH176: 0 | AI176: 0 | AJ176: 0 | AK176: 0 | AL176: 0 | AN176: 0 | AO176: 0 | AP176: 0 | AQ176: 0 | AR176: 0 | AS176: 0 | AT176: 0 | AU176: 0 | AV176: 0 | AW176: 0 | AX176: 0 | AY176: 0 | AZ176: 0 | BA176: 0 | BB176: 0 | BC176: 0 | BD176: 0 | BE176: 0 | BF176: 0
B177: 168 | M177: 0 | N177: 0 | O177: 0 | P177: 0 | Q177: 0 | S177: 0 | T177: 0 | U177: 0 | AC177: 0 | AD177: 0 | AE177: 0 | AF177: 0 | AG177: 0 | AH177: 0 | AI177: 0 | AJ177: 0 | AK177: 0 | AL177: 0 | AN177: 0 | AO177: 0 | AP177: 0 | AQ177: 0 | AR177: 0 | AS177: 0 | AT177: 0 | AU177: 0 | AV177: 0 | AW177: 0 | AX177: 0 | AY177: 0 | AZ177: 0 | BA177: 0 | BB177: 0 | BC177: 0 | BD177: 0 | BE177: 0 | BF177: 0
B178: 169 | M178: 0 | N178: 0 | O178: 0 | P178: 0 | Q178: 0 | S178: 0 | T178: 0 | U178: 0 | AC178: 0 | AD178: 0 | AE178: 0 | AF178: 0 | AG178: 0 | AH178: 0 | AI178: 0 | AJ178: 0 | AK178: 0 | AL178: 0 | AN178: 0 | AO178: 0 | AP178: 0 | AQ178: 0 | AR178: 0 | AS178: 0 | AT178: 0 | AU178: 0 | AV178: 0 | AW178: 0 | AX178: 0 | AY178: 0 | AZ178: 0 | BA178: 0 | BB178: 0 | BC178: 0 | BD178: 0 | BE178: 0 | BF178: 0
B179: 170 | M179: 0 | N179: 0 | O179: 0 | P179: 0 | Q179: 0 | S179: 0 | T179: 0 | U179: 0
B180: 171 | M180: 0 | N180: 0 | O180: 0 | P180: 0 | Q180: 0 | S180: 0 | T180: 0 | U180: 0
B181: 172 | M181: 0 | N181: 0 | O181: 0 | P181: 0 | Q181: 0 | S181: 0 | T181: 0 | U181: 0
B182: 173 | M182: 0 | N182: 0 | O182: 0 | P182: 0 | Q182: 0 | S182: 0 | T182: 0 | U182: 0
B183: 174 | M183: 0 | N183: 0 | O183: 0 | P183: 0 | Q183: 0 | S183: 0 | T183: 0 | U183: 0
B184: 175 | M184: 0 | N184: 0 | O184: 0 | P184: 0 | Q184: 0 | S184: 0 | T184: 0 | U184: 0
B185: 176 | M185: 0 | N185: 0 | O185: 0 | P185: 0 | Q185: 0 | S185: 0 | T185: 0 | U185: 0
B186: 177 | M186: 0 | N186: 0 | O186: 0 | P186: 0 | Q186: 0 | S186: 0 | T186: 0 | U186: 0
B187: 178
B188: 179
B189: 180
B190: 181
B191: 182
B192: 183
B193: 184
B194: 185
B195: 186
B196: 187
B197: 188
B198: 189
B199: 190
B200: 191
B201: 192
... 8 more rows

Sheet Input| Projects As Com
A1: ='Input| Setup'!E5&" "&'Input| Escalations'!D8 -> AusNet Transmission 2027-28
C2: =IFERROR(Index!B2,"") -> AER Capex Forecast Model | D2: Sheet Validation | E2: ='Model Validation'!$C$10 -> 0 | J2: Key: | K2: Input | L2: Input - optional | M2: Formula - do not edit
C3: =IFERROR(MID(CELL("filename",B2),FIND("]",CELL("filename",B2))+1,255),"") -> Input| Projects As Com
C7: =LEFT('Input| Projects As Inc'!AN7,2)+1&". Project Details" -> 21. Project Details | H7: =IFERROR(LEFT(C7,2)+1&". AUC ($'000s "&'Input| Escalations'!$D$9&" "&'Input| Escalations'!$E$9&")","") -> 22. AUC ($'000s 2024-25 March) | J7: =LEFT(H7,2)+1&". As Commissioned % " -> 23. As Commissioned % | T7: =LEFT(J7,2)+1&". RIN Repex Category % " -> 24. RIN Repex Category %
S8: =IF(SUM(S10:S209)=0,0,1) -> 0 | AD8: =IF(SUM(AD10:AD209)=0,0,1) -> 0
C9: Project/Program Inputs | D9: Unique ID | F9: As Commisssioned Forecast | H9: 2025-03-01 | J9: =IFERROR('Input| Escalations'!H23,"") -> 2025-26 | K9: =IFERROR('Input| Escalations'!I23,"") -> 2026-27 | L9: =IFERROR('Input| Escalations'!J23,"") -> 2027-28 | M9: =IFERROR('Input| Escalations'!K23,"") -> 2028-29 | N9: =IFERROR('Input| Escalations'!L23,"") -> 2029-30 | O9: =IFERROR('Input| Escalations'!M23,"") -> 2030-31 | P9: =IFERROR('Input| Escalations'!N23,"") -> 2031-32 | Q9: 2032-33 | R9: Total | T9: =IF('Input| Setup'!$B30="","!Check",'Input| Setup'!$B30) -> Transmission Towers | U9: =IF('Input| Setup'!$B31="","!Check",'Input| Setup'!$B31) -> Transmission Tower Support Structures | V9: =IF('Input| Setup'!$B32="","!Check",'Input| Setup'!$B32) -> Conductors | W9: =IF('Input| Setup'!$B33="","!Check",'Input| Setup'!$B33) -> Transmission Cables | X9: =IF('Input| Setup'!$B34="","!Check",'Input| Setup'!$B34) -> Substation Switchbays | Y9: =IF('Input| Setup'!$B35="","!Check",'Input| Setup'!$B35) -> Substation Power Transformers | Z9: =IF('Input| Setup'!$B36="","!Check",'Input| Setup'!$B36) -> Substation Reactive Plant | AA9: =IF('Input| Setup'!$B37="","!Check",'Input| Setup'!$B37) -> Scada, Network Control And Protection Systems | AB9: =IF('Input| Setup'!$B38="","!Check",'Input| Setup'!$B38) -> Other | AC9: Total
B10: 1 | C10: ='Input| Projects As Inc'!C10 -> MLTS CB Replacement | D10: ='Input| Projects As Inc'!D10 -> TD-0006168 | F10: =IF('Input| Projects As Inc'!F10="Major Station","Yes","No") -> Yes | H10: 10434.60542 | J10: 0.4740408098 | K10: 0.3619365643 | L10: 0.1640226259 | M10: 0 | N10: 0 | O10: 0 | P10: 0 | Q10: 0 | R10: =SUM(J10:Q10) -> 1 | S10: =IF(OR($F10="No",AND($F10="Yes",R10=100%)),"",1) ->  | T10: 0 | U10: 0 | V10: 0.03024450539 | W10: 0 | X10: 0.7720258455 | Y10: 0 | Z10: 0 | AA10: 0.02876485049 | AB10: 0.1689647986 | AC10: =SUM(T10:AB10) -> 1 | AD10: =IF(OR('Input| Projects As Inc'!I10<>"Replacement",AND('Input| Projects As Inc'!I10="Replacement",AC10=100%)),"",1) -> 
B11: =IFERROR(B10+1,"") -> 2 | C11: ='Input| Projects As Inc'!C11 -> TSTS - Tx and Switchgear Replacement | D11: ='Input| Projects As Inc'!D11 -> TD-0007772 | F11: =IF('Input| Projects As Inc'!F11="Major Station","Yes","No") -> Yes | H11: 39587.0115 | J11: 1 | K11: 0 | L11: 0 | M11: 0 | N11: 0 | O11: 0 | P11: 0 | Q11: 0 | R11: =SUM(J11:Q11) -> 1 | S11: =IF(OR($F11="No",AND($F11="Yes",R11=100%)),"",1) ->  | T11: 0 | U11: 0 | V11: 0 | W11: 0 | X11: 0.3920976525 | Y11: 0.3801325547 | Z11: 0 | AA11: 0.1429402026 | AB11: 0.08482959018 | AC11: =SUM(T11:AB11) -> 1 | AD11: =IF(OR('Input| Projects As Inc'!I11<>"Replacement",AND('Input| Projects As Inc'!I11="Replacement",AC11=100%)),"",1) -> 
B12: =IFERROR(B11+1,"") -> 3 | C12: ='Input| Projects As Inc'!C12 -> SHTS Transformer and CB Replacement | D12: ='Input| Projects As Inc'!D12 -> TD-0007996 | F12: =IF('Input| Projects As Inc'!F12="Major Station","Yes","No") -> Yes | H12: 16178.86423 | J12: 0.4496709308 | K12: 0.2933853006 | L12: 0.2421305012 | M12: 0.01481326734 | N12: 0 | O12: 0 | P12: 0 | Q12: 0 | R12: 1 | T12: 0 | U12: 0 | V12: 0 | W12: 0 | X12: 0.3920976525 | Y12: 0.3801325547 | Z12: 0 | AA12: 0.1429402026 | AB12: 0.08482959018 | AC12: 1 | AD12: =IF(OR('Input| Projects As Inc'!I12<>"Replacement",AND('Input| Projects As Inc'!I12="Replacement",AC12=100%)),"",1) -> 
B13: 4 | C13: ='Input| Projects As Inc'!C13 -> RCTS Transformer & SwitchgearReplacement | D13: ='Input| Projects As Inc'!D13 -> TD-0008004 | F13: =IF('Input| Projects As Inc'!F13="Major Station","Yes","No") -> Yes | H13: 5841.87889 | J13: 0.1989036062 | K13: 0.3315060103 | L13: 0.4695903835 | M13: 0 | N13: 0 | O13: 0 | P13: 0 | Q13: 0 | R13: 1 | T13: 0 | U13: 0 | V13: 0.0506414847 | W13: 0 | X13: 0.08371378898 | Y13: 0.6629848233 | Z13: 0 | AA13: 0.05269332458 | AB13: 0.1499665784 | AC13: 1 | AD13: =IF(OR('Input| Projects As Inc'!I13<>"Replacement",AND('Input| Projects As Inc'!I13="Replacement",AC13=100%)),"",1) -> 
B14: 5 | C14: ='Input| Projects As Inc'!C14 -> SYTS 500kV GIS Replacement | D14: ='Input| Projects As Inc'!D14 -> TD-0008033 | F14: =IF('Input| Projects As Inc'!F14="Major Station","Yes","No") -> Yes | H14: 18778.02912 | J14: 0 | K14: 0.7815230373 | L14: 0.2184769627 | M14: 0 | N14: 0 | O14: 0 | P14: 0 | Q14: 0 | R14: 1 | T14: 0 | U14: 0 | V14: 0.2736387586 | W14: 0 | X14: 0.3306974085 | Y14: 0 | Z14: 0 | AA14: 0.1652403331 | AB14: 0.2304234998 | AC14: 1 | AD14: =IF(OR('Input| Projects As Inc'!I14<>"Replacement",AND('Input| Projects As Inc'!I14="Replacement",AC14=100%)),"",1) -> 
B15: 6 | C15: ='Input| Projects As Inc'!C15 ->  | D15: ='Input| Projects As Inc'!D15 ->  | F15: =IF('Input| Projects As Inc'!F15="Major Station","Yes","No") -> No | R15: 0 | T15: 0 | U15: 0 | V15: 0 | W15: 0 | X15: 0 | Y15: 0 | Z15: 0 | AA15: 0 | AB15: 0 | AC15: 0 | AD15: =IF(OR('Input| Projects As Inc'!I15<>"Replacement",AND('Input| Projects As Inc'!I15="Replacement",AC15=100%)),"",1) -> 
B16: 7 | C16: ='Input| Projects As Inc'!C16 ->  | D16: ='Input| Projects As Inc'!D16 ->  | F16: =IF('Input| Projects As Inc'!F16="Major Station","Yes","No") -> No | R16: 0 | T16: 0 | U16: 0 | V16: 0 | W16: 0 | X16: 0 | Y16: 0 | Z16: 0 | AA16: 0 | AB16: 0 | AC16: 0 | AD16: =IF(OR('Input| Projects As Inc'!I16<>"Replacement",AND('Input| Projects As Inc'!I16="Replacement",AC16=100%)),"",1) -> 
B17: 8 | C17: ='Input| Projects As Inc'!C17 -> KTS 500/220kV Transformer Replacement | D17: ='Input| Projects As Inc'!D17 -> TD-0003454 | F17: =IF('Input| Projects As Inc'!F17="Major Station","Yes","No") -> Yes | J17: 0 | K17: 0 | L17: 0.1935300125 | M17: 0.4315761592 | N17: 0.04556390496 | O17: 0.1780047012 | P17: 0.1513252222 | Q17: 0 | R17: 1 | T17: 0 | U17: 0 | V17: 0.01540587377 | W17: 0 | X17: 0.1117996296 | Y17: 0.7380019726 | Z17: 0 | AA17: 0.04979058898 | AB17: 0.08500193505 | AC17: 1 | AD17: =IF(OR('Input| Projects As Inc'!I17<>"Replacement",AND('Input| Projects As Inc'!I17="Replacement",AC17=100%)),"",1) -> 
B18: 9 | C18: ='Input| Projects As Inc'!C18 -> SMTS 500kV GIS and F2 Transformer Replacement | D18: ='Input| Projects As Inc'!D18 -> TD-0008025 | F18: =IF('Input| Projects As Inc'!F18="Major Station","Yes","No") -> Yes | J18: 0 | K18: 0 | L18: 0.06685922189 | M18: 0.1671480547 | N18: 0.1337184438 | O18: 0.1838628602 | P18: 0.3008664985 | Q18: 0.1475449208 | R18: 1 | T18: 0 | U18: 0 | V18: 0.1010973247 | W18: 0 | X18: 0.338315536 | Y18: 0.2188228918 | Z18: 0 | AA18: 0.1162497459 | AB18: 0.2255145016 | AC18: 1 | AD18: =IF(OR('Input| Projects As Inc'!I18<>"Replacement",AND('Input| Projects As Inc'!I18="Replacement",AC18=100%)),"",1) -> 
B19: 10 | C19: ='Input| Projects As Inc'!C19 -> SMTS 330/220kV Transformer Replacement | D19: ='Input| Projects As Inc'!D19 -> TD-0014633 | F19: =IF('Input| Projects As Inc'!F19="Major Station","Yes","No") -> Yes | J19: 0 | K19: 0.06820935166 | L19: 0.204628055 | M19: 0.7271625934 | N19: 0 | O19: 0 | P19: 0 | Q19: 0 | R19: 1 | T19: 0 | U19: 0 | V19: 0.0144203101 | W19: 0 | X19: 0.06402484468 | Y19: 0.8685691991 | Z19: 0 | AA19: 0.02396090167 | AB19: 0.02902474444 | AC19: 1 | AD19: =IF(OR('Input| Projects As Inc'!I19<>"Replacement",AND('Input| Projects As Inc'!I19="Replacement",AC19=100%)),"",1) -> 
B20: 11 | C20: ='Input| Projects As Inc'!C20 -> NPSD 220kV GIS | D20: ='Input| Projects As Inc'!D20 -> TD-0013613 | F20: =IF('Input| Projects As Inc'!F20="Major Station","Yes","No") -> Yes | J20: 0 | K20: 0 | L20: 0 | M20: 0 | N20: 0 | O20: 1 | P20: 0 | Q20: 0 | R20: 1 | T20: 0 | U20: 0 | V20: 0.05483988482 | W20: 0 | X20: 0.4810704359 | Y20: 0 | Z20: 0 | AA20: 0.1001324438 | AB20: 0.3639572354 | AC20: 1 | AD20: =IF(OR('Input| Projects As Inc'!I20<>"Replacement",AND('Input| Projects As Inc'!I20="Replacement",AC20=100%)),"",1) -> 
B21: 12 | C21: ='Input| Projects As Inc'!C21 -> DDTS H3 330/220kV Transformer and Circuit Breaker Replacement | D21: ='Input| Projects As Inc'!D21 -> TD-0008026 | F21: =IF('Input| Projects As Inc'!F21="Major Station","Yes","No") -> Yes | J21: 0 | K21: 0 | L21: 0 | M21: 0.1136363636 | N21: 0.2727272727 | O21: 0.2727272727 | P21: 0.3409090909 | Q21: 0 | R21: 1 | T21: 0 | U21: 0 | V21: 0 | W21: 0 | X21: 0.2279179133 | Y21: 0.5824403709 | Z21: 0 | AA21: 0.1578233546 | AB21: 0.03181836118 | AC21: 1 | AD21: =IF(OR('Input| Projects As Inc'!I21<>"Replacement",AND('Input| Projects As Inc'!I21="Replacement",AC21=100%)),"",1) -> 
B22: 13 | C22: ='Input| Projects As Inc'!C22 -> WOTS Spare 330/66/22kV Transformer Procurement | D22: ='Input| Projects As Inc'!D22 -> TD-0016808 | F22: =IF('Input| Projects As Inc'!F22="Major Station","Yes","No") -> Yes | N22: 1 | R22: 1 | T22: 0 | U22: 0 | V22: 0 | W22: 0 | X22: 0 | Y22: 1 | Z22: 0 | AA22: 0 | AB22: 0 | AC22: 1 | AD22: =IF(OR('Input| Projects As Inc'!I22<>"Replacement",AND('Input| Projects As Inc'!I22="Replacement",AC22=100%)),"",1) -> 
B23: 14 | C23: ='Input| Projects As Inc'!C23 ->  | D23: ='Input| Projects As Inc'!D23 ->  | F23: =IF('Input| Projects As Inc'!F23="Major Station","Yes","No") -> No | R23: 0 | T23: 0 | U23: 0 | V23: 0 | W23: 0 | X23: 0 | Y23: 0 | Z23: 0 | AA23: 0 | AB23: 0 | AC23: 0 | AD23: =IF(OR('Input| Projects As Inc'!I23<>"Replacement",AND('Input| Projects As Inc'!I23="Replacement",AC23=100%)),"",1) -> 
B24: 15 | C24: ='Input| Projects As Inc'!C24 ->  | D24: ='Input| Projects As Inc'!D24 ->  | F24: =IF('Input| Projects As Inc'!F24="Major Station","Yes","No") -> No | R24: 0 | T24: 0 | U24: 0 | V24: 0 | W24: 0 | X24: 0 | Y24: 0 | Z24: 0 | AA24: 0 | AB24: 0 | AC24: 0 | AD24: =IF(OR('Input| Projects As Inc'!I24<>"Replacement",AND('Input| Projects As Inc'!I24="Replacement",AC24=100%)),"",1) -> 
B25: 16 | C25: ='Input| Projects As Inc'!C25 -> ROTS 500 kV GIL Replacement | D25: ='Input| Projects As Inc'!D25 -> TD-0013738 | F25: =IF('Input| Projects As Inc'!F25="Major Station","Yes","No") -> No | R25: 0 | T25: 0 | U25: 0 | V25: 0 | W25: 1 | X25: 0 | Y25: 0 | Z25: 0 | AA25: 0 | AB25: 0 | AC25: 1 | AD25: =IF(OR('Input| Projects As Inc'!I25<>"Replacement",AND('Input| Projects As Inc'!I25="Replacement",AC25=100%)),"",1) -> 
B26: 17 | C26: ='Input| Projects As Inc'!C26 -> TTS Circuit Breaker Replacement ​ | D26: ='Input| Projects As Inc'!D26 -> TD-0003597 | F26: =IF('Input| Projects As Inc'!F26="Major Station","Yes","No") -> No | R26: 0 | T26: 0 | U26: 0 | V26: 0 | W26: 0 | X26: 1 | Y26: 0 | Z26: 0 | AA26: 0 | AB26: 0 | AC26: 1 | AD26: =IF(OR('Input| Projects As Inc'!I26<>"Replacement",AND('Input| Projects As Inc'!I26="Replacement",AC26=100%)),"",1) -> 
B27: 18 | C27: ='Input| Projects As Inc'!C27 -> LYPS and HWTS 500kV Circuit Breaker Replacement Stage 2​ | D27: ='Input| Projects As Inc'!D27 -> TD-0008023 | F27: =IF('Input| Projects As Inc'!F27="Major Station","Yes","No") -> No | R27: 0 | T27: 0 | U27: 0 | V27: 0 | W27: 0 | X27: 1 | Y27: 0 | Z27: 0 | AA27: 0 | AB27: 0 | AC27: 1 | AD27: =IF(OR('Input| Projects As Inc'!I27<>"Replacement",AND('Input| Projects As Inc'!I27="Replacement",AC27=100%)),"",1) -> 
B28: 19 | C28: ='Input| Projects As Inc'!C28 -> MLTS Reactor Replacement​ | D28: ='Input| Projects As Inc'!D28 -> TD-0015755​ | F28: =IF('Input| Projects As Inc'!F28="Major Station","Yes","No") -> No | R28: 0 | T28: 0 | U28: 0 | V28: 0 | W28: 0 | X28: 0.19 | Y28: 0.35 | Z28: 0 | AA28: 0.29 | AB28: 0.17 | AC28: 1 | AD28: =IF(OR('Input| Projects As Inc'!I28<>"Replacement",AND('Input| Projects As Inc'!I28="Replacement",AC28=100%)),"",1) -> 
B29: 20 | C29: ='Input| Projects As Inc'!C29 -> BATS B2 Transformer Replacement | D29: ='Input| Projects As Inc'!D29 -> TD-0015756​ | F29: =IF('Input| Projects As Inc'!F29="Major Station","Yes","No") -> No | R29: 0 | T29: 0 | U29: 0 | V29: 0 | W29: 0 | X29: 0 | Y29: 0 | Z29: 1 | AA29: 0 | AB29: 0 | AC29: 1 | AD29: =IF(OR('Input| Projects As Inc'!I29<>"Replacement",AND('Input| Projects As Inc'!I29="Replacement",AC29=100%)),"",1) -> 
B30: 21 | C30: ='Input| Projects As Inc'!C30 -> MWTS 66kV Circuit Breaker Replacement​ | D30: ='Input| Projects As Inc'!D30 -> TD-0008003​ | F30: =IF('Input| Projects As Inc'!F30="Major Station","Yes","No") -> No | R30: 0 | T30: 0 | U30: 0 | V30: 0 | W30: 0 | X30: 1 | Y30: 0 | Z30: 0 | AA30: 0 | AB30: 0 | AC30: 1 | AD30: =IF(OR('Input| Projects As Inc'!I30<>"Replacement",AND('Input| Projects As Inc'!I30="Replacement",AC30=100%)),"",1) -> 
B31: 22 | C31: ='Input| Projects As Inc'!C31 -> TTS B4 Transformer Replacement | D31: ='Input| Projects As Inc'!D31 -> TD-0016676 | F31: =IF('Input| Projects As Inc'!F31="Major Station","Yes","No") -> No | R31: 0 | T31: 0 | U31: 0 | V31: 0 | W31: 0 | X31: 0 | Y31: 1 | Z31: 0 | AA31: 0 | AB31: 0 | AC31: 1 | AD31: =IF(OR('Input| Projects As Inc'!I31<>"Replacement",AND('Input| Projects As Inc'!I31="Replacement",AC31=100%)),"",1) -> 
B32: 23 | C32: ='Input| Projects As Inc'!C32 ->  | D32: ='Input| Projects As Inc'!D32 ->  | F32: =IF('Input| Projects As Inc'!F32="Major Station","Yes","No") -> No | R32: 0 | T32: 0 | U32: 0 | V32: 0 | W32: 0 | X32: 0 | Y32: 0 | Z32: 0 | AA32: 0 | AB32: 0 | AC32: 0 | AD32: =IF(OR('Input| Projects As Inc'!I32<>"Replacement",AND('Input| Projects As Inc'!I32="Replacement",AC32=100%)),"",1) -> 
B33: 24 | C33: ='Input| Projects As Inc'!C33 ->  | D33: ='Input| Projects As Inc'!D33 ->  | F33: =IF('Input| Projects As Inc'!F33="Major Station","Yes","No") -> No | R33: 0 | T33: 0 | U33: 0 | V33: 0 | W33: 0 | X33: 0 | Y33: 0 | Z33: 0 | AA33: 0 | AB33: 0 | AC33: 0 | AD33: =IF(OR('Input| Projects As Inc'!I33<>"Replacement",AND('Input| Projects As Inc'!I33="Replacement",AC33=100%)),"",1) -> 
B34: 25 | C34: ='Input| Projects As Inc'!C34 -> MPLS-TP Metro East Pilot Comms Replace | D34: ='Input| Projects As Inc'!D34 -> TD-0010115 | F34: =IF('Input| Projects As Inc'!F34="Major Station","Yes","No") -> No | R34: 0 | T34: 0 | U34: 0 | V34: 0 | W34: 0 | X34: 0 | Y34: 0 | Z34: 0 | AA34: 1 | AB34: 0 | AC34: 1 | AD34: =IF(OR('Input| Projects As Inc'!I34<>"Replacement",AND('Input| Projects As Inc'!I34="Replacement",AC34=100%)),"",1) -> 
B35: 26 | C35: ='Input| Projects As Inc'!C35 -> North East Network Comms Replacement | D35: ='Input| Projects As Inc'!D35 -> TD-0009897 | F35: =IF('Input| Projects As Inc'!F35="Major Station","Yes","No") -> No | R35: 0 | T35: 0 | U35: 0 | V35: 0 | W35: 0 | X35: 0 | Y35: 0 | Z35: 0 | AA35: 1 | AB35: 0 | AC35: 1 | AD35: =IF(OR('Input| Projects As Inc'!I35<>"Replacement",AND('Input| Projects As Inc'!I35="Replacement",AC35=100%)),"",1) -> 
B36: 27 | C36: ='Input| Projects As Inc'!C36 -> North West SDH Comms Replacement | D36: ='Input| Projects As Inc'!D36 -> TD-0013861 | F36: =IF('Input| Projects As Inc'!F36="Major Station","Yes","No") -> No | R36: 0 | T36: 0 | U36: 0 | V36: 0 | W36: 0 | X36: 0 | Y36: 0 | Z36: 0 | AA36: 1 | AB36: 0 | AC36: 1 | AD36: =IF(OR('Input| Projects As Inc'!I36<>"Replacement",AND('Input| Projects As Inc'!I36="Replacement",AC36=100%)),"",1) -> 
B37: 28 | C37: ='Input| Projects As Inc'!C37 -> Phasor Measurement Units Project 2024 | D37: ='Input| Projects As Inc'!D37 -> TD-0014486 | F37: =IF('Input| Projects As Inc'!F37="Major Station","Yes","No") -> No | R37: 0 | T37: 0 | U37: 0 | V37: 0 | W37: 0 | X37: 0 | Y37: 0 | Z37: 0 | AA37: 1 | AB37: 0 | AC37: 1 | AD37: =IF(OR('Input| Projects As Inc'!I37<>"Replacement",AND('Input| Projects As Inc'!I37="Replacement",AC37=100%)),"",1) -> 
B38: 29 | C38: ='Input| Projects As Inc'!C38 -> South West Network Comms Replacement | D38: ='Input| Projects As Inc'!D38 -> TD-0010117 | F38: =IF('Input| Projects As Inc'!F38="Major Station","Yes","No") -> No | R38: 0 | T38: 0 | U38: 0 | V38: 0 | W38: 0 | X38: 0 | Y38: 0 | Z38: 0 | AA38: 1 | AB38: 0 | AC38: 1 | AD38: =IF(OR('Input| Projects As Inc'!I38<>"Replacement",AND('Input| Projects As Inc'!I38="Replacement",AC38=100%)),"",1) -> 
B39: 30 | C39: ='Input| Projects As Inc'!C39 -> Transmission Insulator Replacement | D39: ='Input| Projects As Inc'!D39 -> TD-0014597 | F39: =IF('Input| Projects As Inc'!F39="Major Station","Yes","No") -> No | R39: 0 | T39: 0 | U39: 1 | V39: 0 | W39: 0 | X39: 0 | Y39: 0 | Z39: 0 | AA39: 0 | AB39: 0 | AC39: 1 | AD39: =IF(OR('Input| Projects As Inc'!I39<>"Replacement",AND('Input| Projects As Inc'!I39="Replacement",AC39=100%)),"",1) -> 
B40: 31 | C40: ='Input| Projects As Inc'!C40 -> T624 to T628B HYTS-APD tower replacement | D40: ='Input| Projects As Inc'!D40 -> TD-0012063 | F40: =IF('Input| Projects As Inc'!F40="Major Station","Yes","No") -> No | R40: 0 | T40: 0 | U40: 1 | V40: 0 | W40: 0 | X40: 0 | Y40: 0 | Z40: 0 | AA40: 0 | AB40: 0 | AC40: 1 | AD40: =IF(OR('Input| Projects As Inc'!I40<>"Replacement",AND('Input| Projects As Inc'!I40="Replacement",AC40=100%)),"",1) -> 
B41: 32 | C41: ='Input| Projects As Inc'!C41 -> Portland tower replacement - Stage 2 | D41: ='Input| Projects As Inc'!D41 -> TD-0014579 | F41: =IF('Input| Projects As Inc'!F41="Major Station","Yes","No") -> No | R41: 0 | T41: 0 | U41: 1 | V41: 0 | W41: 0 | X41: 0 | Y41: 0 | Z41: 0 | AA41: 0 | AB41: 0 | AC41: 1 | AD41: =IF(OR('Input| Projects As Inc'!I41<>"Replacement",AND('Input| Projects As Inc'!I41="Replacement",AC41=100%)),"",1) -> 
B42: 33 | C42: ='Input| Projects As Inc'!C42 -> VNSC & Comms Sites Battery Replacement | D42: ='Input| Projects As Inc'!D42 -> TD-0013827 | F42: =IF('Input| Projects As Inc'!F42="Major Station","Yes","No") -> No | R42: 0 | T42: 0 | U42: 0 | V42: 0 | W42: 0 | X42: 0 | Y42: 0 | Z42: 0 | AA42: 1 | AB42: 0 | AC42: 1 | AD42: =IF(OR('Input| Projects As Inc'!I42<>"Replacement",AND('Input| Projects As Inc'!I42="Replacement",AC42=100%)),"",1) -> 
B43: 34 | C43: ='Input| Projects As Inc'!C43 -> Tranche1 Rectification Low Spans, TL | D43: ='Input| Projects As Inc'!D43 -> TD-0014572 | F43: =IF('Input| Projects As Inc'!F43="Major Station","Yes","No") -> No | R43: 0 | T43: 0 | U43: 0 | V43: 0 | W43: 0 | X43: 0 | Y43: 0 | Z43: 0 | AA43: 0 | AB43: 1 | AC43: 1 | AD43: =IF(OR('Input| Projects As Inc'!I43<>"Replacement",AND('Input| Projects As Inc'!I43="Replacement",AC43=100%)),"",1) -> 
B44: 35 | C44: ='Input| Projects As Inc'!C44 ->  | D44: ='Input| Projects As Inc'!D44 ->  | F44: =IF('Input| Projects As Inc'!F44="Major Station","Yes","No") -> No | R44: 0 | T44: 0 | U44: 0 | V44: 0 | W44: 0 | X44: 0 | Y44: 0 | Z44: 0 | AA44: 0 | AB44: 0 | AC44: 0 | AD44: =IF(OR('Input| Projects As Inc'!I44<>"Replacement",AND('Input| Projects As Inc'!I44="Replacement",AC44=100%)),"",1) -> 
B45: 36 | C45: ='Input| Projects As Inc'!C45 ->  | D45: ='Input| Projects As Inc'!D45 ->  | F45: =IF('Input| Projects As Inc'!F45="Major Station","Yes","No") -> No | R45: 0 | T45: 0 | U45: 0 | V45: 0 | W45: 0 | X45: 0 | Y45: 0 | Z45: 0 | AA45: 0 | AB45: 0 | AC45: 0 | AD45: =IF(OR('Input| Projects As Inc'!I45<>"Replacement",AND('Input| Projects As Inc'!I45="Replacement",AC45=100%)),"",1) -> 
B46: 37 | C46: ='Input| Projects As Inc'!C46 -> Auxiliary Power Supplies | D46: ='Input| Projects As Inc'!D46 -> Program | F46: =IF('Input| Projects As Inc'!F46="Major Station","Yes","No") -> No | R46: 0 | T46: 0 | U46: 0 | V46: 0 | W46: 0 | X46: 0 | Y46: 0 | Z46: 0 | AA46: 0 | AB46: 1 | AC46: 1 | AD46: =IF(OR('Input| Projects As Inc'!I46<>"Replacement",AND('Input| Projects As Inc'!I46="Replacement",AC46=100%)),"",1) -> 
B47: 38 | C47: ='Input| Projects As Inc'!C47 -> Circuit Breakers | D47: ='Input| Projects As Inc'!D47 -> Program | F47: =IF('Input| Projects As Inc'!F47="Major Station","Yes","No") -> No | R47: 0 | T47: 0 | U47: 0 | V47: 0 | W47: 0 | X47: 1 | Y47: 0 | Z47: 0 | AA47: 0 | AB47: 0 | AC47: 1 | AD47: =IF(OR('Input| Projects As Inc'!I47<>"Replacement",AND('Input| Projects As Inc'!I47="Replacement",AC47=100%)),"",1) -> 
B48: 39 | C48: ='Input| Projects As Inc'!C48 -> Civil Infrastructure | D48: ='Input| Projects As Inc'!D48 -> Program | F48: =IF('Input| Projects As Inc'!F48="Major Station","Yes","No") -> No | R48: 0 | T48: 0 | U48: 0 | V48: 0 | W48: 0 | X48: 0 | Y48: 0 | Z48: 0 | AA48: 0 | AB48: 1 | AC48: 1 | AD48: =IF(OR('Input| Projects As Inc'!I48<>"Replacement",AND('Input| Projects As Inc'!I48="Replacement",AC48=100%)),"",1) -> 
B49: 40 | C49: ='Input| Projects As Inc'!C49 -> Communication Systems | D49: ='Input| Projects As Inc'!D49 -> Program | F49: =IF('Input| Projects As Inc'!F49="Major Station","Yes","No") -> No | R49: 0 | T49: 0 | U49: 0 | V49: 0 | W49: 0 | X49: 0 | Y49: 0 | Z49: 0 | AA49: 1 | AB49: 0 | AC49: 1 | AD49: =IF(OR('Input| Projects As Inc'!I49<>"Replacement",AND('Input| Projects As Inc'!I49="Replacement",AC49=100%)),"",1) -> 
B50: 41 | C50: ='Input| Projects As Inc'!C50 -> Disconnectors and Earth Switches | D50: ='Input| Projects As Inc'!D50 -> Program | F50: =IF('Input| Projects As Inc'!F50="Major Station","Yes","No") -> No | R50: 0 | T50: 0 | U50: 0 | V50: 0 | W50: 0 | X50: 1 | Y50: 0 | Z50: 0 | AA50: 0 | AB50: 0 | AC50: 1 | AD50: =IF(OR('Input| Projects As Inc'!I50<>"Replacement",AND('Input| Projects As Inc'!I50="Replacement",AC50=100%)),"",1) -> 
B51: 42 | C51: ='Input| Projects As Inc'!C51 -> Fire Detection and Suppression | D51: ='Input| Projects As Inc'!D51 -> Program | F51: =IF('Input| Projects As Inc'!F51="Major Station","Yes","No") -> No | R51: 0 | T51: 0 | U51: 0 | V51: 0 | W51: 0 | X51: 0 | Y51: 0 | Z51: 0 | AA51: 0 | AB51: 1 | AC51: 1 | AD51: =IF(OR('Input| Projects As Inc'!I51<>"Replacement",AND('Input| Projects As Inc'!I51="Replacement",AC51=100%)),"",1) -> 
B52: 43 | C52: ='Input| Projects As Inc'!C52 -> Instrument Transformers | D52: ='Input| Projects As Inc'!D52 -> Program | F52: =IF('Input| Projects As Inc'!F52="Major Station","Yes","No") -> No | R52: 0 | T52: 0 | U52: 0 | V52: 0 | W52: 0 | X52: 1 | Y52: 0 | Z52: 0 | AA52: 0 | AB52: 0 | AC52: 1 | AD52: =IF(OR('Input| Projects As Inc'!I52<>"Replacement",AND('Input| Projects As Inc'!I52="Replacement",AC52=100%)),"",1) -> 
B53: 44 | C53: ='Input| Projects As Inc'!C53 -> Power Transformers and Oil Filled Reactors | D53: ='Input| Projects As Inc'!D53 -> Program | F53: =IF('Input| Projects As Inc'!F53="Major Station","Yes","No") -> No | R53: 0 | T53: 0 | U53: 0 | V53: 0 | W53: 0 | X53: 0 | Y53: 1 | Z53: 0 | AA53: 0 | AB53: 0 | AC53: 1 | AD53: =IF(OR('Input| Projects As Inc'!I53<>"Replacement",AND('Input| Projects As Inc'!I53="Replacement",AC53=100%)),"",1) -> 
B54: 45 | C54: ='Input| Projects As Inc'!C54 -> Secondary Systems | D54: ='Input| Projects As Inc'!D54 -> Program | F54: =IF('Input| Projects As Inc'!F54="Major Station","Yes","No") -> No | R54: 0 | T54: 0 | U54: 0 | V54: 0 | W54: 0 | X54: 0 | Y54: 0 | Z54: 0 | AA54: 1 | AB54: 0 | AC54: 1 | AD54: =IF(OR('Input| Projects As Inc'!I54<>"Replacement",AND('Input| Projects As Inc'!I54="Replacement",AC54=100%)),"",1) -> 
B55: 46 | C55: ='Input| Projects As Inc'!C55 -> Surge Diverters | D55: ='Input| Projects As Inc'!D55 -> Program | F55: =IF('Input| Projects As Inc'!F55="Major Station","Yes","No") -> No | R55: 0 | T55: 0 | U55: 0 | V55: 0 | W55: 0 | X55: 0 | Y55: 0 | Z55: 0 | AA55: 0 | AB55: 1 | AC55: 1 | AD55: =IF(OR('Input| Projects As Inc'!I55<>"Replacement",AND('Input| Projects As Inc'!I55="Replacement",AC55=100%)),"",1) -> 
B56: 47 | C56: ='Input| Projects As Inc'!C56 -> Transmission Line Insulators | D56: ='Input| Projects As Inc'!D56 -> Program | F56: =IF('Input| Projects As Inc'!F56="Major Station","Yes","No") -> No | R56: 0 | T56: 0 | U56: 1 | V56: 0 | W56: 0 | X56: 0 | Y56: 0 | Z56: 0 | AA56: 0 | AB56: 0 | AC56: 1 | AD56: =IF(OR('Input| Projects As Inc'!I56<>"Replacement",AND('Input| Projects As Inc'!I56="Replacement",AC56=100%)),"",1) -> 
B57: 48 | C57: ='Input| Projects As Inc'!C57 -> Management of Transmission Line Ground Clearances | D57: ='Input| Projects As Inc'!D57 -> Program | F57: =IF('Input| Projects As Inc'!F57="Major Station","Yes","No") -> No | R57: 0 | T57: 0 | U57: 0 | V57: 0 | W57: 0 | X57: 0 | Y57: 0 | Z57: 0 | AA57: 0 | AB57: 1 | AC57: 1 | AD57: =IF(OR('Input| Projects As Inc'!I57<>"Replacement",AND('Input| Projects As Inc'!I57="Replacement",AC57=100%)),"",1) -> 
B58: 49 | C58: ='Input| Projects As Inc'!C58 -> Transmission Line Structures | D58: ='Input| Projects As Inc'!D58 -> Program | F58: =IF('Input| Projects As Inc'!F58="Major Station","Yes","No") -> No | R58: 0 | T58: 1 | U58: 0 | V58: 0 | W58: 0 | X58: 0 | Y58: 0 | Z58: 0 | AA58: 0 | AB58: 0 | AC58: 1 | AD58: =IF(OR('Input| Projects As Inc'!I58<>"Replacement",AND('Input| Projects As Inc'!I58="Replacement",AC58=100%)),"",1) -> 
B59: 50 | C59: ='Input| Projects As Inc'!C59 -> Transmission Line Fall Arrest Towers | D59: ='Input| Projects As Inc'!D59 -> Program | F59: =IF('Input| Projects As Inc'!F59="Major Station","Yes","No") -> No | R59: 0 | T59: 1 | U59: 0 | V59: 0 | W59: 0 | X59: 0 | Y59: 0 | Z59: 0 | AA59: 0 | AB59: 0 | AC59: 1 | AD59: =IF(OR('Input| Projects As Inc'!I59<>"Replacement",AND('Input| Projects As Inc'!I59="Replacement",AC59=100%)),"",1) -> 
B60: 51 | C60: ='Input| Projects As Inc'!C60 -> Transmission Lines Fall Arrest System (FAS) Racks | D60: ='Input| Projects As Inc'!D60 -> Program | F60: =IF('Input| Projects As Inc'!F60="Major Station","Yes","No") -> No | R60: 0 | T60: 1 | U60: 0 | V60: 0 | W60: 0 | X60: 0 | Y60: 0 | Z60: 0 | AA60: 0 | AB60: 0 | AC60: 1 | AD60: =IF(OR('Input| Projects As Inc'!I60<>"Replacement",AND('Input| Projects As Inc'!I60="Replacement",AC60=100%)),"",1) -> 
B61: 52 | C61: ='Input| Projects As Inc'!C61 -> Transmission Tower Resilience Program | D61: ='Input| Projects As Inc'!D61 -> Program | F61: =IF('Input| Projects As Inc'!F61="Major Station","Yes","No") -> No | R61: 0 | T61: 1 | U61: 0 | V61: 0 | W61: 0 | X61: 0 | Y61: 0 | Z61: 0 | AA61: 0 | AB61: 0 | AC61: 1 | AD61: =IF(OR('Input| Projects As Inc'!I61<>"Replacement",AND('Input| Projects As Inc'!I61="Replacement",AC61=100%)),"",1) -> 
B62: 53 | C62: ='Input| Projects As Inc'!C62 -> Transmission Lines Conductors (GW & Ph Cond) | D62: ='Input| Projects As Inc'!D62 -> Program | F62: =IF('Input| Projects As Inc'!F62="Major Station","Yes","No") -> No | R62: 0 | T62: 0 | U62: 0 | V62: 1 | W62: 0 | X62: 0 | Y62: 0 | Z62: 0 | AA62: 0 | AB62: 0 | AC62: 1 | AD62: =IF(OR('Input| Projects As Inc'!I62<>"Replacement",AND('Input| Projects As Inc'!I62="Replacement",AC62=100%)),"",1) -> 
B63: 54 | C63: ='Input| Projects As Inc'!C63 -> Transmission Lines Conductors (GW & Ph Cond) | D63: ='Input| Projects As Inc'!D63 -> Program | F63: =IF('Input| Projects As Inc'!F63="Major Station","Yes","No") -> No | R63: 0 | T63: 0 | U63: 0 | V63: 1 | W63: 0 | X63: 0 | Y63: 0 | Z63: 0 | AA63: 0 | AB63: 0 | AC63: 1 | AD63: =IF(OR('Input| Projects As Inc'!I63<>"Replacement",AND('Input| Projects As Inc'!I63="Replacement",AC63=100%)),"",1) -> 
B64: 55 | C64: ='Input| Projects As Inc'!C64 ->  | D64: ='Input| Projects As Inc'!D64 ->  | F64: =IF('Input| Projects As Inc'!F64="Major Station","Yes","No") -> No | R64: 0 | T64: 0 | U64: 0 | V64: 0 | W64: 0 | X64: 0 | Y64: 0 | Z64: 0 | AA64: 0 | AB64: 0 | AC64: 0 | AD64: =IF(OR('Input| Projects As Inc'!I64<>"Replacement",AND('Input| Projects As Inc'!I64="Replacement",AC64=100%)),"",1) -> 
B65: 56 | C65: ='Input| Projects As Inc'!C65 ->  | D65: ='Input| Projects As Inc'!D65 ->  | F65: =IF('Input| Projects As Inc'!F65="Major Station","Yes","No") -> No | R65: 0 | T65: 0 | U65: 0 | V65: 0 | W65: 0 | X65: 0 | Y65: 0 | Z65: 0 | AA65: 0 | AB65: 0 | AC65: 0 | AD65: =IF(OR('Input| Projects As Inc'!I65<>"Replacement",AND('Input| Projects As Inc'!I65="Replacement",AC65=100%)),"",1) -> 
B66: 57 | C66: ='Input| Projects As Inc'!C66 -> Environmental | D66: ='Input| Projects As Inc'!D66 -> Program | F66: =IF('Input| Projects As Inc'!F66="Major Station","Yes","No") -> No | R66: 0 | T66: 0 | U66: 0 | V66: 0 | W66: 0 | X66: 0 | Y66: 0 | Z66: 0 | AA66: 0 | AB66: 1 | AC66: 1 | AD66: =IF(OR('Input| Projects As Inc'!I66<>"Replacement",AND('Input| Projects As Inc'!I66="Replacement",AC66=100%)),"",1) -> 
B67: 58 | C67: ='Input| Projects As Inc'!C67 -> Rework | D67: ='Input| Projects As Inc'!D67 -> Program | F67: =IF('Input| Projects As Inc'!F67="Major Station","Yes","No") -> No | R67: 0 | T67: 0 | U67: 0 | V67: 0 | W67: 0 | X67: 0 | Y67: 0 | Z67: 0 | AA67: 0 | AB67: 1 | AC67: 1 | AD67: =IF(OR('Input| Projects As Inc'!I67<>"Replacement",AND('Input| Projects As Inc'!I67="Replacement",AC67=100%)),"",1) -> 
B68: 59 | C68: ='Input| Projects As Inc'!C68 -> Consultant | D68: ='Input| Projects As Inc'!D68 -> Program | F68: =IF('Input| Projects As Inc'!F68="Major Station","Yes","No") -> No | R68: 0 | T68: 0 | U68: 0 | V68: 0 | W68: 0 | X68: 0 | Y68: 0 | Z68: 0 | AA68: 0 | AB68: 1 | AC68: 1 | AD68: =IF(OR('Input| Projects As Inc'!I68<>"Replacement",AND('Input| Projects As Inc'!I68="Replacement",AC68=100%)),"",1) -> 
B69: 60 | C69: ='Input| Projects As Inc'!C69 ->  | D69: ='Input| Projects As Inc'!D69 ->  | F69: =IF('Input| Projects As Inc'!F69="Major Station","Yes","No") -> No | R69: 0 | T69: 0 | U69: 0 | V69: 0 | W69: 0 | X69: 0 | Y69: 0 | Z69: 0 | AA69: 0 | AB69: 0 | AC69: 0 | AD69: =IF(OR('Input| Projects As Inc'!I69<>"Replacement",AND('Input| Projects As Inc'!I69="Replacement",AC69=100%)),"",1) -> 
B70: 61 | C70: ='Input| Projects As Inc'!C70 ->  | D70: ='Input| Projects As Inc'!D70 ->  | F70: =IF('Input| Projects As Inc'!F70="Major Station","Yes","No") -> No | R70: 0 | T70: 0 | U70: 0 | V70: 0 | W70: 0 | X70: 0 | Y70: 0 | Z70: 0 | AA70: 0 | AB70: 0 | AC70: 0 | AD70: =IF(OR('Input| Projects As Inc'!I70<>"Replacement",AND('Input| Projects As Inc'!I70="Replacement",AC70=100%)),"",1) -> 
B71: 62 | C71: ='Input| Projects As Inc'!C71 -> Metering | D71: ='Input| Projects As Inc'!D71 -> Program | F71: =IF('Input| Projects As Inc'!F71="Major Station","Yes","No") -> No | R71: 0 | T71: 0 | U71: 0 | V71: 0 | W71: 0 | X71: 0 | Y71: 0 | Z71: 0 | AA71: 1 | AB71: 0 | AC71: 1 | AD71: =IF(OR('Input| Projects As Inc'!I71<>"Replacement",AND('Input| Projects As Inc'!I71="Replacement",AC71=100%)),"",1) -> 
B72: 63 | C72: ='Input| Projects As Inc'!C72 ->  | D72: ='Input| Projects As Inc'!D72 ->  | F72: =IF('Input| Projects As Inc'!F72="Major Station","Yes","No") -> No | R72: 0 | T72: 0 | U72: 0 | V72: 0 | W72: 0 | X72: 0 | Y72: 0 | Z72: 0 | AA72: 0 | AB72: 0 | AC72: 0 | AD72: =IF(OR('Input| Projects As Inc'!I72<>"Replacement",AND('Input| Projects As Inc'!I72="Replacement",AC72=100%)),"",1) -> 
B73: 64 | C73: ='Input| Projects As Inc'!C73 ->  | D73: ='Input| Projects As Inc'!D73 ->  | F73: =IF('Input| Projects As Inc'!F73="Major Station","Yes","No") -> No | R73: 0 | T73: 0 | U73: 0 | V73: 0 | W73: 0 | X73: 0 | Y73: 0 | Z73: 0 | AA73: 0 | AB73: 0 | AC73: 0 | AD73: =IF(OR('Input| Projects As Inc'!I73<>"Replacement",AND('Input| Projects As Inc'!I73="Replacement",AC73=100%)),"",1) -> 
B74: 65 | C74: ='Input| Projects As Inc'!C74 -> Testing Equipment | D74: ='Input| Projects As Inc'!D74 -> Program | F74: =IF('Input| Projects As Inc'!F74="Major Station","Yes","No") -> No | R74: 0 | T74: 0 | U74: 0 | V74: 0 | W74: 0 | X74: 0 | Y74: 0 | Z74: 0 | AA74: 0 | AB74: 0 | AC74: 0 | AD74: =IF(OR('Input| Projects As Inc'!I74<>"Replacement",AND('Input| Projects As Inc'!I74="Replacement",AC74=100%)),"",1) -> 
B75: 66 | C75: ='Input| Projects As Inc'!C75 -> Vehicles - Replacement - Car | D75: ='Input| Projects As Inc'!D75 -> Program | F75: =IF('Input| Projects As Inc'!F75="Major Station","Yes","No") -> No | R75: =SUM(J75:Q75) -> 0 | S75: =IF(OR($F75="No",AND($F75="Yes",R75=100%)),"",1) ->  | T75: 0 | U75: 0 | V75: 0 | W75: 0 | X75: 0 | Y75: 0 | Z75: 0 | AA75: 0 | AB75: 0 | AC75: =SUM(T75:AB75) -> 0 | AD75: =IF(OR('Input| Projects As Inc'!I75<>"Replacement",AND('Input| Projects As Inc'!I75="Replacement",AC75=100%)),"",1) -> 
B76: =IFERROR(B75+1,"") -> 67 | C76: ='Input| Projects As Inc'!C76 -> Vehicles - Replacement - LCV | D76: ='Input| Projects As Inc'!D76 -> Program | F76: =IF('Input| Projects As Inc'!F76="Major Station","Yes","No") -> No | R76: 0 | T76: 0 | U76: 0 | V76: 0 | W76: 0 | X76: 0 | Y76: 0 | Z76: 0 | AA76: 0 | AB76: 0 | AC76: 0 | AD76: =IF(OR('Input| Projects As Inc'!I76<>"Replacement",AND('Input| Projects As Inc'!I76="Replacement",AC76=100%)),"",1) -> 
B77: 68 | C77: ='Input| Projects As Inc'!C77 -> Vehicles - Replacement - HCV | D77: ='Input| Projects As Inc'!D77 -> Program | F77: =IF('Input| Projects As Inc'!F77="Major Station","Yes","No") -> No | R77: 0 | T77: 0 | U77: 0 | V77: 0 | W77: 0 | X77: 0 | Y77: 0 | Z77: 0 | AA77: 0 | AB77: 0 | AC77: 0 | AD77: =IF(OR('Input| Projects As Inc'!I77<>"Replacement",AND('Input| Projects As Inc'!I77="Replacement",AC77=100%)),"",1) -> 
B78: 69 | C78: ='Input| Projects As Inc'!C78 -> Vehicles - Replacement - Other (trailer and plant) | D78: ='Input| Projects As Inc'!D78 -> Program | F78: =IF('Input| Projects As Inc'!F78="Major Station","Yes","No") -> No | R78: 0 | T78: 0 | U78: 0 | V78: 0 | W78: 0 | X78: 0 | Y78: 0 | Z78: 0 | AA78: 0 | AB78: 0 | AC78: 0 | AD78: =IF(OR('Input| Projects As Inc'!I78<>"Replacement",AND('Input| Projects As Inc'!I78="Replacement",AC78=100%)),"",1) -> 
B79: 70 | C79: ='Input| Projects As Inc'!C79 -> Vehicles - TOMSA - LCV | D79: ='Input| Projects As Inc'!D79 -> Program | F79: =IF('Input| Projects As Inc'!F79="Major Station","Yes","No") -> No | R79: 0 | T79: 0 | U79: 0 | V79: 0 | W79: 0 | X79: 0 | Y79: 0 | Z79: 0 | AA79: 0 | AB79: 0 | AC79: 0 | AD79: =IF(OR('Input| Projects As Inc'!I79<>"Replacement",AND('Input| Projects As Inc'!I79="Replacement",AC79=100%)),"",1) -> 
B80: 71 | C80: ='Input| Projects As Inc'!C80 -> Vehicles - Growth - Car | D80: ='Input| Projects As Inc'!D80 -> Program | F80: =IF('Input| Projects As Inc'!F80="Major Station","Yes","No") -> No | R80: 0 | T80: 0 | U80: 0 | V80: 0 | W80: 0 | X80: 0 | Y80: 0 | Z80: 0 | AA80: 0 | AB80: 0 | AC80: 0 | AD80: =IF(OR('Input| Projects As Inc'!I80<>"Replacement",AND('Input| Projects As Inc'!I80="Replacement",AC80=100%)),"",1) -> 
B81: 72 | C81: ='Input| Projects As Inc'!C81 -> Vehicles - Growth - LCV | D81: ='Input| Projects As Inc'!D81 -> Program | F81: =IF('Input| Projects As Inc'!F81="Major Station","Yes","No") -> No | R81: 0 | T81: 0 | U81: 0 | V81: 0 | W81: 0 | X81: 0 | Y81: 0 | Z81: 0 | AA81: 0 | AB81: 0 | AC81: 0 | AD81: =IF(OR('Input| Projects As Inc'!I81<>"Replacement",AND('Input| Projects As Inc'!I81="Replacement",AC81=100%)),"",1) -> 
B82: 73 | C82: ='Input| Projects As Inc'!C82 ->  | D82: ='Input| Projects As Inc'!D82 ->  | F82: =IF('Input| Projects As Inc'!F82="Major Station","Yes","No") -> No | R82: 0 | T82: 0 | U82: 0 | V82: 0 | W82: 0 | X82: 0 | Y82: 0 | Z82: 0 | AA82: 0 | AB82: 0 | AC82: 0 | AD82: =IF(OR('Input| Projects As Inc'!I82<>"Replacement",AND('Input| Projects As Inc'!I82="Replacement",AC82=100%)),"",1) -> 
B83: 74 | C83: ='Input| Projects As Inc'!C83 ->  | D83: ='Input| Projects As Inc'!D83 ->  | F83: =IF('Input| Projects As Inc'!F83="Major Station","Yes","No") -> No | R83: 0 | T83: 0 | U83: 0 | V83: 0 | W83: 0 | X83: 0 | Y83: 0 | Z83: 0 | AA83: 0 | AB83: 0 | AC83: 0 | AD83: =IF(OR('Input| Projects As Inc'!I83<>"Replacement",AND('Input| Projects As Inc'!I83="Replacement",AC83=100%)),"",1) -> 
B84: 75 | C84: ='Input| Projects As Inc'!C84 -> Building Services | D84: ='Input| Projects As Inc'!D84 -> Program | F84: =IF('Input| Projects As Inc'!F84="Major Station","Yes","No") -> No | R84: 0 | T84: 0 | U84: 0 | V84: 0 | W84: 0 | X84: 0 | Y84: 0 | Z84: 0 | AA84: 0 | AB84: 0 | AC84: 0 | AD84: =IF(OR('Input| Projects As Inc'!I84<>"Replacement",AND('Input| Projects As Inc'!I84="Replacement",AC84=100%)),"",1) -> 
B85: 76 | C85: ='Input| Projects As Inc'!C85 -> Fitout Capex | D85: ='Input| Projects As Inc'!D85 -> Program | F85: =IF('Input| Projects As Inc'!F85="Major Station","Yes","No") -> No | R85: 0 | T85: 0 | U85: 0 | V85: 0 | W85: 0 | X85: 0 | Y85: 0 | Z85: 0 | AA85: 0 | AB85: 0 | AC85: 0 | AD85: =IF(OR('Input| Projects As Inc'!I85<>"Replacement",AND('Input| Projects As Inc'!I85="Replacement",AC85=100%)),"",1) -> 
B86: 77 | C86: ='Input| Projects As Inc'!C86 -> South Morang Training Centre | D86: ='Input| Projects As Inc'!D86 -> Program | F86: =IF('Input| Projects As Inc'!F86="Major Station","Yes","No") -> No | R86: 0 | T86: 0 | U86: 0 | V86: 0 | W86: 0 | X86: 0 | Y86: 0 | Z86: 0 | AA86: 0 | AB86: 0 | AC86: 0 | AD86: =IF(OR('Input| Projects As Inc'!I86<>"Replacement",AND('Input| Projects As Inc'!I86="Replacement",AC86=100%)),"",1) -> 
B87: 78 | C87: ='Input| Projects As Inc'!C87 -> Head Office Leases | D87: ='Input| Projects As Inc'!D87 -> Program | F87: =IF('Input| Projects As Inc'!F87="Major Station","Yes","No") -> No | R87: 0 | T87: 0 | U87: 0 | V87: 0 | W87: 0 | X87: 0 | Y87: 0 | Z87: 0 | AA87: 0 | AB87: 0 | AC87: 0 | AD87: =IF(OR('Input| Projects As Inc'!I87<>"Replacement",AND('Input| Projects As Inc'!I87="Replacement",AC87=100%)),"",1) -> 
B88: 79 | C88: ='Input| Projects As Inc'!C88 -> Leases L&B - Short Lives | D88: ='Input| Projects As Inc'!D88 -> Program | F88: =IF('Input| Projects As Inc'!F88="Major Station","Yes","No") -> No | R88: 0 | T88: 0 | U88: 0 | V88: 0 | W88: 0 | X88: 0 | Y88: 0 | Z88: 0 | AA88: 0 | AB88: 0 | AC88: 0 | AD88: =IF(OR('Input| Projects As Inc'!I88<>"Replacement",AND('Input| Projects As Inc'!I88="Replacement",AC88=100%)),"",1) -> 
B89: 80 | C89: ='Input| Projects As Inc'!C89 ->  | D89: ='Input| Projects As Inc'!D89 ->  | F89: =IF('Input| Projects As Inc'!F89="Major Station","Yes","No") -> No | R89: 0 | T89: 0 | U89: 0 | V89: 0 | W89: 0 | X89: 0 | Y89: 0 | Z89: 0 | AA89: 0 | AB89: 0 | AC89: 0 | AD89: =IF(OR('Input| Projects As Inc'!I89<>"Replacement",AND('Input| Projects As Inc'!I89="Replacement",AC89=100%)),"",1) -> 
B90: 81 | C90: ='Input| Projects As Inc'!C90 ->  | D90: ='Input| Projects As Inc'!D90 ->  | F90: =IF('Input| Projects As Inc'!F90="Major Station","Yes","No") -> No | R90: 0 | T90: 0 | U90: 0 | V90: 0 | W90: 0 | X90: 0 | Y90: 0 | Z90: 0 | AA90: 0 | AB90: 0 | AC90: 0 | AD90: =IF(OR('Input| Projects As Inc'!I90<>"Replacement",AND('Input| Projects As Inc'!I90="Replacement",AC90=100%)),"",1) -> 
B91: 82 | C91: ='Input| Projects As Inc'!C91 -> Advanced Energy Management System - Connection asset demand management | D91: ='Input| Projects As Inc'!D91 -> Advanced Energy Management System - Non-recurrent | F91: =IF('Input| Projects As Inc'!F91="Major Station","Yes","No") -> No | R91: 0 | T91: 0 | U91: 0 | V91: 0 | W91: 0 | X91: 0 | Y91: 0 | Z91: 0 | AA91: 0 | AB91: 0 | AC91: 0 | AD91: =IF(OR('Input| Projects As Inc'!I91<>"Replacement",AND('Input| Projects As Inc'!I91="Replacement",AC91=100%)),"",1) -> 
B92: 83 | C92: ='Input| Projects As Inc'!C92 -> Advanced Energy Management System - Demand Management Phase 2 | D92: ='Input| Projects As Inc'!D92 -> Advanced Energy Management System - Non-recurrent | F92: =IF('Input| Projects As Inc'!F92="Major Station","Yes","No") -> No | R92: 0 | T92: 0 | U92: 0 | V92: 0 | W92: 0 | X92: 0 | Y92: 0 | Z92: 0 | AA92: 0 | AB92: 0 | AC92: 0 | AD92: =IF(OR('Input| Projects As Inc'!I92<>"Replacement",AND('Input| Projects As Inc'!I92="Replacement",AC92=100%)),"",1) -> 
B93: 84 | C93: ='Input| Projects As Inc'!C93 -> Advanced Energy Management System - Distributed Photovolataics (DPV) forecasts for modelling | D93: ='Input| Projects As Inc'!D93 -> Advanced Energy Management System - Non-recurrent | F93: =IF('Input| Projects As Inc'!F93="Major Station","Yes","No") -> No | R93: 0 | T93: 0 | U93: 0 | V93: 0 | W93: 0 | X93: 0 | Y93: 0 | Z93: 0 | AA93: 0 | AB93: 0 | AC93: 0 | AD93: =IF(OR('Input| Projects As Inc'!I93<>"Replacement",AND('Input| Projects As Inc'!I93="Replacement",AC93=100%)),"",1) -> 
B94: 85 | C94: ='Input| Projects As Inc'!C94 -> Advanced Energy Management System - Dynamic control room displays | D94: ='Input| Projects As Inc'!D94 -> Advanced Energy Management System - Non-recurrent | F94: =IF('Input| Projects As Inc'!F94="Major Station","Yes","No") -> No | R94: 0 | T94: 0 | U94: 0 | V94: 0 | W94: 0 | X94: 0 | Y94: 0 | Z94: 0 | AA94: 0 | AB94: 0 | AC94: 0 | AD94: =IF(OR('Input| Projects As Inc'!I94<>"Replacement",AND('Input| Projects As Inc'!I94="Replacement",AC94=100%)),"",1) -> 
B95: 86 | C95: ='Input| Projects As Inc'!C95 -> Advanced Energy Management System - Dynamic Ratings (SOCS & OSSCA) upgrade | D95: ='Input| Projects As Inc'!D95 -> Advanced Energy Management System - Non-recurrent | F95: =IF('Input| Projects As Inc'!F95="Major Station","Yes","No") -> No | R95: 0 | T95: 0 | U95: 0 | V95: 0 | W95: 0 | X95: 0 | Y95: 0 | Z95: 0 | AA95: 0 | AB95: 0 | AC95: 0 | AD95: =IF(OR('Input| Projects As Inc'!I95<>"Replacement",AND('Input| Projects As Inc'!I95="Replacement",AC95=100%)),"",1) -> 
B96: 87 | C96: ='Input| Projects As Inc'!C96 -> Advanced Energy Management System - Geospatial threat monitoring and forecast | D96: ='Input| Projects As Inc'!D96 -> Advanced Energy Management System - Non-recurrent | F96: =IF('Input| Projects As Inc'!F96="Major Station","Yes","No") -> No | R96: 0 | T96: 0 | U96: 0 | V96: 0 | W96: 0 | X96: 0 | Y96: 0 | Z96: 0 | AA96: 0 | AB96: 0 | AC96: 0 | AD96: =IF(OR('Input| Projects As Inc'!I96<>"Replacement",AND('Input| Projects As Inc'!I96="Replacement",AC96=100%)),"",1) -> 
B97: 88 | C97: ='Input| Projects As Inc'!C97 -> Advanced Energy Management System - HMI upgrades for TOC | D97: ='Input| Projects As Inc'!D97 -> Advanced Energy Management System - Non-recurrent | F97: =IF('Input| Projects As Inc'!F97="Major Station","Yes","No") -> No | R97: 0 | T97: 0 | U97: 0 | V97: 0 | W97: 0 | X97: 0 | Y97: 0 | Z97: 0 | AA97: 0 | AB97: 0 | AC97: 0 | AD97: =IF(OR('Input| Projects As Inc'!I97<>"Replacement",AND('Input| Projects As Inc'!I97="Replacement",AC97=100%)),"",1) -> 
B98: 89 | C98: ='Input| Projects As Inc'!C98 -> Advanced Energy Management System - Load forecasting by feeder | D98: ='Input| Projects As Inc'!D98 -> Advanced Energy Management System - Non-recurrent | F98: =IF('Input| Projects As Inc'!F98="Major Station","Yes","No") -> No | R98: 0 | T98: 0 | U98: 0 | V98: 0 | W98: 0 | X98: 0 | Y98: 0 | Z98: 0 | AA98: 0 | AB98: 0 | AC98: 0 | AD98: =IF(OR('Input| Projects As Inc'!I98<>"Replacement",AND('Input| Projects As Inc'!I98="Replacement",AC98=100%)),"",1) -> 
B99: 90 | C99: ='Input| Projects As Inc'!C99 -> Advanced Energy Management System - Network operations scenario simulator uplift | D99: ='Input| Projects As Inc'!D99 -> Advanced Energy Management System - Non-recurrent | F99: =IF('Input| Projects As Inc'!F99="Major Station","Yes","No") -> No | R99: 0 | T99: 0 | U99: 0 | V99: 0 | W99: 0 | X99: 0 | Y99: 0 | Z99: 0 | AA99: 0 | AB99: 0 | AC99: 0 | AD99: =IF(OR('Input| Projects As Inc'!I99<>"Replacement",AND('Input| Projects As Inc'!I99="Replacement",AC99=100%)),"",1) -> 
B100: 91 | C100: ='Input| Projects As Inc'!C100 -> Advanced Energy Management System - Passive knowledge management | D100: ='Input| Projects As Inc'!D100 -> Advanced Energy Management System - Non-recurrent | F100: =IF('Input| Projects As Inc'!F100="Major Station","Yes","No") -> No | R100: 0 | T100: 0 | U100: 0 | V100: 0 | W100: 0 | X100: 0 | Y100: 0 | Z100: 0 | AA100: 0 | AB100: 0 | AC100: 0 | AD100: =IF(OR('Input| Projects As Inc'!I100<>"Replacement",AND('Input| Projects As Inc'!I100="Replacement",AC100=100%)),"",1) -> 
B101: 92 | C101: ='Input| Projects As Inc'!C101 -> Advanced Energy Management System - Ratings management Phase 1 | D101: ='Input| Projects As Inc'!D101 -> Advanced Energy Management System - Non-recurrent | F101: =IF('Input| Projects As Inc'!F101="Major Station","Yes","No") -> No | R101: 0 | T101: 0 | U101: 0 | V101: 0 | W101: 0 | X101: 0 | Y101: 0 | Z101: 0 | AA101: 0 | AB101: 0 | AC101: 0 | AD101: =IF(OR('Input| Projects As Inc'!I101<>"Replacement",AND('Input| Projects As Inc'!I101="Replacement",AC101=100%)),"",1) -> 
B102: 93 | C102: ='Input| Projects As Inc'!C102 -> Advanced Energy Management System - Ratings management Phase 2 | D102: ='Input| Projects As Inc'!D102 -> Advanced Energy Management System - Non-recurrent | F102: =IF('Input| Projects As Inc'!F102="Major Station","Yes","No") -> No | R102: 0 | T102: 0 | U102: 0 | V102: 0 | W102: 0 | X102: 0 | Y102: 0 | Z102: 0 | AA102: 0 | AB102: 0 | AC102: 0 | AD102: =IF(OR('Input| Projects As Inc'!I102<>"Replacement",AND('Input| Projects As Inc'!I102="Replacement",AC102=100%)),"",1) -> 
B103: 94 | C103: ='Input| Projects As Inc'!C103 -> Advanced Energy Management System - Security cameras for network purposes | D103: ='Input| Projects As Inc'!D103 -> Advanced Energy Management System - Non-recurrent | F103: =IF('Input| Projects As Inc'!F103="Major Station","Yes","No") -> No | R103: 0 | T103: 0 | U103: 0 | V103: 0 | W103: 0 | X103: 0 | Y103: 0 | Z103: 0 | AA103: 0 | AB103: 0 | AC103: 0 | AD103: =IF(OR('Input| Projects As Inc'!I103<>"Replacement",AND('Input| Projects As Inc'!I103="Replacement",AC103=100%)),"",1) -> 
B104: 95 | C104: ='Input| Projects As Inc'!C104 -> Advanced Energy Management System - System restart uplift | D104: ='Input| Projects As Inc'!D104 -> Advanced Energy Management System - Non-recurrent | F104: =IF('Input| Projects As Inc'!F104="Major Station","Yes","No") -> No | R104: 0 | T104: 0 | U104: 0 | V104: 0 | W104: 0 | X104: 0 | Y104: 0 | Z104: 0 | AA104: 0 | AB104: 0 | AC104: 0 | AD104: =IF(OR('Input| Projects As Inc'!I104<>"Replacement",AND('Input| Projects As Inc'!I104="Replacement",AC104=100%)),"",1) -> 
B105: 96 | C105: ='Input| Projects As Inc'!C105 -> Advanced Energy Management System - TASM opex (TBC opex baseline year) | D105: ='Input| Projects As Inc'!D105 -> Advanced Energy Management System - Opex | F105: =IF('Input| Projects As Inc'!F105="Major Station","Yes","No") -> No | R105: 0 | T105: 0 | U105: 0 | V105: 0 | W105: 0 | X105: 0 | Y105: 0 | Z105: 0 | AA105: 0 | AB105: 0 | AC105: 0 | AD105: =IF(OR('Input| Projects As Inc'!I105<>"Replacement",AND('Input| Projects As Inc'!I105="Replacement",AC105=100%)),"",1) -> 
B106: 97 | C106: ='Input| Projects As Inc'!C106 -> Advanced Energy Management System - TASM Phase 2: SAP automation, automated conditions & constraints analysis | D106: ='Input| Projects As Inc'!D106 -> Advanced Energy Management System - Non-recurrent | F106: =IF('Input| Projects As Inc'!F106="Major Station","Yes","No") -> No | R106: 0 | T106: 0 | U106: 0 | V106: 0 | W106: 0 | X106: 0 | Y106: 0 | Z106: 0 | AA106: 0 | AB106: 0 | AC106: 0 | AD106: =IF(OR('Input| Projects As Inc'!I106<>"Replacement",AND('Input| Projects As Inc'!I106="Replacement",AC106=100%)),"",1) -> 
B107: 98 | C107: ='Input| Projects As Inc'!C107 -> Advanced Energy Management System - TASM Phase 3: Integrating new adjacent capabilities | D107: ='Input| Projects As Inc'!D107 -> Advanced Energy Management System - Non-recurrent | F107: =IF('Input| Projects As Inc'!F107="Major Station","Yes","No") -> No | R107: 0 | T107: 0 | U107: 0 | V107: 0 | W107: 0 | X107: 0 | Y107: 0 | Z107: 0 | AA107: 0 | AB107: 0 | AC107: 0 | AD107: =IF(OR('Input| Projects As Inc'!I107<>"Replacement",AND('Input| Projects As Inc'!I107="Replacement",AC107=100%)),"",1) -> 
B108: 99 | C108: ='Input| Projects As Inc'!C108 -> Advanced Energy Management System - Tx alarm management Phase 2 | D108: ='Input| Projects As Inc'!D108 -> Advanced Energy Management System - Non-recurrent | F108: =IF('Input| Projects As Inc'!F108="Major Station","Yes","No") -> No | R108: 0 | T108: 0 | U108: 0 | V108: 0 | W108: 0 | X108: 0 | Y108: 0 | Z108: 0 | AA108: 0 | AB108: 0 | AC108: 0 | AD108: =IF(OR('Input| Projects As Inc'!I108<>"Replacement",AND('Input| Projects As Inc'!I108="Replacement",AC108=100%)),"",1) -> 
B109: 100 | C109: ='Input| Projects As Inc'!C109 -> Advanced Energy Management System - VicTNSP capability | D109: ='Input| Projects As Inc'!D109 -> Advanced Energy Management System - Non-recurrent | F109: =IF('Input| Projects As Inc'!F109="Major Station","Yes","No") -> No | R109: 0 | T109: 0 | U109: 0 | V109: 0 | W109: 0 | X109: 0 | Y109: 0 | Z109: 0 | AA109: 0 | AB109: 0 | AC109: 0 | AD109: =IF(OR('Input| Projects As Inc'!I109<>"Replacement",AND('Input| Projects As Inc'!I109="Replacement",AC109=100%)),"",1) -> 
B110: 101 | C110: ='Input| Projects As Inc'!C110 -> Advanced Energy Management System - Wide Area Monitoring System (Oscillation detection & Monitoring) | D110: ='Input| Projects As Inc'!D110 -> Advanced Energy Management System - Non-recurrent | F110: =IF('Input| Projects As Inc'!F110="Major Station","Yes","No") -> No | R110: 0 | T110: 0 | U110: 0 | V110: 0 | W110: 0 | X110: 0 | Y110: 0 | Z110: 0 | AA110: 0 | AB110: 0 | AC110: 0 | AD110: =IF(OR('Input| Projects As Inc'!I110<>"Replacement",AND('Input| Projects As Inc'!I110="Replacement",AC110=100%)),"",1) -> 
B111: 102 | C111: ='Input| Projects As Inc'!C111 -> Advanced Energy Management System - PMU data for incident response and investigation | D111: ='Input| Projects As Inc'!D111 -> Advanced Energy Management System - Non-recurrent | F111: =IF('Input| Projects As Inc'!F111="Major Station","Yes","No") -> No | R111: 0 | T111: 0 | U111: 0 | V111: 0 | W111: 0 | X111: 0 | Y111: 0 | Z111: 0 | AA111: 0 | AB111: 0 | AC111: 0 | AD111: =IF(OR('Input| Projects As Inc'!I111<>"Replacement",AND('Input| Projects As Inc'!I111="Replacement",AC111=100%)),"",1) -> 
B112: 103 | C112: ='Input| Projects As Inc'!C112 -> Advanced Energy Management System - UAV/Drone Inspection | D112: ='Input| Projects As Inc'!D112 -> Advanced Energy Management System - Non-recurrent | F112: =IF('Input| Projects As Inc'!F112="Major Station","Yes","No") -> No | R112: 0 | T112: 0 | U112: 0 | V112: 0 | W112: 0 | X112: 0 | Y112: 0 | Z112: 0 | AA112: 0 | AB112: 0 | AC112: 0 | AD112: =IF(OR('Input| Projects As Inc'!I112<>"Replacement",AND('Input| Projects As Inc'!I112="Replacement",AC112=100%)),"",1) -> 
B113: 104 | C113: ='Input| Projects As Inc'!C113 -> Asset Management & Field Enablement - Centralised data storage (e.g. videos, photos, others) | D113: ='Input| Projects As Inc'!D113 -> Asset Management & Field Enablement - Non-recurrent | F113: =IF('Input| Projects As Inc'!F113="Major Station","Yes","No") -> No | R113: 0 | T113: 0 | U113: 0 | V113: 0 | W113: 0 | X113: 0 | Y113: 0 | Z113: 0 | AA113: 0 | AB113: 0 | AC113: 0 | AD113: =IF(OR('Input| Projects As Inc'!I113<>"Replacement",AND('Input| Projects As Inc'!I113="Replacement",AC113=100%)),"",1) -> 
B114: 105 | C114: ='Input| Projects As Inc'!C114 -> Asset Management & Field Enablement - Knowledge management for various documents | D114: ='Input| Projects As Inc'!D114 -> Asset Management & Field Enablement - Non-recurrent | F114: =IF('Input| Projects As Inc'!F114="Major Station","Yes","No") -> No | R114: 0 | T114: 0 | U114: 0 | V114: 0 | W114: 0 | X114: 0 | Y114: 0 | Z114: 0 | AA114: 0 | AB114: 0 | AC114: 0 | AD114: =IF(OR('Input| Projects As Inc'!I114<>"Replacement",AND('Input| Projects As Inc'!I114="Replacement",AC114=100%)),"",1) -> 
B115: 106 | C115: ='Input| Projects As Inc'!C115 -> Asset Management & Field Enablement - Asset condition desktop monitoring & more frequent ARM for network capex planning | D115: ='Input| Projects As Inc'!D115 -> Asset Management & Field Enablement - Non-recurrent | F115: =IF('Input| Projects As Inc'!F115="Major Station","Yes","No") -> No | R115: 0 | T115: 0 | U115: 0 | V115: 0 | W115: 0 | X115: 0 | Y115: 0 | Z115: 0 | AA115: 0 | AB115: 0 | AC115: 0 | AD115: =IF(OR('Input| Projects As Inc'!I115<>"Replacement",AND('Input| Projects As Inc'!I115="Replacement",AC115=100%)),"",1) -> 
B116: 107 | C116: ='Input| Projects As Inc'!C116 -> Asset Management & Field Enablement - Asset Performance Management (APM) System for maintenance opex optimisation | D116: ='Input| Projects As Inc'!D116 -> Asset Management & Field Enablement - Non-recurrent | F116: =IF('Input| Projects As Inc'!F116="Major Station","Yes","No") -> No | R116: 0 | T116: 0 | U116: 0 | V116: 0 | W116: 0 | X116: 0 | Y116: 0 | Z116: 0 | AA116: 0 | AB116: 0 | AC116: 0 | AD116: =IF(OR('Input| Projects As Inc'!I116<>"Replacement",AND('Input| Projects As Inc'!I116="Replacement",AC116=100%)),"",1) -> 
B117: 108 | C117: ='Input| Projects As Inc'!C117 -> Asset Management & Field Enablement - Asset performance analytics using SCADA data | D117: ='Input| Projects As Inc'!D117 -> Asset Management & Field Enablement - Non-recurrent | F117: =IF('Input| Projects As Inc'!F117="Major Station","Yes","No") -> No | R117: 0 | T117: 0 | U117: 0 | V117: 0 | W117: 0 | X117: 0 | Y117: 0 | Z117: 0 | AA117: 0 | AB117: 0 | AC117: 0 | AD117: =IF(OR('Input| Projects As Inc'!I117<>"Replacement",AND('Input| Projects As Inc'!I117="Replacement",AC117=100%)),"",1) -> 
B118: 109 | C118: ='Input| Projects As Inc'!C118 -> Asset Management & Field Enablement - Automating transformer rating calculations​ | D118: ='Input| Projects As Inc'!D118 -> Asset Management & Field Enablement - Non-recurrent | F118: =IF('Input| Projects As Inc'!F118="Major Station","Yes","No") -> No | R118: 0 | T118: 0 | U118: 0 | V118: 0 | W118: 0 | X118: 0 | Y118: 0 | Z118: 0 | AA118: 0 | AB118: 0 | AC118: 0 | AD118: =IF(OR('Input| Projects As Inc'!I118<>"Replacement",AND('Input| Projects As Inc'!I118="Replacement",AC118=100%)),"",1) -> 
B119: 110 | C119: ='Input| Projects As Inc'!C119 -> Asset Management & Field Enablement - Consolidate Geospatial Capability | D119: ='Input| Projects As Inc'!D119 -> Asset Management & Field Enablement - Non-recurrent | F119: =IF('Input| Projects As Inc'!F119="Major Station","Yes","No") -> No | R119: 0 | T119: 0 | U119: 0 | V119: 0 | W119: 0 | X119: 0 | Y119: 0 | Z119: 0 | AA119: 0 | AB119: 0 | AC119: 0 | AD119: =IF(OR('Input| Projects As Inc'!I119<>"Replacement",AND('Input| Projects As Inc'!I119="Replacement",AC119=100%)),"",1) -> 
B120: 111 | C120: ='Input| Projects As Inc'!C120 -> Asset Management & Field Enablement - Tx field mobility | D120: ='Input| Projects As Inc'!D120 -> Asset Management & Field Enablement - Non-recurrent | F120: =IF('Input| Projects As Inc'!F120="Major Station","Yes","No") -> No | R120: 0 | T120: 0 | U120: 0 | V120: 0 | W120: 0 | X120: 0 | Y120: 0 | Z120: 0 | AA120: 0 | AB120: 0 | AC120: 0 | AD120: =IF(OR('Input| Projects As Inc'!I120<>"Replacement",AND('Input| Projects As Inc'!I120="Replacement",AC120=100%)),"",1) -> 
B121: 112 | C121: ='Input| Projects As Inc'!C121 -> Asset Management & Field Enablement - Tx Asset Data Enhancement Program | D121: ='Input| Projects As Inc'!D121 -> Asset Management & Field Enablement - Non-recurrent | F121: =IF('Input| Projects As Inc'!F121="Major Station","Yes","No") -> No | R121: 0 | T121: 0 | U121: 0 | V121: 0 | W121: 0 | X121: 0 | Y121: 0 | Z121: 0 | AA121: 0 | AB121: 0 | AC121: 0 | AD121: =IF(OR('Input| Projects As Inc'!I121<>"Replacement",AND('Input| Projects As Inc'!I121="Replacement",AC121=100%)),"",1) -> 
B122: 113 | C122: ='Input| Projects As Inc'!C122 -> Customer Engagement - Transmission landholder access | D122: ='Input| Projects As Inc'!D122 -> Customer Engagement - Non-recurrent | F122: =IF('Input| Projects As Inc'!F122="Major Station","Yes","No") -> No | R122: 0 | T122: 0 | U122: 0 | V122: 0 | W122: 0 | X122: 0 | Y122: 0 | Z122: 0 | AA122: 0 | AB122: 0 | AC122: 0 | AD122: =IF(OR('Input| Projects As Inc'!I122<>"Replacement",AND('Input| Projects As Inc'!I122="Replacement",AC122=100%)),"",1) -> 
B123: 114 | C123: ='Input| Projects As Inc'!C123 -> Metering Systems - Capability for latest meter technology (e.g. meter reading software & meter management solution) | D123: ='Input| Projects As Inc'!D123 -> Metering Systems - Non-recurrent | F123: =IF('Input| Projects As Inc'!F123="Major Station","Yes","No") -> No | R123: 0 | T123: 0 | U123: 0 | V123: 0 | W123: 0 | X123: 0 | Y123: 0 | Z123: 0 | AA123: 0 | AB123: 0 | AC123: 0 | AD123: =IF(OR('Input| Projects As Inc'!I123<>"Replacement",AND('Input| Projects As Inc'!I123="Replacement",AC123=100%)),"",1) -> 
B124: 115 | C124: ='Input| Projects As Inc'!C124 -> Metering Systems - Enhance meter data integrity & analytics | D124: ='Input| Projects As Inc'!D124 -> Metering Systems - Non-recurrent | F124: =IF('Input| Projects As Inc'!F124="Major Station","Yes","No") -> No | R124: 0 | T124: 0 | U124: 0 | V124: 0 | W124: 0 | X124: 0 | Y124: 0 | Z124: 0 | AA124: 0 | AB124: 0 | AC124: 0 | AD124: =IF(OR('Input| Projects As Inc'!I124<>"Replacement",AND('Input| Projects As Inc'!I124="Replacement",AC124=100%)),"",1) -> 
B125: 116 | C125: ='Input| Projects As Inc'!C125 -> Metering Systems - Meter data storage system | D125: ='Input| Projects As Inc'!D125 -> Metering Systems - Non-recurrent | F125: =IF('Input| Projects As Inc'!F125="Major Station","Yes","No") -> No | R125: 0 | T125: 0 | U125: 0 | V125: 0 | W125: 0 | X125: 0 | Y125: 0 | Z125: 0 | AA125: 0 | AB125: 0 | AC125: 0 | AD125: =IF(OR('Input| Projects As Inc'!I125<>"Replacement",AND('Input| Projects As Inc'!I125="Replacement",AC125=100%)),"",1) -> 
B126: 117 | C126: ='Input| Projects As Inc'!C126 -> Metering Systems - Metering asset register | D126: ='Input| Projects As Inc'!D126 -> Metering Systems - Non-recurrent | F126: =IF('Input| Projects As Inc'!F126="Major Station","Yes","No") -> No | R126: 0 | T126: 0 | U126: 0 | V126: 0 | W126: 0 | X126: 0 | Y126: 0 | Z126: 0 | AA126: 0 | AB126: 0 | AC126: 0 | AD126: =IF(OR('Input| Projects As Inc'!I126<>"Replacement",AND('Input| Projects As Inc'!I126="Replacement",AC126=100%)),"",1) -> 
B127: 118 | C127: ='Input| Projects As Inc'!C127 -> Metering Systems - Stream meter data vs polling | D127: ='Input| Projects As Inc'!D127 -> Metering Systems - Non-recurrent | F127: =IF('Input| Projects As Inc'!F127="Major Station","Yes","No") -> No | R127: 0 | T127: 0 | U127: 0 | V127: 0 | W127: 0 | X127: 0 | Y127: 0 | Z127: 0 | AA127: 0 | AB127: 0 | AC127: 0 | AD127: =IF(OR('Input| Projects As Inc'!I127<>"Replacement",AND('Input| Projects As Inc'!I127="Replacement",AC127=100%)),"",1) -> 
B128: 119 | C128: ='Input| Projects As Inc'!C128 -> Digital resilience – applications - Data and Analytics Tx Systems (cloud) | D128: ='Input| Projects As Inc'!D128 -> Digital resilience – applications - Recurrent | F128: =IF('Input| Projects As Inc'!F128="Major Station","Yes","No") -> No | R128: 0 | T128: 0 | U128: 0 | V128: 0 | W128: 0 | X128: 0 | Y128: 0 | Z128: 0 | AA128: 0 | AB128: 0 | AC128: 0 | AD128: =IF(OR('Input| Projects As Inc'!I128<>"Replacement",AND('Input| Projects As Inc'!I128="Replacement",AC128=100%)),"",1) -> 
B129: 120 | C129: ='Input| Projects As Inc'!C129 -> Digital resilience – applications - Enterprise Resource Planning (ERP) | D129: ='Input| Projects As Inc'!D129 -> Digital resilience – applications - Recurrent | F129: =IF('Input| Projects As Inc'!F129="Major Station","Yes","No") -> No | R129: 0 | T129: 0 | U129: 0 | V129: 0 | W129: 0 | X129: 0 | Y129: 0 | Z129: 0 | AA129: 0 | AB129: 0 | AC129: 0 | AD129: =IF(OR('Input| Projects As Inc'!I129<>"Replacement",AND('Input| Projects As Inc'!I129="Replacement",AC129=100%)),"",1) -> 
B130: 121 | C130: ='Input| Projects As Inc'!C130 -> Digital resilience – applications - eTerra Upgrade | D130: ='Input| Projects As Inc'!D130 -> Digital resilience – applications - Recurrent | F130: =IF('Input| Projects As Inc'!F130="Major Station","Yes","No") -> No | R130: 0 | T130: 0 | U130: 0 | V130: 0 | W130: 0 | X130: 0 | Y130: 0 | Z130: 0 | AA130: 0 | AB130: 0 | AC130: 0 | AD130: =IF(OR('Input| Projects As Inc'!I130<>"Replacement",AND('Input| Projects As Inc'!I130="Replacement",AC130=100%)),"",1) -> 
B131: 122 | C131: ='Input| Projects As Inc'!C131 -> Digital resilience – applications - Geospatial Systems | D131: ='Input| Projects As Inc'!D131 -> Digital resilience – applications - Recurrent | F131: =IF('Input| Projects As Inc'!F131="Major Station","Yes","No") -> No | R131: 0 | T131: 0 | U131: 0 | V131: 0 | W131: 0 | X131: 0 | Y131: 0 | Z131: 0 | AA131: 0 | AB131: 0 | AC131: 0 | AD131: =IF(OR('Input| Projects As Inc'!I131<>"Replacement",AND('Input| Projects As Inc'!I131="Replacement",AC131=100%)),"",1) -> 
B132: 123 | C132: ='Input| Projects As Inc'!C132 -> Digital resilience – applications - HSEQ | D132: ='Input| Projects As Inc'!D132 -> Digital resilience – applications - Recurrent | F132: =IF('Input| Projects As Inc'!F132="Major Station","Yes","No") -> No | R132: 0 | T132: 0 | U132: 0 | V132: 0 | W132: 0 | X132: 0 | Y132: 0 | Z132: 0 | AA132: 0 | AB132: 0 | AC132: 0 | AD132: =IF(OR('Input| Projects As Inc'!I132<>"Replacement",AND('Input| Projects As Inc'!I132="Replacement",AC132=100%)),"",1) -> 
B133: 124 | C133: ='Input| Projects As Inc'!C133 -> Digital resilience – applications - Identity Management | D133: ='Input| Projects As Inc'!D133 -> Digital resilience – applications - Recurrent | F133: =IF('Input| Projects As Inc'!F133="Major Station","Yes","No") -> No | R133: 0 | T133: 0 | U133: 0 | V133: 0 | W133: 0 | X133: 0 | Y133: 0 | Z133: 0 | AA133: 0 | AB133: 0 | AC133: 0 | AD133: =IF(OR('Input| Projects As Inc'!I133<>"Replacement",AND('Input| Projects As Inc'!I133="Replacement",AC133=100%)),"",1) -> 
B134: 125 | C134: ='Input| Projects As Inc'!C134 -> Digital resilience – applications - OPEX - SaaS/PaaS cloud service growth | D134: ='Input| Projects As Inc'!D134 -> Digital resilience – applications - Opex | F134: =IF('Input| Projects As Inc'!F134="Major Station","Yes","No") -> No | R134: 0 | T134: 0 | U134: 0 | V134: 0 | W134: 0 | X134: 0 | Y134: 0 | Z134: 0 | AA134: 0 | AB134: 0 | AC134: 0 | AD134: =IF(OR('Input| Projects As Inc'!I134<>"Replacement",AND('Input| Projects As Inc'!I134="Replacement",AC134=100%)),"",1) -> 
B135: 126 | C135: ='Input| Projects As Inc'!C135 -> Digital resilience – applications - Other Business Systems | D135: ='Input| Projects As Inc'!D135 -> Digital resilience – applications - Recurrent | F135: =IF('Input| Projects As Inc'!F135="Major Station","Yes","No") -> No | R135: 0 | T135: 0 | U135: 0 | V135: 0 | W135: 0 | X135: 0 | Y135: 0 | Z135: 0 | AA135: 0 | AB135: 0 | AC135: 0 | AD135: =IF(OR('Input| Projects As Inc'!I135<>"Replacement",AND('Input| Projects As Inc'!I135="Replacement",AC135=100%)),"",1) -> 
B136: 127 | C136: ='Input| Projects As Inc'!C136 -> Digital resilience – applications - Protection and Control Settings | D136: ='Input| Projects As Inc'!D136 -> Digital resilience – applications - Recurrent | F136: =IF('Input| Projects As Inc'!F136="Major Station","Yes","No") -> No | R136: 0 | T136: 0 | U136: 0 | V136: 0 | W136: 0 | X136: 0 | Y136: 0 | Z136: 0 | AA136: 0 | AB136: 0 | AC136: 0 | AD136: =IF(OR('Input| Projects As Inc'!I136<>"Replacement",AND('Input| Projects As Inc'!I136="Replacement",AC136=100%)),"",1) -> 
B137: 128 | C137: ='Input| Projects As Inc'!C137 -> Digital resilience – applications - Other TX applications | D137: ='Input| Projects As Inc'!D137 -> Digital resilience – applications - Recurrent | F137: =IF('Input| Projects As Inc'!F137="Major Station","Yes","No") -> No | R137: 0 | T137: 0 | U137: 0 | V137: 0 | W137: 0 | X137: 0 | Y137: 0 | Z137: 0 | AA137: 0 | AB137: 0 | AC137: 0 | AD137: =IF(OR('Input| Projects As Inc'!I137<>"Replacement",AND('Input| Projects As Inc'!I137="Replacement",AC137=100%)),"",1) -> 
B138: 129 | C138: ='Input| Projects As Inc'!C138 -> Digital resilience – applications - System Integration Platforms | D138: ='Input| Projects As Inc'!D138 -> Digital resilience – applications - Recurrent | F138: =IF('Input| Projects As Inc'!F138="Major Station","Yes","No") -> No | R138: 0 | T138: 0 | U138: 0 | V138: 0 | W138: 0 | X138: 0 | Y138: 0 | Z138: 0 | AA138: 0 | AB138: 0 | AC138: 0 | AD138: =IF(OR('Input| Projects As Inc'!I138<>"Replacement",AND('Input| Projects As Inc'!I138="Replacement",AC138=100%)),"",1) -> 
B139: 130 | C139: ='Input| Projects As Inc'!C139 -> Digital resilience – applications - Telecommunications Systems (SDMT, CNMS) | D139: ='Input| Projects As Inc'!D139 -> Digital resilience – applications - Recurrent | F139: =IF('Input| Projects As Inc'!F139="Major Station","Yes","No") -> No | R139: =SUM(J139:Q139) -> 0 | S139: =IF(OR($F139="No",AND($F139="Yes",R139=100%)),"",1) ->  | T139: 0 | U139: 0 | V139: 0 | W139: 0 | X139: 0 | Y139: 0 | Z139: 0 | AA139: 0 | AB139: 0 | AC139: =SUM(T139:AB139) -> 0 | AD139: =IF(OR('Input| Projects As Inc'!I139<>"Replacement",AND('Input| Projects As Inc'!I139="Replacement",AC139=100%)),"",1) -> 
B140: =IFERROR(B139+1,"") -> 131 | C140: ='Input| Projects As Inc'!C140 -> Digital resilience – applications - Weather and Solar Services | D140: ='Input| Projects As Inc'!D140 -> Digital resilience – applications - Recurrent | F140: =IF('Input| Projects As Inc'!F140="Major Station","Yes","No") -> No | R140: 0 | T140: 0 | U140: 0 | V140: 0 | W140: 0 | X140: 0 | Y140: 0 | Z140: 0 | AA140: 0 | AB140: 0 | AC140: 0 | AD140: =IF(OR('Input| Projects As Inc'!I140<>"Replacement",AND('Input| Projects As Inc'!I140="Replacement",AC140=100%)),"",1) -> 
B141: 132 | C141: ='Input| Projects As Inc'!C141 -> Digital resilience – applications - SCADA Data Historian | D141: ='Input| Projects As Inc'!D141 -> Digital resilience – applications - Recurrent | F141: =IF('Input| Projects As Inc'!F141="Major Station","Yes","No") -> No | R141: 0 | T141: 0 | U141: 0 | V141: 0 | W141: 0 | X141: 0 | Y141: 0 | Z141: 0 | AA141: 0 | AB141: 0 | AC141: 0 | AD141: =IF(OR('Input| Projects As Inc'!I141<>"Replacement",AND('Input| Projects As Inc'!I141="Replacement",AC141=100%)),"",1) -> 
B142: 133 | C142: ='Input| Projects As Inc'!C142 -> Digital resilience – infrastructure - Data Centre Facilities | D142: ='Input| Projects As Inc'!D142 -> Digital resilience – infrastructure - Recurrent | F142: =IF('Input| Projects As Inc'!F142="Major Station","Yes","No") -> No | R142: 0 | T142: 0 | U142: 0 | V142: 0 | W142: 0 | X142: 0 | Y142: 0 | Z142: 0 | AA142: 0 | AB142: 0 | AC142: 0 | AD142: =IF(OR('Input| Projects As Inc'!I142<>"Replacement",AND('Input| Projects As Inc'!I142="Replacement",AC142=100%)),"",1) -> 
B143: 134 | C143: ='Input| Projects As Inc'!C143 -> Digital resilience – infrastructure - Fire Supression (DC) | D143: ='Input| Projects As Inc'!D143 -> Digital resilience – infrastructure - Recurrent | F143: =IF('Input| Projects As Inc'!F143="Major Station","Yes","No") -> No | R143: 0 | T143: 0 | U143: 0 | V143: 0 | W143: 0 | X143: 0 | Y143: 0 | Z143: 0 | AA143: 0 | AB143: 0 | AC143: 0 | AD143: =IF(OR('Input| Projects As Inc'!I143<>"Replacement",AND('Input| Projects As Inc'!I143="Replacement",AC143=100%)),"",1) -> 
B144: 135 | C144: ='Input| Projects As Inc'!C144 -> Digital resilience – infrastructure - HiSec Network | D144: ='Input| Projects As Inc'!D144 -> Digital resilience – infrastructure - Recurrent | F144: =IF('Input| Projects As Inc'!F144="Major Station","Yes","No") -> No | R144: 0 | T144: 0 | U144: 0 | V144: 0 | W144: 0 | X144: 0 | Y144: 0 | Z144: 0 | AA144: 0 | AB144: 0 | AC144: 0 | AD144: =IF(OR('Input| Projects As Inc'!I144<>"Replacement",AND('Input| Projects As Inc'!I144="Replacement",AC144=100%)),"",1) -> 
B145: 136 | C145: ='Input| Projects As Inc'!C145 -> Digital resilience – infrastructure - Physical security digital infrastructure (servers, storage, network bandwidth) | D145: ='Input| Projects As Inc'!D145 -> Digital resilience – infrastructure - Recurrent | F145: =IF('Input| Projects As Inc'!F145="Major Station","Yes","No") -> No | R145: 0 | T145: 0 | U145: 0 | V145: 0 | W145: 0 | X145: 0 | Y145: 0 | Z145: 0 | AA145: 0 | AB145: 0 | AC145: 0 | AD145: =IF(OR('Input| Projects As Inc'!I145<>"Replacement",AND('Input| Projects As Inc'!I145="Replacement",AC145=100%)),"",1) -> 
B146: 137 | C146: ='Input| Projects As Inc'!C146 -> Digital resilience – infrastructure - Shared Data Centre Infrastructure | D146: ='Input| Projects As Inc'!D146 -> Digital resilience – infrastructure - Recurrent | F146: =IF('Input| Projects As Inc'!F146="Major Station","Yes","No") -> No | R146: 0 | T146: 0 | U146: 0 | V146: 0 | W146: 0 | X146: 0 | Y146: 0 | Z146: 0 | AA146: 0 | AB146: 0 | AC146: 0 | AD146: =IF(OR('Input| Projects As Inc'!I146<>"Replacement",AND('Input| Projects As Inc'!I146="Replacement",AC146=100%)),"",1) -> 
B147: 138 | C147: ='Input| Projects As Inc'!C147 -> Digital resilience – infrastructure - Other infrastructure upgrades (e.g. Zetron, RADAR, Pegasus, Pacsis - does the settings of the ratings) | D147: ='Input| Projects As Inc'!D147 -> Digital resilience – infrastructure - Recurrent | F147: =IF('Input| Projects As Inc'!F147="Major Station","Yes","No") -> No | R147: 0 | T147: 0 | U147: 0 | V147: 0 | W147: 0 | X147: 0 | Y147: 0 | Z147: 0 | AA147: 0 | AB147: 0 | AC147: 0 | AD147: =IF(OR('Input| Projects As Inc'!I147<>"Replacement",AND('Input| Projects As Inc'!I147="Replacement",AC147=100%)),"",1) -> 
B148: 139 | C148: ='Input| Projects As Inc'!C148 -> Digital resilience – infrastructure - System Integration Platforms - HW | D148: ='Input| Projects As Inc'!D148 -> Digital resilience – infrastructure - Recurrent | F148: =IF('Input| Projects As Inc'!F148="Major Station","Yes","No") -> No | R148: 0 | T148: 0 | U148: 0 | V148: 0 | W148: 0 | X148: 0 | Y148: 0 | Z148: 0 | AA148: 0 | AB148: 0 | AC148: 0 | AD148: =IF(OR('Input| Projects As Inc'!I148<>"Replacement",AND('Input| Projects As Inc'!I148="Replacement",AC148=100%)),"",1) -> 
B149: 140 | C149: ='Input| Projects As Inc'!C149 -> Digital resilience – infrastructure - Telecommunications Systems (HW) | D149: ='Input| Projects As Inc'!D149 -> Digital resilience – infrastructure - Recurrent | F149: =IF('Input| Projects As Inc'!F149="Major Station","Yes","No") -> No | R149: 0 | T149: 0 | U149: 0 | V149: 0 | W149: 0 | X149: 0 | Y149: 0 | Z149: 0 | AA149: 0 | AB149: 0 | AC149: 0 | AD149: =IF(OR('Input| Projects As Inc'!I149<>"Replacement",AND('Input| Projects As Inc'!I149="Replacement",AC149=100%)),"",1) -> 
B150: 141 | C150: ='Input| Projects As Inc'!C150 -> Digital resilience – infrastructure - User Devices (laptops, mobile, peripherals) | D150: ='Input| Projects As Inc'!D150 -> Digital resilience – infrastructure - Recurrent | F150: =IF('Input| Projects As Inc'!F150="Major Station","Yes","No") -> No | R150: 0 | T150: 0 | U150: 0 | V150: 0 | W150: 0 | X150: 0 | Y150: 0 | Z150: 0 | AA150: 0 | AB150: 0 | AC150: 0 | AD150: =IF(OR('Input| Projects As Inc'!I150<>"Replacement",AND('Input| Projects As Inc'!I150="Replacement",AC150=100%)),"",1) -> 
B151: 142 | C151: ='Input| Projects As Inc'!C151 -> Digital Resilience – infrastructure - SCADA Data Historian - Infra | D151: ='Input| Projects As Inc'!D151 -> Digital Resilience – infrastructure - Recurrent | F151: =IF('Input| Projects As Inc'!F151="Major Station","Yes","No") -> No | R151: 0 | T151: 0 | U151: 0 | V151: 0 | W151: 0 | X151: 0 | Y151: 0 | Z151: 0 | AA151: 0 | AB151: 0 | AC151: 0 | AD151: =IF(OR('Input| Projects As Inc'!I151<>"Replacement",AND('Input| Projects As Inc'!I151="Replacement",AC151=100%)),"",1) -> 
B152: 143 | C152: ='Input| Projects As Inc'!C152 -> Digital Resilience – infrastructure - OT Comms Equipment firmware updates | D152: ='Input| Projects As Inc'!D152 -> Digital Resilience – infrastructure - Recurrent | F152: =IF('Input| Projects As Inc'!F152="Major Station","Yes","No") -> No | R152: 0 | T152: 0 | U152: 0 | V152: 0 | W152: 0 | X152: 0 | Y152: 0 | Z152: 0 | AA152: 0 | AB152: 0 | AC152: 0 | AD152: =IF(OR('Input| Projects As Inc'!I152<>"Replacement",AND('Input| Projects As Inc'!I152="Replacement",AC152=100%)),"",1) -> 
B153: 144 | C153: ='Input| Projects As Inc'!C153 -> Cyber security - Cyber Security Systems Refresh | D153: ='Input| Projects As Inc'!D153 -> Cyber security - Recurrent | F153: =IF('Input| Projects As Inc'!F153="Major Station","Yes","No") -> No | R153: 0 | T153: 0 | U153: 0 | V153: 0 | W153: 0 | X153: 0 | Y153: 0 | Z153: 0 | AA153: 0 | AB153: 0 | AC153: 0 | AD153: =IF(OR('Input| Projects As Inc'!I153<>"Replacement",AND('Input| Projects As Inc'!I153="Replacement",AC153=100%)),"",1) -> 
B154: 145 | C154: ='Input| Projects As Inc'!C154 -> Cyber security - Cyber New Threat/Capability uplift (PWC Cyber Security Program) | D154: ='Input| Projects As Inc'!D154 -> Cyber security - Non-recurrent | F154: =IF('Input| Projects As Inc'!F154="Major Station","Yes","No") -> No | R154: 0 | T154: 0 | U154: 0 | V154: 0 | W154: 0 | X154: 0 | Y154: 0 | Z154: 0 | AA154: 0 | AB154: 0 | AC154: 0 | AD154: =IF(OR('Input| Projects As Inc'!I154<>"Replacement",AND('Input| Projects As Inc'!I154="Replacement",AC154=100%)),"",1) -> 
B155: 146 | C155: ='Input| Projects As Inc'!C155 ->  | D155: ='Input| Projects As Inc'!D155 ->  | F155: =IF('Input| Projects As Inc'!F155="Major Station","Yes","No") -> No | R155: 0 | T155: 0 | U155: 0 | V155: 0 | W155: 0 | X155: 0 | Y155: 0 | Z155: 0 | AA155: 0 | AB155: 0 | AC155: 0 | AD155: =IF(OR('Input| Projects As Inc'!I155<>"Replacement",AND('Input| Projects As Inc'!I155="Replacement",AC155=100%)),"",1) -> 
B156: 147 | C156: ='Input| Projects As Inc'!C156 ->  | D156: ='Input| Projects As Inc'!D156 ->  | F156: =IF('Input| Projects As Inc'!F156="Major Station","Yes","No") -> No | R156: 0 | T156: 0 | U156: 0 | V156: 0 | W156: 0 | X156: 0 | Y156: 0 | Z156: 0 | AA156: 0 | AB156: 0 | AC156: 0 | AD156: =IF(OR('Input| Projects As Inc'!I156<>"Replacement",AND('Input| Projects As Inc'!I156="Replacement",AC156=100%)),"",1) -> 
B157: 148 | C157: ='Input| Projects As Inc'!C157 -> SOCI - CCTV (Building and Poles) | D157: ='Input| Projects As Inc'!D157 -> Program | F157: =IF('Input| Projects As Inc'!F157="Major Station","Yes","No") -> No | R157: 0 | T157: 0 | U157: 0 | V157: 0 | W157: 0 | X157: 0 | Y157: 0 | Z157: 0 | AA157: 0 | AB157: 1 | AC157: 1 | AD157: =IF(OR('Input| Projects As Inc'!I157<>"Replacement",AND('Input| Projects As Inc'!I157="Replacement",AC157=100%)),"",1) -> 
B158: 149 | C158: ='Input| Projects As Inc'!C158 -> SOCI - Lighting | D158: ='Input| Projects As Inc'!D158 -> Program | F158: =IF('Input| Projects As Inc'!F158="Major Station","Yes","No") -> No | R158: 0 | T158: 0 | U158: 0 | V158: 0 | W158: 0 | X158: 0 | Y158: 0 | Z158: 0 | AA158: 0 | AB158: 1 | AC158: =SUM(U158:AB158) -> 1 | AD158: =IF(OR('Input| Projects As Inc'!I158<>"Replacement",AND('Input| Projects As Inc'!I158="Replacement",AC158=100%)),"",1) -> 
B159: 150 | C159: ='Input| Projects As Inc'!C159 -> SOCI - Sub-component Protection | D159: ='Input| Projects As Inc'!D159 -> Program | F159: =IF('Input| Projects As Inc'!F159="Major Station","Yes","No") -> No | R159: 0 | T159: 0 | U159: 0 | V159: 0 | W159: 0 | X159: 0 | Y159: 0 | Z159: 0 | AA159: 0 | AB159: 1 | AC159: 1 | AD159: =IF(OR('Input| Projects As Inc'!I159<>"Replacement",AND('Input| Projects As Inc'!I159="Replacement",AC159=100%)),"",1) -> 
B160: 151 | C160: ='Input| Projects As Inc'!C160 -> SOCI - Signage | D160: ='Input| Projects As Inc'!D160 -> Program | F160: =IF('Input| Projects As Inc'!F160="Major Station","Yes","No") -> No | R160: 0 | T160: 0 | U160: 0 | V160: 0 | W160: 0 | X160: 0 | Y160: 0 | Z160: 0 | AA160: 0 | AB160: 1 | AC160: 1 | AD160: =IF(OR('Input| Projects As Inc'!I160<>"Replacement",AND('Input| Projects As Inc'!I160="Replacement",AC160=100%)),"",1) -> 
B161: 152 | C161: ='Input| Projects As Inc'!C161 -> SOCI - Window Protection | D161: ='Input| Projects As Inc'!D161 -> Program | F161: =IF('Input| Projects As Inc'!F161="Major Station","Yes","No") -> No | R161: 0 | T161: 0 | U161: 0 | V161: 0 | W161: 0 | X161: 0 | Y161: 0 | Z161: 0 | AA161: 0 | AB161: 1 | AC161: 1 | AD161: =IF(OR('Input| Projects As Inc'!I161<>"Replacement",AND('Input| Projects As Inc'!I161="Replacement",AC161=100%)),"",1) -> 
B162: 153 | C162: ='Input| Projects As Inc'!C162 -> SOCI - Security Fencing | D162: ='Input| Projects As Inc'!D162 -> Program | F162: =IF('Input| Projects As Inc'!F162="Major Station","Yes","No") -> No | R162: 0 | T162: 0 | U162: 0 | V162: 0 | W162: 0 | X162: 0 | Y162: 0 | Z162: 0 | AA162: 0 | AB162: 1 | AC162: 1 | AD162: =IF(OR('Input| Projects As Inc'!I162<>"Replacement",AND('Input| Projects As Inc'!I162="Replacement",AC162=100%)),"",1) -> 
B163: 154 | C163: ='Input| Projects As Inc'!C163 -> SOCI - Gate Installation and Paving Works (exclusive of Gate Motors) | D163: ='Input| Projects As Inc'!D163 -> Program | F163: =IF('Input| Projects As Inc'!F163="Major Station","Yes","No") -> No | R163: 0 | T163: 0 | U163: 0 | V163: 0 | W163: 0 | X163: 0 | Y163: 0 | Z163: 0 | AA163: 0 | AB163: 1 | AC163: 1 | AD163: =IF(OR('Input| Projects As Inc'!I163<>"Replacement",AND('Input| Projects As Inc'!I163="Replacement",AC163=100%)),"",1) -> 
B164: 155 | C164: ='Input| Projects As Inc'!C164 -> SOCI - Access Control | D164: ='Input| Projects As Inc'!D164 -> Program | F164: =IF('Input| Projects As Inc'!F164="Major Station","Yes","No") -> No | R164: 0 | T164: 0 | U164: 0 | V164: 0 | W164: 0 | X164: 0 | Y164: 0 | Z164: 0 | AA164: 0 | AB164: 1 | AC164: 1 | AD164: =IF(OR('Input| Projects As Inc'!I164<>"Replacement",AND('Input| Projects As Inc'!I164="Replacement",AC164=100%)),"",1) -> 
B165: 156 | C165: ='Input| Projects As Inc'!C165 -> Non-SOCI Security - Fault Finding - Replacement of Broken Assets | D165: ='Input| Projects As Inc'!D165 -> Program | F165: =IF('Input| Projects As Inc'!F165="Major Station","Yes","No") -> No | R165: 0 | T165: 0 | U165: 0 | V165: 0 | W165: 0 | X165: 0 | Y165: 0 | Z165: 0 | AA165: 0 | AB165: 1 | AC165: 1 | AD165: =IF(OR('Input| Projects As Inc'!I165<>"Replacement",AND('Input| Projects As Inc'!I165="Replacement",AC165=100%)),"",1) -> 
B166: 157 | C166: ='Input| Projects As Inc'!C166 -> Non-SOCI Security - Replacement Gate Motors | D166: ='Input| Projects As Inc'!D166 -> Program | F166: =IF('Input| Projects As Inc'!F166="Major Station","Yes","No") -> No | R166: 0 | T166: 0 | U166: 0 | V166: 0 | W166: 0 | X166: 0 | Y166: 0 | Z166: 0 | AA166: 0 | AB166: 1 | AC166: 1 | AD166: =IF(OR('Input| Projects As Inc'!I166<>"Replacement",AND('Input| Projects As Inc'!I166="Replacement",AC166=100%)),"",1) -> 
B167: 158 | C167: ='Input| Projects As Inc'!C167 -> Non-SOCI Security - Padlock Protection | D167: ='Input| Projects As Inc'!D167 -> Program | F167: =IF('Input| Projects As Inc'!F167="Major Station","Yes","No") -> No | R167: 0 | T167: 0 | U167: 0 | V167: 0 | W167: 0 | X167: 0 | Y167: 0 | Z167: 0 | AA167: 0 | AB167: 1 | AC167: 1 | AD167: =IF(OR('Input| Projects As Inc'!I167<>"Replacement",AND('Input| Projects As Inc'!I167="Replacement",AC167=100%)),"",1) -> 
B168: 159 | C168: ='Input| Projects As Inc'!C168 -> Non-SOCI Security - CCTV End of Life replacement (Tier 1 and Tier 2) | D168: ='Input| Projects As Inc'!D168 -> Program | F168: =IF('Input| Projects As Inc'!F168="Major Station","Yes","No") -> No | R168: 0 | T168: 0 | U168: 0 | V168: 0 | W168: 0 | X168: 0 | Y168: 0 | Z168: 0 | AA168: 0 | AB168: 1 | AC168: 1 | AD168: =IF(OR('Input| Projects As Inc'!I168<>"Replacement",AND('Input| Projects As Inc'!I168="Replacement",AC168=100%)),"",1) -> 
B169: 160 | C169: ='Input| Projects As Inc'!C169 -> Non-SOCI Security - Trailer technology replacement | D169: ='Input| Projects As Inc'!D169 -> Program | F169: =IF('Input| Projects As Inc'!F169="Major Station","Yes","No") -> No | R169: 0 | T169: 0 | U169: 0 | V169: 0 | W169: 0 | X169: 0 | Y169: 0 | Z169: 0 | AA169: 0 | AB169: 1 | AC169: 1 | AD169: =IF(OR('Input| Projects As Inc'!I169<>"Replacement",AND('Input| Projects As Inc'!I169="Replacement",AC169=100%)),"",1) -> 
B170: 161 | C170: ='Input| Projects As Inc'!C170 -> Non-SOCI Security - CCTV Server Replacement | D170: ='Input| Projects As Inc'!D170 -> Program | F170: =IF('Input| Projects As Inc'!F170="Major Station","Yes","No") -> No | R170: 0 | T170: 0 | U170: 0 | V170: 0 | W170: 0 | X170: 0 | Y170: 0 | Z170: 0 | AA170: 0 | AB170: 1 | AC170: 1 | AD170: =IF(OR('Input| Projects As Inc'!I170<>"Replacement",AND('Input| Projects As Inc'!I170="Replacement",AC170=100%)),"",1) -> 
B171: 162 | C171: ='Input| Projects As Inc'!C171 -> Non-SOCI Security - Rapid Deployment camera | D171: ='Input| Projects As Inc'!D171 -> Program | F171: =IF('Input| Projects As Inc'!F171="Major Station","Yes","No") -> No | R171: 0 | T171: 0 | U171: 0 | V171: 0 | W171: 0 | X171: 0 | Y171: 0 | Z171: 0 | AA171: 0 | AB171: 1 | AC171: 1 | AD171: =IF(OR('Input| Projects As Inc'!I171<>"Replacement",AND('Input| Projects As Inc'!I171="Replacement",AC171=100%)),"",1) -> 
B172: 163 | C172: ='Input| Projects As Inc'!C172 -> Non-SOCI Security - Security Control Room Upgrade | D172: ='Input| Projects As Inc'!D172 -> Program | F172: =IF('Input| Projects As Inc'!F172="Major Station","Yes","No") -> No | R172: 0 | T172: 0 | U172: 0 | V172: 0 | W172: 0 | X172: 0 | Y172: 0 | Z172: 0 | AA172: 0 | AB172: 1 | AC172: 1 | AD172: =IF(OR('Input| Projects As Inc'!I172<>"Replacement",AND('Input| Projects As Inc'!I172="Replacement",AC172=100%)),"",1) -> 
B173: 164 | C173: ='Input| Projects As Inc'!C173 -> Non-SOCI Security - Future Technology | D173: ='Input| Projects As Inc'!D173 -> Program | F173: =IF('Input| Projects As Inc'!F173="Major Station","Yes","No") -> No | R173: 0 | T173: 0 | U173: 0 | V173: 0 | W173: 0 | X173: 0 | Y173: 0 | Z173: 0 | AA173: 0 | AB173: 1 | AC173: 1 | AD173: =IF(OR('Input| Projects As Inc'!I173<>"Replacement",AND('Input| Projects As Inc'!I173="Replacement",AC173=100%)),"",1) -> 
B174: 165 | C174: ='Input| Projects As Inc'!C174 ->  | D174: ='Input| Projects As Inc'!D174 ->  | F174: =IF('Input| Projects As Inc'!F174="Major Station","Yes","No") -> No | R174: 0 | T174: 0 | U174: 0 | V174: 0 | W174: 0 | X174: 0 | Y174: 0 | Z174: 0 | AA174: 0 | AB174: 0 | AC174: 0 | AD174: =IF(OR('Input| Projects As Inc'!I174<>"Replacement",AND('Input| Projects As Inc'!I174="Replacement",AC174=100%)),"",1) -> 
B175: 166 | C175: ='Input| Projects As Inc'!C175 ->  | D175: ='Input| Projects As Inc'!D175 ->  | F175: =IF('Input| Projects As Inc'!F175="Major Station","Yes","No") -> No | R175: 0 | T175: 0 | U175: 0 | V175: 0 | W175: 0 | X175: 0 | Y175: 0 | Z175: 0 | AA175: 0 | AB175: 0 | AC175: 0 | AD175: =IF(OR('Input| Projects As Inc'!I175<>"Replacement",AND('Input| Projects As Inc'!I175="Replacement",AC175=100%)),"",1) -> 
B176: 167 | C176: ='Input| Projects As Inc'!C176 ->  | D176: ='Input| Projects As Inc'!D176 ->  | F176: =IF('Input| Projects As Inc'!F176="Major Station","Yes","No") -> No | R176: 0 | T176: 0 | U176: 0 | V176: 0 | W176: 0 | X176: 0 | Y176: 0 | Z176: 0 | AA176: 0 | AB176: 0 | AC176: 0 | AD176: =IF(OR('Input| Projects As Inc'!I176<>"Replacement",AND('Input| Projects As Inc'!I176="Replacement",AC176=100%)),"",1) -> 
B177: 168 | C177: ='Input| Projects As Inc'!C177 ->  | D177: ='Input| Projects As Inc'!D177 ->  | F177: =IF('Input| Projects As Inc'!F177="Major Station","Yes","No") -> No | R177: 0 | T177: 0 | U177: 0 | V177: 0 | W177: 0 | X177: 0 | Y177: 0 | Z177: 0 | AA177: 0 | AB177: 0 | AC177: 0 | AD177: =IF(OR('Input| Projects As Inc'!I177<>"Replacement",AND('Input| Projects As Inc'!I177="Replacement",AC177=100%)),"",1) -> 
B178: 169 | C178: ='Input| Projects As Inc'!C178 ->  | D178: ='Input| Projects As Inc'!D178 ->  | F178: =IF('Input| Projects As Inc'!F178="Major Station","Yes","No") -> No | R178: 0 | T178: 0 | U178: 0 | V178: 0 | W178: 0 | X178: 0 | Y178: 0 | Z178: 0 | AA178: 0 | AB178: 0 | AC178: 0 | AD178: =IF(OR('Input| Projects As Inc'!I178<>"Replacement",AND('Input| Projects As Inc'!I178="Replacement",AC178=100%)),"",1) -> 
B179: 170 | C179: ='Input| Projects As Inc'!C179 ->  | D179: ='Input| Projects As Inc'!D179 ->  | F179: =IF('Input| Projects As Inc'!F179="Major Station","Yes","No") -> No | R179: 0 | AC179: 0 | AD179: =IF(OR('Input| Projects As Inc'!I179<>"Replacement",AND('Input| Projects As Inc'!I179="Replacement",AC179=100%)),"",1) -> 
B180: 171 | C180: ='Input| Projects As Inc'!C180 ->  | D180: ='Input| Projects As Inc'!D180 ->  | F180: =IF('Input| Projects As Inc'!F180="Major Station","Yes","No") -> No | R180: 0 | AC180: 0 | AD180: =IF(OR('Input| Projects As Inc'!I180<>"Replacement",AND('Input| Projects As Inc'!I180="Replacement",AC180=100%)),"",1) -> 
B181: 172 | C181: ='Input| Projects As Inc'!C181 ->  | D181: ='Input| Projects As Inc'!D181 ->  | F181: =IF('Input| Projects As Inc'!F181="Major Station","Yes","No") -> No | R181: 0 | AC181: 0 | AD181: =IF(OR('Input| Projects As Inc'!I181<>"Replacement",AND('Input| Projects As Inc'!I181="Replacement",AC181=100%)),"",1) -> 
B182: 173 | C182: ='Input| Projects As Inc'!C182 ->  | D182: ='Input| Projects As Inc'!D182 ->  | F182: =IF('Input| Projects As Inc'!F182="Major Station","Yes","No") -> No | R182: 0 | AC182: 0 | AD182: =IF(OR('Input| Projects As Inc'!I182<>"Replacement",AND('Input| Projects As Inc'!I182="Replacement",AC182=100%)),"",1) -> 
B183: 174 | C183: ='Input| Projects As Inc'!C183 ->  | D183: ='Input| Projects As Inc'!D183 ->  | F183: =IF('Input| Projects As Inc'!F183="Major Station","Yes","No") -> No | R183: 0 | AC183: 0 | AD183: =IF(OR('Input| Projects As Inc'!I183<>"Replacement",AND('Input| Projects As Inc'!I183="Replacement",AC183=100%)),"",1) -> 
B184: 175 | C184: ='Input| Projects As Inc'!C184 ->  | D184: ='Input| Projects As Inc'!D184 ->  | F184: =IF('Input| Projects As Inc'!F184="Major Station","Yes","No") -> No | R184: 0 | AC184: 0 | AD184: =IF(OR('Input| Projects As Inc'!I184<>"Replacement",AND('Input| Projects As Inc'!I184="Replacement",AC184=100%)),"",1) -> 
B185: 176 | C185: ='Input| Projects As Inc'!C185 ->  | D185: ='Input| Projects As Inc'!D185 ->  | F185: =IF('Input| Projects As Inc'!F185="Major Station","Yes","No") -> No | R185: 0 | AC185: 0 | AD185: =IF(OR('Input| Projects As Inc'!I185<>"Replacement",AND('Input| Projects As Inc'!I185="Replacement",AC185=100%)),"",1) -> 
B186: 177 | C186: ='Input| Projects As Inc'!C186 ->  | D186: ='Input| Projects As Inc'!D186 ->  | F186: =IF('Input| Projects As Inc'!F186="Major Station","Yes","No") -> No | R186: 0 | AC186: 0 | AD186: =IF(OR('Input| Projects As Inc'!I186<>"Replacement",AND('Input| Projects As Inc'!I186="Replacement",AC186=100%)),"",1) -> 
B187: 178 | C187: ='Input| Projects As Inc'!C187 -> 0 | D187: ='Input| Projects As Inc'!D187 -> 0 | F187: =IF('Input| Projects As Inc'!F187="Major Station","Yes","No") -> No | R187: 0 | AC187: 0 | AD187: =IF(OR('Input| Projects As Inc'!I187<>"Replacement",AND('Input| Projects As Inc'!I187="Replacement",AC187=100%)),"",1) -> 
B188: 179 | C188: ='Input| Projects As Inc'!C188 -> 0 | D188: ='Input| Projects As Inc'!D188 -> 0 | F188: =IF('Input| Projects As Inc'!F188="Major Station","Yes","No") -> No | R188: 0 | AC188: 0 | AD188: =IF(OR('Input| Projects As Inc'!I188<>"Replacement",AND('Input| Projects As Inc'!I188="Replacement",AC188=100%)),"",1) -> 
B189: 180 | C189: ='Input| Projects As Inc'!C189 -> 0 | D189: ='Input| Projects As Inc'!D189 -> 0 | F189: =IF('Input| Projects As Inc'!F189="Major Station","Yes","No") -> No | R189: 0 | AC189: 0 | AD189: =IF(OR('Input| Projects As Inc'!I189<>"Replacement",AND('Input| Projects As Inc'!I189="Replacement",AC189=100%)),"",1) -> 
B190: 181 | C190: ='Input| Projects As Inc'!C190 -> 0 | D190: ='Input| Projects As Inc'!D190 -> 0 | F190: =IF('Input| Projects As Inc'!F190="Major Station","Yes","No") -> No | R190: 0 | AC190: 0 | AD190: =IF(OR('Input| Projects As Inc'!I190<>"Replacement",AND('Input| Projects As Inc'!I190="Replacement",AC190=100%)),"",1) -> 
B191: 182 | C191: ='Input| Projects As Inc'!C191 -> 0 | D191: ='Input| Projects As Inc'!D191 -> 0 | F191: =IF('Input| Projects As Inc'!F191="Major Station","Yes","No") -> No | R191: 0 | AC191: 0 | AD191: =IF(OR('Input| Projects As Inc'!I191<>"Replacement",AND('Input| Projects As Inc'!I191="Replacement",AC191=100%)),"",1) -> 
B192: 183 | C192: ='Input| Projects As Inc'!C192 -> 0 | D192: ='Input| Projects As Inc'!D192 -> 0 | F192: =IF('Input| Projects As Inc'!F192="Major Station","Yes","No") -> No | R192: 0 | AC192: 0 | AD192: =IF(OR('Input| Projects As Inc'!I192<>"Replacement",AND('Input| Projects As Inc'!I192="Replacement",AC192=100%)),"",1) -> 
B193: 184 | C193: ='Input| Projects As Inc'!C193 -> 0 | D193: ='Input| Projects As Inc'!D193 -> 0 | F193: =IF('Input| Projects As Inc'!F193="Major Station","Yes","No") -> No | R193: 0 | AC193: 0 | AD193: =IF(OR('Input| Projects As Inc'!I193<>"Replacement",AND('Input| Projects As Inc'!I193="Replacement",AC193=100%)),"",1) -> 
B194: 185 | C194: ='Input| Projects As Inc'!C194 -> 0 | D194: ='Input| Projects As Inc'!D194 -> 0 | F194: =IF('Input| Projects As Inc'!F194="Major Station","Yes","No") -> No | R194: 0 | AC194: 0 | AD194: =IF(OR('Input| Projects As Inc'!I194<>"Replacement",AND('Input| Projects As Inc'!I194="Replacement",AC194=100%)),"",1) -> 
B195: 186 | C195: ='Input| Projects As Inc'!C195 -> 0 | D195: ='Input| Projects As Inc'!D195 -> 0 | F195: =IF('Input| Projects As Inc'!F195="Major Station","Yes","No") -> No | R195: 0 | AC195: 0 | AD195: =IF(OR('Input| Projects As Inc'!I195<>"Replacement",AND('Input| Projects As Inc'!I195="Replacement",AC195=100%)),"",1) -> 
B196: 187 | C196: ='Input| Projects As Inc'!C196 -> 0 | D196: ='Input| Projects As Inc'!D196 -> 0 | F196: =IF('Input| Projects As Inc'!F196="Major Station","Yes","No") -> No | R196: 0 | AC196: 0 | AD196: =IF(OR('Input| Projects As Inc'!I196<>"Replacement",AND('Input| Projects As Inc'!I196="Replacement",AC196=100%)),"",1) -> 
B197: 188 | C197: ='Input| Projects As Inc'!C197 -> 0 | D197: ='Input| Projects As Inc'!D197 -> 0 | F197: =IF('Input| Projects As Inc'!F197="Major Station","Yes","No") -> No | R197: 0 | AC197: 0 | AD197: =IF(OR('Input| Projects As Inc'!I197<>"Replacement",AND('Input| Projects As Inc'!I197="Replacement",AC197=100%)),"",1) -> 
B198: 189 | C198: ='Input| Projects As Inc'!C198 -> 0 | D198: ='Input| Projects As Inc'!D198 -> 0 | F198: =IF('Input| Projects As Inc'!F198="Major Station","Yes","No") -> No | R198: 0 | AC198: 0 | AD198: =IF(OR('Input| Projects As Inc'!I198<>"Replacement",AND('Input| Projects As Inc'!I198="Replacement",AC198=100%)),"",1) -> 
B199: 190 | C199: ='Input| Projects As Inc'!C199 -> 0 | D199: ='Input| Projects As Inc'!D199 -> 0 | F199: =IF('Input| Projects As Inc'!F199="Major Station","Yes","No") -> No | R199: 0 | AC199: 0 | AD199: =IF(OR('Input| Projects As Inc'!I199<>"Replacement",AND('Input| Projects As Inc'!I199="Replacement",AC199=100%)),"",1) -> 
B200: 191 | C200: ='Input| Projects As Inc'!C200 -> 0 | D200: ='Input| Projects As Inc'!D200 -> 0 | F200: =IF('Input| Projects As Inc'!F200="Major Station","Yes","No") -> No | R200: 0 | AC200: 0 | AD200: =IF(OR('Input| Projects As Inc'!I200<>"Replacement",AND('Input| Projects As Inc'!I200="Replacement",AC200=100%)),"",1) -> 
B201: 192 | C201: ='Input| Projects As Inc'!C201 -> 0 | D201: ='Input| Projects As Inc'!D201 -> 0 | F201: =IF('Input| Projects As Inc'!F201="Major Station","Yes","No") -> No | R201: 0 | AC201: 0 | AD201: =IF(OR('Input| Projects As Inc'!I201<>"Replacement",AND('Input| Projects As Inc'!I201="Replacement",AC201=100%)),"",1) -> 
B202: 193 | C202: ='Input| Projects As Inc'!C202 -> 0 | D202: ='Input| Projects As Inc'!D202 -> 0 | F202: =IF('Input| Projects As Inc'!F202="Major Station","Yes","No") -> No | R202: 0 | AC202: 0 | AD202: =IF(OR('Input| Projects As Inc'!I202<>"Replacement",AND('Input| Projects As Inc'!I202="Replacement",AC202=100%)),"",1) -> 
B203: 194 | C203: ='Input| Projects As Inc'!C203 -> 0 | D203: ='Input| Projects As Inc'!D203 -> 0 | F203: =IF('Input| Projects As Inc'!F203="Major Station","Yes","No") -> No | R203: =SUM(J203:Q203) -> 0 | S203: =IF(OR($F203="No",AND($F203="Yes",R203=100%)),"",1) ->  | AC203: 0 | AD203: =IF(OR('Input| Projects As Inc'!I203<>"Replacement",AND('Input| Projects As Inc'!I203="Replacement",AC203=100%)),"",1) -> 
... 6 more rows

Sheet Input| Disposals
A1: ='Input| Setup'!E5&" "&'Input| Escalations'!D8 -> AusNet Transmission 2027-28
C2: =IFERROR(Index!B2,"") -> AER Capex Forecast Model | E2: Sheet Validation | G2: ='Model Validation'!$C$11 -> 0 | I2: Key: | J2: Input | K2: Formula - do not edit
C3: =IFERROR(MID(CELL("filename",B2),FIND("]",CELL("filename",B2))+1,255),"") -> Input| Disposals
D5: =IFERROR(LEFT('Input| Projects As Com'!T7,2)+1&". Forecast asset disposals ($'000s "&'Input| Escalations'!$D$9&" "&'Input| Escalations'!$E$9&")","") -> 25. Forecast asset disposals ($'000s 2024-25 March) | N5: =IFERROR(LEFT(D5,2)+1&". Forecast asset disposals ($'000s "&'Input| Escalations'!$K$14&")","") -> 26. Forecast asset disposals ($'000s March 2027)
N6: =IF(ABS(D58*'Input| Escalations'!$K$19-N58)<0.000001,0,1) -> 0 | O6: =IF(ABS(E58*'Input| Escalations'!$K$19-O58)<0.000001,0,1) -> 0 | P6: =IF(ABS(F58*'Input| Escalations'!$K$19-P58)<0.000001,0,1) -> 0 | Q6: =IF(ABS(G58*'Input| Escalations'!$K$19-Q58)<0.000001,0,1) -> 0 | R6: =IF(ABS(H58*'Input| Escalations'!$K$19-R58)<0.000001,0,1) -> 0 | S6: =IF(ABS(I58*'Input| Escalations'!$K$19-S58)<0.000001,0,1) -> 0 | T6: =IF(ABS(J58*'Input| Escalations'!$K$19-T58)<0.000001,0,1) -> 0
C7: PTRM asset class | D7: =IFERROR('Input| Escalations'!H23,"") -> 2025-26 | E7: =IFERROR('Input| Escalations'!I23,"") -> 2026-27 | F7: =IFERROR('Input| Escalations'!J23,"") -> 2027-28 | G7: =IFERROR('Input| Escalations'!K23,"") -> 2028-29 | H7: =IFERROR('Input| Escalations'!L23,"") -> 2029-30 | I7: =IFERROR('Input| Escalations'!M23,"") -> 2030-31 | J7: =IFERROR('Input| Escalations'!N23,"") -> 2031-32 | K7: Forecast period | M7: PTRM asset class | N7: =D7 -> 2025-26 | O7: 2026-27 | P7: 2027-28 | Q7: 2028-29 | R7: 2029-30 | S7: 2030-31 | T7: 2031-32 | U7: Forecast period
B8: 1 | C8: =IFERROR(IF('Input| Setup'!E8="","",'Input| Setup'!E8),"") -> Secondary | K8: =IFERROR(IF(SUM(F8:J8)=0,"",SUM(F8:J8)),"") ->  | M8: =C8 -> Secondary | N8: =IFERROR(D8*'Input| Escalations'!$K$19,"") -> 0 | O8: =IFERROR(E8*'Input| Escalations'!$K$19,"") -> 0 | P8: =IFERROR(F8*'Input| Escalations'!$K$19,"") -> 0 | Q8: =IFERROR(G8*'Input| Escalations'!$K$19,"") -> 0 | R8: =IFERROR(H8*'Input| Escalations'!$K$19,"") -> 0 | S8: =IFERROR(I8*'Input| Escalations'!$K$19,"") -> 0 | T8: =IFERROR(J8*'Input| Escalations'!$K$19,"") -> 0 | U8: =IFERROR(IF(SUM(P8:T8)=0,"",SUM(P8:T8)),"") -> 
B9: =IFERROR(B8+1,"") -> 2 | C9: =IFERROR(IF('Input| Setup'!E9="","",'Input| Setup'!E9),"") -> Switchgear | K9: =IFERROR(IF(SUM(F9:J9)=0,"",SUM(F9:J9)),"") ->  | M9: =C9 -> Switchgear | N9: =IFERROR(D9*'Input| Escalations'!$K$19,"") -> 0 | O9: =IFERROR(E9*'Input| Escalations'!$K$19,"") -> 0 | P9: =IFERROR(F9*'Input| Escalations'!$K$19,"") -> 0 | Q9: =IFERROR(G9*'Input| Escalations'!$K$19,"") -> 0 | R9: =IFERROR(H9*'Input| Escalations'!$K$19,"") -> 0 | S9: =IFERROR(I9*'Input| Escalations'!$K$19,"") -> 0 | T9: =IFERROR(J9*'Input| Escalations'!$K$19,"") -> 0 | U9: =IFERROR(IF(SUM(P9:T9)=0,"",SUM(P9:T9)),"") -> 
B10: =IFERROR(B9+1,"") -> 3 | C10: =IFERROR(IF('Input| Setup'!E10="","",'Input| Setup'!E10),"") -> Transformers | F10: 62.68381848 | G10: 65.8180094 | H10: 69.10890987 | I10: 72.56435537 | J10: 76.19257314 | K10: 346.3676663 | M10: Transformers | N10: =IFERROR(D10*'Input| Escalations'!$K$19,"") -> 0 | O10: =IFERROR(E10*'Input| Escalations'!$K$19,"") -> 0 | P10: =IFERROR(F10*'Input| Escalations'!$K$19,"") -> 66.52916729 | Q10: =IFERROR(G10*'Input| Escalations'!$K$19,"") -> 69.85562565 | R10: =IFERROR(H10*'Input| Escalations'!$K$19,"") -> 73.34840693 | S10: =IFERROR(I10*'Input| Escalations'!$K$19,"") -> 77.01582728 | T10: =IFERROR(J10*'Input| Escalations'!$K$19,"") -> 80.86661864 | U10: 367.6156458
B11: 4 | C11: =IFERROR(IF('Input| Setup'!E11="","",'Input| Setup'!E11),"") -> Reactive | M11: Reactive | N11: =IFERROR(D11*'Input| Escalations'!$K$19,"") -> 0 | O11: =IFERROR(E11*'Input| Escalations'!$K$19,"") -> 0 | P11: =IFERROR(F11*'Input| Escalations'!$K$19,"") -> 0 | Q11: =IFERROR(G11*'Input| Escalations'!$K$19,"") -> 0 | R11: =IFERROR(H11*'Input| Escalations'!$K$19,"") -> 0 | S11: =IFERROR(I11*'Input| Escalations'!$K$19,"") -> 0 | T11: =IFERROR(J11*'Input| Escalations'!$K$19,"") -> 0
B12: 5 | C12: =IFERROR(IF('Input| Setup'!E12="","",'Input| Setup'!E12),"") -> Towers and Conductor | M12: Towers and Conductor | N12: =IFERROR(D12*'Input| Escalations'!$K$19,"") -> 0 | O12: =IFERROR(E12*'Input| Escalations'!$K$19,"") -> 0 | P12: =IFERROR(F12*'Input| Escalations'!$K$19,"") -> 0 | Q12: =IFERROR(G12*'Input| Escalations'!$K$19,"") -> 0 | R12: =IFERROR(H12*'Input| Escalations'!$K$19,"") -> 0 | S12: =IFERROR(I12*'Input| Escalations'!$K$19,"") -> 0 | T12: =IFERROR(J12*'Input| Escalations'!$K$19,"") -> 0
B13: 6 | C13: =IFERROR(IF('Input| Setup'!E13="","",'Input| Setup'!E13),"") -> Establishment | M13: Establishment | N13: =IFERROR(D13*'Input| Escalations'!$K$19,"") -> 0 | O13: =IFERROR(E13*'Input| Escalations'!$K$19,"") -> 0 | P13: =IFERROR(F13*'Input| Escalations'!$K$19,"") -> 0 | Q13: =IFERROR(G13*'Input| Escalations'!$K$19,"") -> 0 | R13: =IFERROR(H13*'Input| Escalations'!$K$19,"") -> 0 | S13: =IFERROR(I13*'Input| Escalations'!$K$19,"") -> 0 | T13: =IFERROR(J13*'Input| Escalations'!$K$19,"") -> 0
B14: 7 | C14: =IFERROR(IF('Input| Setup'!E14="","",'Input| Setup'!E14),"") -> Communications | M14: Communications | N14: =IFERROR(D14*'Input| Escalations'!$K$19,"") -> 0 | O14: =IFERROR(E14*'Input| Escalations'!$K$19,"") -> 0 | P14: =IFERROR(F14*'Input| Escalations'!$K$19,"") -> 0 | Q14: =IFERROR(G14*'Input| Escalations'!$K$19,"") -> 0 | R14: =IFERROR(H14*'Input| Escalations'!$K$19,"") -> 0 | S14: =IFERROR(I14*'Input| Escalations'!$K$19,"") -> 0 | T14: =IFERROR(J14*'Input| Escalations'!$K$19,"") -> 0
B15: 8 | C15: =IFERROR(IF('Input| Setup'!E15="","",'Input| Setup'!E15),"") -> Inventory | M15: Inventory | N15: =IFERROR(D15*'Input| Escalations'!$K$19,"") -> 0 | O15: =IFERROR(E15*'Input| Escalations'!$K$19,"") -> 0 | P15: =IFERROR(F15*'Input| Escalations'!$K$19,"") -> 0 | Q15: =IFERROR(G15*'Input| Escalations'!$K$19,"") -> 0 | R15: =IFERROR(H15*'Input| Escalations'!$K$19,"") -> 0 | S15: =IFERROR(I15*'Input| Escalations'!$K$19,"") -> 0 | T15: =IFERROR(J15*'Input| Escalations'!$K$19,"") -> 0
B16: 9 | C16: =IFERROR(IF('Input| Setup'!E16="","",'Input| Setup'!E16),"") -> IT | M16: IT | N16: =IFERROR(D16*'Input| Escalations'!$K$19,"") -> 0 | O16: =IFERROR(E16*'Input| Escalations'!$K$19,"") -> 0 | P16: =IFERROR(F16*'Input| Escalations'!$K$19,"") -> 0 | Q16: =IFERROR(G16*'Input| Escalations'!$K$19,"") -> 0 | R16: =IFERROR(H16*'Input| Escalations'!$K$19,"") -> 0 | S16: =IFERROR(I16*'Input| Escalations'!$K$19,"") -> 0 | T16: =IFERROR(J16*'Input| Escalations'!$K$19,"") -> 0
B17: 10 | C17: =IFERROR(IF('Input| Setup'!E17="","",'Input| Setup'!E17),"") -> Vehicles | F17: 144.3627335 | G17: 151.5808701 | H17: 159.1599136 | I17: 167.1179093 | J17: 175.4738048 | K17: 797.6952314 | M17: Vehicles | N17: =IFERROR(D17*'Input| Escalations'!$K$19,"") -> 0 | O17: =IFERROR(E17*'Input| Escalations'!$K$19,"") -> 0 | P17: =IFERROR(F17*'Input| Escalations'!$K$19,"") -> 153.2186883 | Q17: =IFERROR(G17*'Input| Escalations'!$K$19,"") -> 160.8796227 | R17: =IFERROR(H17*'Input| Escalations'!$K$19,"") -> 168.9236038 | S17: =IFERROR(I17*'Input| Escalations'!$K$19,"") -> 177.369784 | T17: =IFERROR(J17*'Input| Escalations'!$K$19,"") -> 186.2382732 | U17: 846.6299721
B18: 11 | C18: =IFERROR(IF('Input| Setup'!E18="","",'Input| Setup'!E18),"") -> Other (Non-Network) | F18: 214.6445906 | G18: 225.3768201 | H18: 236.6456611 | I18: 248.4779441 | J18: 260.9018413 | K18: 1186.046857 | M18: Other (Non-Network) | N18: =IFERROR(D18*'Input| Escalations'!$K$19,"") -> 0 | O18: =IFERROR(E18*'Input| Escalations'!$K$19,"") -> 0 | P18: =IFERROR(F18*'Input| Escalations'!$K$19,"") -> 227.8119971 | Q18: =IFERROR(G18*'Input| Escalations'!$K$19,"") -> 239.2025969 | R18: =IFERROR(H18*'Input| Escalations'!$K$19,"") -> 251.1627268 | S18: =IFERROR(I18*'Input| Escalations'!$K$19,"") -> 263.7208631 | T18: =IFERROR(J18*'Input| Escalations'!$K$19,"") -> 276.9069063 | U18: 1258.80509
B19: 12 | C19: =IFERROR(IF('Input| Setup'!E19="","",'Input| Setup'!E19),"") -> Premises | M19: Premises | N19: =IFERROR(D19*'Input| Escalations'!$K$19,"") -> 0 | O19: =IFERROR(E19*'Input| Escalations'!$K$19,"") -> 0 | P19: =IFERROR(F19*'Input| Escalations'!$K$19,"") -> 0 | Q19: =IFERROR(G19*'Input| Escalations'!$K$19,"") -> 0 | R19: =IFERROR(H19*'Input| Escalations'!$K$19,"") -> 0 | S19: =IFERROR(I19*'Input| Escalations'!$K$19,"") -> 0 | T19: =IFERROR(J19*'Input| Escalations'!$K$19,"") -> 0
B20: 13 | C20: =IFERROR(IF('Input| Setup'!E20="","",'Input| Setup'!E20),"") -> Land | M20: Land | N20: =IFERROR(D20*'Input| Escalations'!$K$19,"") -> 0 | O20: =IFERROR(E20*'Input| Escalations'!$K$19,"") -> 0 | P20: =IFERROR(F20*'Input| Escalations'!$K$19,"") -> 0 | Q20: =IFERROR(G20*'Input| Escalations'!$K$19,"") -> 0 | R20: =IFERROR(H20*'Input| Escalations'!$K$19,"") -> 0 | S20: =IFERROR(I20*'Input| Escalations'!$K$19,"") -> 0 | T20: =IFERROR(J20*'Input| Escalations'!$K$19,"") -> 0
B21: 14 | C21: =IFERROR(IF('Input| Setup'!E21="","",'Input| Setup'!E21),"") -> Easements | M21: Easements | N21: =IFERROR(D21*'Input| Escalations'!$K$19,"") -> 0 | O21: =IFERROR(E21*'Input| Escalations'!$K$19,"") -> 0 | P21: =IFERROR(F21*'Input| Escalations'!$K$19,"") -> 0 | Q21: =IFERROR(G21*'Input| Escalations'!$K$19,"") -> 0 | R21: =IFERROR(H21*'Input| Escalations'!$K$19,"") -> 0 | S21: =IFERROR(I21*'Input| Escalations'!$K$19,"") -> 0 | T21: =IFERROR(J21*'Input| Escalations'!$K$19,"") -> 0
B22: 15 | C22: =IFERROR(IF('Input| Setup'!E22="","",'Input| Setup'!E22),"") -> Polymeric Insulators | M22: Polymeric Insulators | N22: =IFERROR(D22*'Input| Escalations'!$K$19,"") -> 0 | O22: =IFERROR(E22*'Input| Escalations'!$K$19,"") -> 0 | P22: =IFERROR(F22*'Input| Escalations'!$K$19,"") -> 0 | Q22: =IFERROR(G22*'Input| Escalations'!$K$19,"") -> 0 | R22: =IFERROR(H22*'Input| Escalations'!$K$19,"") -> 0 | S22: =IFERROR(I22*'Input| Escalations'!$K$19,"") -> 0 | T22: =IFERROR(J22*'Input| Escalations'!$K$19,"") -> 0
B23: 16 | C23: =IFERROR(IF('Input| Setup'!E23="","",'Input| Setup'!E23),"") -> Leases L&B - Short Lives | M23: Leases L&B - Short Lives | N23: =IFERROR(D23*'Input| Escalations'!$K$19,"") -> 0 | O23: =IFERROR(E23*'Input| Escalations'!$K$19,"") -> 0 | P23: =IFERROR(F23*'Input| Escalations'!$K$19,"") -> 0 | Q23: =IFERROR(G23*'Input| Escalations'!$K$19,"") -> 0 | R23: =IFERROR(H23*'Input| Escalations'!$K$19,"") -> 0 | S23: =IFERROR(I23*'Input| Escalations'!$K$19,"") -> 0 | T23: =IFERROR(J23*'Input| Escalations'!$K$19,"") -> 0
B24: 17 | C24: =IFERROR(IF('Input| Setup'!E24="","",'Input| Setup'!E24),"") -> Head Office Leases | M24: Head Office Leases | N24: =IFERROR(D24*'Input| Escalations'!$K$19,"") -> 0 | O24: =IFERROR(E24*'Input| Escalations'!$K$19,"") -> 0 | P24: =IFERROR(F24*'Input| Escalations'!$K$19,"") -> 0 | Q24: =IFERROR(G24*'Input| Escalations'!$K$19,"") -> 0 | R24: =IFERROR(H24*'Input| Escalations'!$K$19,"") -> 0 | S24: =IFERROR(I24*'Input| Escalations'!$K$19,"") -> 0 | T24: =IFERROR(J24*'Input| Escalations'!$K$19,"") -> 0
B25: 18 | C25: =IFERROR(IF('Input| Setup'!E25="","",'Input| Setup'!E25),"") -> Buildings - Capital Works | M25: Buildings - Capital Works | N25: =IFERROR(D25*'Input| Escalations'!$K$19,"") -> 0 | O25: =IFERROR(E25*'Input| Escalations'!$K$19,"") -> 0 | P25: =IFERROR(F25*'Input| Escalations'!$K$19,"") -> 0 | Q25: =IFERROR(G25*'Input| Escalations'!$K$19,"") -> 0 | R25: =IFERROR(H25*'Input| Escalations'!$K$19,"") -> 0 | S25: =IFERROR(I25*'Input| Escalations'!$K$19,"") -> 0 | T25: =IFERROR(J25*'Input| Escalations'!$K$19,"") -> 0
B26: 19 | C26: =IFERROR(IF('Input| Setup'!E26="","",'Input| Setup'!E26),"") -> In-House Software | M26: In-House Software | N26: =IFERROR(D26*'Input| Escalations'!$K$19,"") -> 0 | O26: =IFERROR(E26*'Input| Escalations'!$K$19,"") -> 0 | P26: =IFERROR(F26*'Input| Escalations'!$K$19,"") -> 0 | Q26: =IFERROR(G26*'Input| Escalations'!$K$19,"") -> 0 | R26: =IFERROR(H26*'Input| Escalations'!$K$19,"") -> 0 | S26: =IFERROR(I26*'Input| Escalations'!$K$19,"") -> 0 | T26: =IFERROR(J26*'Input| Escalations'!$K$19,"") -> 0
B27: 20 | C27: =IFERROR(IF('Input| Setup'!#REF!="","",'Input| Setup'!#REF!),"") ->  | N27: =IFERROR(D27*'Input| Escalations'!$K$19,"") -> 0 | O27: =IFERROR(E27*'Input| Escalations'!$K$19,"") -> 0 | P27: =IFERROR(F27*'Input| Escalations'!$K$19,"") -> 0 | Q27: =IFERROR(G27*'Input| Escalations'!$K$19,"") -> 0 | R27: =IFERROR(H27*'Input| Escalations'!$K$19,"") -> 0 | S27: =IFERROR(I27*'Input| Escalations'!$K$19,"") -> 0 | T27: =IFERROR(J27*'Input| Escalations'!$K$19,"") -> 0
B28: 21 | C28: =IFERROR(IF('Input| Setup'!#REF!="","",'Input| Setup'!#REF!),"") ->  | N28: =IFERROR(D28*'Input| Escalations'!$K$19,"") -> 0 | O28: =IFERROR(E28*'Input| Escalations'!$K$19,"") -> 0 | P28: =IFERROR(F28*'Input| Escalations'!$K$19,"") -> 0 | Q28: =IFERROR(G28*'Input| Escalations'!$K$19,"") -> 0 | R28: =IFERROR(H28*'Input| Escalations'!$K$19,"") -> 0 | S28: =IFERROR(I28*'Input| Escalations'!$K$19,"") -> 0 | T28: =IFERROR(J28*'Input| Escalations'!$K$19,"") -> 0
B29: 22 | C29: =IFERROR(IF('Input| Setup'!#REF!="","",'Input| Setup'!#REF!),"") ->  | N29: =IFERROR(D29*'Input| Escalations'!$K$19,"") -> 0 | O29: =IFERROR(E29*'Input| Escalations'!$K$19,"") -> 0 | P29: =IFERROR(F29*'Input| Escalations'!$K$19,"") -> 0 | Q29: =IFERROR(G29*'Input| Escalations'!$K$19,"") -> 0 | R29: =IFERROR(H29*'Input| Escalations'!$K$19,"") -> 0 | S29: =IFERROR(I29*'Input| Escalations'!$K$19,"") -> 0 | T29: =IFERROR(J29*'Input| Escalations'!$K$19,"") -> 0
B30: 23 | C30: =IFERROR(IF('Input| Setup'!#REF!="","",'Input| Setup'!#REF!),"") ->  | N30: =IFERROR(D30*'Input| Escalations'!$K$19,"") -> 0 | O30: =IFERROR(E30*'Input| Escalations'!$K$19,"") -> 0 | P30: =IFERROR(F30*'Input| Escalations'!$K$19,"") -> 0 | Q30: =IFERROR(G30*'Input| Escalations'!$K$19,"") -> 0 | R30: =IFERROR(H30*'Input| Escalations'!$K$19,"") -> 0 | S30: =IFERROR(I30*'Input| Escalations'!$K$19,"") -> 0 | T30: =IFERROR(J30*'Input| Escalations'!$K$19,"") -> 0
B31: 24 | C31: =IFERROR(IF('Input| Setup'!#REF!="","",'Input| Setup'!#REF!),"") ->  | N31: =IFERROR(D31*'Input| Escalations'!$K$19,"") -> 0 | O31: =IFERROR(E31*'Input| Escalations'!$K$19,"") -> 0 | P31: =IFERROR(F31*'Input| Escalations'!$K$19,"") -> 0 | Q31: =IFERROR(G31*'Input| Escalations'!$K$19,"") -> 0 | R31: =IFERROR(H31*'Input| Escalations'!$K$19,"") -> 0 | S31: =IFERROR(I31*'Input| Escalations'!$K$19,"") -> 0 | T31: =IFERROR(J31*'Input| Escalations'!$K$19,"") -> 0
B32: 25 | C32: =IFERROR(IF('Input| Setup'!#REF!="","",'Input| Setup'!#REF!),"") ->  | N32: =IFERROR(D32*'Input| Escalations'!$K$19,"") -> 0 | O32: =IFERROR(E32*'Input| Escalations'!$K$19,"") -> 0 | P32: =IFERROR(F32*'Input| Escalations'!$K$19,"") -> 0 | Q32: =IFERROR(G32*'Input| Escalations'!$K$19,"") -> 0 | R32: =IFERROR(H32*'Input| Escalations'!$K$19,"") -> 0 | S32: =IFERROR(I32*'Input| Escalations'!$K$19,"") -> 0 | T32: =IFERROR(J32*'Input| Escalations'!$K$19,"") -> 0
B33: 26 | C33: =IFERROR(IF('Input| Setup'!#REF!="","",'Input| Setup'!#REF!),"") ->  | N33: =IFERROR(D33*'Input| Escalations'!$K$19,"") -> 0 | O33: =IFERROR(E33*'Input| Escalations'!$K$19,"") -> 0 | P33: =IFERROR(F33*'Input| Escalations'!$K$19,"") -> 0 | Q33: =IFERROR(G33*'Input| Escalations'!$K$19,"") -> 0 | R33: =IFERROR(H33*'Input| Escalations'!$K$19,"") -> 0 | S33: =IFERROR(I33*'Input| Escalations'!$K$19,"") -> 0 | T33: =IFERROR(J33*'Input| Escalations'!$K$19,"") -> 0
B34: 27 | C34: =IFERROR(IF('Input| Setup'!#REF!="","",'Input| Setup'!#REF!),"") ->  | N34: =IFERROR(D34*'Input| Escalations'!$K$19,"") -> 0 | O34: =IFERROR(E34*'Input| Escalations'!$K$19,"") -> 0 | P34: =IFERROR(F34*'Input| Escalations'!$K$19,"") -> 0 | Q34: =IFERROR(G34*'Input| Escalations'!$K$19,"") -> 0 | R34: =IFERROR(H34*'Input| Escalations'!$K$19,"") -> 0 | S34: =IFERROR(I34*'Input| Escalations'!$K$19,"") -> 0 | T34: =IFERROR(J34*'Input| Escalations'!$K$19,"") -> 0
B35: 28 | C35: =IFERROR(IF('Input| Setup'!#REF!="","",'Input| Setup'!#REF!),"") ->  | N35: =IFERROR(D35*'Input| Escalations'!$K$19,"") -> 0 | O35: =IFERROR(E35*'Input| Escalations'!$K$19,"") -> 0 | P35: =IFERROR(F35*'Input| Escalations'!$K$19,"") -> 0 | Q35: =IFERROR(G35*'Input| Escalations'!$K$19,"") -> 0 | R35: =IFERROR(H35*'Input| Escalations'!$K$19,"") -> 0 | S35: =IFERROR(I35*'Input| Escalations'!$K$19,"") -> 0 | T35: =IFERROR(J35*'Input| Escalations'!$K$19,"") -> 0
B36: 29 | C36: =IFERROR(IF('Input| Setup'!#REF!="","",'Input| Setup'!#REF!),"") ->  | N36: =IFERROR(D36*'Input| Escalations'!$K$19,"") -> 0 | O36: =IFERROR(E36*'Input| Escalations'!$K$19,"") -> 0 | P36: =IFERROR(F36*'Input| Escalations'!$K$19,"") -> 0 | Q36: =IFERROR(G36*'Input| Escalations'!$K$19,"") -> 0 | R36: =IFERROR(H36*'Input| Escalations'!$K$19,"") -> 0 | S36: =IFERROR(I36*'Input| Escalations'!$K$19,"") -> 0 | T36: =IFERROR(J36*'Input| Escalations'!$K$19,"") -> 0
B37: 30 | C37: =IFERROR(IF('Input| Setup'!#REF!="","",'Input| Setup'!#REF!),"") ->  | N37: =IFERROR(D37*'Input| Escalations'!$K$19,"") -> 0 | O37: =IFERROR(E37*'Input| Escalations'!$K$19,"") -> 0 | P37: =IFERROR(F37*'Input| Escalations'!$K$19,"") -> 0 | Q37: =IFERROR(G37*'Input| Escalations'!$K$19,"") -> 0 | R37: =IFERROR(H37*'Input| Escalations'!$K$19,"") -> 0 | S37: =IFERROR(I37*'Input| Escalations'!$K$19,"") -> 0 | T37: =IFERROR(J37*'Input| Escalations'!$K$19,"") -> 0
B38: 31 | C38: =IFERROR(IF('Input| Setup'!#REF!="","",'Input| Setup'!#REF!),"") ->  | N38: =IFERROR(D38*'Input| Escalations'!$K$19,"") -> 0 | O38: =IFERROR(E38*'Input| Escalations'!$K$19,"") -> 0 | P38: =IFERROR(F38*'Input| Escalations'!$K$19,"") -> 0 | Q38: =IFERROR(G38*'Input| Escalations'!$K$19,"") -> 0 | R38: =IFERROR(H38*'Input| Escalations'!$K$19,"") -> 0 | S38: =IFERROR(I38*'Input| Escalations'!$K$19,"") -> 0 | T38: =IFERROR(J38*'Input| Escalations'!$K$19,"") -> 0
B39: 32 | C39: =IFERROR(IF('Input| Setup'!#REF!="","",'Input| Setup'!#REF!),"") ->  | N39: =IFERROR(D39*'Input| Escalations'!$K$19,"") -> 0 | O39: =IFERROR(E39*'Input| Escalations'!$K$19,"") -> 0 | P39: =IFERROR(F39*'Input| Escalations'!$K$19,"") -> 0 | Q39: =IFERROR(G39*'Input| Escalations'!$K$19,"") -> 0 | R39: =IFERROR(H39*'Input| Escalations'!$K$19,"") -> 0 | S39: =IFERROR(I39*'Input| Escalations'!$K$19,"") -> 0 | T39: =IFERROR(J39*'Input| Escalations'!$K$19,"") -> 0
B40: 33 | C40: =IFERROR(IF('Input| Setup'!#REF!="","",'Input| Setup'!#REF!),"") ->  | N40: =IFERROR(D40*'Input| Escalations'!$K$19,"") -> 0 | O40: =IFERROR(E40*'Input| Escalations'!$K$19,"") -> 0 | P40: =IFERROR(F40*'Input| Escalations'!$K$19,"") -> 0 | Q40: =IFERROR(G40*'Input| Escalations'!$K$19,"") -> 0 | R40: =IFERROR(H40*'Input| Escalations'!$K$19,"") -> 0 | S40: =IFERROR(I40*'Input| Escalations'!$K$19,"") -> 0 | T40: =IFERROR(J40*'Input| Escalations'!$K$19,"") -> 0
B41: 34 | C41: =IFERROR(IF('Input| Setup'!#REF!="","",'Input| Setup'!#REF!),"") ->  | N41: =IFERROR(D41*'Input| Escalations'!$K$19,"") -> 0 | O41: =IFERROR(E41*'Input| Escalations'!$K$19,"") -> 0 | P41: =IFERROR(F41*'Input| Escalations'!$K$19,"") -> 0 | Q41: =IFERROR(G41*'Input| Escalations'!$K$19,"") -> 0 | R41: =IFERROR(H41*'Input| Escalations'!$K$19,"") -> 0 | S41: =IFERROR(I41*'Input| Escalations'!$K$19,"") -> 0 | T41: =IFERROR(J41*'Input| Escalations'!$K$19,"") -> 0
B42: 35 | C42: =IFERROR(IF('Input| Setup'!#REF!="","",'Input| Setup'!#REF!),"") ->  | N42: =IFERROR(D42*'Input| Escalations'!$K$19,"") -> 0 | O42: =IFERROR(E42*'Input| Escalations'!$K$19,"") -> 0 | P42: =IFERROR(F42*'Input| Escalations'!$K$19,"") -> 0 | Q42: =IFERROR(G42*'Input| Escalations'!$K$19,"") -> 0 | R42: =IFERROR(H42*'Input| Escalations'!$K$19,"") -> 0 | S42: =IFERROR(I42*'Input| Escalations'!$K$19,"") -> 0 | T42: =IFERROR(J42*'Input| Escalations'!$K$19,"") -> 0
B43: 36 | C43: =IFERROR(IF('Input| Setup'!#REF!="","",'Input| Setup'!#REF!),"") ->  | N43: =IFERROR(D43*'Input| Escalations'!$K$19,"") -> 0 | O43: =IFERROR(E43*'Input| Escalations'!$K$19,"") -> 0 | P43: =IFERROR(F43*'Input| Escalations'!$K$19,"") -> 0 | Q43: =IFERROR(G43*'Input| Escalations'!$K$19,"") -> 0 | R43: =IFERROR(H43*'Input| Escalations'!$K$19,"") -> 0 | S43: =IFERROR(I43*'Input| Escalations'!$K$19,"") -> 0 | T43: =IFERROR(J43*'Input| Escalations'!$K$19,"") -> 0
B44: 37 | C44: =IFERROR(IF('Input| Setup'!#REF!="","",'Input| Setup'!#REF!),"") ->  | N44: =IFERROR(D44*'Input| Escalations'!$K$19,"") -> 0 | O44: =IFERROR(E44*'Input| Escalations'!$K$19,"") -> 0 | P44: =IFERROR(F44*'Input| Escalations'!$K$19,"") -> 0 | Q44: =IFERROR(G44*'Input| Escalations'!$K$19,"") -> 0 | R44: =IFERROR(H44*'Input| Escalations'!$K$19,"") -> 0 | S44: =IFERROR(I44*'Input| Escalations'!$K$19,"") -> 0 | T44: =IFERROR(J44*'Input| Escalations'!$K$19,"") -> 0
B45: 38 | C45: =IFERROR(IF('Input| Setup'!#REF!="","",'Input| Setup'!#REF!),"") ->  | N45: =IFERROR(D45*'Input| Escalations'!$K$19,"") -> 0 | O45: =IFERROR(E45*'Input| Escalations'!$K$19,"") -> 0 | P45: =IFERROR(F45*'Input| Escalations'!$K$19,"") -> 0 | Q45: =IFERROR(G45*'Input| Escalations'!$K$19,"") -> 0 | R45: =IFERROR(H45*'Input| Escalations'!$K$19,"") -> 0 | S45: =IFERROR(I45*'Input| Escalations'!$K$19,"") -> 0 | T45: =IFERROR(J45*'Input| Escalations'!$K$19,"") -> 0
B46: 39 | C46: =IFERROR(IF('Input| Setup'!#REF!="","",'Input| Setup'!#REF!),"") ->  | N46: =IFERROR(D46*'Input| Escalations'!$K$19,"") -> 0 | O46: =IFERROR(E46*'Input| Escalations'!$K$19,"") -> 0 | P46: =IFERROR(F46*'Input| Escalations'!$K$19,"") -> 0 | Q46: =IFERROR(G46*'Input| Escalations'!$K$19,"") -> 0 | R46: =IFERROR(H46*'Input| Escalations'!$K$19,"") -> 0 | S46: =IFERROR(I46*'Input| Escalations'!$K$19,"") -> 0 | T46: =IFERROR(J46*'Input| Escalations'!$K$19,"") -> 0
